Workbook

Sheet Points
B2: Solar Concepts
C3: Variable Cost of Diesel vs Total Cost of Solar
C4: Drivers: Solar Cost, Diesel Fuel Price, Carrying Charge Rate
C5: Implication: May be better to produce more solar and have lower capacity factor
C6: Economics depend on load shape
B8: Solar Mechanics
B9: Diesel Production = Load - Solar ---> Like production cost
B10: Compare Solar to Diesel Variable Cost
B11: Maybe worth having lower solar capacity factor and more capacity
B12: Dependence on carrying charges
B13: Could be producing too much solar relative to load
B14: Use Solver to find the optimal production
B15: Solver with Macro
B16: Other Issues
C17: Reset button on diesel prices
C18: Discuss scenario analysis for carrying charge scenarios
B20: Battery Analysis
C21: Allow for Surplus Solar Power
C22: Make Table from Surplus Solar Power
C23: Begin in Hour when Starting Storage (Lookup)
C24: Adjust downward for efficiency
D25: Leaking water -- don't count leaks as reduction in storage
C26: Storage Analysis is Like Cash Flow Waterfall with MIN and MAX
B29: Battery Concepts
C30: Issue of storage capacity constraint vs energy constraints
C31: If constraint is from charging with solar power don't need much storage
C32: Example of Australia Merchant Prices
C33: If no constraint on charging (e.g. connected to large system)
B35: Which battery to select
C36: Demonstration with Power BI - Problems with transpose
C37: Advantages of Power BI

Sheet Summary
A2: Cost of Capital Assumptions | F2: % Savings - Solar and Diesel | I2: % | J2: =H50 -> 0.1430981167
B3: Operating Periods in Carrying Charge | D3: =Scenarios!E5 -> 1 | F3: % Added Savings with Battery | I3: % | J3: =O50 -> 0.29809839
B4: Inflation Rate | C4: % p.a. | D4: =Scenarios!E6 -> 0.025 | F4: Solar Wasted (no Battery) | I4: MWH | J4: ='Loads and Storage'!F32 -> 138.9
B5: Equity Return | C5: % p.a. | D5: =Scenarios!E7 -> 0.07 | F5: Load Shape
B6: Risk Free Rate | C6: % p.a. | D6: =Scenarios!E8 -> 0.01 | F6: Solar Shape
B7: Credit Spread | C7: % p.a. | D7: =Scenarios!E9 -> 0.014 | F7: Solar Size | I7: MW | J7: =F33 -> 52.75
B8: Debt to Capital | C8: % | D8: =Scenarios!E10 -> 0.85 | F8: Solar Cost | I8: USD/kW | J8: 950
B9: Income Tax Rate | C9: % | D9: =Scenarios!E11 -> 0.25 | F9: Diesel Fuel Cost | I9: USD/MMBTU | J9: =Sensitivity -> 11.6785216
B10: Tax Depreciation VDB | C10: Num | D10: =Scenarios!E12 -> 2 | F10: Diesel Variable Cost | I10: USD/MWH | J10: =D47 -> 119.8009552
F11: Solar Total Cost | I11: USD/MWH | J11: =F46 -> 77.36597336
F12: Battery Size | I12: MW | J12: 30 | K12: TRUE
A14: Cost Parameters | P14: Starting | Q14: ='Loads and Storage'!H4 -> 9
D15: Diesel | F15: Combined Diesel and Solar | K15: Combined Diesel and Battery
D16: Only | F16: Solar | G16: Net Diesel | H16: Total | K16: Battery | L16: Solar | M16: Total | N16: Add: Diesel Cap | O16: With Diesel
B17: Cost/kW | C17: USD/kW | D17: ='Diesel Costs'!M12 -> 843.7016787 | F17: =J8 -> 950 | G17: =D17 -> 843.7016787 | K17: ='Battery Database'!O121 -> 1160 | N17: =D17 -> 843.7016787
B18: Fixed O&M | C18: USD/kW-yr | D18: ='Diesel Costs'!K12 -> 6.9 | F18: =Solar!D28 -> 15 | G18: =D18 -> 6.9 | K18: ='Battery Database'!Q121/100*K17 -> 31.32 | N18: =D18 -> 6.9
B19: Variable O&M | C19: USD/MWH | D19: ='Diesel Costs'!J12 -> 8.855 | G19: =D19 -> 8.855 | K19: 0 | N19: =D19 -> 8.855
B20: Heat Rate | C20: MMBTU/MWH | D20: ='Diesel Costs'!F12 -> 9.5 | G20: 9.5 | N20: =D20 -> 9.5
B21: Fuel Cost | C21: USD/MMBTU | D21: =J9 -> 11.6785216 | G21: 11.6785216 | N21: 11.6785216
B22: Fuel Expense | C22: USD/MWH | D22: =D20*D21 -> 110.9459552 | G22: 110.9459552 | N22: 110.9459552
B23: Lifetime | C23: Years | D23: =Scenarios!F21 -> 25 | F23: =Scenarios!F20 -> 30 | G23: 25 | K23: ='Battery Database'!$H$121 -> 20 | N23: =D23 -> 25
B24: Construction Period | C24: Months | D24: =Scenarios!F25 -> 3 | F24: =Scenarios!F26 -> 6 | G24: 3 | K24: 3 | N24: =D24 -> 3
B25: Replacement Year | C25: Years | D25: 0 | F25: 0 | G25: 0 | K25: 10 | N25: 0
B26: Replacement Cost % | C26: % | D26: 0 | F26: 0 | G26: 0 | K26: =('Battery Database'!$U$121+'Battery Database'!$X$121)/'Battery Database'!$N$121 -> 0.6896551724 | N26: 0
B27: Degradation | C27: % p.a. | F27: 0.005 | G27: 0 | K27: 0 | N27: 0
B29: Carrying Charge Rate | C29: % | D29: ='Diesel Carrying Charge'!F1 -> 0.04496600755 | F29: ='Solar Carrying Charge'!F1 -> 0.04118075262 | G29: =D29 -> 0.04496600755 | K29: ='Battery Carrying Charge'!F1 -> 0.06720838308 | N29: ='Diesel Carrying Charge'!F1 -> 0.04496600755
F30: =F29*F17 -> 39.12171499
A31: Load Parameters
B32: Total Load | C32: MW | D32: 10 | F32: 10 | G32: =D32 -> 10 | K32: =J12 -> 30 | N32: =N33 -> 10
B33: Total Capacity | C33: MW | D33: 10 | F33: ='Loads and Storage'!D9 -> 52.75 | G33: 10 | K33: =IF(K12,K32) -> 30 | N33: =D33 -> 10
B34: Load Factor | C34: % | D34: ='Loads and Storage'!E7 -> 1 | F34: ='Loads and Storage'!C8 -> 0.2083333333 | G34: 1
B35: Capacity Factor | C35: % | D35: =D34 -> 1 | F35: ='Loads and Storage'!E16 -> 0.07985781991
B37: Total Energy (Discharge) | C37: MWH p.d. | D37: =D35*D33*24 -> 240 | F37: =F35*F33*24 -> 101.1 | G37: =D37-F37 -> 138.9 | H37: =F37+G37 -> 240 | K37: ='Loads and Storage'!F32 -> 138.9 | L37: =F37 -> 101.1 | M37: =K37+L37 -> 240 | N37: =D37-K37-L37 -> 2.215870154e-09 | O37: =N37+M37 -> 240
B38: Total Energy | C38: MWH p.a. | D38: =D33*D35*8760 -> 87600 | F38: =F33*F35*8760 -> 36901.5 | G38: =D38-F38 -> 50698.5 | H38: =F38+G38 -> 87600 | K38: =K37*365 -> 50698.5 | L38: =F38 -> 36901.5 | M38: =L38+K38 -> 87600 | N38: =D38-K38-L38 -> 8.087954484e-07 | O38: =N38+M38 -> 87600
B40: Fuel Cost | C40: USD | D40: =D22*D38 -> 9718865.676 | F40: =F22*F38 -> 0 | G40: =G22*G38 -> 5624793.51 | H40: =G40+F40 -> 5624793.51 | N40: =N22*N38 -> 8.973258359e-05 | O40: =N40 -> 8.973258359e-05
B41: Variable O&M Cost | C41: USD | D41: =D38*D19 -> 775698 | F41: =F38*F19 -> 0 | G41: =G38*G19 -> 448935.2175 | H41: =G41+F41 -> 448935.2175 | N41: =N38*N19 -> 7.161883696e-06 | O41: =N41 -> 7.161883696e-06
B42: Fixed O&M Cost | C42: USD | D42: =D18*D32*1000 -> 69000 | F42: =F18*F33*1000 -> 791250 | G42: =G18*G32*1000 -> 69000 | H42: =G42+F42 -> 860250 | K42: =K18*K33*1000 -> 939600 | L42: =F42 -> 791250 | M42: =K42+L42 -> 1730850 | N42: =N18*N32*1000 -> 69000 | O42: =N42+M42 -> 1799850
B43: Capacity Cost | C43: USD | D43: =D29*D17*1000*D33 -> 379378.9605 | F43: =F29*F17*1000*F33 -> 2063670.466 | G43: =G29*G17*1000*G33 -> 379378.9605 | H43: =G43+F43 -> 2443049.426 | K43: =K29*K17*K33*1000 -> 2338851.731 | L43: =F43 -> 2063670.466 | M43: =K43+L43 -> 4402522.197 | N43: =N29*N17*1000*N33 -> 379378.9605 | O43: =M43+N43 -> 4781901.158
B44: Total Cost | C44: USD | D44: =D43+D42+D41+D40 -> 10942942.64 | F44: =F43+F42+F41+F40 -> 2854920.466 | G44: =G43+G42+G41+G40 -> 6522107.688 | H44: =G44+F44 -> 9377028.154 | K44: =SUM(K40:K43) -> 3278451.731 | L44: =SUM(L40:L43) -> 2854920.466 | M44: =K44+L44 -> 6133372.197 | N44: =SUM(N40:N43) -> 448378.9606 | O44: =M44+N44 -> 6581751.158
B46: Total Cost/MWH | C46: USD/MWH | D46: =D44/D38 -> 124.9194365 | F46: =F44/F38 -> 77.36597336 | G46: =G44/G38 -> 128.6449833 | H46: =H44/H38 -> 107.0437004 | K46: =IF(K38,K44/K38) -> 64.66565542 | L46: =L44/L38 -> 77.36597336 | M46: =M44/M38 -> 70.01566435 | O46: =O44/O38 -> 75.13414564
B47: Variable Cost/MWH | C47: USD/MWH | D47: =(D40+D41)/D38 -> 119.8009552 | F47: =(F40+F41)/F38 -> 0 | G47: =(G40+G41)/G38 -> 119.8009552 | H47: =(H40+H41)/H38 -> 69.33480282 | K47: =IF(K38,(K40+K41)/K38) -> 0 | L47: =(L40+L41)/L38 -> 0 | M47: =(M40+M41)/M38 -> 0 | O47: =(O40+O41)/O38 -> 1.106101225e-09
G50: Percent Saving | H50: =(D44-H44)/D44 -> 0.1430981167 | L50: Added Savings | M50: =(H44-M44)/H44 -> 0.3459151347 | O50: =(H44-O44)/H44 -> 0.29809839
L52: Difference | M52: =M37-D37 -> -2.215870154e-09

Sheet Loads and Storage
R1: End Storage | S1: =C28 -> 0
C2: 1 | G2: 1 | I2: Solar Max | J2: =Summary!J2 -> 0.1430981167 | L2: Combined Max | N2: =Summary!J2+Summary!J3 -> 0.4411965068 | R2: Diesel | S2: =F37 -> 2.215841732e-09
C3: Average | D3: Max | E3: Load Fac | F3: Sum
B4: Hour of Day | H4: 9 | I4: =IF(H4=24,1,H4+1) -> 10 | J4: =IF(I4=24,1,I4+1) -> 11 | K4: 12 | L4: 13 | M4: 14 | N4: 15 | O4: 16 | P4: 17 | Q4: 18 | R4: 19 | S4: 20 | T4: 21 | U4: 22 | V4: 23 | W4: 24 | X4: 1 | Y4: 2 | Z4: 3 | AA4: 4 | AB4: 5 | AC4: 6 | AD4: 7 | AE4: 8
A6: Base Load and Solar
B7: Load (LOOKUP) | C7: =AVERAGE(H7:AE7) -> 10 | D7: =MAX(H7:AE7) -> 10 | E7: =C7/D7 -> 1 | H7: =LOOKUP(H4,41:41,47:47) -> 10 | I7: 10 | J7: 10 | K7: 10 | L7: 10 | M7: 10 | N7: 10 | O7: 10 | P7: 10 | Q7: 10 | R7: 10 | S7: 10 | T7: 10 | U7: 10 | V7: 10 | W7: 10 | X7: 10 | Y7: 10 | Z7: 10 | AA7: 10 | AB7: 10 | AC7: 10 | AD7: 10 | AE7: 10
B8: Solar Pattern | C8: =AVERAGE(H8:AE8) -> 0.2083333333 | H8: =LOOKUP(H4,41:41,54:54) -> 0.4 | I8: 0.4 | J8: 0.6 | K8: 1 | L8: 0.8 | M8: 0.6 | N8: 0.4 | O8: 0.4 | P8: 0.1 | Q8: 0.1 | R8: 0 | S8: 0 | T8: 0 | U8: 0 | V8: 0 | W8: 0 | X8: 0 | Y8: 0 | Z8: 0 | AA8: 0 | AB8: 0 | AC8: 0 | AD8: 0.1 | AE8: 0.1
B9: Potential Solar Production | C9: =AVERAGE(H9:AE9) -> 10.98958333 | D9: 52.75 | E9: =IF(D9,C9/D9) -> 0.2083333333 | H9: =$D$9*H8 -> 21.1 | I9: =$D$9*I8 -> 21.1 | J9: 31.65 | K9: 52.75 | L9: 42.2 | M9: 31.65 | N9: 21.1 | O9: 21.1 | P9: 5.275 | Q9: 5.275 | R9: 0 | S9: 0 | T9: 0 | U9: 0 | V9: 0 | W9: 0 | X9: 0 | Y9: 0 | Z9: 0 | AA9: 0 | AB9: 0 | AC9: 0 | AD9: 5.275 | AE9: 5.275
B11: Surplus Solar Energy (Max) | C11: Sum | D11: =SUM(H11:AE11) -> 162.65 | H11: =MAX(H9-H7,0) -> 11.1 | I11: 11.1 | J11: 21.65 | K11: 42.75 | L11: 32.2 | M11: 21.65 | N11: 11.1 | O11: 11.1 | P11: 0 | Q11: 0 | R11: 0 | S11: 0 | T11: 0 | U11: 0 | V11: 0 | W11: 0 | X11: 0 | Y11: 0 | Z11: 0 | AA11: 0 | AB11: 0 | AC11: 0 | AD11: 0 | AE11: 0
B12: Diesel Energy Production (Max) | C12: Sum | D12: =SUM(H12:AE12) -> 138.9 | H12: =MAX(H7-H9,0) -> 0 | I12: 0 | J12: 0 | K12: 0 | L12: 0 | M12: 0 | N12: 0 | O12: 0 | P12: 4.725 | Q12: 4.725 | R12: 10 | S12: 10 | T12: 10 | U12: 10 | V12: 10 | W12: 10 | X12: 10 | Y12: 10 | Z12: 10 | AA12: 10 | AB12: 10 | AC12: 10 | AD12: 4.725 | AE12: 4.725
A14: Load and Solar without Storage
B15: Load | C15: =AVERAGE(H15:AE15) -> 10 | D15: =MAX(H15:AE15) -> 10 | E15: =C15/D15 -> 1 | F15: =SUM(H15:AE15) -> 240 | H15: =H7 -> 10 | I15: =I7 -> 10 | J15: 10 | K15: 10 | L15: 10 | M15: 10 | N15: 10 | O15: 10 | P15: 10 | Q15: 10 | R15: 10 | S15: 10 | T15: 10 | U15: 10 | V15: 10 | W15: 10 | X15: 10 | Y15: 10 | Z15: 10 | AA15: 10 | AB15: 10 | AC15: 10 | AD15: 10 | AE15: 10
B16: Less: Solar for Load | C16: =AVERAGE(H16:AE16) -> 4.2125 | D16: =D9 -> 52.75 | E16: =IF(D16,C16/D16) -> 0.07985781991 | F16: =SUM(H16:AE16) -> 101.1 | H16: =H9-H11 -> 10 | I16: =I9-I11 -> 10 | J16: 10 | K16: 10 | L16: 10 | M16: 10 | N16: 10 | O16: 10 | P16: 5.275 | Q16: 5.275 | R16: 0 | S16: 0 | T16: 0 | U16: 0 | V16: 0 | W16: 0 | X16: 0 | Y16: 0 | Z16: 0 | AA16: 0 | AB16: 0 | AC16: 0 | AD16: 5.275 | AE16: 5.275
B17: Net Load for Diesel | C17: =AVERAGE(H17:AE17) -> 5.7875 | F17: =SUM(H17:AE17) -> 138.9 | H17: =H15-H16 -> 0 | I17: =I15-I16 -> 0 | J17: 0 | K17: 0 | L17: 0 | M17: 0 | N17: 0 | O17: 0 | P17: 4.725 | Q17: 4.725 | R17: 10 | S17: 10 | T17: 10 | U17: 10 | V17: 10 | W17: 10 | X17: 10 | Y17: 10 | Z17: 10 | AA17: 10 | AB17: 10 | AC17: 10 | AD17: 4.725 | AE17: 4.725
A19: Energy Storage Balance
B20: Surplus Solar Energy | C20: =AVERAGE(H20:AE20) -> 6.777083333 | D20: =MAX(H20:AE20) -> 42.75 | E20: =IF(D20,C20/D20) -> 0.1585282651 | F20: =SUM(H20:AE20) -> 162.65 | H20: =H11 -> 11.1 | I20: =I11 -> 11.1 | J20: 21.65 | K20: 42.75 | L20: 32.2 | M20: 21.65 | N20: 11.1 | O20: 11.1 | P20: 0 | Q20: 0 | R20: 0 | S20: 0 | T20: 0 | U20: 0 | V20: 0 | W20: 0 | X20: 0 | Y20: 0 | Z20: 0 | AA20: 0 | AB20: 0 | AC20: 0 | AD20: 0 | AE20: 0
B21: Battery Capacity | D21: 25.6 | H21: =$D$21 -> 25.6 | I21: =$D$21 -> 25.6 | J21: 25.6 | K21: 25.6 | L21: 25.6 | M21: 25.6 | N21: 25.6 | O21: 25.6 | P21: 25.6 | Q21: 25.6 | R21: 25.6 | S21: 25.6 | T21: 25.6 | U21: 25.6 | V21: 25.6 | W21: 25.6 | X21: 25.6 | Y21: 25.6 | Z21: 25.6 | AA21: 25.6 | AB21: 25.6 | AC21: 25.6 | AD21: 25.6 | AE21: 25.6
B23: Opening Storage Balance | H23: =G26 -> 0 | I23: =H26 -> 11.1 | J23: 22.2 | K23: 43.85 | L23: 69.45 | M23: 95.05 | N23: 116.7 | O23: 127.8 | P23: 138.9 | Q23: 134.175 | R23: 129.45 | S23: 119.45 | T23: 109.45 | U23: 99.45 | V23: 89.45 | W23: 79.45 | X23: 69.45 | Y23: 59.45 | Z23: 49.45 | AA23: 39.45 | AB23: 29.45 | AC23: 19.45 | AD23: 9.449999998 | AE23: 4.724999998
B24: Add: Solar Charged w/o loss (MIN,MAX) | C24: Efficiency | D24: ='Battery Database'!$R$121/100 -> 0.64 | H24: =MIN(H21,MAX(H20,0)) -> 11.1 | I24: =MIN(I21,MAX(I20,0)) -> 11.1 | J24: 21.65 | K24: 25.6 | L24: 25.6 | M24: 21.65 | N24: 11.1 | O24: 11.1 | P24: 0 | Q24: 0 | R24: 0 | S24: 0 | T24: 0 | U24: 0 | V24: 0 | W24: 0 | X24: 0 | Y24: 0 | Z24: 0 | AA24: 0 | AB24: 0 | AC24: 0 | AD24: 0 | AE24: 0
B25: Less: Discharged w/o loss (MIN) | C25: Efficiency | D25: ='Battery Database'!$R$121/100 -> 0.64 | H25: =MIN(H23,H12) -> 0 | I25: =MIN(I23,I12) -> 0 | J25: 0 | K25: 0 | L25: 0 | M25: 0 | N25: 0 | O25: 0 | P25: 4.725 | Q25: 4.725 | R25: 10 | S25: 10 | T25: 10 | U25: 10 | V25: 10 | W25: 10 | X25: 10 | Y25: 10 | Z25: 10 | AA25: 10 | AB25: 10 | AC25: 10 | AD25: 4.725 | AE25: 4.724999998
B26: Closing Storage Balance | G26: 0 | H26: =H23+H24-H25 -> 11.1 | I26: =I23+I24-I25 -> 22.2 | J26: =J23+J24-J25 -> 43.85 | K26: =K23+K24-K25 -> 69.45 | L26: =L23+L24-L25 -> 95.05 | M26: =M23+M24-M25 -> 116.7 | N26: 127.8 | O26: 138.9 | P26: 134.175 | Q26: 129.45 | R26: 119.45 | S26: 109.45 | T26: 99.45 | U26: 89.45 | V26: 79.45 | W26: 69.45 | X26: 59.45 | Y26: 49.45 | Z26: =Z23+Z24-Z25 -> 39.45 | AA26: 29.45 | AB26: 19.45 | AC26: 9.449999998 | AD26: 4.724999998 | AE26: 0
B28: Ending Balance | C28: =AE26 -> 0
B30: Total Storage before loss | H30: =H25 -> 0 | I30: =I25 -> 0 | J30: 0 | K30: 0 | L30: 0 | M30: 0 | N30: 0 | O30: 0 | P30: 4.725 | Q30: 4.725 | R30: 10 | S30: 10 | T30: 10 | U30: 10 | V30: 10 | W30: 10 | X30: 10 | Y30: 10 | Z30: 10 | AA30: 10 | AB30: 10 | AC30: 10 | AD30: 4.725 | AE30: 4.724999998
B31: Storage Efficiency | C31: =MAX(D24,1) -> 1 | H31: =$C$31 -> 1 | I31: =$C$31 -> 1 | J31: 1 | K31: 1 | L31: 1 | M31: 1 | N31: 1 | O31: 1 | P31: 1 | Q31: 1 | R31: 1 | S31: 1 | T31: 1 | U31: 1 | V31: 1 | W31: 1 | X31: 1 | Y31: 1 | Z31: 1 | AA31: 1 | AB31: 1 | AC31: 1 | AD31: 1 | AE31: 1
B32: Total Discarge | E32: Sum | F32: =SUM(H32:AE32) -> 138.9 | H32: =H30*H31 -> 0 | I32: =I30*I31 -> 0 | J32: 0 | K32: 0 | L32: 0 | M32: 0 | N32: 0 | O32: 0 | P32: 4.725 | Q32: 4.725 | R32: 10 | S32: 10 | T32: 10 | U32: 10 | V32: 10 | W32: 10 | X32: 10 | Y32: 10 | Z32: 10 | AA32: 10 | AB32: 10 | AC32: 10 | AD32: 4.725 | AE32: 4.724999998
B34: Total Load | H34: =H15 -> 10 | I34: =I15 -> 10 | J34: 10 | K34: 10 | L34: 10 | M34: 10 | N34: 10 | O34: 10 | P34: 10 | Q34: 10 | R34: 10 | S34: 10 | T34: 10 | U34: 10 | V34: 10 | W34: 10 | X34: 10 | Y34: 10 | Z34: 10 | AA34: 10 | AB34: 10 | AC34: 10 | AD34: 10 | AE34: 10
B35: Less: Solar for Load | H35: =H16 -> 10 | I35: =I16 -> 10 | J35: 10 | K35: 10 | L35: 10 | M35: 10 | N35: 10 | O35: 10 | P35: 5.275 | Q35: 5.275 | R35: 0 | S35: 0 | T35: 0 | U35: 0 | V35: 0 | W35: 0 | X35: 0 | Y35: 0 | Z35: 0 | AA35: 0 | AB35: 0 | AC35: 0 | AD35: 5.275 | AE35: 5.275
B36: Less: Discharge | H36: =H32 -> 0 | I36: =I32 -> 0 | J36: 0 | K36: 0 | L36: 0 | M36: 0 | N36: 0 | O36: 0 | P36: 4.725 | Q36: 4.725 | R36: 10 | S36: 10 | T36: 10 | U36: 10 | V36: 10 | W36: 10 | X36: 10 | Y36: 10 | Z36: 10 | AA36: 10 | AB36: 10 | AC36: 10 | AD36: 4.725 | AE36: 4.724999998
B37: Net for Diesel | E37: Sum | F37: =SUM(H37:AE37) -> 2.215841732e-09 | H37: =H34-H35-H36 -> 0 | I37: =I34-I35-I36 -> 0 | J37: 0 | K37: 0 | L37: 0 | M37: 0 | N37: 0 | O37: 0 | P37: 0 | Q37: 0 | R37: 0 | S37: 0 | T37: 0 | U37: 0 | V37: 0 | W37: 0 | X37: 0 | Y37: 0 | Z37: 0 | AA37: 0 | AB37: 0 | AC37: 0 | AD37: 0 | AE37: 2.215841732e-09
A40: Loads and Solar by Hour of Day
C41: 1 | H41: 1 | I41: 2 | J41: 3 | K41: 4 | L41: 5 | M41: 6 | N41: 7 | O41: 8 | P41: 9 | Q41: 10 | R41: 11 | S41: 12 | T41: 13 | U41: 14 | V41: 15 | W41: 16 | X41: 17 | Y41: 18 | Z41: 19 | AA41: 20 | AB41: 21 | AC41: 22 | AD41: 23 | AE41: 24
B42: Flat Load | C42: =AVERAGE(H42:Y42) -> 10 | D42: =MAX(H42:Y42) -> 10 | E42: =C42/D42 -> 1 | H42: 10 | I42: 10 | J42: 10 | K42: 10 | L42: 10 | M42: 10 | N42: 10 | O42: 10 | P42: 10 | Q42: 10 | R42: 10 | S42: 10 | T42: 10 | U42: 10 | V42: 10 | W42: 10 | X42: 10 | Y42: 10 | Z42: 10 | AA42: 10 | AB42: 10 | AC42: 10 | AD42: 10 | AE42: 10
B43: Coincident with Solar | C43: =AVERAGE(H43:Y43) -> 6.888888889 | D43: =MAX(H43:Y43) -> 10 | E43: =C43/D43 -> 0.6888888889 | H43: 5 | I43: 5 | J43: 5 | K43: 5 | L43: 5 | M43: 6 | N43: 6 | O43: 7 | P43: 7 | Q43: 8 | R43: 8 | S43: 10 | T43: 9 | U43: 8 | V43: 8 | W43: 8 | X43: 7 | Y43: 7 | Z43: 5 | AA43: 5 | AB43: 5 | AC43: 5 | AD43: 5 | AE43: 5
B44: Non-Coincident with Solar | C44: =AVERAGE(H44:Y44) -> 5.833333333 | D44: =MAX(H44:Y44) -> 10 | E44: =C44/D44 -> 0.5833333333 | H44: 7 | I44: 7 | J44: 5 | K44: 5 | L44: 6 | M44: 6 | N44: 10 | O44: 10 | P44: 10 | Q44: 5 | R44: 4 | S44: 4 | T44: 4 | U44: 4 | V44: 4 | W44: 4 | X44: 5 | Y44: 5 | Z44: 6 | AA44: 10 | AB44: 10 | AC44: 10 | AD44: 9 | AE44: 9
B45: Variable Load | C45: =AVERAGE(H45:Y45) -> 6.388888889 | D45: =MAX(H45:Y45) -> 8 | E45: =C45/D45 -> 0.7986111111 | H45: 7 | I45: 7 | J45: 7 | K45: 7 | L45: 7 | M45: 7 | N45: 6 | O45: 6 | P45: 5 | Q45: 5 | R45: 5 | S45: 6 | T45: 6 | U45: 6 | V45: 6 | W45: 7 | X45: 7 | Y45: 8 | Z45: 9 | AA45: 10 | AB45: 10 | AC45: 7 | AD45: 7 | AE45: 7
B47: Load | C47: =AVERAGE(H47:Y47) -> 10 | D47: =MAX(H47:Y47) -> 10 | E47: =C47/D47 -> 1 | H47: =INDEX(H42:H45,$C$2) -> 10 | I47: 10 | J47: 10 | K47: 10 | L47: 10 | M47: 10 | N47: 10 | O47: 10 | P47: 10 | Q47: 10 | R47: 10 | S47: 10 | T47: 10 | U47: 10 | V47: 10 | W47: 10 | X47: 10 | Y47: 10 | Z47: 10 | AA47: 10 | AB47: 10 | AC47: 10 | AD47: 10 | AE47: 10
B50: Base Solar Pattern | C50: =AVERAGE(H50:AE50) -> 0.2083333333 | H50: 0 | I50: 0 | J50: 0 | K50: 0 | L50: 0 | M50: 0 | N50: 0.1 | O50: 0.1 | P50: 0.4 | Q50: 0.4 | R50: 0.6 | S50: 1 | T50: 0.8 | U50: 0.6 | V50: 0.4 | W50: 0.4 | X50: 0.1 | Y50: 0.1 | Z50: 0 | AA50: 0 | AB50: 0 | AC50: 0 | AD50: 0 | AE50: 0
B51: Lower Daily Capacity Fatcor | C51: =AVERAGE(H51:AE51) -> 0.1433333333 | H51: 0 | I51: 0 | J51: 0 | K51: 0 | L51: 0 | M51: 0 | N51: 0.05 | O51: 0.07 | P51: 0.1 | Q51: 0.4 | R51: 0.6 | S51: 1 | T51: 0.6 | U51: 0.4 | V51: 0.1 | W51: 0.07 | X51: 0.05 | Y51: 0 | Z51: 0 | AA51: 0 | AB51: 0 | AC51: 0 | AD51: 0 | AE51: 0
B52: Higher Daily Capacity Factor | C52: =AVERAGE(H52:AE52) -> 0.2416666667 | H52: 0 | I52: 0 | J52: 0 | K52: 0 | L52: 0 | M52: 0 | N52: 0.3 | O52: 0.3 | P52: 0.5 | Q52: 0.5 | R52: 0.6 | S52: 1 | T52: 0.8 | U52: 0.6 | V52: 0.4 | W52: 0.4 | X52: 0.2 | Y52: 0.2 | Z52: 0 | AA52: 0 | AB52: 0 | AC52: 0 | AD52: 0 | AE52: 0
B54: =INDEX(B50:B52,$G$2) -> Base Solar Pattern | C54: =INDEX(C50:C52,$G$2) -> 0.2083333333 | H54: 0 | I54: 0 | J54: 0 | K54: 0 | L54: 0 | M54: 0 | N54: 0.1 | O54: 0.1 | P54: 0.4 | Q54: 0.4 | R54: 0.6 | S54: 1 | T54: 0.8 | U54: 0.6 | V54: 0.4 | W54: 0.4 | X54: 0.1 | Y54: 0.1 | Z54: 0 | AA54: 0 | AB54: 0 | AC54: 0 | AD54: 0 | AE54: 0
A58: Graphs
H59: =H41 -> 1 | I59: =I41 -> 2 | J59: 3 | K59: 4 | L59: 5 | M59: 6 | N59: 7 | O59: 8 | P59: 9 | Q59: 10 | R59: 11 | S59: 12 | T59: 13 | U59: 14 | V59: 15 | W59: 16 | X59: 17 | Y59: 18 | Z59: 19 | AA59: 20 | AB59: 21 | AC59: 22 | AD59: 23 | AE59: 24
B60: Solar Energy Used for Charging | H60: =INDEX(24:24,MATCH(H$59,$4:$4,0)) -> 0 | I60: =INDEX(24:24,MATCH(I$59,$4:$4,0)) -> 0 | J60: 0 | K60: 0 | L60: 0 | M60: 0 | N60: 0 | O60: 0 | P60: 11.1 | Q60: 11.1 | R60: 21.65 | S60: 25.6 | T60: 25.6 | U60: 21.65 | V60: 11.1 | W60: 11.1 | X60: 0 | Y60: 0 | Z60: 0 | AA60: 0 | AB60: 0 | AC60: 0 | AD60: 0 | AE60: 0
B61: Energy Discharged before Loss | H61: =INDEX(25:25,MATCH(H$59,$4:$4,0)) -> 10 | I61: 10 | J61: 10 | K61: 10 | L61: 10 | M61: 10 | N61: 4.725 | O61: 4.724999998 | P61: 0 | Q61: 0 | R61: 0 | S61: 0 | T61: 0 | U61: 0 | V61: 0 | W61: 0 | X61: 4.725 | Y61: 4.725 | Z61: 10 | AA61: 10 | AB61: 10 | AC61: 10 | AD61: 10 | AE61: 10
B62: Storage Balance | H62: =INDEX(26:26,MATCH(H$59,$4:$4,0)) -> 59.45 | I62: 49.45 | J62: 39.45 | K62: 29.45 | L62: 19.45 | M62: 9.449999998 | N62: 4.724999998 | O62: 0 | P62: 11.1 | Q62: 22.2 | R62: 43.85 | S62: 69.45 | T62: 95.05 | U62: 116.7 | V62: 127.8 | W62: 138.9 | X62: 134.175 | Y62: 129.45 | Z62: 119.45 | AA62: 109.45 | AB62: 99.45 | AC62: 89.45 | AD62: 79.45 | AE62: 69.45
H64: =H59 -> 1 | I64: =I59 -> 2 | J64: 3 | K64: 4 | L64: 5 | M64: 6 | N64: 7 | O64: 8 | P64: 9 | Q64: 10 | R64: 11 | S64: 12 | T64: 13 | U64: 14 | V64: 15 | W64: 16 | X64: 17 | Y64: 18 | Z64: 19 | AA64: 20 | AB64: 21 | AC64: 22 | AD64: 23 | AE64: 24
B65: Total Load | H65: =INDEX(34:34,MATCH(H$59,$4:$4,0)) -> 10 | I65: =INDEX(34:34,MATCH(I$59,$4:$4,0)) -> 10 | J65: 10 | K65: 10 | L65: 10 | M65: 10 | N65: 10 | O65: 10 | P65: 10 | Q65: 10 | R65: 10 | S65: 10 | T65: 10 | U65: 10 | V65: 10 | W65: 10 | X65: 10 | Y65: 10 | Z65: 10 | AA65: 10 | AB65: 10 | AC65: 10 | AD65: 10 | AE65: 10
B66: Served by Solar | H66: =INDEX(35:35,MATCH(H$59,$4:$4,0)) -> 0 | I66: 0 | J66: 0 | K66: 0 | L66: 0 | M66: 0 | N66: 5.275 | O66: 5.275 | P66: 10 | Q66: 10 | R66: 10 | S66: 10 | T66: 10 | U66: 10 | V66: 10 | W66: 10 | X66: 5.275 | Y66: 5.275 | Z66: 0 | AA66: 0 | AB66: 0 | AC66: 0 | AD66: 0 | AE66: 0
B67: Served by Battery Discharge | H67: 10 | I67: 10 | J67: 10 | K67: 10 | L67: 10 | M67: 10 | N67: 4.725 | O67: 4.724999998 | P67: 0 | Q67: 0 | R67: 0 | S67: 0 | T67: 0 | U67: 0 | V67: 0 | W67: 0 | X67: 4.725 | Y67: 4.725 | Z67: 10 | AA67: 10 | AB67: 10 | AC67: 10 | AD67: 10 | AE67: 10
B68: Served by Diesel | H68: 0 | I68: 0 | J68: 0 | K68: 0 | L68: 0 | M68: 0 | N68: 0 | O68: 2.215841732e-09 | P68: 0 | Q68: 0 | R68: 0 | S68: 0 | T68: 0 | U68: 0 | V68: 0 | W68: 0 | X68: 0 | Y68: 0 | Z68: 0 | AA68: 0 | AB68: 0 | AC68: 0 | AD68: 0 | AE68: 0
J2006: row | K2006: 7 | L2006: col | M2006: 8 | N2006: sheet_name | O2006: =LOOKUP(H4,41:41,47:47) -> 10 | P2006: Original Search sheet name | Q2006: LOOKUP(H4,41:41,47:47) | R2006: start of count in function | S2006: 11 | T2006: Length Applied | U2006: -11 | V2006: length until hit ! | W2006: 0
J2007: row | K2007: 8 | L2007: col | M2007: 8 | N2007: sheet_name | O2007: =LOOKUP(H4,41:41,54:54) -> 0.4 | P2007: Original Search sheet name | Q2007: LOOKUP(H4,41:41,54:54) | R2007: start of count in function | S2007: 11 | T2007: Length Applied | U2007: -11 | V2007: length until hit ! | W2007: 0

Sheet Solar Carrying Charge
A1: Summary | E1: Carrying Charge | F1: ='Solar Carrying Charge'!F162 -> 0.04118075262 | G1: IRR | H1: =E151 -> 0.02068749368 | I1: WACC | J1: =M55 -> 0.0207 | K1: Equity IRR | L1: =F260 -> 0.07015931904 | M1: Equity Cost | N1: =F25 -> 0.07
B3: Period (Long Enough for Nuclear Plant) | H3: 0 | I3: =H3+1 -> 1 | J3: =I3+1 -> 2 | K3: 3 | L3: 4 | M3: 5 | N3: 6 | O3: 7 | P3: 8 | Q3: 9 | R3: 10 | S3: 11 | T3: 12 | U3: 13 | V3: 14 | W3: 15 | X3: 16 | Y3: 17 | Z3: 18 | AA3: 19 | AB3: 20 | AC3: 21 | AD3: 22 | AE3: 23 | AF3: 24 | AG3: 25 | AH3: 26 | AI3: 27 | AJ3: 28 | AK3: 29 | AL3: 30 | AM3: 31 | AN3: 32 | AO3: 33 | AP3: 34 | AQ3: 35 | AR3: 36 | AS3: 37 | AT3: 38 | AU3: 39 | AV3: 40 | AW3: 41 | AX3: 42 | AY3: 43 | AZ3: 44 | BA3: 45 | BB3: 46 | BC3: 47 | BD3: 48 | BE3: 49 | BF3: 50 | BG3: 51 | BH3: 52 | BI3: 53 | BJ3: 54 | BK3: 55 | BL3: 56 | BM3: 57 | BN3: 58 | BO3: 59 | BP3: 60 | BQ3: 61 | BR3: 62 | BS3: 63 | BT3: 64 | BU3: 65 | BV3: =BU3+1 -> 66 | BW3: 67 | BX3: 68 | BY3: 69 | BZ3: 70 | CA3: 71 | CB3: 72 | CC3: 73 | CD3: 74 | CE3: 75 | CF3: 76 | CG3: 77 | CH3: 78 | CI3: 79 | CJ3: 80 | CK3: 81 | CL3: 82 | CM3: 83 | CN3: 84 | CO3: 85 | CP3: 86 | CQ3: 87 | CR3: 88 | CS3: 89 | CT3: 90 | CU3: 91 | CV3: 92 | CW3: 93 | CX3: 94 | CY3: 95 | CZ3: 96 | DA3: 97 | DB3: 98 | DC3: 99 | DD3: 100 | DE3: 101 | DF3: 102 | DG3: 103 | DH3: 104 | DI3: 105 | DJ3: 106 | DK3: 107 | DL3: 108 | DM3: 109 | DN3: 110 | DO3: 111 | DP3: 112 | DQ3: 113 | DR3: 114 | DS3: 115 | DT3: 116 | DU3: 117 | DV3: 118 | DW3: 119 | DX3: 120 | DY3: 121 | DZ3: 122 | EA3: 123 | EB3: 124 | EC3: 125 | ED3: 126 | EE3: 127 | EF3: 128 | EG3: 129 | EH3: =EG3+1 -> 130 | EI3: 131 | EJ3: 132 | EK3: 133 | EL3: 134 | EM3: 135 | EN3: 136 | EO3: 137 | EP3: 138 | EQ3: 139 | ER3: 140 | ES3: 141 | ET3: 142 | EU3: 143 | EV3: 144 | EW3: 145 | EX3: 146 | EY3: 147 | EZ3: 148 | FA3: 149 | FB3: 150 | FC3: 151 | FD3: 152 | FE3: 153 | FF3: 154 | FG3: 155 | FH3: 156 | FI3: 157 | FJ3: 158 | FK3: 159 | FL3: 160 | FM3: 161 | FN3: 162 | FO3: 163 | FP3: 164 | FQ3: 165 | FR3: 166 | FS3: 167 | FT3: 168 | FU3: 169 | FV3: 170 | FW3: 171 | FX3: 172 | FY3: 173 | FZ3: 174 | GA3: 175 | GB3: 176 | GC3: 177 | GD3: 178 | GE3: 179 | GF3: 180 | GG3: 181 | GH3: 182 | GI3: 183 | GJ3: 184 | GK3: 185 | GL3: 186 | GM3: 187 | GN3: 188 | GO3: 189 | GP3: 190 | GQ3: 191 | GR3: 192 | GS3: 193 | GT3: =GS3+1 -> 194 | GU3: 195 | GV3: 196 | GW3: 197 | GX3: 198 | GY3: 199 | GZ3: 200 | HA3: 201 | HB3: 202 | HC3: 203 | HD3: 204 | HE3: 205 | HF3: 206 | HG3: 207 | HH3: 208 | HI3: 209 | HJ3: 210 | HK3: 211 | HL3: 212 | HM3: 213 | HN3: 214 | HO3: 215 | HP3: 216 | HQ3: 217 | HR3: 218 | HS3: 219 | HT3: 220 | HU3: 221 | HV3: 222 | HW3: 223 | HX3: 224 | HY3: 225 | HZ3: 226 | IA3: 227 | IB3: 228 | IC3: 229 | ID3: 230 | IE3: 231 | IF3: 232 | IG3: 233 | IH3: 234 | II3: 235 | IJ3: 236 | IK3: 237 | IL3: 238 | IM3: 239 | IN3: 240 | IO3: 241 | IP3: 242 | IQ3: 243 | IR3: 244 | IS3: 245 | IT3: 246 | IU3: 247 | IV3: 248 | IW3: 249 | IX3: 250 | IY3: 251 | IZ3: 252 | JA3: 253 | JB3: 254 | JC3: 255 | JD3: 256 | JE3: 257 | JF3: =JE3+1 -> 258 | JG3: 259 | JH3: 260 | JI3: 261 | JJ3: 262 | JK3: 263 | JL3: 264 | JM3: 265 | JN3: 266 | JO3: 267 | JP3: 268 | JQ3: 269 | JR3: 270 | JS3: 271 | JT3: 272 | JU3: 273 | JV3: 274 | JW3: 275 | JX3: 276 | JY3: 277 | JZ3: 278 | KA3: 279 | KB3: 280 | KC3: 281 | KD3: 282 | KE3: 283 | KF3: 284 | KG3: 285 | KH3: 286 | KI3: 287 | KJ3: 288 | KK3: 289 | KL3: 290 | KM3: 291 | KN3: 292 | KO3: 293 | KP3: 294 | KQ3: 295 | KR3: 296 | KS3: 297 | KT3: 298 | KU3: 299 | KV3: 300 | KW3: 301 | KX3: 302 | KY3: 303 | KZ3: 304 | LA3: 305 | LB3: 306 | LC3: 307 | LD3: 308 | LE3: 309 | LF3: 310 | LG3: 311 | LH3: 312 | LI3: 313 | LJ3: 314 | LK3: 315 | LL3: 316 | LM3: 317 | LN3: 318 | LO3: 319 | LP3: 320 | LQ3: 321 | LR3: =LQ3+1 -> 322 | LS3: 323 | LT3: 324 | LU3: 325 | LV3: 326 | LW3: 327 | LX3: 328 | LY3: 329 | LZ3: 330 | MA3: 331 | MB3: 332 | MC3: 333 | MD3: 334 | ME3: 335 | MF3: 336 | MG3: 337 | MH3: 338 | MI3: 339 | MJ3: 340 | MK3: 341 | ML3: 342 | MM3: 343 | MN3: 344 | MO3: 345 | MP3: 346 | MQ3: 347 | MR3: 348 | MS3: 349 | MT3: 350 | MU3: 351 | MV3: 352 | MW3: 353 | MX3: 354 | MY3: 355 | MZ3: 356 | NA3: 357 | NB3: 358 | NC3: 359 | ND3: 360 | NE3: 361 | NF3: 362 | NG3: 363 | NH3: 364 | NI3: 365 | NJ3: 366 | NK3: 367 | NL3: 368 | NM3: 369 | NN3: 370 | NO3: 371 | NP3: 372 | NQ3: 373 | NR3: 374 | NS3: 375 | NT3: 376 | NU3: 377 | NV3: 378 | NW3: 379 | NX3: 380 | NY3: 381 | NZ3: 382 | OA3: 383 | OB3: 384 | OC3: 385 | OD3: =OC3+1 -> 386 | OE3: 387 | OF3: 388 | OG3: 389 | OH3: 390 | OI3: 391 | OJ3: 392 | OK3: 393 | OL3: 394 | OM3: 395 | ON3: 396 | OO3: 397 | OP3: 398 | OQ3: 399 | OR3: 400 | OS3: 401 | OT3: 402 | OU3: 403 | OV3: 404 | OW3: 405 | OX3: 406 | OY3: 407 | OZ3: 408 | PA3: 409 | PB3: 410 | PC3: 411 | PD3: 412 | PE3: 413 | PF3: 414 | PG3: 415 | PH3: 416 | PI3: 417 | PJ3: 418 | PK3: 419 | PL3: 420 | PM3: 421 | PN3: 422 | PO3: 423 | PP3: 424 | PQ3: 425 | PR3: 426 | PS3: 427 | PT3: 428 | PU3: 429 | PV3: 430 | PW3: 431 | PX3: 432 | PY3: 433 | PZ3: 434 | QA3: 435 | QB3: 436 | QC3: 437 | QD3: 438 | QE3: 439 | QF3: 440 | QG3: 441 | QH3: 442 | QI3: 443 | QJ3: 444 | QK3: 445 | QL3: 446 | QM3: 447 | QN3: 448 | QO3: 449 | QP3: =QO3+1 -> 450 | QQ3: 451 | QR3: 452 | QS3: 453 | QT3: 454 | QU3: 455 | QV3: 456 | QW3: 457 | QX3: 458 | QY3: 459 | QZ3: 460 | RA3: 461 | RB3: 462 | RC3: 463 | RD3: 464 | RE3: 465 | RF3: 466 | RG3: 467 | RH3: 468 | RI3: 469 | RJ3: 470 | RK3: 471 | RL3: 472 | RM3: 473 | RN3: 474 | RO3: 475 | RP3: 476 | RQ3: 477 | RR3: 478 | RS3: 479 | RT3: 480 | RU3: 481 | RV3: 482 | RW3: 483 | RX3: 484 | RY3: 485 | RZ3: 486 | SA3: 487 | SB3: 488 | SC3: 489 | SD3: 490 | SE3: 491 | SF3: 492 | SG3: 493 | SH3: 494 | SI3: 495 | SJ3: 496 | SK3: 497 | SL3: 498 | SM3: 499 | SN3: 500 | SO3: 501 | SP3: 502 | SQ3: 503 | SR3: 504 | SS3: 505 | ST3: 506 | SU3: 507 | SV3: 508 | SW3: 509 | SX3: 510 | SY3: 511 | SZ3: 512 | TA3: 513 | TB3: =TA3+1 -> 514 | TC3: 515 | TD3: 516 | TE3: 517 | TF3: 518 | TG3: 519 | TH3: 520 | TI3: 521 | TJ3: 522 | TK3: 523 | TL3: 524 | TM3: 525 | TN3: 526 | TO3: 527 | TP3: 528 | TQ3: 529 | TR3: 530 | TS3: 531 | TT3: 532 | TU3: 533 | TV3: 534 | TW3: 535 | TX3: 536 | TY3: 537 | TZ3: 538 | UA3: 539 | UB3: 540 | UC3: 541 | UD3: 542 | UE3: 543 | UF3: 544 | UG3: 545 | UH3: 546 | UI3: 547 | UJ3: 548 | UK3: 549 | UL3: 550 | UM3: 551 | UN3: 552 | UO3: 553 | UP3: 554 | UQ3: 555 | UR3: 556 | US3: =UR3+1 -> 557 | UT3: =US3+1 -> 558 | UU3: =UT3+1 -> 559 | UV3: =UU3+1 -> 560 | UW3: 561 | UX3: 562 | UY3: 563 | UZ3: 564 | VA3: 565 | VB3: 566 | VC3: 567 | VD3: 568 | VE3: 569 | VF3: 570 | VG3: 571 | VH3: 572 | VI3: 573 | VJ3: 574 | VK3: 575 | VL3: 576 | VM3: 577 | VN3: 578 | VO3: 579 | VP3: 580 | VQ3: 581 | VR3: 582 | VS3: 583 | VT3: 584 | VU3: 585 | VV3: 586 | VW3: 587 | VX3: 588 | VY3: 589 | VZ3: 590 | WA3: 591 | WB3: 592 | WC3: 593 | WD3: 594 | WE3: 595 | WF3: 596 | WG3: 597 | WH3: 598 | WI3: 599 | WJ3: 600 | WK3: 601 | WL3: 602 | WM3: 603 | WN3: 604 | WO3: 605 | WP3: 606 | WQ3: 607 | WR3: 608 | WS3: 609 | WT3: 610 | WU3: 611 | WV3: 612 | WW3: 613 | WX3: 614 | WY3: 615 | WZ3: 616 | XA3: 617 | XB3: 618 | XC3: 619 | XD3: 620 | XE3: 621 | XF3: 622 | XG3: 623 | XH3: =XG3+1 -> 624 | XI3: 625 | XJ3: 626 | XK3: 627 | XL3: 628 | XM3: 629 | XN3: 630 | XO3: 631 | XP3: 632 | XQ3: 633 | XR3: 634 | XS3: 635 | XT3: 636 | XU3: 637 | XV3: 638 | XW3: 639 | XX3: 640 | XY3: 641 | XZ3: 642 | YA3: 643 | YB3: 644 | YC3: 645 | YD3: 646 | YE3: 647 | YF3: 648 | YG3: 649 | YH3: 650 | YI3: 651 | YJ3: 652 | YK3: 653 | YL3: 654 | YM3: 655 | YN3: 656 | YO3: 657 | YP3: 658 | YQ3: 659 | YR3: 660 | YS3: 661 | YT3: 662 | YU3: 663 | YV3: 664 | YW3: 665 | YX3: 666 | YY3: 667 | YZ3: 668 | ZA3: 669 | ZB3: 670 | ZC3: 671 | ZD3: 672 | ZE3: 673 | ZF3: 674 | ZG3: 675 | ZH3: 676 | ZI3: 677 | ZJ3: 678 | ZK3: 679 | ZL3: 680 | ZM3: 681 | ZN3: 682 | ZO3: 683 | ZP3: 684 | ZQ3: 685 | ZR3: 686 | ZS3: 687 | ZT3: =ZS3+1 -> 688 | ZU3: =ZT3+1 -> 689 | ZV3: =ZU3+1 -> 690 | ZW3: =ZV3+1 -> 691 | ZX3: =ZW3+1 -> 692 | ZY3: 693 | ZZ3: 694 | AAA3: 695 | AAB3: 696 | AAC3: 697 | AAD3: 698 | AAE3: 699 | AAF3: 700 | AAG3: 701 | AAH3: 702 | AAI3: 703 | AAJ3: 704 | AAK3: 705 | AAL3: 706 | AAM3: 707 | AAN3: 708 | AAO3: 709 | AAP3: 710 | AAQ3: 711 | AAR3: 712 | AAS3: 713 | AAT3: 714 | AAU3: 715 | AAV3: 716 | AAW3: 717 | AAX3: 718 | AAY3: 719 | AAZ3: 720 | ABA3: 721 | ABB3: 722 | ABC3: 723 | ABD3: 724 | ABE3: 725 | ABF3: 726 | ABG3: 727 | ABH3: 728 | ABI3: 729 | ABJ3: 730 | ABK3: 731 | ABL3: 732 | ABM3: 733 | ABN3: 734 | ABO3: 735 | ABP3: 736 | ABQ3: 737 | ABR3: 738 | ABS3: 739 | ABT3: 740 | ABU3: 741 | ABV3: 742 | ABW3: 743 | ABX3: 744 | ABY3: 745 | ABZ3: 746 | ACA3: 747 | ACB3: 748 | ACC3: 749 | ACD3: 750 | ACE3: 751 | ACF3: 752 | ACG3: 753 | ACH3: 754 | ACI3: 755 | ACJ3: =ACI3+1 -> 756 | ACK3: 757 | ACL3: 758 | ACM3: 759 | ACN3: 760 | ACO3: 761 | ACP3: 762 | ACQ3: 763 | ACR3: 764 | ACS3: 765 | ACT3: 766 | ACU3: 767 | ACV3: 768 | ACW3: 769 | ACX3: 770 | ACY3: 771 | ACZ3: 772 | ADA3: 773 | ADB3: 774 | ADC3: 775 | ADD3: 776 | ADE3: 777 | ADF3: 778 | ADG3: 779 | ADH3: 780 | ADI3: 781 | ADJ3: 782 | ADK3: 783 | ADL3: 784 | ADM3: 785 | ADN3: 786 | ADO3: 787 | ADP3: 788 | ADQ3: 789 | ADR3: 790 | ADS3: 791 | ADT3: 792 | ADU3: 793 | ADV3: 794 | ADW3: 795 | ADX3: 796 | ADY3: 797 | ADZ3: 798 | AEA3: 799 | AEB3: 800 | AEC3: 801 | AED3: 802 | AEE3: 803 | AEF3: 804 | AEG3: 805 | AEH3: 806 | AEI3: 807 | AEJ3: 808 | AEK3: 809 | AEL3: 810 | AEM3: 811 | AEN3: 812 | AEO3: 813 | AEP3: 814 | AEQ3: 815 | AER3: 816 | AES3: 817 | AET3: 818 | AEU3: 819 | AEV3: =AEU3+1 -> 820 | AEW3: 821 | AEX3: 822 | AEY3: 823 | AEZ3: 824 | AFA3: 825 | AFB3: 826 | AFC3: 827 | AFD3: 828 | AFE3: 829 | AFF3: 830 | AFG3: 831 | AFH3: 832 | AFI3: 833 | AFJ3: 834 | AFK3: 835 | AFL3: 836 | AFM3: 837 | AFN3: 838 | AFO3: 839 | AFP3: 840 | AFQ3: 841 | AFR3: 842 | AFS3: 843 | AFT3: 844 | AFU3: 845 | AFV3: 846 | AFW3: 847 | AFX3: 848 | AFY3: 849 | AFZ3: 850 | AGA3: 851 | AGB3: 852 | AGC3: 853 | AGD3: 854 | AGE3: 855 | AGF3: 856 | AGG3: 857 | AGH3: 858 | AGI3: 859 | AGJ3: 860 | AGK3: 861
B4: Construction Period | E4: ='Solar Carrying Charge'!F33 -> 6 | I4: =I3<=$E$4 -> TRUE | J4: TRUE | K4: TRUE | L4: TRUE | M4: TRUE | N4: TRUE | O4: FALSE | P4: FALSE | Q4: FALSE | R4: FALSE | S4: FALSE | T4: FALSE | U4: FALSE | V4: FALSE | W4: FALSE | X4: FALSE | Y4: FALSE | Z4: FALSE | AA4: FALSE | AB4: FALSE | AC4: FALSE | AD4: FALSE | AE4: FALSE | AF4: FALSE | AG4: FALSE | AH4: FALSE | AI4: FALSE | AJ4: FALSE | AK4: FALSE | AL4: FALSE | AM4: FALSE | AN4: FALSE | AO4: FALSE | AP4: FALSE | AQ4: FALSE | AR4: FALSE | AS4: FALSE | AT4: FALSE | AU4: FALSE | AV4: FALSE | AW4: FALSE | AX4: FALSE | AY4: FALSE | AZ4: FALSE | BA4: FALSE | BB4: FALSE | BC4: FALSE | BD4: FALSE | BE4: FALSE | BF4: FALSE | BG4: FALSE | BH4: FALSE | BI4: FALSE | BJ4: FALSE | BK4: FALSE | BL4: FALSE | BM4: FALSE | BN4: FALSE | BO4: FALSE | BP4: FALSE | BQ4: FALSE | BR4: FALSE | BS4: FALSE | BT4: FALSE | BU4: =BU3<=$E$4 -> FALSE | BV4: FALSE | BW4: FALSE | BX4: FALSE | BY4: FALSE | BZ4: FALSE | CA4: FALSE | CB4: FALSE | CC4: FALSE | CD4: FALSE | CE4: FALSE | CF4: FALSE | CG4: FALSE | CH4: FALSE | CI4: FALSE | CJ4: FALSE | CK4: FALSE | CL4: FALSE | CM4: FALSE | CN4: FALSE | CO4: FALSE | CP4: FALSE | CQ4: FALSE | CR4: FALSE | CS4: FALSE | CT4: FALSE | CU4: FALSE | CV4: FALSE | CW4: FALSE | CX4: FALSE | CY4: FALSE | CZ4: FALSE | DA4: FALSE | DB4: FALSE | DC4: FALSE | DD4: FALSE | DE4: FALSE | DF4: FALSE | DG4: FALSE | DH4: FALSE | DI4: FALSE | DJ4: FALSE | DK4: FALSE | DL4: FALSE | DM4: FALSE | DN4: FALSE | DO4: FALSE | DP4: FALSE | DQ4: FALSE | DR4: FALSE | DS4: FALSE | DT4: FALSE | DU4: FALSE | DV4: FALSE | DW4: FALSE | DX4: FALSE | DY4: FALSE | DZ4: FALSE | EA4: FALSE | EB4: FALSE | EC4: FALSE | ED4: FALSE | EE4: FALSE | EF4: FALSE | EG4: =EG3<=$E$4 -> FALSE | EH4: FALSE | EI4: FALSE | EJ4: FALSE | EK4: FALSE | EL4: FALSE | EM4: FALSE | EN4: FALSE | EO4: FALSE | EP4: FALSE | EQ4: FALSE | ER4: FALSE | ES4: FALSE | ET4: FALSE | EU4: FALSE | EV4: FALSE | EW4: FALSE | EX4: FALSE | EY4: FALSE | EZ4: FALSE | FA4: FALSE | FB4: FALSE | FC4: FALSE | FD4: FALSE | FE4: FALSE | FF4: FALSE | FG4: FALSE | FH4: FALSE | FI4: FALSE | FJ4: FALSE | FK4: FALSE | FL4: FALSE | FM4: FALSE | FN4: FALSE | FO4: FALSE | FP4: FALSE | FQ4: FALSE | FR4: FALSE | FS4: FALSE | FT4: FALSE | FU4: FALSE | FV4: FALSE | FW4: FALSE | FX4: FALSE | FY4: FALSE | FZ4: FALSE | GA4: FALSE | GB4: FALSE | GC4: FALSE | GD4: FALSE | GE4: FALSE | GF4: FALSE | GG4: FALSE | GH4: FALSE | GI4: FALSE | GJ4: FALSE | GK4: FALSE | GL4: FALSE | GM4: FALSE | GN4: FALSE | GO4: FALSE | GP4: FALSE | GQ4: FALSE | GR4: FALSE | GS4: =GS3<=$E$4 -> FALSE | GT4: FALSE | GU4: FALSE | GV4: FALSE | GW4: FALSE | GX4: FALSE | GY4: FALSE | GZ4: FALSE | HA4: FALSE | HB4: FALSE | HC4: FALSE | HD4: FALSE | HE4: FALSE | HF4: FALSE | HG4: FALSE | HH4: FALSE | HI4: FALSE | HJ4: FALSE | HK4: FALSE | HL4: FALSE | HM4: FALSE | HN4: FALSE | HO4: FALSE | HP4: FALSE | HQ4: FALSE | HR4: FALSE | HS4: FALSE | HT4: FALSE | HU4: FALSE | HV4: FALSE | HW4: FALSE | HX4: FALSE | HY4: FALSE | HZ4: FALSE | IA4: FALSE | IB4: FALSE | IC4: FALSE | ID4: FALSE | IE4: FALSE | IF4: FALSE | IG4: FALSE | IH4: FALSE | II4: FALSE | IJ4: FALSE | IK4: FALSE | IL4: FALSE | IM4: FALSE | IN4: FALSE | IO4: FALSE | IP4: FALSE | IQ4: FALSE | IR4: FALSE | IS4: FALSE | IT4: FALSE | IU4: FALSE | IV4: FALSE | IW4: FALSE | IX4: FALSE | IY4: FALSE | IZ4: FALSE | JA4: FALSE | JB4: FALSE | JC4: FALSE | JD4: FALSE | JE4: =JE3<=$E$4 -> FALSE | JF4: FALSE | JG4: FALSE | JH4: FALSE | JI4: FALSE | JJ4: FALSE | JK4: FALSE | JL4: FALSE | JM4: FALSE | JN4: FALSE | JO4: FALSE | JP4: FALSE | JQ4: FALSE | JR4: FALSE | JS4: FALSE | JT4: FALSE | JU4: FALSE | JV4: FALSE | JW4: FALSE | JX4: FALSE | JY4: FALSE | JZ4: FALSE | KA4: FALSE | KB4: FALSE | KC4: FALSE | KD4: FALSE | KE4: FALSE | KF4: FALSE | KG4: FALSE | KH4: FALSE | KI4: FALSE | KJ4: FALSE | KK4: FALSE | KL4: FALSE | KM4: FALSE | KN4: FALSE | KO4: FALSE | KP4: FALSE | KQ4: FALSE | KR4: FALSE | KS4: FALSE | KT4: FALSE | KU4: FALSE | KV4: FALSE | KW4: FALSE | KX4: FALSE | KY4: FALSE | KZ4: FALSE | LA4: FALSE | LB4: FALSE | LC4: FALSE | LD4: FALSE | LE4: FALSE | LF4: FALSE | LG4: FALSE | LH4: FALSE | LI4: FALSE | LJ4: FALSE | LK4: FALSE | LL4: FALSE | LM4: FALSE | LN4: FALSE | LO4: FALSE | LP4: FALSE | LQ4: =LQ3<=$E$4 -> FALSE | LR4: FALSE | LS4: FALSE | LT4: FALSE | LU4: FALSE | LV4: FALSE | LW4: FALSE | LX4: FALSE | LY4: FALSE | LZ4: FALSE | MA4: FALSE | MB4: FALSE | MC4: FALSE | MD4: FALSE | ME4: FALSE | MF4: FALSE | MG4: FALSE | MH4: FALSE | MI4: FALSE | MJ4: FALSE | MK4: FALSE | ML4: FALSE | MM4: FALSE | MN4: FALSE | MO4: FALSE | MP4: FALSE | MQ4: FALSE | MR4: FALSE | MS4: FALSE | MT4: FALSE | MU4: FALSE | MV4: FALSE | MW4: FALSE | MX4: FALSE | MY4: FALSE | MZ4: FALSE | NA4: FALSE | NB4: FALSE | NC4: FALSE | ND4: FALSE | NE4: FALSE | NF4: FALSE | NG4: FALSE | NH4: FALSE | NI4: FALSE | NJ4: FALSE | NK4: FALSE | NL4: FALSE | NM4: FALSE | NN4: FALSE | NO4: FALSE | NP4: FALSE | NQ4: FALSE | NR4: FALSE | NS4: FALSE | NT4: FALSE | NU4: FALSE | NV4: FALSE | NW4: FALSE | NX4: FALSE | NY4: FALSE | NZ4: FALSE | OA4: FALSE | OB4: FALSE | OC4: =OC3<=$E$4 -> FALSE | OD4: FALSE | OE4: FALSE | OF4: FALSE | OG4: FALSE | OH4: FALSE | OI4: FALSE | OJ4: FALSE | OK4: FALSE | OL4: FALSE | OM4: FALSE | ON4: FALSE | OO4: FALSE | OP4: FALSE | OQ4: FALSE | OR4: FALSE | OS4: FALSE | OT4: FALSE | OU4: FALSE | OV4: FALSE | OW4: FALSE | OX4: FALSE | OY4: FALSE | OZ4: FALSE | PA4: FALSE | PB4: FALSE | PC4: FALSE | PD4: FALSE | PE4: FALSE | PF4: FALSE | PG4: FALSE | PH4: FALSE | PI4: FALSE | PJ4: FALSE | PK4: FALSE | PL4: FALSE | PM4: FALSE | PN4: FALSE | PO4: FALSE | PP4: FALSE | PQ4: FALSE | PR4: FALSE | PS4: FALSE | PT4: FALSE | PU4: FALSE | PV4: FALSE | PW4: FALSE | PX4: FALSE | PY4: FALSE | PZ4: FALSE | QA4: FALSE | QB4: FALSE | QC4: FALSE | QD4: FALSE | QE4: FALSE | QF4: FALSE | QG4: FALSE | QH4: FALSE | QI4: FALSE | QJ4: FALSE | QK4: FALSE | QL4: FALSE | QM4: FALSE | QN4: FALSE | QO4: =QO3<=$E$4 -> FALSE | QP4: FALSE | QQ4: FALSE | QR4: FALSE | QS4: FALSE | QT4: FALSE | QU4: FALSE | QV4: FALSE | QW4: FALSE | QX4: FALSE | QY4: FALSE | QZ4: FALSE | RA4: FALSE | RB4: FALSE | RC4: FALSE | RD4: FALSE | RE4: FALSE | RF4: FALSE | RG4: FALSE | RH4: FALSE | RI4: FALSE | RJ4: FALSE | RK4: FALSE | RL4: FALSE | RM4: FALSE | RN4: FALSE | RO4: FALSE | RP4: FALSE | RQ4: FALSE | RR4: FALSE | RS4: FALSE | RT4: FALSE | RU4: FALSE | RV4: FALSE | RW4: FALSE | RX4: FALSE | RY4: FALSE | RZ4: FALSE | SA4: FALSE | SB4: FALSE | SC4: FALSE | SD4: FALSE | SE4: FALSE | SF4: FALSE | SG4: FALSE | SH4: FALSE | SI4: FALSE | SJ4: FALSE | SK4: FALSE | SL4: FALSE | SM4: FALSE | SN4: FALSE | SO4: FALSE | SP4: FALSE | SQ4: FALSE | SR4: FALSE | SS4: FALSE | ST4: FALSE | SU4: FALSE | SV4: FALSE | SW4: FALSE | SX4: FALSE | SY4: FALSE | SZ4: FALSE | TA4: =TA3<=$E$4 -> FALSE | TB4: FALSE | TC4: FALSE | TD4: FALSE | TE4: FALSE | TF4: FALSE | TG4: FALSE | TH4: FALSE | TI4: FALSE | TJ4: FALSE | TK4: FALSE | TL4: FALSE | TM4: FALSE | TN4: FALSE | TO4: FALSE | TP4: FALSE | TQ4: FALSE | TR4: FALSE | TS4: FALSE | TT4: FALSE | TU4: FALSE | TV4: FALSE | TW4: FALSE | TX4: FALSE | TY4: FALSE | TZ4: FALSE | UA4: FALSE | UB4: FALSE | UC4: FALSE | UD4: FALSE | UE4: FALSE | UF4: FALSE | UG4: FALSE | UH4: FALSE | UI4: FALSE | UJ4: FALSE | UK4: FALSE | UL4: FALSE | UM4: FALSE | UN4: FALSE | UO4: FALSE | UP4: FALSE | UQ4: FALSE | UR4: FALSE | US4: FALSE | UT4: FALSE | UU4: FALSE | UV4: FALSE | UW4: FALSE | UX4: FALSE | UY4: FALSE | UZ4: FALSE | VA4: FALSE | VB4: FALSE | VC4: FALSE | VD4: FALSE | VE4: FALSE | VF4: FALSE | VG4: FALSE | VH4: FALSE | VI4: FALSE | VJ4: FALSE | VK4: FALSE | VL4: FALSE | VM4: =VM3<=$E$4 -> FALSE | VN4: FALSE | VO4: FALSE | VP4: FALSE | VQ4: FALSE | VR4: FALSE | VS4: FALSE | VT4: FALSE | VU4: FALSE | VV4: FALSE | VW4: FALSE | VX4: FALSE | VY4: FALSE | VZ4: FALSE | WA4: FALSE | WB4: FALSE | WC4: FALSE | WD4: FALSE | WE4: FALSE | WF4: FALSE | WG4: FALSE | WH4: FALSE | WI4: FALSE | WJ4: FALSE | WK4: FALSE | WL4: FALSE | WM4: FALSE | WN4: FALSE | WO4: FALSE | WP4: FALSE | WQ4: FALSE | WR4: FALSE | WS4: FALSE | WT4: FALSE | WU4: FALSE | WV4: FALSE | WW4: FALSE | WX4: FALSE | WY4: FALSE | WZ4: FALSE | XA4: FALSE | XB4: FALSE | XC4: FALSE | XD4: FALSE | XE4: FALSE | XF4: FALSE | XG4: FALSE | XH4: FALSE | XI4: FALSE | XJ4: FALSE | XK4: FALSE | XL4: FALSE | XM4: FALSE | XN4: FALSE | XO4: FALSE | XP4: FALSE | XQ4: FALSE | XR4: FALSE | XS4: FALSE | XT4: FALSE | XU4: FALSE | XV4: FALSE | XW4: FALSE | XX4: FALSE | XY4: =XY3<=$E$4 -> FALSE | XZ4: FALSE | YA4: FALSE | YB4: FALSE | YC4: FALSE | YD4: FALSE | YE4: FALSE | YF4: FALSE | YG4: FALSE | YH4: FALSE | YI4: FALSE | YJ4: FALSE | YK4: FALSE | YL4: FALSE | YM4: FALSE | YN4: FALSE | YO4: FALSE | YP4: FALSE | YQ4: FALSE | YR4: FALSE | YS4: FALSE | YT4: FALSE | YU4: FALSE | YV4: FALSE | YW4: FALSE | YX4: FALSE | YY4: FALSE | YZ4: FALSE | ZA4: FALSE | ZB4: FALSE | ZC4: FALSE | ZD4: FALSE | ZE4: FALSE | ZF4: FALSE | ZG4: FALSE | ZH4: FALSE | ZI4: FALSE | ZJ4: FALSE | ZK4: FALSE | ZL4: FALSE | ZM4: FALSE | ZN4: FALSE | ZO4: FALSE | ZP4: FALSE | ZQ4: FALSE | ZR4: FALSE | ZS4: FALSE | ZT4: FALSE | ZU4: FALSE | ZV4: FALSE | ZW4: FALSE | ZX4: FALSE | ZY4: FALSE | ZZ4: FALSE | AAA4: FALSE | AAB4: FALSE | AAC4: FALSE | AAD4: FALSE | AAE4: FALSE | AAF4: FALSE | AAG4: FALSE | AAH4: FALSE | AAI4: FALSE | AAJ4: FALSE | AAK4: =AAK3<=$E$4 -> FALSE | AAL4: FALSE | AAM4: FALSE | AAN4: FALSE | AAO4: FALSE | AAP4: FALSE | AAQ4: FALSE | AAR4: FALSE | AAS4: FALSE | AAT4: FALSE | AAU4: FALSE | AAV4: FALSE | AAW4: FALSE | AAX4: FALSE | AAY4: FALSE | AAZ4: FALSE | ABA4: FALSE | ABB4: FALSE | ABC4: FALSE | ABD4: FALSE | ABE4: FALSE | ABF4: FALSE | ABG4: FALSE | ABH4: FALSE | ABI4: FALSE | ABJ4: FALSE | ABK4: FALSE | ABL4: FALSE | ABM4: FALSE | ABN4: FALSE | ABO4: FALSE | ABP4: FALSE | ABQ4: FALSE | ABR4: FALSE | ABS4: FALSE | ABT4: FALSE | ABU4: FALSE | ABV4: FALSE | ABW4: FALSE | ABX4: FALSE | ABY4: FALSE | ABZ4: FALSE | ACA4: FALSE | ACB4: FALSE | ACC4: FALSE | ACD4: FALSE | ACE4: FALSE | ACF4: FALSE | ACG4: FALSE | ACH4: FALSE | ACI4: FALSE | ACJ4: FALSE | ACK4: FALSE | ACL4: FALSE | ACM4: FALSE | ACN4: FALSE | ACO4: FALSE | ACP4: FALSE | ACQ4: FALSE | ACR4: FALSE | ACS4: FALSE | ACT4: FALSE | ACU4: FALSE | ACV4: FALSE | ACW4: =ACW3<=$E$4 -> FALSE | ACX4: FALSE | ACY4: FALSE | ACZ4: FALSE | ADA4: FALSE | ADB4: FALSE | ADC4: FALSE | ADD4: FALSE | ADE4: FALSE | ADF4: FALSE | ADG4: FALSE | ADH4: FALSE | ADI4: FALSE | ADJ4: FALSE | ADK4: FALSE | ADL4: FALSE | ADM4: FALSE | ADN4: FALSE | ADO4: FALSE | ADP4: FALSE | ADQ4: FALSE | ADR4: FALSE | ADS4: FALSE | ADT4: FALSE | ADU4: FALSE | ADV4: FALSE | ADW4: FALSE | ADX4: FALSE | ADY4: FALSE | ADZ4: FALSE | AEA4: FALSE | AEB4: FALSE | AEC4: FALSE | AED4: FALSE | AEE4: FALSE | AEF4: FALSE | AEG4: FALSE | AEH4: FALSE | AEI4: FALSE | AEJ4: FALSE | AEK4: FALSE | AEL4: FALSE | AEM4: FALSE | AEN4: FALSE | AEO4: FALSE | AEP4: FALSE | AEQ4: FALSE | AER4: FALSE | AES4: FALSE | AET4: FALSE | AEU4: FALSE | AEV4: FALSE | AEW4: FALSE | AEX4: FALSE | AEY4: FALSE | AEZ4: FALSE | AFA4: FALSE | AFB4: FALSE | AFC4: FALSE | AFD4: FALSE | AFE4: FALSE | AFF4: FALSE | AFG4: FALSE | AFH4: FALSE | AFI4: =AFI3<=$E$4 -> FALSE | AFJ4: FALSE | AFK4: FALSE | AFL4: FALSE | AFM4: FALSE | AFN4: FALSE | AFO4: FALSE | AFP4: FALSE | AFQ4: FALSE | AFR4: FALSE | AFS4: FALSE | AFT4: FALSE | AFU4: FALSE | AFV4: FALSE | AFW4: FALSE | AFX4: FALSE | AFY4: FALSE | AFZ4: FALSE | AGA4: FALSE | AGB4: FALSE | AGC4: FALSE | AGD4: FALSE | AGE4: FALSE | AGF4: FALSE | AGG4: FALSE | AGH4: FALSE | AGI4: FALSE | AGJ4: FALSE | AGK4: FALSE
B5: Months per Period/Construction and Operation | E5: ='Solar Carrying Charge'!F14 -> 1 | F5: ='Solar Carrying Charge'!F15 -> 1 | H5: 1 | I5: =IF(I4,$E$5,$F$5) -> 1 | J5: 1 | K5: 1 | L5: 1 | M5: 1 | N5: 1 | O5: 1 | P5: 1 | Q5: 1 | R5: 1 | S5: 1 | T5: 1 | U5: 1 | V5: 1 | W5: 1 | X5: 1 | Y5: 1 | Z5: 1 | AA5: 1 | AB5: 1 | AC5: 1 | AD5: 1 | AE5: 1 | AF5: 1 | AG5: 1 | AH5: 1 | AI5: 1 | AJ5: 1 | AK5: 1 | AL5: 1 | AM5: 1 | AN5: 1 | AO5: 1 | AP5: 1 | AQ5: 1 | AR5: 1 | AS5: 1 | AT5: 1 | AU5: 1 | AV5: 1 | AW5: 1 | AX5: 1 | AY5: 1 | AZ5: 1 | BA5: 1 | BB5: 1 | BC5: 1 | BD5: 1 | BE5: 1 | BF5: 1 | BG5: 1 | BH5: 1 | BI5: 1 | BJ5: 1 | BK5: 1 | BL5: 1 | BM5: 1 | BN5: 1 | BO5: 1 | BP5: 1 | BQ5: 1 | BR5: 1 | BS5: 1 | BT5: 1 | BU5: =IF(BU4,$E$5,$F$5) -> 1 | BV5: 1 | BW5: 1 | BX5: 1 | BY5: 1 | BZ5: 1 | CA5: 1 | CB5: 1 | CC5: 1 | CD5: 1 | CE5: 1 | CF5: 1 | CG5: 1 | CH5: 1 | CI5: 1 | CJ5: 1 | CK5: 1 | CL5: 1 | CM5: 1 | CN5: 1 | CO5: 1 | CP5: 1 | CQ5: 1 | CR5: 1 | CS5: 1 | CT5: 1 | CU5: 1 | CV5: 1 | CW5: 1 | CX5: 1 | CY5: 1 | CZ5: 1 | DA5: 1 | DB5: 1 | DC5: 1 | DD5: 1 | DE5: 1 | DF5: 1 | DG5: 1 | DH5: 1 | DI5: 1 | DJ5: 1 | DK5: 1 | DL5: 1 | DM5: 1 | DN5: 1 | DO5: 1 | DP5: 1 | DQ5: 1 | DR5: 1 | DS5: 1 | DT5: 1 | DU5: 1 | DV5: 1 | DW5: 1 | DX5: 1 | DY5: 1 | DZ5: 1 | EA5: 1 | EB5: 1 | EC5: 1 | ED5: 1 | EE5: 1 | EF5: 1 | EG5: =IF(EG4,$E$5,$F$5) -> 1 | EH5: 1 | EI5: 1 | EJ5: 1 | EK5: 1 | EL5: 1 | EM5: 1 | EN5: 1 | EO5: 1 | EP5: 1 | EQ5: 1 | ER5: 1 | ES5: 1 | ET5: 1 | EU5: 1 | EV5: 1 | EW5: 1 | EX5: 1 | EY5: 1 | EZ5: 1 | FA5: 1 | FB5: 1 | FC5: 1 | FD5: 1 | FE5: 1 | FF5: 1 | FG5: 1 | FH5: 1 | FI5: 1 | FJ5: 1 | FK5: 1 | FL5: 1 | FM5: 1 | FN5: 1 | FO5: 1 | FP5: 1 | FQ5: 1 | FR5: 1 | FS5: 1 | FT5: 1 | FU5: 1 | FV5: 1 | FW5: 1 | FX5: 1 | FY5: 1 | FZ5: 1 | GA5: 1 | GB5: 1 | GC5: 1 | GD5: 1 | GE5: 1 | GF5: 1 | GG5: 1 | GH5: 1 | GI5: 1 | GJ5: 1 | GK5: 1 | GL5: 1 | GM5: 1 | GN5: 1 | GO5: 1 | GP5: 1 | GQ5: 1 | GR5: 1 | GS5: =IF(GS4,$E$5,$F$5) -> 1 | GT5: 1 | GU5: 1 | GV5: 1 | GW5: 1 | GX5: 1 | GY5: 1 | GZ5: 1 | HA5: 1 | HB5: 1 | HC5: 1 | HD5: 1 | HE5: 1 | HF5: 1 | HG5: 1 | HH5: 1 | HI5: 1 | HJ5: 1 | HK5: 1 | HL5: 1 | HM5: 1 | HN5: 1 | HO5: 1 | HP5: 1 | HQ5: 1 | HR5: 1 | HS5: 1 | HT5: 1 | HU5: 1 | HV5: 1 | HW5: 1 | HX5: 1 | HY5: 1 | HZ5: 1 | IA5: 1 | IB5: 1 | IC5: 1 | ID5: 1 | IE5: 1 | IF5: 1 | IG5: 1 | IH5: 1 | II5: 1 | IJ5: 1 | IK5: 1 | IL5: 1 | IM5: 1 | IN5: 1 | IO5: 1 | IP5: 1 | IQ5: 1 | IR5: 1 | IS5: 1 | IT5: 1 | IU5: 1 | IV5: 1 | IW5: 1 | IX5: 1 | IY5: 1 | IZ5: 1 | JA5: 1 | JB5: 1 | JC5: 1 | JD5: 1 | JE5: =IF(JE4,$E$5,$F$5) -> 1 | JF5: 1 | JG5: 1 | JH5: 1 | JI5: 1 | JJ5: 1 | JK5: 1 | JL5: 1 | JM5: 1 | JN5: 1 | JO5: 1 | JP5: 1 | JQ5: 1 | JR5: 1 | JS5: 1 | JT5: 1 | JU5: 1 | JV5: 1 | JW5: 1 | JX5: 1 | JY5: 1 | JZ5: 1 | KA5: 1 | KB5: 1 | KC5: 1 | KD5: 1 | KE5: 1 | KF5: 1 | KG5: 1 | KH5: 1 | KI5: 1 | KJ5: 1 | KK5: 1 | KL5: 1 | KM5: 1 | KN5: 1 | KO5: 1 | KP5: 1 | KQ5: 1 | KR5: 1 | KS5: 1 | KT5: 1 | KU5: 1 | KV5: 1 | KW5: 1 | KX5: 1 | KY5: 1 | KZ5: 1 | LA5: 1 | LB5: 1 | LC5: 1 | LD5: 1 | LE5: 1 | LF5: 1 | LG5: 1 | LH5: 1 | LI5: 1 | LJ5: 1 | LK5: 1 | LL5: 1 | LM5: 1 | LN5: 1 | LO5: 1 | LP5: 1 | LQ5: =IF(LQ4,$E$5,$F$5) -> 1 | LR5: 1 | LS5: 1 | LT5: 1 | LU5: 1 | LV5: 1 | LW5: 1 | LX5: 1 | LY5: 1 | LZ5: 1 | MA5: 1 | MB5: 1 | MC5: 1 | MD5: 1 | ME5: 1 | MF5: 1 | MG5: 1 | MH5: 1 | MI5: 1 | MJ5: 1 | MK5: 1 | ML5: 1 | MM5: 1 | MN5: 1 | MO5: 1 | MP5: 1 | MQ5: 1 | MR5: 1 | MS5: 1 | MT5: 1 | MU5: 1 | MV5: 1 | MW5: 1 | MX5: 1 | MY5: 1 | MZ5: 1 | NA5: 1 | NB5: 1 | NC5: 1 | ND5: 1 | NE5: 1 | NF5: 1 | NG5: 1 | NH5: 1 | NI5: 1 | NJ5: 1 | NK5: 1 | NL5: 1 | NM5: 1 | NN5: 1 | NO5: 1 | NP5: 1 | NQ5: 1 | NR5: 1 | NS5: 1 | NT5: 1 | NU5: 1 | NV5: 1 | NW5: 1 | NX5: 1 | NY5: 1 | NZ5: 1 | OA5: 1 | OB5: 1 | OC5: =IF(OC4,$E$5,$F$5) -> 1 | OD5: 1 | OE5: 1 | OF5: 1 | OG5: 1 | OH5: 1 | OI5: 1 | OJ5: 1 | OK5: 1 | OL5: 1 | OM5: 1 | ON5: 1 | OO5: 1 | OP5: 1 | OQ5: 1 | OR5: 1 | OS5: 1 | OT5: 1 | OU5: 1 | OV5: 1 | OW5: 1 | OX5: 1 | OY5: 1 | OZ5: 1 | PA5: 1 | PB5: 1 | PC5: 1 | PD5: 1 | PE5: 1 | PF5: 1 | PG5: 1 | PH5: 1 | PI5: 1 | PJ5: 1 | PK5: 1 | PL5: 1 | PM5: 1 | PN5: 1 | PO5: 1 | PP5: 1 | PQ5: 1 | PR5: 1 | PS5: 1 | PT5: 1 | PU5: 1 | PV5: 1 | PW5: 1 | PX5: 1 | PY5: 1 | PZ5: 1 | QA5: 1 | QB5: 1 | QC5: 1 | QD5: 1 | QE5: 1 | QF5: 1 | QG5: 1 | QH5: 1 | QI5: 1 | QJ5: 1 | QK5: 1 | QL5: 1 | QM5: 1 | QN5: 1 | QO5: =IF(QO4,$E$5,$F$5) -> 1 | QP5: 1 | QQ5: 1 | QR5: 1 | QS5: 1 | QT5: 1 | QU5: 1 | QV5: 1 | QW5: 1 | QX5: 1 | QY5: 1 | QZ5: 1 | RA5: 1 | RB5: 1 | RC5: 1 | RD5: 1 | RE5: 1 | RF5: 1 | RG5: 1 | RH5: 1 | RI5: 1 | RJ5: 1 | RK5: 1 | RL5: 1 | RM5: 1 | RN5: 1 | RO5: 1 | RP5: 1 | RQ5: 1 | RR5: 1 | RS5: 1 | RT5: 1 | RU5: 1 | RV5: 1 | RW5: 1 | RX5: 1 | RY5: 1 | RZ5: 1 | SA5: 1 | SB5: 1 | SC5: 1 | SD5: 1 | SE5: 1 | SF5: 1 | SG5: 1 | SH5: 1 | SI5: 1 | SJ5: 1 | SK5: 1 | SL5: 1 | SM5: 1 | SN5: 1 | SO5: 1 | SP5: 1 | SQ5: 1 | SR5: 1 | SS5: 1 | ST5: 1 | SU5: 1 | SV5: 1 | SW5: 1 | SX5: 1 | SY5: 1 | SZ5: 1 | TA5: =IF(TA4,$E$5,$F$5) -> 1 | TB5: 1 | TC5: 1 | TD5: 1 | TE5: 1 | TF5: 1 | TG5: 1 | TH5: 1 | TI5: 1 | TJ5: 1 | TK5: 1 | TL5: 1 | TM5: 1 | TN5: 1 | TO5: 1 | TP5: 1 | TQ5: 1 | TR5: 1 | TS5: 1 | TT5: 1 | TU5: 1 | TV5: 1 | TW5: 1 | TX5: 1 | TY5: 1 | TZ5: 1 | UA5: 1 | UB5: 1 | UC5: 1 | UD5: 1 | UE5: 1 | UF5: 1 | UG5: 1 | UH5: 1 | UI5: 1 | UJ5: 1 | UK5: 1 | UL5: 1 | UM5: 1 | UN5: 1 | UO5: 1 | UP5: 1 | UQ5: 1 | UR5: 1 | US5: 1 | UT5: 1 | UU5: 1 | UV5: 1 | UW5: 1 | UX5: 1 | UY5: 1 | UZ5: 1 | VA5: 1 | VB5: 1 | VC5: 1 | VD5: 1 | VE5: 1 | VF5: 1 | VG5: 1 | VH5: 1 | VI5: 1 | VJ5: 1 | VK5: 1 | VL5: 1 | VM5: =IF(VM4,$E$5,$F$5) -> 1 | VN5: 1 | VO5: 1 | VP5: 1 | VQ5: 1 | VR5: 1 | VS5: 1 | VT5: 1 | VU5: 1 | VV5: 1 | VW5: 1 | VX5: 1 | VY5: 1 | VZ5: 1 | WA5: 1 | WB5: 1 | WC5: 1 | WD5: 1 | WE5: 1 | WF5: 1 | WG5: 1 | WH5: 1 | WI5: 1 | WJ5: 1 | WK5: 1 | WL5: 1 | WM5: 1 | WN5: 1 | WO5: 1 | WP5: 1 | WQ5: 1 | WR5: 1 | WS5: 1 | WT5: 1 | WU5: 1 | WV5: 1 | WW5: 1 | WX5: 1 | WY5: 1 | WZ5: 1 | XA5: 1 | XB5: 1 | XC5: 1 | XD5: 1 | XE5: 1 | XF5: 1 | XG5: 1 | XH5: 1 | XI5: 1 | XJ5: 1 | XK5: 1 | XL5: 1 | XM5: 1 | XN5: 1 | XO5: 1 | XP5: 1 | XQ5: 1 | XR5: 1 | XS5: 1 | XT5: 1 | XU5: 1 | XV5: 1 | XW5: 1 | XX5: 1 | XY5: =IF(XY4,$E$5,$F$5) -> 1 | XZ5: 1 | YA5: 1 | YB5: 1 | YC5: 1 | YD5: 1 | YE5: 1 | YF5: 1 | YG5: 1 | YH5: 1 | YI5: 1 | YJ5: 1 | YK5: 1 | YL5: 1 | YM5: 1 | YN5: 1 | YO5: 1 | YP5: 1 | YQ5: 1 | YR5: 1 | YS5: 1 | YT5: 1 | YU5: 1 | YV5: 1 | YW5: 1 | YX5: 1 | YY5: 1 | YZ5: 1 | ZA5: 1 | ZB5: 1 | ZC5: 1 | ZD5: 1 | ZE5: 1 | ZF5: 1 | ZG5: 1 | ZH5: 1 | ZI5: 1 | ZJ5: 1 | ZK5: 1 | ZL5: 1 | ZM5: 1 | ZN5: 1 | ZO5: 1 | ZP5: 1 | ZQ5: 1 | ZR5: 1 | ZS5: 1 | ZT5: 1 | ZU5: 1 | ZV5: 1 | ZW5: 1 | ZX5: 1 | ZY5: 1 | ZZ5: 1 | AAA5: 1 | AAB5: 1 | AAC5: 1 | AAD5: 1 | AAE5: 1 | AAF5: 1 | AAG5: 1 | AAH5: 1 | AAI5: 1 | AAJ5: 1 | AAK5: =IF(AAK4,$E$5,$F$5) -> 1 | AAL5: 1 | AAM5: 1 | AAN5: 1 | AAO5: 1 | AAP5: 1 | AAQ5: 1 | AAR5: 1 | AAS5: 1 | AAT5: 1 | AAU5: 1 | AAV5: 1 | AAW5: 1 | AAX5: 1 | AAY5: 1 | AAZ5: 1 | ABA5: 1 | ABB5: 1 | ABC5: 1 | ABD5: 1 | ABE5: 1 | ABF5: 1 | ABG5: 1 | ABH5: 1 | ABI5: 1 | ABJ5: 1 | ABK5: 1 | ABL5: 1 | ABM5: 1 | ABN5: 1 | ABO5: 1 | ABP5: 1 | ABQ5: 1 | ABR5: 1 | ABS5: 1 | ABT5: 1 | ABU5: 1 | ABV5: 1 | ABW5: 1 | ABX5: 1 | ABY5: 1 | ABZ5: 1 | ACA5: 1 | ACB5: 1 | ACC5: 1 | ACD5: 1 | ACE5: 1 | ACF5: 1 | ACG5: 1 | ACH5: 1 | ACI5: 1 | ACJ5: 1 | ACK5: 1 | ACL5: 1 | ACM5: 1 | ACN5: 1 | ACO5: 1 | ACP5: 1 | ACQ5: 1 | ACR5: 1 | ACS5: 1 | ACT5: 1 | ACU5: 1 | ACV5: 1 | ACW5: =IF(ACW4,$E$5,$F$5) -> 1 | ACX5: 1 | ACY5: 1 | ACZ5: 1 | ADA5: 1 | ADB5: 1 | ADC5: 1 | ADD5: 1 | ADE5: 1 | ADF5: 1 | ADG5: 1 | ADH5: 1 | ADI5: 1 | ADJ5: 1 | ADK5: 1 | ADL5: 1 | ADM5: 1 | ADN5: 1 | ADO5: 1 | ADP5: 1 | ADQ5: 1 | ADR5: 1 | ADS5: 1 | ADT5: 1 | ADU5: 1 | ADV5: 1 | ADW5: 1 | ADX5: 1 | ADY5: 1 | ADZ5: 1 | AEA5: 1 | AEB5: 1 | AEC5: 1 | AED5: 1 | AEE5: 1 | AEF5: 1 | AEG5: 1 | AEH5: 1 | AEI5: 1 | AEJ5: 1 | AEK5: 1 | AEL5: 1 | AEM5: 1 | AEN5: 1 | AEO5: 1 | AEP5: 1 | AEQ5: 1 | AER5: 1 | AES5: 1 | AET5: 1 | AEU5: 1 | AEV5: 1 | AEW5: 1 | AEX5: 1 | AEY5: 1 | AEZ5: 1 | AFA5: 1 | AFB5: 1 | AFC5: 1 | AFD5: 1 | AFE5: 1 | AFF5: 1 | AFG5: 1 | AFH5: 1 | AFI5: =IF(AFI4,$E$5,$F$5) -> 1 | AFJ5: 1 | AFK5: 1 | AFL5: 1 | AFM5: 1 | AFN5: 1 | AFO5: 1 | AFP5: 1 | AFQ5: 1 | AFR5: 1 | AFS5: 1 | AFT5: 1 | AFU5: 1 | AFV5: 1 | AFW5: 1 | AFX5: 1 | AFY5: 1 | AFZ5: 1 | AGA5: 1 | AGB5: 1 | AGC5: 1 | AGD5: 1 | AGE5: 1 | AGF5: 1 | AGG5: 1 | AGH5: 1 | AGI5: 1 | AGJ5: 1 | AGK5: 1
B6: Start of Period (Need for XIRR and XNPV) | E6: ='Solar Carrying Charge'!F13 -> 2001-01-01 | H6: =E6 -> 2001-01-01 | I6: =H7+1 -> 2001-02-01 | J6: =I7+1 -> 2001-03-01 | K6: 2001-04-01 | L6: 2001-05-01 | M6: 2001-06-01 | N6: 2001-07-01 | O6: 2001-08-01 | P6: 2001-09-01 | Q6: 2001-10-01 | R6: 2001-11-01 | S6: 2001-12-01 | T6: 2002-01-01 | U6: 2002-02-01 | V6: 2002-03-01 | W6: 2002-04-01 | X6: 2002-05-01 | Y6: 2002-06-01 | Z6: 2002-07-01 | AA6: 2002-08-01 | AB6: 2002-09-01 | AC6: 2002-10-01 | AD6: 2002-11-01 | AE6: 2002-12-01 | AF6: 2003-01-01 | AG6: 2003-02-01 | AH6: 2003-03-01 | AI6: 2003-04-01 | AJ6: 2003-05-01 | AK6: 2003-06-01 | AL6: 2003-07-01 | AM6: 2003-08-01 | AN6: 2003-09-01 | AO6: 2003-10-01 | AP6: 2003-11-01 | AQ6: 2003-12-01 | AR6: 2004-01-01 | AS6: 2004-02-01 | AT6: 2004-03-01 | AU6: 2004-04-01 | AV6: 2004-05-01 | AW6: 2004-06-01 | AX6: 2004-07-01 | AY6: 2004-08-01 | AZ6: 2004-09-01 | BA6: 2004-10-01 | BB6: 2004-11-01 | BC6: 2004-12-01 | BD6: 2005-01-01 | BE6: 2005-02-01 | BF6: 2005-03-01 | BG6: 2005-04-01 | BH6: 2005-05-01 | BI6: 2005-06-01 | BJ6: 2005-07-01 | BK6: 2005-08-01 | BL6: 2005-09-01 | BM6: 2005-10-01 | BN6: 2005-11-01 | BO6: 2005-12-01 | BP6: 2006-01-01 | BQ6: 2006-02-01 | BR6: 2006-03-01 | BS6: 2006-04-01 | BT6: 2006-05-01 | BU6: 2006-06-01 | BV6: =BU7+1 -> 2006-07-01 | BW6: 2006-08-01 | BX6: 2006-09-01 | BY6: 2006-10-01 | BZ6: 2006-11-01 | CA6: 2006-12-01 | CB6: 2007-01-01 | CC6: 2007-02-01 | CD6: 2007-03-01 | CE6: 2007-04-01 | CF6: 2007-05-01 | CG6: 2007-06-01 | CH6: 2007-07-01 | CI6: 2007-08-01 | CJ6: 2007-09-01 | CK6: 2007-10-01 | CL6: 2007-11-01 | CM6: 2007-12-01 | CN6: 2008-01-01 | CO6: 2008-02-01 | CP6: 2008-03-01 | CQ6: 2008-04-01 | CR6: 2008-05-01 | CS6: 2008-06-01 | CT6: 2008-07-01 | CU6: 2008-08-01 | CV6: 2008-09-01 | CW6: 2008-10-01 | CX6: 2008-11-01 | CY6: 2008-12-01 | CZ6: 2009-01-01 | DA6: 2009-02-01 | DB6: 2009-03-01 | DC6: 2009-04-01 | DD6: 2009-05-01 | DE6: 2009-06-01 | DF6: 2009-07-01 | DG6: 2009-08-01 | DH6: 2009-09-01 | DI6: 2009-10-01 | DJ6: 2009-11-01 | DK6: 2009-12-01 | DL6: 2010-01-01 | DM6: 2010-02-01 | DN6: 2010-03-01 | DO6: 2010-04-01 | DP6: 2010-05-01 | DQ6: 2010-06-01 | DR6: 2010-07-01 | DS6: 2010-08-01 | DT6: 2010-09-01 | DU6: 2010-10-01 | DV6: 2010-11-01 | DW6: 2010-12-01 | DX6: 2011-01-01 | DY6: 2011-02-01 | DZ6: 2011-03-01 | EA6: 2011-04-01 | EB6: 2011-05-01 | EC6: 2011-06-01 | ED6: 2011-07-01 | EE6: 2011-08-01 | EF6: 2011-09-01 | EG6: 2011-10-01 | EH6: =EG7+1 -> 2011-11-01 | EI6: 2011-12-01 | EJ6: 2012-01-01 | EK6: 2012-02-01 | EL6: 2012-03-01 | EM6: 2012-04-01 | EN6: 2012-05-01 | EO6: 2012-06-01 | EP6: 2012-07-01 | EQ6: 2012-08-01 | ER6: 2012-09-01 | ES6: 2012-10-01 | ET6: 2012-11-01 | EU6: 2012-12-01 | EV6: 2013-01-01 | EW6: 2013-02-01 | EX6: 2013-03-01 | EY6: 2013-04-01 | EZ6: 2013-05-01 | FA6: 2013-06-01 | FB6: 2013-07-01 | FC6: 2013-08-01 | FD6: 2013-09-01 | FE6: 2013-10-01 | FF6: 2013-11-01 | FG6: 2013-12-01 | FH6: 2014-01-01 | FI6: 2014-02-01 | FJ6: 2014-03-01 | FK6: 2014-04-01 | FL6: 2014-05-01 | FM6: 2014-06-01 | FN6: 2014-07-01 | FO6: 2014-08-01 | FP6: 2014-09-01 | FQ6: 2014-10-01 | FR6: 2014-11-01 | FS6: 2014-12-01 | FT6: 2015-01-01 | FU6: 2015-02-01 | FV6: 2015-03-01 | FW6: 2015-04-01 | FX6: 2015-05-01 | FY6: 2015-06-01 | FZ6: 2015-07-01 | GA6: 2015-08-01 | GB6: 2015-09-01 | GC6: 2015-10-01 | GD6: 2015-11-01 | GE6: 2015-12-01 | GF6: 2016-01-01 | GG6: 2016-02-01 | GH6: 2016-03-01 | GI6: 2016-04-01 | GJ6: 2016-05-01 | GK6: 2016-06-01 | GL6: 2016-07-01 | GM6: 2016-08-01 | GN6: 2016-09-01 | GO6: 2016-10-01 | GP6: 2016-11-01 | GQ6: 2016-12-01 | GR6: 2017-01-01 | GS6: 2017-02-01 | GT6: =GS7+1 -> 2017-03-01 | GU6: 2017-04-01 | GV6: 2017-05-01 | GW6: 2017-06-01 | GX6: 2017-07-01 | GY6: 2017-08-01 | GZ6: 2017-09-01 | HA6: 2017-10-01 | HB6: 2017-11-01 | HC6: 2017-12-01 | HD6: 2018-01-01 | HE6: 2018-02-01 | HF6: 2018-03-01 | HG6: 2018-04-01 | HH6: 2018-05-01 | HI6: 2018-06-01 | HJ6: 2018-07-01 | HK6: 2018-08-01 | HL6: 2018-09-01 | HM6: 2018-10-01 | HN6: 2018-11-01 | HO6: 2018-12-01 | HP6: 2019-01-01 | HQ6: 2019-02-01 | HR6: 2019-03-01 | HS6: 2019-04-01 | HT6: 2019-05-01 | HU6: 2019-06-01 | HV6: 2019-07-01 | HW6: 2019-08-01 | HX6: 2019-09-01 | HY6: 2019-10-01 | HZ6: 2019-11-01 | IA6: 2019-12-01 | IB6: 2020-01-01 | IC6: 2020-02-01 | ID6: 2020-03-01 | IE6: 2020-04-01 | IF6: 2020-05-01 | IG6: 2020-06-01 | IH6: 2020-07-01 | II6: 2020-08-01 | IJ6: 2020-09-01 | IK6: 2020-10-01 | IL6: 2020-11-01 | IM6: 2020-12-01 | IN6: 2021-01-01 | IO6: 2021-02-01 | IP6: 2021-03-01 | IQ6: 2021-04-01 | IR6: 2021-05-01 | IS6: 2021-06-01 | IT6: 2021-07-01 | IU6: 2021-08-01 | IV6: 2021-09-01 | IW6: 2021-10-01 | IX6: 2021-11-01 | IY6: 2021-12-01 | IZ6: 2022-01-01 | JA6: 2022-02-01 | JB6: 2022-03-01 | JC6: 2022-04-01 | JD6: 2022-05-01 | JE6: 2022-06-01 | JF6: =JE7+1 -> 2022-07-01 | JG6: 2022-08-01 | JH6: 2022-09-01 | JI6: 2022-10-01 | JJ6: 2022-11-01 | JK6: 2022-12-01 | JL6: 2023-01-01 | JM6: 2023-02-01 | JN6: 2023-03-01 | JO6: 2023-04-01 | JP6: 2023-05-01 | JQ6: 2023-06-01 | JR6: 2023-07-01 | JS6: 2023-08-01 | JT6: 2023-09-01 | JU6: 2023-10-01 | JV6: 2023-11-01 | JW6: 2023-12-01 | JX6: 2024-01-01 | JY6: 2024-02-01 | JZ6: 2024-03-01 | KA6: 2024-04-01 | KB6: 2024-05-01 | KC6: 2024-06-01 | KD6: 2024-07-01 | KE6: 2024-08-01 | KF6: 2024-09-01 | KG6: 2024-10-01 | KH6: 2024-11-01 | KI6: 2024-12-01 | KJ6: 2025-01-01 | KK6: 2025-02-01 | KL6: 2025-03-01 | KM6: 2025-04-01 | KN6: 2025-05-01 | KO6: 2025-06-01 | KP6: 2025-07-01 | KQ6: 2025-08-01 | KR6: 2025-09-01 | KS6: 2025-10-01 | KT6: 2025-11-01 | KU6: 2025-12-01 | KV6: 2026-01-01 | KW6: 2026-02-01 | KX6: 2026-03-01 | KY6: 2026-04-01 | KZ6: 2026-05-01 | LA6: 2026-06-01 | LB6: 2026-07-01 | LC6: 2026-08-01 | LD6: 2026-09-01 | LE6: 2026-10-01 | LF6: 2026-11-01 | LG6: 2026-12-01 | LH6: 2027-01-01 | LI6: 2027-02-01 | LJ6: 2027-03-01 | LK6: 2027-04-01 | LL6: 2027-05-01 | LM6: 2027-06-01 | LN6: 2027-07-01 | LO6: 2027-08-01 | LP6: 2027-09-01 | LQ6: 2027-10-01 | LR6: =LQ7+1 -> 2027-11-01 | LS6: 2027-12-01 | LT6: 2028-01-01 | LU6: 2028-02-01 | LV6: 2028-03-01 | LW6: 2028-04-01 | LX6: 2028-05-01 | LY6: 2028-06-01 | LZ6: 2028-07-01 | MA6: 2028-08-01 | MB6: 2028-09-01 | MC6: 2028-10-01 | MD6: 2028-11-01 | ME6: 2028-12-01 | MF6: 2029-01-01 | MG6: 2029-02-01 | MH6: 2029-03-01 | MI6: 2029-04-01 | MJ6: 2029-05-01 | MK6: 2029-06-01 | ML6: 2029-07-01 | MM6: 2029-08-01 | MN6: 2029-09-01 | MO6: 2029-10-01 | MP6: 2029-11-01 | MQ6: 2029-12-01 | MR6: 2030-01-01 | MS6: 2030-02-01 | MT6: 2030-03-01 | MU6: 2030-04-01 | MV6: 2030-05-01 | MW6: 2030-06-01 | MX6: 2030-07-01 | MY6: 2030-08-01 | MZ6: 2030-09-01 | NA6: 2030-10-01 | NB6: 2030-11-01 | NC6: 2030-12-01 | ND6: 2031-01-01 | NE6: 2031-02-01 | NF6: 2031-03-01 | NG6: 2031-04-01 | NH6: 2031-05-01 | NI6: 2031-06-01 | NJ6: 2031-07-01 | NK6: 2031-08-01 | NL6: 2031-09-01 | NM6: 2031-10-01 | NN6: 2031-11-01 | NO6: 2031-12-01 | NP6: 2032-01-01 | NQ6: 2032-02-01 | NR6: 2032-03-01 | NS6: 2032-04-01 | NT6: 2032-05-01 | NU6: 2032-06-01 | NV6: 2032-07-01 | NW6: 2032-08-01 | NX6: 2032-09-01 | NY6: 2032-10-01 | NZ6: 2032-11-01 | OA6: 2032-12-01 | OB6: 2033-01-01 | OC6: 2033-02-01 | OD6: =OC7+1 -> 2033-03-01 | OE6: 2033-04-01 | OF6: 2033-05-01 | OG6: 2033-06-01 | OH6: 2033-07-01 | OI6: 2033-08-01 | OJ6: 2033-09-01 | OK6: 2033-10-01 | OL6: 2033-11-01 | OM6: 2033-12-01 | ON6: 2034-01-01 | OO6: 2034-02-01 | OP6: 2034-03-01 | OQ6: 2034-04-01 | OR6: 2034-05-01 | OS6: 2034-06-01 | OT6: 2034-07-01 | OU6: 2034-08-01 | OV6: 2034-09-01 | OW6: 2034-10-01 | OX6: 2034-11-01 | OY6: 2034-12-01 | OZ6: 2035-01-01 | PA6: 2035-02-01 | PB6: 2035-03-01 | PC6: 2035-04-01 | PD6: 2035-05-01 | PE6: 2035-06-01 | PF6: 2035-07-01 | PG6: 2035-08-01 | PH6: 2035-09-01 | PI6: 2035-10-01 | PJ6: 2035-11-01 | PK6: 2035-12-01 | PL6: 2036-01-01 | PM6: 2036-02-01 | PN6: 2036-03-01 | PO6: 2036-04-01 | PP6: 2036-05-01 | PQ6: 2036-06-01 | PR6: 2036-07-01 | PS6: 2036-08-01 | PT6: 2036-09-01 | PU6: 2036-10-01 | PV6: 2036-11-01 | PW6: 2036-12-01 | PX6: 2037-01-01 | PY6: 2037-02-01 | PZ6: 2037-03-01 | QA6: 2037-04-01 | QB6: 2037-05-01 | QC6: 2037-06-01 | QD6: 2037-07-01 | QE6: 2037-08-01 | QF6: 2037-09-01 | QG6: 2037-10-01 | QH6: 2037-11-01 | QI6: 2037-12-01 | QJ6: 2038-01-01 | QK6: 2038-02-01 | QL6: 2038-03-01 | QM6: 2038-04-01 | QN6: 2038-05-01 | QO6: 2038-06-01 | QP6: =QO7+1 -> 2038-07-01 | QQ6: 2038-08-01 | QR6: 2038-09-01 | QS6: 2038-10-01 | QT6: 2038-11-01 | QU6: 2038-12-01 | QV6: 2039-01-01 | QW6: 2039-02-01 | QX6: 2039-03-01 | QY6: 2039-04-01 | QZ6: 2039-05-01 | RA6: 2039-06-01 | RB6: 2039-07-01 | RC6: 2039-08-01 | RD6: 2039-09-01 | RE6: 2039-10-01 | RF6: 2039-11-01 | RG6: 2039-12-01 | RH6: 2040-01-01 | RI6: 2040-02-01 | RJ6: 2040-03-01 | RK6: 2040-04-01 | RL6: 2040-05-01 | RM6: 2040-06-01 | RN6: 2040-07-01 | RO6: 2040-08-01 | RP6: 2040-09-01 | RQ6: 2040-10-01 | RR6: 2040-11-01 | RS6: 2040-12-01 | RT6: 2041-01-01 | RU6: 2041-02-01 | RV6: 2041-03-01 | RW6: 2041-04-01 | RX6: 2041-05-01 | RY6: 2041-06-01 | RZ6: 2041-07-01 | SA6: 2041-08-01 | SB6: 2041-09-01 | SC6: 2041-10-01 | SD6: 2041-11-01 | SE6: 2041-12-01 | SF6: 2042-01-01 | SG6: 2042-02-01 | SH6: 2042-03-01 | SI6: 2042-04-01 | SJ6: 2042-05-01 | SK6: 2042-06-01 | SL6: 2042-07-01 | SM6: 2042-08-01 | SN6: 2042-09-01 | SO6: 2042-10-01 | SP6: 2042-11-01 | SQ6: 2042-12-01 | SR6: 2043-01-01 | SS6: 2043-02-01 | ST6: 2043-03-01 | SU6: 2043-04-01 | SV6: 2043-05-01 | SW6: 2043-06-01 | SX6: 2043-07-01 | SY6: 2043-08-01 | SZ6: 2043-09-01 | TA6: 2043-10-01 | TB6: =TA7+1 -> 2043-11-01 | TC6: 2043-12-01 | TD6: 2044-01-01 | TE6: 2044-02-01 | TF6: 2044-03-01 | TG6: 2044-04-01 | TH6: 2044-05-01 | TI6: 2044-06-01 | TJ6: 2044-07-01 | TK6: 2044-08-01 | TL6: 2044-09-01 | TM6: 2044-10-01 | TN6: 2044-11-01 | TO6: 2044-12-01 | TP6: 2045-01-01 | TQ6: 2045-02-01 | TR6: 2045-03-01 | TS6: 2045-04-01 | TT6: 2045-05-01 | TU6: 2045-06-01 | TV6: 2045-07-01 | TW6: 2045-08-01 | TX6: 2045-09-01 | TY6: 2045-10-01 | TZ6: 2045-11-01 | UA6: 2045-12-01 | UB6: 2046-01-01 | UC6: 2046-02-01 | UD6: 2046-03-01 | UE6: 2046-04-01 | UF6: 2046-05-01 | UG6: 2046-06-01 | UH6: 2046-07-01 | UI6: 2046-08-01 | UJ6: 2046-09-01 | UK6: 2046-10-01 | UL6: 2046-11-01 | UM6: 2046-12-01 | UN6: 2047-01-01 | UO6: 2047-02-01 | UP6: 2047-03-01 | UQ6: 2047-04-01 | UR6: 2047-05-01 | US6: 2047-06-01 | UT6: 2047-07-01 | UU6: 2047-08-01 | UV6: 2047-09-01 | UW6: 2047-10-01 | UX6: 2047-11-01 | UY6: 2047-12-01 | UZ6: 2048-01-01 | VA6: 2048-02-01 | VB6: 2048-03-01 | VC6: 2048-04-01 | VD6: 2048-05-01 | VE6: 2048-06-01 | VF6: 2048-07-01 | VG6: 2048-08-01 | VH6: 2048-09-01 | VI6: 2048-10-01 | VJ6: 2048-11-01 | VK6: 2048-12-01 | VL6: 2049-01-01 | VM6: 2049-02-01 | VN6: =VM7+1 -> 2049-03-01 | VO6: 2049-04-01 | VP6: 2049-05-01 | VQ6: 2049-06-01 | VR6: 2049-07-01 | VS6: 2049-08-01 | VT6: 2049-09-01 | VU6: 2049-10-01 | VV6: 2049-11-01 | VW6: 2049-12-01 | VX6: 2050-01-01 | VY6: 2050-02-01 | VZ6: 2050-03-01 | WA6: 2050-04-01 | WB6: 2050-05-01 | WC6: 2050-06-01 | WD6: 2050-07-01 | WE6: 2050-08-01 | WF6: 2050-09-01 | WG6: 2050-10-01 | WH6: 2050-11-01 | WI6: 2050-12-01 | WJ6: 2051-01-01 | WK6: 2051-02-01 | WL6: 2051-03-01 | WM6: 2051-04-01 | WN6: 2051-05-01 | WO6: 2051-06-01 | WP6: 2051-07-01 | WQ6: 2051-08-01 | WR6: 2051-09-01 | WS6: 2051-10-01 | WT6: 2051-11-01 | WU6: 2051-12-01 | WV6: 2052-01-01 | WW6: 2052-02-01 | WX6: 2052-03-01 | WY6: 2052-04-01 | WZ6: 2052-05-01 | XA6: 2052-06-01 | XB6: 2052-07-01 | XC6: 2052-08-01 | XD6: 2052-09-01 | XE6: 2052-10-01 | XF6: 2052-11-01 | XG6: 2052-12-01 | XH6: 2053-01-01 | XI6: 2053-02-01 | XJ6: 2053-03-01 | XK6: 2053-04-01 | XL6: 2053-05-01 | XM6: 2053-06-01 | XN6: 2053-07-01 | XO6: 2053-08-01 | XP6: 2053-09-01 | XQ6: 2053-10-01 | XR6: 2053-11-01 | XS6: 2053-12-01 | XT6: 2054-01-01 | XU6: 2054-02-01 | XV6: 2054-03-01 | XW6: 2054-04-01 | XX6: 2054-05-01 | XY6: 2054-06-01 | XZ6: =XY7+1 -> 2054-07-01 | YA6: 2054-08-01 | YB6: 2054-09-01 | YC6: 2054-10-01 | YD6: 2054-11-01 | YE6: 2054-12-01 | YF6: 2055-01-01 | YG6: 2055-02-01 | YH6: 2055-03-01 | YI6: 2055-04-01 | YJ6: 2055-05-01 | YK6: 2055-06-01 | YL6: 2055-07-01 | YM6: 2055-08-01 | YN6: 2055-09-01 | YO6: 2055-10-01 | YP6: 2055-11-01 | YQ6: 2055-12-01 | YR6: 2056-01-01 | YS6: 2056-02-01 | YT6: 2056-03-01 | YU6: 2056-04-01 | YV6: 2056-05-01 | YW6: 2056-06-01 | YX6: 2056-07-01 | YY6: 2056-08-01 | YZ6: 2056-09-01 | ZA6: 2056-10-01 | ZB6: 2056-11-01 | ZC6: 2056-12-01 | ZD6: 2057-01-01 | ZE6: 2057-02-01 | ZF6: 2057-03-01 | ZG6: 2057-04-01 | ZH6: 2057-05-01 | ZI6: 2057-06-01 | ZJ6: 2057-07-01 | ZK6: 2057-08-01 | ZL6: 2057-09-01 | ZM6: 2057-10-01 | ZN6: 2057-11-01 | ZO6: 2057-12-01 | ZP6: 2058-01-01 | ZQ6: 2058-02-01 | ZR6: 2058-03-01 | ZS6: 2058-04-01 | ZT6: 2058-05-01 | ZU6: 2058-06-01 | ZV6: 2058-07-01 | ZW6: 2058-08-01 | ZX6: 2058-09-01 | ZY6: 2058-10-01 | ZZ6: 2058-11-01 | AAA6: 2058-12-01 | AAB6: 2059-01-01 | AAC6: 2059-02-01 | AAD6: 2059-03-01 | AAE6: 2059-04-01 | AAF6: 2059-05-01 | AAG6: 2059-06-01 | AAH6: 2059-07-01 | AAI6: 2059-08-01 | AAJ6: 2059-09-01 | AAK6: 2059-10-01 | AAL6: =AAK7+1 -> 2059-11-01 | AAM6: 2059-12-01 | AAN6: 2060-01-01 | AAO6: 2060-02-01 | AAP6: 2060-03-01 | AAQ6: 2060-04-01 | AAR6: 2060-05-01 | AAS6: 2060-06-01 | AAT6: 2060-07-01 | AAU6: 2060-08-01 | AAV6: 2060-09-01 | AAW6: 2060-10-01 | AAX6: 2060-11-01 | AAY6: 2060-12-01 | AAZ6: 2061-01-01 | ABA6: 2061-02-01 | ABB6: 2061-03-01 | ABC6: 2061-04-01 | ABD6: 2061-05-01 | ABE6: 2061-06-01 | ABF6: 2061-07-01 | ABG6: 2061-08-01 | ABH6: 2061-09-01 | ABI6: 2061-10-01 | ABJ6: 2061-11-01 | ABK6: 2061-12-01 | ABL6: 2062-01-01 | ABM6: 2062-02-01 | ABN6: 2062-03-01 | ABO6: 2062-04-01 | ABP6: 2062-05-01 | ABQ6: 2062-06-01 | ABR6: 2062-07-01 | ABS6: 2062-08-01 | ABT6: 2062-09-01 | ABU6: 2062-10-01 | ABV6: 2062-11-01 | ABW6: 2062-12-01 | ABX6: 2063-01-01 | ABY6: 2063-02-01 | ABZ6: 2063-03-01 | ACA6: 2063-04-01 | ACB6: 2063-05-01 | ACC6: 2063-06-01 | ACD6: 2063-07-01 | ACE6: 2063-08-01 | ACF6: 2063-09-01 | ACG6: 2063-10-01 | ACH6: 2063-11-01 | ACI6: 2063-12-01 | ACJ6: 2064-01-01 | ACK6: 2064-02-01 | ACL6: 2064-03-01 | ACM6: 2064-04-01 | ACN6: 2064-05-01 | ACO6: 2064-06-01 | ACP6: 2064-07-01 | ACQ6: 2064-08-01 | ACR6: 2064-09-01 | ACS6: 2064-10-01 | ACT6: 2064-11-01 | ACU6: 2064-12-01 | ACV6: 2065-01-01 | ACW6: 2065-02-01 | ACX6: =ACW7+1 -> 2065-03-01 | ACY6: 2065-04-01 | ACZ6: 2065-05-01 | ADA6: 2065-06-01 | ADB6: 2065-07-01 | ADC6: 2065-08-01 | ADD6: 2065-09-01 | ADE6: 2065-10-01 | ADF6: 2065-11-01 | ADG6: 2065-12-01 | ADH6: 2066-01-01 | ADI6: 2066-02-01 | ADJ6: 2066-03-01 | ADK6: 2066-04-01 | ADL6: 2066-05-01 | ADM6: 2066-06-01 | ADN6: 2066-07-01 | ADO6: 2066-08-01 | ADP6: 2066-09-01 | ADQ6: 2066-10-01 | ADR6: 2066-11-01 | ADS6: 2066-12-01 | ADT6: 2067-01-01 | ADU6: 2067-02-01 | ADV6: 2067-03-01 | ADW6: 2067-04-01 | ADX6: 2067-05-01 | ADY6: 2067-06-01 | ADZ6: 2067-07-01 | AEA6: 2067-08-01 | AEB6: 2067-09-01 | AEC6: 2067-10-01 | AED6: 2067-11-01 | AEE6: 2067-12-01 | AEF6: 2068-01-01 | AEG6: 2068-02-01 | AEH6: 2068-03-01 | AEI6: 2068-04-01 | AEJ6: 2068-05-01 | AEK6: 2068-06-01 | AEL6: 2068-07-01 | AEM6: 2068-08-01 | AEN6: 2068-09-01 | AEO6: 2068-10-01 | AEP6: 2068-11-01 | AEQ6: 2068-12-01 | AER6: 2069-01-01 | AES6: 2069-02-01 | AET6: 2069-03-01 | AEU6: 2069-04-01 | AEV6: 2069-05-01 | AEW6: 2069-06-01 | AEX6: 2069-07-01 | AEY6: 2069-08-01 | AEZ6: 2069-09-01 | AFA6: 2069-10-01 | AFB6: 2069-11-01 | AFC6: 2069-12-01 | AFD6: 2070-01-01 | AFE6: 2070-02-01 | AFF6: 2070-03-01 | AFG6: 2070-04-01 | AFH6: 2070-05-01 | AFI6: 2070-06-01 | AFJ6: =AFI7+1 -> 2070-07-01 | AFK6: 2070-08-01 | AFL6: 2070-09-01 | AFM6: 2070-10-01 | AFN6: 2070-11-01 | AFO6: 2070-12-01 | AFP6: 2071-01-01 | AFQ6: 2071-02-01 | AFR6: 2071-03-01 | AFS6: 2071-04-01 | AFT6: 2071-05-01 | AFU6: 2071-06-01 | AFV6: 2071-07-01 | AFW6: 2071-08-01 | AFX6: 2071-09-01 | AFY6: 2071-10-01 | AFZ6: 2071-11-01 | AGA6: 2071-12-01 | AGB6: 2072-01-01 | AGC6: 2072-02-01 | AGD6: 2072-03-01 | AGE6: 2072-04-01 | AGF6: 2072-05-01 | AGG6: 2072-06-01 | AGH6: 2072-07-01 | AGI6: 2072-08-01 | AGJ6: 2072-09-01 | AGK6: 2072-10-01
B7: End of Period (Makes Presentation clearer) | H7: =EOMONTH(H6,H5-1) -> 2001-01-31 | I7: =EOMONTH(I6,I5-1) -> 2001-02-28 | J7: =EOMONTH(J6,J5-1) -> 2001-03-31 | K7: 2001-04-30 | L7: 2001-05-31 | M7: 2001-06-30 | N7: 2001-07-31 | O7: 2001-08-31 | P7: 2001-09-30 | Q7: 2001-10-31 | R7: 2001-11-30 | S7: 2001-12-31 | T7: 2002-01-31 | U7: 2002-02-28 | V7: 2002-03-31 | W7: 2002-04-30 | X7: 2002-05-31 | Y7: 2002-06-30 | Z7: 2002-07-31 | AA7: 2002-08-31 | AB7: 2002-09-30 | AC7: 2002-10-31 | AD7: 2002-11-30 | AE7: 2002-12-31 | AF7: 2003-01-31 | AG7: 2003-02-28 | AH7: 2003-03-31 | AI7: 2003-04-30 | AJ7: 2003-05-31 | AK7: 2003-06-30 | AL7: 2003-07-31 | AM7: 2003-08-31 | AN7: 2003-09-30 | AO7: 2003-10-31 | AP7: 2003-11-30 | AQ7: 2003-12-31 | AR7: 2004-01-31 | AS7: 2004-02-29 | AT7: 2004-03-31 | AU7: 2004-04-30 | AV7: 2004-05-31 | AW7: 2004-06-30 | AX7: 2004-07-31 | AY7: 2004-08-31 | AZ7: 2004-09-30 | BA7: 2004-10-31 | BB7: 2004-11-30 | BC7: 2004-12-31 | BD7: 2005-01-31 | BE7: 2005-02-28 | BF7: 2005-03-31 | BG7: 2005-04-30 | BH7: 2005-05-31 | BI7: 2005-06-30 | BJ7: 2005-07-31 | BK7: 2005-08-31 | BL7: 2005-09-30 | BM7: 2005-10-31 | BN7: 2005-11-30 | BO7: 2005-12-31 | BP7: 2006-01-31 | BQ7: 2006-02-28 | BR7: 2006-03-31 | BS7: 2006-04-30 | BT7: 2006-05-31 | BU7: 2006-06-30 | BV7: =EOMONTH(BV6,BV5-1) -> 2006-07-31 | BW7: 2006-08-31 | BX7: 2006-09-30 | BY7: 2006-10-31 | BZ7: 2006-11-30 | CA7: 2006-12-31 | CB7: 2007-01-31 | CC7: 2007-02-28 | CD7: 2007-03-31 | CE7: 2007-04-30 | CF7: 2007-05-31 | CG7: 2007-06-30 | CH7: 2007-07-31 | CI7: 2007-08-31 | CJ7: 2007-09-30 | CK7: 2007-10-31 | CL7: 2007-11-30 | CM7: 2007-12-31 | CN7: 2008-01-31 | CO7: 2008-02-29 | CP7: 2008-03-31 | CQ7: 2008-04-30 | CR7: 2008-05-31 | CS7: 2008-06-30 | CT7: 2008-07-31 | CU7: 2008-08-31 | CV7: 2008-09-30 | CW7: 2008-10-31 | CX7: 2008-11-30 | CY7: 2008-12-31 | CZ7: 2009-01-31 | DA7: 2009-02-28 | DB7: 2009-03-31 | DC7: 2009-04-30 | DD7: 2009-05-31 | DE7: 2009-06-30 | DF7: 2009-07-31 | DG7: 2009-08-31 | DH7: 2009-09-30 | DI7: 2009-10-31 | DJ7: 2009-11-30 | DK7: 2009-12-31 | DL7: 2010-01-31 | DM7: 2010-02-28 | DN7: 2010-03-31 | DO7: 2010-04-30 | DP7: 2010-05-31 | DQ7: 2010-06-30 | DR7: 2010-07-31 | DS7: 2010-08-31 | DT7: 2010-09-30 | DU7: 2010-10-31 | DV7: 2010-11-30 | DW7: 2010-12-31 | DX7: 2011-01-31 | DY7: 2011-02-28 | DZ7: 2011-03-31 | EA7: 2011-04-30 | EB7: 2011-05-31 | EC7: 2011-06-30 | ED7: 2011-07-31 | EE7: 2011-08-31 | EF7: 2011-09-30 | EG7: 2011-10-31 | EH7: =EOMONTH(EH6,EH5-1) -> 2011-11-30 | EI7: 2011-12-31 | EJ7: 2012-01-31 | EK7: 2012-02-29 | EL7: 2012-03-31 | EM7: 2012-04-30 | EN7: 2012-05-31 | EO7: 2012-06-30 | EP7: 2012-07-31 | EQ7: 2012-08-31 | ER7: 2012-09-30 | ES7: 2012-10-31 | ET7: 2012-11-30 | EU7: 2012-12-31 | EV7: 2013-01-31 | EW7: 2013-02-28 | EX7: 2013-03-31 | EY7: 2013-04-30 | EZ7: 2013-05-31 | FA7: 2013-06-30 | FB7: 2013-07-31 | FC7: 2013-08-31 | FD7: 2013-09-30 | FE7: 2013-10-31 | FF7: 2013-11-30 | FG7: 2013-12-31 | FH7: 2014-01-31 | FI7: 2014-02-28 | FJ7: 2014-03-31 | FK7: 2014-04-30 | FL7: 2014-05-31 | FM7: 2014-06-30 | FN7: 2014-07-31 | FO7: 2014-08-31 | FP7: 2014-09-30 | FQ7: 2014-10-31 | FR7: 2014-11-30 | FS7: 2014-12-31 | FT7: 2015-01-31 | FU7: 2015-02-28 | FV7: 2015-03-31 | FW7: 2015-04-30 | FX7: 2015-05-31 | FY7: 2015-06-30 | FZ7: 2015-07-31 | GA7: 2015-08-31 | GB7: 2015-09-30 | GC7: 2015-10-31 | GD7: 2015-11-30 | GE7: 2015-12-31 | GF7: 2016-01-31 | GG7: 2016-02-29 | GH7: 2016-03-31 | GI7: 2016-04-30 | GJ7: 2016-05-31 | GK7: 2016-06-30 | GL7: 2016-07-31 | GM7: 2016-08-31 | GN7: 2016-09-30 | GO7: 2016-10-31 | GP7: 2016-11-30 | GQ7: 2016-12-31 | GR7: 2017-01-31 | GS7: 2017-02-28 | GT7: =EOMONTH(GT6,GT5-1) -> 2017-03-31 | GU7: 2017-04-30 | GV7: 2017-05-31 | GW7: 2017-06-30 | GX7: 2017-07-31 | GY7: 2017-08-31 | GZ7: 2017-09-30 | HA7: 2017-10-31 | HB7: 2017-11-30 | HC7: 2017-12-31 | HD7: 2018-01-31 | HE7: 2018-02-28 | HF7: 2018-03-31 | HG7: 2018-04-30 | HH7: 2018-05-31 | HI7: 2018-06-30 | HJ7: 2018-07-31 | HK7: 2018-08-31 | HL7: 2018-09-30 | HM7: 2018-10-31 | HN7: 2018-11-30 | HO7: 2018-12-31 | HP7: 2019-01-31 | HQ7: 2019-02-28 | HR7: 2019-03-31 | HS7: 2019-04-30 | HT7: 2019-05-31 | HU7: 2019-06-30 | HV7: 2019-07-31 | HW7: 2019-08-31 | HX7: 2019-09-30 | HY7: 2019-10-31 | HZ7: 2019-11-30 | IA7: 2019-12-31 | IB7: 2020-01-31 | IC7: 2020-02-29 | ID7: 2020-03-31 | IE7: 2020-04-30 | IF7: 2020-05-31 | IG7: 2020-06-30 | IH7: 2020-07-31 | II7: 2020-08-31 | IJ7: 2020-09-30 | IK7: 2020-10-31 | IL7: 2020-11-30 | IM7: 2020-12-31 | IN7: 2021-01-31 | IO7: 2021-02-28 | IP7: 2021-03-31 | IQ7: 2021-04-30 | IR7: 2021-05-31 | IS7: 2021-06-30 | IT7: 2021-07-31 | IU7: 2021-08-31 | IV7: 2021-09-30 | IW7: 2021-10-31 | IX7: 2021-11-30 | IY7: 2021-12-31 | IZ7: 2022-01-31 | JA7: 2022-02-28 | JB7: 2022-03-31 | JC7: 2022-04-30 | JD7: 2022-05-31 | JE7: 2022-06-30 | JF7: =EOMONTH(JF6,JF5-1) -> 2022-07-31 | JG7: 2022-08-31 | JH7: 2022-09-30 | JI7: 2022-10-31 | JJ7: 2022-11-30 | JK7: 2022-12-31 | JL7: 2023-01-31 | JM7: 2023-02-28 | JN7: 2023-03-31 | JO7: 2023-04-30 | JP7: 2023-05-31 | JQ7: 2023-06-30 | JR7: 2023-07-31 | JS7: 2023-08-31 | JT7: 2023-09-30 | JU7: 2023-10-31 | JV7: 2023-11-30 | JW7: 2023-12-31 | JX7: 2024-01-31 | JY7: 2024-02-29 | JZ7: 2024-03-31 | KA7: 2024-04-30 | KB7: 2024-05-31 | KC7: 2024-06-30 | KD7: 2024-07-31 | KE7: 2024-08-31 | KF7: 2024-09-30 | KG7: 2024-10-31 | KH7: 2024-11-30 | KI7: 2024-12-31 | KJ7: 2025-01-31 | KK7: 2025-02-28 | KL7: 2025-03-31 | KM7: 2025-04-30 | KN7: 2025-05-31 | KO7: 2025-06-30 | KP7: 2025-07-31 | KQ7: 2025-08-31 | KR7: 2025-09-30 | KS7: 2025-10-31 | KT7: 2025-11-30 | KU7: 2025-12-31 | KV7: 2026-01-31 | KW7: 2026-02-28 | KX7: 2026-03-31 | KY7: 2026-04-30 | KZ7: 2026-05-31 | LA7: 2026-06-30 | LB7: 2026-07-31 | LC7: 2026-08-31 | LD7: 2026-09-30 | LE7: 2026-10-31 | LF7: 2026-11-30 | LG7: 2026-12-31 | LH7: 2027-01-31 | LI7: 2027-02-28 | LJ7: 2027-03-31 | LK7: 2027-04-30 | LL7: 2027-05-31 | LM7: 2027-06-30 | LN7: 2027-07-31 | LO7: 2027-08-31 | LP7: 2027-09-30 | LQ7: 2027-10-31 | LR7: =EOMONTH(LR6,LR5-1) -> 2027-11-30 | LS7: 2027-12-31 | LT7: 2028-01-31 | LU7: 2028-02-29 | LV7: 2028-03-31 | LW7: 2028-04-30 | LX7: 2028-05-31 | LY7: 2028-06-30 | LZ7: 2028-07-31 | MA7: 2028-08-31 | MB7: 2028-09-30 | MC7: 2028-10-31 | MD7: 2028-11-30 | ME7: 2028-12-31 | MF7: 2029-01-31 | MG7: 2029-02-28 | MH7: 2029-03-31 | MI7: 2029-04-30 | MJ7: 2029-05-31 | MK7: 2029-06-30 | ML7: 2029-07-31 | MM7: 2029-08-31 | MN7: 2029-09-30 | MO7: 2029-10-31 | MP7: 2029-11-30 | MQ7: 2029-12-31 | MR7: 2030-01-31 | MS7: 2030-02-28 | MT7: 2030-03-31 | MU7: 2030-04-30 | MV7: 2030-05-31 | MW7: 2030-06-30 | MX7: 2030-07-31 | MY7: 2030-08-31 | MZ7: 2030-09-30 | NA7: 2030-10-31 | NB7: 2030-11-30 | NC7: 2030-12-31 | ND7: 2031-01-31 | NE7: 2031-02-28 | NF7: 2031-03-31 | NG7: 2031-04-30 | NH7: 2031-05-31 | NI7: 2031-06-30 | NJ7: 2031-07-31 | NK7: 2031-08-31 | NL7: 2031-09-30 | NM7: 2031-10-31 | NN7: 2031-11-30 | NO7: 2031-12-31 | NP7: 2032-01-31 | NQ7: 2032-02-29 | NR7: 2032-03-31 | NS7: 2032-04-30 | NT7: 2032-05-31 | NU7: 2032-06-30 | NV7: 2032-07-31 | NW7: 2032-08-31 | NX7: 2032-09-30 | NY7: 2032-10-31 | NZ7: 2032-11-30 | OA7: 2032-12-31 | OB7: 2033-01-31 | OC7: 2033-02-28 | OD7: =EOMONTH(OD6,OD5-1) -> 2033-03-31 | OE7: 2033-04-30 | OF7: 2033-05-31 | OG7: 2033-06-30 | OH7: 2033-07-31 | OI7: 2033-08-31 | OJ7: 2033-09-30 | OK7: 2033-10-31 | OL7: 2033-11-30 | OM7: 2033-12-31 | ON7: 2034-01-31 | OO7: 2034-02-28 | OP7: 2034-03-31 | OQ7: 2034-04-30 | OR7: 2034-05-31 | OS7: 2034-06-30 | OT7: 2034-07-31 | OU7: 2034-08-31 | OV7: 2034-09-30 | OW7: 2034-10-31 | OX7: 2034-11-30 | OY7: 2034-12-31 | OZ7: 2035-01-31 | PA7: 2035-02-28 | PB7: 2035-03-31 | PC7: 2035-04-30 | PD7: 2035-05-31 | PE7: 2035-06-30 | PF7: 2035-07-31 | PG7: 2035-08-31 | PH7: 2035-09-30 | PI7: 2035-10-31 | PJ7: 2035-11-30 | PK7: 2035-12-31 | PL7: 2036-01-31 | PM7: 2036-02-29 | PN7: 2036-03-31 | PO7: 2036-04-30 | PP7: 2036-05-31 | PQ7: 2036-06-30 | PR7: 2036-07-31 | PS7: 2036-08-31 | PT7: 2036-09-30 | PU7: 2036-10-31 | PV7: 2036-11-30 | PW7: 2036-12-31 | PX7: 2037-01-31 | PY7: 2037-02-28 | PZ7: 2037-03-31 | QA7: 2037-04-30 | QB7: 2037-05-31 | QC7: 2037-06-30 | QD7: 2037-07-31 | QE7: 2037-08-31 | QF7: 2037-09-30 | QG7: 2037-10-31 | QH7: 2037-11-30 | QI7: 2037-12-31 | QJ7: 2038-01-31 | QK7: 2038-02-28 | QL7: 2038-03-31 | QM7: 2038-04-30 | QN7: 2038-05-31 | QO7: 2038-06-30 | QP7: =EOMONTH(QP6,QP5-1) -> 2038-07-31 | QQ7: 2038-08-31 | QR7: 2038-09-30 | QS7: 2038-10-31 | QT7: 2038-11-30 | QU7: 2038-12-31 | QV7: 2039-01-31 | QW7: 2039-02-28 | QX7: 2039-03-31 | QY7: 2039-04-30 | QZ7: 2039-05-31 | RA7: 2039-06-30 | RB7: 2039-07-31 | RC7: 2039-08-31 | RD7: 2039-09-30 | RE7: 2039-10-31 | RF7: 2039-11-30 | RG7: 2039-12-31 | RH7: 2040-01-31 | RI7: 2040-02-29 | RJ7: 2040-03-31 | RK7: 2040-04-30 | RL7: 2040-05-31 | RM7: 2040-06-30 | RN7: 2040-07-31 | RO7: 2040-08-31 | RP7: 2040-09-30 | RQ7: 2040-10-31 | RR7: 2040-11-30 | RS7: 2040-12-31 | RT7: 2041-01-31 | RU7: 2041-02-28 | RV7: 2041-03-31 | RW7: 2041-04-30 | RX7: 2041-05-31 | RY7: 2041-06-30 | RZ7: 2041-07-31 | SA7: 2041-08-31 | SB7: 2041-09-30 | SC7: 2041-10-31 | SD7: 2041-11-30 | SE7: 2041-12-31 | SF7: 2042-01-31 | SG7: 2042-02-28 | SH7: 2042-03-31 | SI7: 2042-04-30 | SJ7: 2042-05-31 | SK7: 2042-06-30 | SL7: 2042-07-31 | SM7: 2042-08-31 | SN7: 2042-09-30 | SO7: 2042-10-31 | SP7: 2042-11-30 | SQ7: 2042-12-31 | SR7: 2043-01-31 | SS7: 2043-02-28 | ST7: 2043-03-31 | SU7: 2043-04-30 | SV7: 2043-05-31 | SW7: 2043-06-30 | SX7: 2043-07-31 | SY7: 2043-08-31 | SZ7: 2043-09-30 | TA7: 2043-10-31 | TB7: =EOMONTH(TB6,TB5-1) -> 2043-11-30 | TC7: 2043-12-31 | TD7: 2044-01-31 | TE7: 2044-02-29 | TF7: 2044-03-31 | TG7: 2044-04-30 | TH7: 2044-05-31 | TI7: 2044-06-30 | TJ7: 2044-07-31 | TK7: 2044-08-31 | TL7: 2044-09-30 | TM7: 2044-10-31 | TN7: 2044-11-30 | TO7: 2044-12-31 | TP7: 2045-01-31 | TQ7: 2045-02-28 | TR7: 2045-03-31 | TS7: 2045-04-30 | TT7: 2045-05-31 | TU7: 2045-06-30 | TV7: 2045-07-31 | TW7: 2045-08-31 | TX7: 2045-09-30 | TY7: 2045-10-31 | TZ7: 2045-11-30 | UA7: 2045-12-31 | UB7: 2046-01-31 | UC7: 2046-02-28 | UD7: 2046-03-31 | UE7: 2046-04-30 | UF7: 2046-05-31 | UG7: 2046-06-30 | UH7: 2046-07-31 | UI7: 2046-08-31 | UJ7: 2046-09-30 | UK7: 2046-10-31 | UL7: 2046-11-30 | UM7: 2046-12-31 | UN7: 2047-01-31 | UO7: 2047-02-28 | UP7: 2047-03-31 | UQ7: 2047-04-30 | UR7: 2047-05-31 | US7: 2047-06-30 | UT7: 2047-07-31 | UU7: 2047-08-31 | UV7: 2047-09-30 | UW7: 2047-10-31 | UX7: 2047-11-30 | UY7: 2047-12-31 | UZ7: 2048-01-31 | VA7: 2048-02-29 | VB7: 2048-03-31 | VC7: 2048-04-30 | VD7: 2048-05-31 | VE7: 2048-06-30 | VF7: 2048-07-31 | VG7: 2048-08-31 | VH7: 2048-09-30 | VI7: 2048-10-31 | VJ7: 2048-11-30 | VK7: 2048-12-31 | VL7: 2049-01-31 | VM7: 2049-02-28 | VN7: =EOMONTH(VN6,VN5-1) -> 2049-03-31 | VO7: 2049-04-30 | VP7: 2049-05-31 | VQ7: 2049-06-30 | VR7: 2049-07-31 | VS7: 2049-08-31 | VT7: 2049-09-30 | VU7: 2049-10-31 | VV7: 2049-11-30 | VW7: 2049-12-31 | VX7: 2050-01-31 | VY7: 2050-02-28 | VZ7: 2050-03-31 | WA7: 2050-04-30 | WB7: 2050-05-31 | WC7: 2050-06-30 | WD7: 2050-07-31 | WE7: 2050-08-31 | WF7: 2050-09-30 | WG7: 2050-10-31 | WH7: 2050-11-30 | WI7: 2050-12-31 | WJ7: 2051-01-31 | WK7: 2051-02-28 | WL7: 2051-03-31 | WM7: 2051-04-30 | WN7: 2051-05-31 | WO7: 2051-06-30 | WP7: 2051-07-31 | WQ7: 2051-08-31 | WR7: 2051-09-30 | WS7: 2051-10-31 | WT7: 2051-11-30 | WU7: 2051-12-31 | WV7: 2052-01-31 | WW7: 2052-02-29 | WX7: 2052-03-31 | WY7: 2052-04-30 | WZ7: 2052-05-31 | XA7: 2052-06-30 | XB7: 2052-07-31 | XC7: 2052-08-31 | XD7: 2052-09-30 | XE7: 2052-10-31 | XF7: 2052-11-30 | XG7: 2052-12-31 | XH7: 2053-01-31 | XI7: 2053-02-28 | XJ7: 2053-03-31 | XK7: 2053-04-30 | XL7: 2053-05-31 | XM7: 2053-06-30 | XN7: 2053-07-31 | XO7: 2053-08-31 | XP7: 2053-09-30 | XQ7: 2053-10-31 | XR7: 2053-11-30 | XS7: 2053-12-31 | XT7: 2054-01-31 | XU7: 2054-02-28 | XV7: 2054-03-31 | XW7: 2054-04-30 | XX7: 2054-05-31 | XY7: 2054-06-30 | XZ7: =EOMONTH(XZ6,XZ5-1) -> 2054-07-31 | YA7: 2054-08-31 | YB7: 2054-09-30 | YC7: 2054-10-31 | YD7: 2054-11-30 | YE7: 2054-12-31 | YF7: 2055-01-31 | YG7: 2055-02-28 | YH7: 2055-03-31 | YI7: 2055-04-30 | YJ7: 2055-05-31 | YK7: 2055-06-30 | YL7: 2055-07-31 | YM7: 2055-08-31 | YN7: 2055-09-30 | YO7: 2055-10-31 | YP7: 2055-11-30 | YQ7: 2055-12-31 | YR7: 2056-01-31 | YS7: 2056-02-29 | YT7: 2056-03-31 | YU7: 2056-04-30 | YV7: 2056-05-31 | YW7: 2056-06-30 | YX7: 2056-07-31 | YY7: 2056-08-31 | YZ7: 2056-09-30 | ZA7: 2056-10-31 | ZB7: 2056-11-30 | ZC7: 2056-12-31 | ZD7: 2057-01-31 | ZE7: 2057-02-28 | ZF7: 2057-03-31 | ZG7: 2057-04-30 | ZH7: 2057-05-31 | ZI7: 2057-06-30 | ZJ7: 2057-07-31 | ZK7: 2057-08-31 | ZL7: 2057-09-30 | ZM7: 2057-10-31 | ZN7: 2057-11-30 | ZO7: 2057-12-31 | ZP7: 2058-01-31 | ZQ7: 2058-02-28 | ZR7: 2058-03-31 | ZS7: 2058-04-30 | ZT7: 2058-05-31 | ZU7: 2058-06-30 | ZV7: 2058-07-31 | ZW7: 2058-08-31 | ZX7: 2058-09-30 | ZY7: 2058-10-31 | ZZ7: 2058-11-30 | AAA7: 2058-12-31 | AAB7: 2059-01-31 | AAC7: 2059-02-28 | AAD7: 2059-03-31 | AAE7: 2059-04-30 | AAF7: 2059-05-31 | AAG7: 2059-06-30 | AAH7: 2059-07-31 | AAI7: 2059-08-31 | AAJ7: 2059-09-30 | AAK7: 2059-10-31 | AAL7: =EOMONTH(AAL6,AAL5-1) -> 2059-11-30 | AAM7: 2059-12-31 | AAN7: 2060-01-31 | AAO7: 2060-02-29 | AAP7: 2060-03-31 | AAQ7: 2060-04-30 | AAR7: 2060-05-31 | AAS7: 2060-06-30 | AAT7: 2060-07-31 | AAU7: 2060-08-31 | AAV7: 2060-09-30 | AAW7: 2060-10-31 | AAX7: 2060-11-30 | AAY7: 2060-12-31 | AAZ7: 2061-01-31 | ABA7: 2061-02-28 | ABB7: 2061-03-31 | ABC7: 2061-04-30 | ABD7: 2061-05-31 | ABE7: 2061-06-30 | ABF7: 2061-07-31 | ABG7: 2061-08-31 | ABH7: 2061-09-30 | ABI7: 2061-10-31 | ABJ7: 2061-11-30 | ABK7: 2061-12-31 | ABL7: 2062-01-31 | ABM7: 2062-02-28 | ABN7: 2062-03-31 | ABO7: 2062-04-30 | ABP7: 2062-05-31 | ABQ7: 2062-06-30 | ABR7: 2062-07-31 | ABS7: 2062-08-31 | ABT7: 2062-09-30 | ABU7: 2062-10-31 | ABV7: 2062-11-30 | ABW7: 2062-12-31 | ABX7: 2063-01-31 | ABY7: 2063-02-28 | ABZ7: 2063-03-31 | ACA7: 2063-04-30 | ACB7: 2063-05-31 | ACC7: 2063-06-30 | ACD7: 2063-07-31 | ACE7: 2063-08-31 | ACF7: 2063-09-30 | ACG7: 2063-10-31 | ACH7: 2063-11-30 | ACI7: 2063-12-31 | ACJ7: 2064-01-31 | ACK7: 2064-02-29 | ACL7: 2064-03-31 | ACM7: 2064-04-30 | ACN7: 2064-05-31 | ACO7: 2064-06-30 | ACP7: 2064-07-31 | ACQ7: 2064-08-31 | ACR7: 2064-09-30 | ACS7: 2064-10-31 | ACT7: 2064-11-30 | ACU7: 2064-12-31 | ACV7: 2065-01-31 | ACW7: 2065-02-28 | ACX7: =EOMONTH(ACX6,ACX5-1) -> 2065-03-31 | ACY7: 2065-04-30 | ACZ7: 2065-05-31 | ADA7: 2065-06-30 | ADB7: 2065-07-31 | ADC7: 2065-08-31 | ADD7: 2065-09-30 | ADE7: 2065-10-31 | ADF7: 2065-11-30 | ADG7: 2065-12-31 | ADH7: 2066-01-31 | ADI7: 2066-02-28 | ADJ7: 2066-03-31 | ADK7: 2066-04-30 | ADL7: 2066-05-31 | ADM7: 2066-06-30 | ADN7: 2066-07-31 | ADO7: 2066-08-31 | ADP7: 2066-09-30 | ADQ7: 2066-10-31 | ADR7: 2066-11-30 | ADS7: 2066-12-31 | ADT7: 2067-01-31 | ADU7: 2067-02-28 | ADV7: 2067-03-31 | ADW7: 2067-04-30 | ADX7: 2067-05-31 | ADY7: 2067-06-30 | ADZ7: 2067-07-31 | AEA7: 2067-08-31 | AEB7: 2067-09-30 | AEC7: 2067-10-31 | AED7: 2067-11-30 | AEE7: 2067-12-31 | AEF7: 2068-01-31 | AEG7: 2068-02-29 | AEH7: 2068-03-31 | AEI7: 2068-04-30 | AEJ7: 2068-05-31 | AEK7: 2068-06-30 | AEL7: 2068-07-31 | AEM7: 2068-08-31 | AEN7: 2068-09-30 | AEO7: 2068-10-31 | AEP7: 2068-11-30 | AEQ7: 2068-12-31 | AER7: 2069-01-31 | AES7: 2069-02-28 | AET7: 2069-03-31 | AEU7: 2069-04-30 | AEV7: 2069-05-31 | AEW7: 2069-06-30 | AEX7: 2069-07-31 | AEY7: 2069-08-31 | AEZ7: 2069-09-30 | AFA7: 2069-10-31 | AFB7: 2069-11-30 | AFC7: 2069-12-31 | AFD7: 2070-01-31 | AFE7: 2070-02-28 | AFF7: 2070-03-31 | AFG7: 2070-04-30 | AFH7: 2070-05-31 | AFI7: 2070-06-30 | AFJ7: =EOMONTH(AFJ6,AFJ5-1) -> 2070-07-31 | AFK7: 2070-08-31 | AFL7: 2070-09-30 | AFM7: 2070-10-31 | AFN7: 2070-11-30 | AFO7: 2070-12-31 | AFP7: 2071-01-31 | AFQ7: 2071-02-28 | AFR7: 2071-03-31 | AFS7: 2071-04-30 | AFT7: 2071-05-31 | AFU7: 2071-06-30 | AFV7: 2071-07-31 | AFW7: 2071-08-31 | AFX7: 2071-09-30 | AFY7: 2071-10-31 | AFZ7: 2071-11-30 | AGA7: 2071-12-31 | AGB7: 2072-01-31 | AGC7: 2072-02-29 | AGD7: 2072-03-31 | AGE7: 2072-04-30 | AGF7: 2072-05-31 | AGG7: 2072-06-30 | AGH7: 2072-07-31 | AGI7: 2072-08-31 | AGJ7: 2072-09-30 | AGK7: 2072-10-31
B8: Operating Period (COD) | E8: =EDATE(E6,E4+E5) -> 2001-08-01 | F8: ='Solar Carrying Charge'!F45 -> 2031-08-01 | G8: =COUNTIF(H8:AGK8,TRUE) -> 360 | I8: =AND(I6>=$E$8,I6<$F$8) -> FALSE | J8: =AND(J6>=$E$8,J6<$F$8) -> FALSE | K8: FALSE | L8: FALSE | M8: FALSE | N8: FALSE | O8: TRUE | P8: TRUE | Q8: TRUE | R8: TRUE | S8: TRUE | T8: TRUE | U8: TRUE | V8: TRUE | W8: TRUE | X8: TRUE | Y8: TRUE | Z8: TRUE | AA8: TRUE | AB8: TRUE | AC8: TRUE | AD8: TRUE | AE8: TRUE | AF8: TRUE | AG8: TRUE | AH8: TRUE | AI8: TRUE | AJ8: TRUE | AK8: TRUE | AL8: TRUE | AM8: TRUE | AN8: TRUE | AO8: TRUE | AP8: TRUE | AQ8: TRUE | AR8: TRUE | AS8: TRUE | AT8: TRUE | AU8: TRUE | AV8: TRUE | AW8: TRUE | AX8: TRUE | AY8: TRUE | AZ8: TRUE | BA8: TRUE | BB8: TRUE | BC8: TRUE | BD8: TRUE | BE8: TRUE | BF8: TRUE | BG8: TRUE | BH8: TRUE | BI8: TRUE | BJ8: TRUE | BK8: TRUE | BL8: TRUE | BM8: TRUE | BN8: TRUE | BO8: TRUE | BP8: TRUE | BQ8: TRUE | BR8: TRUE | BS8: TRUE | BT8: TRUE | BU8: TRUE | BV8: =AND(BV6>=$E$8,BV6<$F$8) -> TRUE | BW8: TRUE | BX8: TRUE | BY8: TRUE | BZ8: TRUE | CA8: TRUE | CB8: TRUE | CC8: TRUE | CD8: TRUE | CE8: TRUE | CF8: TRUE | CG8: TRUE | CH8: TRUE | CI8: TRUE | CJ8: TRUE | CK8: TRUE | CL8: TRUE | CM8: TRUE | CN8: TRUE | CO8: TRUE | CP8: TRUE | CQ8: TRUE | CR8: TRUE | CS8: TRUE | CT8: TRUE | CU8: TRUE | CV8: TRUE | CW8: TRUE | CX8: TRUE | CY8: TRUE | CZ8: TRUE | DA8: TRUE | DB8: TRUE | DC8: TRUE | DD8: TRUE | DE8: TRUE | DF8: TRUE | DG8: TRUE | DH8: TRUE | DI8: TRUE | DJ8: TRUE | DK8: TRUE | DL8: TRUE | DM8: TRUE | DN8: TRUE | DO8: TRUE | DP8: TRUE | DQ8: TRUE | DR8: TRUE | DS8: TRUE | DT8: TRUE | DU8: TRUE | DV8: TRUE | DW8: TRUE | DX8: TRUE | DY8: TRUE | DZ8: TRUE | EA8: TRUE | EB8: TRUE | EC8: TRUE | ED8: TRUE | EE8: TRUE | EF8: TRUE | EG8: TRUE | EH8: =AND(EH6>=$E$8,EH6<$F$8) -> TRUE | EI8: TRUE | EJ8: TRUE | EK8: TRUE | EL8: TRUE | EM8: TRUE | EN8: TRUE | EO8: TRUE | EP8: TRUE | EQ8: TRUE | ER8: TRUE | ES8: TRUE | ET8: TRUE | EU8: TRUE | EV8: TRUE | EW8: TRUE | EX8: TRUE | EY8: TRUE | EZ8: TRUE | FA8: TRUE | FB8: TRUE | FC8: TRUE | FD8: TRUE | FE8: TRUE | FF8: TRUE | FG8: TRUE | FH8: TRUE | FI8: TRUE | FJ8: TRUE | FK8: TRUE | FL8: TRUE | FM8: TRUE | FN8: TRUE | FO8: TRUE | FP8: TRUE | FQ8: TRUE | FR8: TRUE | FS8: TRUE | FT8: TRUE | FU8: TRUE | FV8: TRUE | FW8: TRUE | FX8: TRUE | FY8: TRUE | FZ8: TRUE | GA8: TRUE | GB8: TRUE | GC8: TRUE | GD8: TRUE | GE8: TRUE | GF8: TRUE | GG8: TRUE | GH8: TRUE | GI8: TRUE | GJ8: TRUE | GK8: TRUE | GL8: TRUE | GM8: TRUE | GN8: TRUE | GO8: TRUE | GP8: TRUE | GQ8: TRUE | GR8: TRUE | GS8: TRUE | GT8: =AND(GT6>=$E$8,GT6<$F$8) -> TRUE | GU8: TRUE | GV8: TRUE | GW8: TRUE | GX8: TRUE | GY8: TRUE | GZ8: TRUE | HA8: TRUE | HB8: TRUE | HC8: TRUE | HD8: TRUE | HE8: TRUE | HF8: TRUE | HG8: TRUE | HH8: TRUE | HI8: TRUE | HJ8: TRUE | HK8: TRUE | HL8: TRUE | HM8: TRUE | HN8: TRUE | HO8: TRUE | HP8: TRUE | HQ8: TRUE | HR8: TRUE | HS8: TRUE | HT8: TRUE | HU8: TRUE | HV8: TRUE | HW8: TRUE | HX8: TRUE | HY8: TRUE | HZ8: TRUE | IA8: TRUE | IB8: TRUE | IC8: TRUE | ID8: TRUE | IE8: TRUE | IF8: TRUE | IG8: TRUE | IH8: TRUE | II8: TRUE | IJ8: TRUE | IK8: TRUE | IL8: TRUE | IM8: TRUE | IN8: TRUE | IO8: TRUE | IP8: TRUE | IQ8: TRUE | IR8: TRUE | IS8: TRUE | IT8: TRUE | IU8: TRUE | IV8: TRUE | IW8: TRUE | IX8: TRUE | IY8: TRUE | IZ8: TRUE | JA8: TRUE | JB8: TRUE | JC8: TRUE | JD8: TRUE | JE8: TRUE | JF8: =AND(JF6>=$E$8,JF6<$F$8) -> TRUE | JG8: TRUE | JH8: TRUE | JI8: TRUE | JJ8: TRUE | JK8: TRUE | JL8: TRUE | JM8: TRUE | JN8: TRUE | JO8: TRUE | JP8: TRUE | JQ8: TRUE | JR8: TRUE | JS8: TRUE | JT8: TRUE | JU8: TRUE | JV8: TRUE | JW8: TRUE | JX8: TRUE | JY8: TRUE | JZ8: TRUE | KA8: TRUE | KB8: TRUE | KC8: TRUE | KD8: TRUE | KE8: TRUE | KF8: TRUE | KG8: TRUE | KH8: TRUE | KI8: TRUE | KJ8: TRUE | KK8: TRUE | KL8: TRUE | KM8: TRUE | KN8: TRUE | KO8: TRUE | KP8: TRUE | KQ8: TRUE | KR8: TRUE | KS8: TRUE | KT8: TRUE | KU8: TRUE | KV8: TRUE | KW8: TRUE | KX8: TRUE | KY8: TRUE | KZ8: TRUE | LA8: TRUE | LB8: TRUE | LC8: TRUE | LD8: TRUE | LE8: TRUE | LF8: TRUE | LG8: TRUE | LH8: TRUE | LI8: TRUE | LJ8: TRUE | LK8: TRUE | LL8: TRUE | LM8: TRUE | LN8: TRUE | LO8: TRUE | LP8: TRUE | LQ8: TRUE | LR8: =AND(LR6>=$E$8,LR6<$F$8) -> TRUE | LS8: TRUE | LT8: TRUE | LU8: TRUE | LV8: TRUE | LW8: TRUE | LX8: TRUE | LY8: TRUE | LZ8: TRUE | MA8: TRUE | MB8: TRUE | MC8: TRUE | MD8: TRUE | ME8: TRUE | MF8: TRUE | MG8: TRUE | MH8: TRUE | MI8: TRUE | MJ8: TRUE | MK8: TRUE | ML8: TRUE | MM8: TRUE | MN8: TRUE | MO8: TRUE | MP8: TRUE | MQ8: TRUE | MR8: TRUE | MS8: TRUE | MT8: TRUE | MU8: TRUE | MV8: TRUE | MW8: TRUE | MX8: TRUE | MY8: TRUE | MZ8: TRUE | NA8: TRUE | NB8: TRUE | NC8: TRUE | ND8: TRUE | NE8: TRUE | NF8: TRUE | NG8: TRUE | NH8: TRUE | NI8: TRUE | NJ8: TRUE | NK8: FALSE | NL8: FALSE | NM8: FALSE | NN8: FALSE | NO8: FALSE | NP8: FALSE | NQ8: FALSE | NR8: FALSE | NS8: FALSE | NT8: FALSE | NU8: FALSE | NV8: FALSE | NW8: FALSE | NX8: FALSE | NY8: FALSE | NZ8: FALSE | OA8: FALSE | OB8: FALSE | OC8: FALSE | OD8: =AND(OD6>=$E$8,OD6<$F$8) -> FALSE | OE8: FALSE | OF8: FALSE | OG8: FALSE | OH8: FALSE | OI8: FALSE | OJ8: FALSE | OK8: FALSE | OL8: FALSE | OM8: FALSE | ON8: FALSE | OO8: FALSE | OP8: FALSE | OQ8: FALSE | OR8: FALSE | OS8: FALSE | OT8: FALSE | OU8: FALSE | OV8: FALSE | OW8: FALSE | OX8: FALSE | OY8: FALSE | OZ8: FALSE | PA8: FALSE | PB8: FALSE | PC8: FALSE | PD8: FALSE | PE8: FALSE | PF8: FALSE | PG8: FALSE | PH8: FALSE | PI8: FALSE | PJ8: FALSE | PK8: FALSE | PL8: FALSE | PM8: FALSE | PN8: FALSE | PO8: FALSE | PP8: FALSE | PQ8: FALSE | PR8: FALSE | PS8: FALSE | PT8: FALSE | PU8: FALSE | PV8: FALSE | PW8: FALSE | PX8: FALSE | PY8: FALSE | PZ8: FALSE | QA8: FALSE | QB8: FALSE | QC8: FALSE | QD8: FALSE | QE8: FALSE | QF8: FALSE | QG8: FALSE | QH8: FALSE | QI8: FALSE | QJ8: FALSE | QK8: FALSE | QL8: FALSE | QM8: FALSE | QN8: FALSE | QO8: FALSE | QP8: =AND(QP6>=$E$8,QP6<$F$8) -> FALSE | QQ8: FALSE | QR8: FALSE | QS8: FALSE | QT8: FALSE | QU8: FALSE | QV8: FALSE | QW8: FALSE | QX8: FALSE | QY8: FALSE | QZ8: FALSE | RA8: FALSE | RB8: FALSE | RC8: FALSE | RD8: FALSE | RE8: FALSE | RF8: FALSE | RG8: FALSE | RH8: FALSE | RI8: FALSE | RJ8: FALSE | RK8: FALSE | RL8: FALSE | RM8: FALSE | RN8: FALSE | RO8: FALSE | RP8: FALSE | RQ8: FALSE | RR8: FALSE | RS8: FALSE | RT8: FALSE | RU8: FALSE | RV8: FALSE | RW8: FALSE | RX8: FALSE | RY8: FALSE | RZ8: FALSE | SA8: FALSE | SB8: FALSE | SC8: FALSE | SD8: FALSE | SE8: FALSE | SF8: FALSE | SG8: FALSE | SH8: FALSE | SI8: FALSE | SJ8: FALSE | SK8: FALSE | SL8: FALSE | SM8: FALSE | SN8: FALSE | SO8: FALSE | SP8: FALSE | SQ8: FALSE | SR8: FALSE | SS8: FALSE | ST8: FALSE | SU8: FALSE | SV8: FALSE | SW8: FALSE | SX8: FALSE | SY8: FALSE | SZ8: FALSE | TA8: FALSE | TB8: =AND(TB6>=$E$8,TB6<$F$8) -> FALSE | TC8: FALSE | TD8: FALSE | TE8: FALSE | TF8: FALSE | TG8: FALSE | TH8: FALSE | TI8: FALSE | TJ8: FALSE | TK8: FALSE | TL8: FALSE | TM8: FALSE | TN8: FALSE | TO8: FALSE | TP8: FALSE | TQ8: FALSE | TR8: FALSE | TS8: FALSE | TT8: FALSE | TU8: FALSE | TV8: FALSE | TW8: FALSE | TX8: FALSE | TY8: FALSE | TZ8: FALSE | UA8: FALSE | UB8: FALSE | UC8: FALSE | UD8: FALSE | UE8: FALSE | UF8: FALSE | UG8: FALSE | UH8: FALSE | UI8: FALSE | UJ8: FALSE | UK8: FALSE | UL8: FALSE | UM8: FALSE | UN8: FALSE | UO8: FALSE | UP8: FALSE | UQ8: FALSE | UR8: FALSE | US8: FALSE | UT8: FALSE | UU8: FALSE | UV8: FALSE | UW8: FALSE | UX8: FALSE | UY8: FALSE | UZ8: FALSE | VA8: FALSE | VB8: FALSE | VC8: FALSE | VD8: FALSE | VE8: FALSE | VF8: FALSE | VG8: FALSE | VH8: FALSE | VI8: FALSE | VJ8: FALSE | VK8: FALSE | VL8: FALSE | VM8: FALSE | VN8: =AND(VN6>=$E$8,VN6<$F$8) -> FALSE | VO8: FALSE | VP8: FALSE | VQ8: FALSE | VR8: FALSE | VS8: FALSE | VT8: FALSE | VU8: FALSE | VV8: FALSE | VW8: FALSE | VX8: FALSE | VY8: FALSE | VZ8: FALSE | WA8: FALSE | WB8: FALSE | WC8: FALSE | WD8: FALSE | WE8: FALSE | WF8: FALSE | WG8: FALSE | WH8: FALSE | WI8: FALSE | WJ8: FALSE | WK8: FALSE | WL8: FALSE | WM8: FALSE | WN8: FALSE | WO8: FALSE | WP8: FALSE | WQ8: FALSE | WR8: FALSE | WS8: FALSE | WT8: FALSE | WU8: FALSE | WV8: FALSE | WW8: FALSE | WX8: FALSE | WY8: FALSE | WZ8: FALSE | XA8: FALSE | XB8: FALSE | XC8: FALSE | XD8: FALSE | XE8: FALSE | XF8: FALSE | XG8: FALSE | XH8: FALSE | XI8: FALSE | XJ8: FALSE | XK8: FALSE | XL8: FALSE | XM8: FALSE | XN8: FALSE | XO8: FALSE | XP8: FALSE | XQ8: FALSE | XR8: FALSE | XS8: FALSE | XT8: FALSE | XU8: FALSE | XV8: FALSE | XW8: FALSE | XX8: FALSE | XY8: FALSE | XZ8: =AND(XZ6>=$E$8,XZ6<$F$8) -> FALSE | YA8: FALSE | YB8: FALSE | YC8: FALSE | YD8: FALSE | YE8: FALSE | YF8: FALSE | YG8: FALSE | YH8: FALSE | YI8: FALSE | YJ8: FALSE | YK8: FALSE | YL8: FALSE | YM8: FALSE | YN8: FALSE | YO8: FALSE | YP8: FALSE | YQ8: FALSE | YR8: FALSE | YS8: FALSE | YT8: FALSE | YU8: FALSE | YV8: FALSE | YW8: FALSE | YX8: FALSE | YY8: FALSE | YZ8: FALSE | ZA8: FALSE | ZB8: FALSE | ZC8: FALSE | ZD8: FALSE | ZE8: FALSE | ZF8: FALSE | ZG8: FALSE | ZH8: FALSE | ZI8: FALSE | ZJ8: FALSE | ZK8: FALSE | ZL8: FALSE | ZM8: FALSE | ZN8: FALSE | ZO8: FALSE | ZP8: FALSE | ZQ8: FALSE | ZR8: FALSE | ZS8: FALSE | ZT8: FALSE | ZU8: FALSE | ZV8: FALSE | ZW8: FALSE | ZX8: FALSE | ZY8: FALSE | ZZ8: FALSE | AAA8: FALSE | AAB8: FALSE | AAC8: FALSE | AAD8: FALSE | AAE8: FALSE | AAF8: FALSE | AAG8: FALSE | AAH8: FALSE | AAI8: FALSE | AAJ8: FALSE | AAK8: FALSE | AAL8: =AND(AAL6>=$E$8,AAL6<$F$8) -> FALSE | AAM8: FALSE | AAN8: FALSE | AAO8: FALSE | AAP8: FALSE | AAQ8: FALSE | AAR8: FALSE | AAS8: FALSE | AAT8: FALSE | AAU8: FALSE | AAV8: FALSE | AAW8: FALSE | AAX8: FALSE | AAY8: FALSE | AAZ8: FALSE | ABA8: FALSE | ABB8: FALSE | ABC8: FALSE | ABD8: FALSE | ABE8: FALSE | ABF8: FALSE | ABG8: FALSE | ABH8: FALSE | ABI8: FALSE | ABJ8: FALSE | ABK8: FALSE | ABL8: FALSE | ABM8: FALSE | ABN8: FALSE | ABO8: FALSE | ABP8: FALSE | ABQ8: FALSE | ABR8: FALSE | ABS8: FALSE | ABT8: FALSE | ABU8: FALSE | ABV8: FALSE | ABW8: FALSE | ABX8: FALSE | ABY8: FALSE | ABZ8: FALSE | ACA8: FALSE | ACB8: FALSE | ACC8: FALSE | ACD8: FALSE | ACE8: FALSE | ACF8: FALSE | ACG8: FALSE | ACH8: FALSE | ACI8: FALSE | ACJ8: FALSE | ACK8: FALSE | ACL8: FALSE | ACM8: FALSE | ACN8: FALSE | ACO8: FALSE | ACP8: FALSE | ACQ8: FALSE | ACR8: FALSE | ACS8: FALSE | ACT8: FALSE | ACU8: FALSE | ACV8: FALSE | ACW8: FALSE | ACX8: =AND(ACX6>=$E$8,ACX6<$F$8) -> FALSE | ACY8: FALSE | ACZ8: FALSE | ADA8: FALSE | ADB8: FALSE | ADC8: FALSE | ADD8: FALSE | ADE8: FALSE | ADF8: FALSE | ADG8: FALSE | ADH8: FALSE | ADI8: FALSE | ADJ8: FALSE | ADK8: FALSE | ADL8: FALSE | ADM8: FALSE | ADN8: FALSE | ADO8: FALSE | ADP8: FALSE | ADQ8: FALSE | ADR8: FALSE | ADS8: FALSE | ADT8: FALSE | ADU8: FALSE | ADV8: FALSE | ADW8: FALSE | ADX8: FALSE | ADY8: FALSE | ADZ8: FALSE | AEA8: FALSE | AEB8: FALSE | AEC8: FALSE | AED8: FALSE | AEE8: FALSE | AEF8: FALSE | AEG8: FALSE | AEH8: FALSE | AEI8: FALSE | AEJ8: FALSE | AEK8: FALSE | AEL8: FALSE | AEM8: FALSE | AEN8: FALSE | AEO8: FALSE | AEP8: FALSE | AEQ8: FALSE | AER8: FALSE | AES8: FALSE | AET8: FALSE | AEU8: FALSE | AEV8: FALSE | AEW8: FALSE | AEX8: FALSE | AEY8: FALSE | AEZ8: FALSE | AFA8: FALSE | AFB8: FALSE | AFC8: FALSE | AFD8: FALSE | AFE8: FALSE | AFF8: FALSE | AFG8: FALSE | AFH8: FALSE | AFI8: FALSE | AFJ8: =AND(AFJ6>=$E$8,AFJ6<$F$8) -> FALSE | AFK8: FALSE | AFL8: FALSE | AFM8: FALSE | AFN8: FALSE | AFO8: FALSE | AFP8: FALSE | AFQ8: FALSE | AFR8: FALSE | AFS8: FALSE | AFT8: FALSE | AFU8: FALSE | AFV8: FALSE | AFW8: FALSE | AFX8: FALSE | AFY8: FALSE | AFZ8: FALSE | AGA8: FALSE | AGB8: FALSE | AGC8: FALSE | AGD8: FALSE | AGE8: FALSE | AGF8: FALSE | AGG8: FALSE | AGH8: FALSE | AGI8: FALSE | AGJ8: FALSE | AGK8: FALSE
B9: Plant Age | I9: =H9+I8 -> 0 | J9: 0 | K9: 0 | L9: 0 | M9: 0 | N9: 0 | O9: 1 | P9: 2 | Q9: 3 | R9: 4 | S9: 5 | T9: 6 | U9: 7 | V9: 8 | W9: 9 | X9: 10 | Y9: 11 | Z9: 12 | AA9: 13 | AB9: 14 | AC9: 15 | AD9: 16 | AE9: 17 | AF9: 18 | AG9: 19 | AH9: 20 | AI9: 21 | AJ9: 22 | AK9: 23 | AL9: 24 | AM9: 25 | AN9: 26 | AO9: 27 | AP9: 28 | AQ9: 29 | AR9: 30 | AS9: 31 | AT9: 32 | AU9: 33 | AV9: 34 | AW9: 35 | AX9: 36 | AY9: 37 | AZ9: 38 | BA9: 39 | BB9: 40 | BC9: 41 | BD9: 42 | BE9: 43 | BF9: 44 | BG9: 45 | BH9: 46 | BI9: 47 | BJ9: 48 | BK9: 49 | BL9: 50 | BM9: 51 | BN9: 52 | BO9: 53 | BP9: 54 | BQ9: 55 | BR9: 56 | BS9: 57 | BT9: 58 | BU9: =BT9+BU8 -> 59 | BV9: 60 | BW9: 61 | BX9: 62 | BY9: 63 | BZ9: 64 | CA9: 65 | CB9: 66 | CC9: 67 | CD9: 68 | CE9: 69 | CF9: 70 | CG9: 71 | CH9: 72 | CI9: 73 | CJ9: 74 | CK9: 75 | CL9: 76 | CM9: 77 | CN9: 78 | CO9: 79 | CP9: 80 | CQ9: 81 | CR9: 82 | CS9: 83 | CT9: 84 | CU9: 85 | CV9: 86 | CW9: 87 | CX9: 88 | CY9: 89 | CZ9: 90 | DA9: 91 | DB9: 92 | DC9: 93 | DD9: 94 | DE9: 95 | DF9: 96 | DG9: 97 | DH9: 98 | DI9: 99 | DJ9: 100 | DK9: 101 | DL9: 102 | DM9: 103 | DN9: 104 | DO9: 105 | DP9: 106 | DQ9: 107 | DR9: 108 | DS9: 109 | DT9: 110 | DU9: 111 | DV9: 112 | DW9: 113 | DX9: 114 | DY9: 115 | DZ9: 116 | EA9: 117 | EB9: 118 | EC9: 119 | ED9: 120 | EE9: 121 | EF9: 122 | EG9: =EF9+EG8 -> 123 | EH9: 124 | EI9: 125 | EJ9: 126 | EK9: 127 | EL9: 128 | EM9: 129 | EN9: 130 | EO9: 131 | EP9: 132 | EQ9: 133 | ER9: 134 | ES9: 135 | ET9: 136 | EU9: 137 | EV9: 138 | EW9: 139 | EX9: 140 | EY9: 141 | EZ9: 142 | FA9: 143 | FB9: 144 | FC9: 145 | FD9: 146 | FE9: 147 | FF9: 148 | FG9: 149 | FH9: 150 | FI9: 151 | FJ9: 152 | FK9: 153 | FL9: 154 | FM9: 155 | FN9: 156 | FO9: 157 | FP9: 158 | FQ9: 159 | FR9: 160 | FS9: 161 | FT9: 162 | FU9: 163 | FV9: 164 | FW9: 165 | FX9: 166 | FY9: 167 | FZ9: 168 | GA9: 169 | GB9: 170 | GC9: 171 | GD9: 172 | GE9: 173 | GF9: 174 | GG9: 175 | GH9: 176 | GI9: 177 | GJ9: 178 | GK9: 179 | GL9: 180 | GM9: 181 | GN9: 182 | GO9: 183 | GP9: 184 | GQ9: 185 | GR9: 186 | GS9: =GR9+GS8 -> 187 | GT9: 188 | GU9: 189 | GV9: 190 | GW9: 191 | GX9: 192 | GY9: 193 | GZ9: 194 | HA9: 195 | HB9: 196 | HC9: 197 | HD9: 198 | HE9: 199 | HF9: 200 | HG9: 201 | HH9: 202 | HI9: 203 | HJ9: 204 | HK9: 205 | HL9: 206 | HM9: 207 | HN9: 208 | HO9: 209 | HP9: 210 | HQ9: 211 | HR9: 212 | HS9: 213 | HT9: 214 | HU9: 215 | HV9: 216 | HW9: 217 | HX9: 218 | HY9: 219 | HZ9: 220 | IA9: 221 | IB9: 222 | IC9: 223 | ID9: 224 | IE9: 225 | IF9: 226 | IG9: 227 | IH9: 228 | II9: 229 | IJ9: 230 | IK9: 231 | IL9: 232 | IM9: 233 | IN9: 234 | IO9: 235 | IP9: 236 | IQ9: 237 | IR9: 238 | IS9: 239 | IT9: 240 | IU9: 241 | IV9: 242 | IW9: 243 | IX9: 244 | IY9: 245 | IZ9: 246 | JA9: 247 | JB9: 248 | JC9: 249 | JD9: 250 | JE9: =JD9+JE8 -> 251 | JF9: 252 | JG9: 253 | JH9: 254 | JI9: 255 | JJ9: 256 | JK9: 257 | JL9: 258 | JM9: 259 | JN9: 260 | JO9: 261 | JP9: 262 | JQ9: 263 | JR9: 264 | JS9: 265 | JT9: 266 | JU9: 267 | JV9: 268 | JW9: 269 | JX9: 270 | JY9: 271 | JZ9: 272 | KA9: 273 | KB9: 274 | KC9: 275 | KD9: 276 | KE9: 277 | KF9: 278 | KG9: 279 | KH9: 280 | KI9: 281 | KJ9: 282 | KK9: 283 | KL9: 284 | KM9: 285 | KN9: 286 | KO9: 287 | KP9: 288 | KQ9: 289 | KR9: 290 | KS9: 291 | KT9: 292 | KU9: 293 | KV9: 294 | KW9: 295 | KX9: 296 | KY9: 297 | KZ9: 298 | LA9: 299 | LB9: 300 | LC9: 301 | LD9: 302 | LE9: 303 | LF9: 304 | LG9: 305 | LH9: 306 | LI9: 307 | LJ9: 308 | LK9: 309 | LL9: 310 | LM9: 311 | LN9: 312 | LO9: 313 | LP9: 314 | LQ9: =LP9+LQ8 -> 315 | LR9: 316 | LS9: 317 | LT9: 318 | LU9: 319 | LV9: 320 | LW9: 321 | LX9: 322 | LY9: 323 | LZ9: 324 | MA9: 325 | MB9: 326 | MC9: 327 | MD9: 328 | ME9: 329 | MF9: 330 | MG9: 331 | MH9: 332 | MI9: 333 | MJ9: 334 | MK9: 335 | ML9: 336 | MM9: 337 | MN9: 338 | MO9: 339 | MP9: 340 | MQ9: 341 | MR9: 342 | MS9: 343 | MT9: 344 | MU9: 345 | MV9: 346 | MW9: 347 | MX9: 348 | MY9: 349 | MZ9: 350 | NA9: 351 | NB9: 352 | NC9: 353 | ND9: 354 | NE9: 355 | NF9: 356 | NG9: 357 | NH9: 358 | NI9: 359 | NJ9: 360 | NK9: 360 | NL9: 360 | NM9: 360 | NN9: 360 | NO9: 360 | NP9: 360 | NQ9: 360 | NR9: 360 | NS9: 360 | NT9: 360 | NU9: 360 | NV9: 360 | NW9: 360 | NX9: 360 | NY9: 360 | NZ9: 360 | OA9: 360 | OB9: 360 | OC9: =OB9+OC8 -> 360 | OD9: 360 | OE9: 360 | OF9: 360 | OG9: 360 | OH9: 360 | OI9: 360 | OJ9: 360 | OK9: 360 | OL9: 360 | OM9: 360 | ON9: 360 | OO9: 360 | OP9: 360 | OQ9: 360 | OR9: 360 | OS9: 360 | OT9: 360 | OU9: 360 | OV9: 360 | OW9: 360 | OX9: 360 | OY9: 360 | OZ9: 360 | PA9: 360 | PB9: 360 | PC9: 360 | PD9: 360 | PE9: 360 | PF9: 360 | PG9: 360 | PH9: 360 | PI9: 360 | PJ9: 360 | PK9: 360 | PL9: 360 | PM9: 360 | PN9: 360 | PO9: 360 | PP9: 360 | PQ9: 360 | PR9: 360 | PS9: 360 | PT9: 360 | PU9: 360 | PV9: 360 | PW9: 360 | PX9: 360 | PY9: 360 | PZ9: 360 | QA9: 360 | QB9: 360 | QC9: 360 | QD9: 360 | QE9: 360 | QF9: 360 | QG9: 360 | QH9: 360 | QI9: 360 | QJ9: 360 | QK9: 360 | QL9: 360 | QM9: 360 | QN9: 360 | QO9: =QN9+QO8 -> 360 | QP9: 360 | QQ9: 360 | QR9: 360 | QS9: 360 | QT9: 360 | QU9: 360 | QV9: 360 | QW9: 360 | QX9: 360 | QY9: 360 | QZ9: 360 | RA9: 360 | RB9: 360 | RC9: 360 | RD9: 360 | RE9: 360 | RF9: 360 | RG9: 360 | RH9: 360 | RI9: 360 | RJ9: 360 | RK9: 360 | RL9: 360 | RM9: 360 | RN9: 360 | RO9: 360 | RP9: 360 | RQ9: 360 | RR9: 360 | RS9: 360 | RT9: 360 | RU9: 360 | RV9: 360 | RW9: 360 | RX9: 360 | RY9: 360 | RZ9: 360 | SA9: 360 | SB9: 360 | SC9: 360 | SD9: 360 | SE9: 360 | SF9: 360 | SG9: 360 | SH9: 360 | SI9: 360 | SJ9: 360 | SK9: 360 | SL9: 360 | SM9: 360 | SN9: 360 | SO9: 360 | SP9: 360 | SQ9: 360 | SR9: 360 | SS9: 360 | ST9: 360 | SU9: 360 | SV9: 360 | SW9: 360 | SX9: 360 | SY9: 360 | SZ9: 360 | TA9: =SZ9+TA8 -> 360 | TB9: 360 | TC9: 360 | TD9: 360 | TE9: 360 | TF9: 360 | TG9: 360 | TH9: 360 | TI9: 360 | TJ9: 360 | TK9: 360 | TL9: 360 | TM9: 360 | TN9: 360 | TO9: 360 | TP9: 360 | TQ9: 360 | TR9: 360 | TS9: 360 | TT9: 360 | TU9: 360 | TV9: 360 | TW9: 360 | TX9: 360 | TY9: 360 | TZ9: 360 | UA9: 360 | UB9: 360 | UC9: 360 | UD9: 360 | UE9: 360 | UF9: 360 | UG9: 360 | UH9: 360 | UI9: 360 | UJ9: 360 | UK9: 360 | UL9: 360 | UM9: 360 | UN9: 360 | UO9: 360 | UP9: 360 | UQ9: 360 | UR9: 360 | US9: 360 | UT9: 360 | UU9: 360 | UV9: 360 | UW9: 360 | UX9: 360 | UY9: 360 | UZ9: 360 | VA9: 360 | VB9: 360 | VC9: 360 | VD9: 360 | VE9: 360 | VF9: 360 | VG9: 360 | VH9: 360 | VI9: 360 | VJ9: 360 | VK9: 360 | VL9: 360 | VM9: =VL9+VM8 -> 360 | VN9: 360 | VO9: 360 | VP9: 360 | VQ9: 360 | VR9: 360 | VS9: 360 | VT9: 360 | VU9: 360 | VV9: 360 | VW9: 360 | VX9: 360 | VY9: 360 | VZ9: 360 | WA9: 360 | WB9: 360 | WC9: 360 | WD9: 360 | WE9: 360 | WF9: 360 | WG9: 360 | WH9: 360 | WI9: 360 | WJ9: 360 | WK9: 360 | WL9: 360 | WM9: 360 | WN9: 360 | WO9: 360 | WP9: 360 | WQ9: 360 | WR9: 360 | WS9: 360 | WT9: 360 | WU9: 360 | WV9: 360 | WW9: 360 | WX9: 360 | WY9: 360 | WZ9: 360 | XA9: 360 | XB9: 360 | XC9: 360 | XD9: 360 | XE9: 360 | XF9: 360 | XG9: 360 | XH9: 360 | XI9: 360 | XJ9: 360 | XK9: 360 | XL9: 360 | XM9: 360 | XN9: 360 | XO9: 360 | XP9: 360 | XQ9: 360 | XR9: 360 | XS9: 360 | XT9: 360 | XU9: 360 | XV9: 360 | XW9: 360 | XX9: 360 | XY9: =XX9+XY8 -> 360 | XZ9: 360 | YA9: 360 | YB9: 360 | YC9: 360 | YD9: 360 | YE9: 360 | YF9: 360 | YG9: 360 | YH9: 360 | YI9: 360 | YJ9: 360 | YK9: 360 | YL9: 360 | YM9: 360 | YN9: 360 | YO9: 360 | YP9: 360 | YQ9: 360 | YR9: 360 | YS9: 360 | YT9: 360 | YU9: 360 | YV9: 360 | YW9: 360 | YX9: 360 | YY9: 360 | YZ9: 360 | ZA9: 360 | ZB9: 360 | ZC9: 360 | ZD9: 360 | ZE9: 360 | ZF9: 360 | ZG9: 360 | ZH9: 360 | ZI9: 360 | ZJ9: 360 | ZK9: 360 | ZL9: 360 | ZM9: 360 | ZN9: 360 | ZO9: 360 | ZP9: 360 | ZQ9: 360 | ZR9: 360 | ZS9: 360 | ZT9: 360 | ZU9: 360 | ZV9: 360 | ZW9: 360 | ZX9: 360 | ZY9: 360 | ZZ9: 360 | AAA9: 360 | AAB9: 360 | AAC9: 360 | AAD9: 360 | AAE9: 360 | AAF9: 360 | AAG9: 360 | AAH9: 360 | AAI9: 360 | AAJ9: 360 | AAK9: =AAJ9+AAK8 -> 360 | AAL9: 360 | AAM9: 360 | AAN9: 360 | AAO9: 360 | AAP9: 360 | AAQ9: 360 | AAR9: 360 | AAS9: 360 | AAT9: 360 | AAU9: 360 | AAV9: 360 | AAW9: 360 | AAX9: 360 | AAY9: 360 | AAZ9: 360 | ABA9: 360 | ABB9: 360 | ABC9: 360 | ABD9: 360 | ABE9: 360 | ABF9: 360 | ABG9: 360 | ABH9: 360 | ABI9: 360 | ABJ9: 360 | ABK9: 360 | ABL9: 360 | ABM9: 360 | ABN9: 360 | ABO9: 360 | ABP9: 360 | ABQ9: 360 | ABR9: 360 | ABS9: 360 | ABT9: 360 | ABU9: 360 | ABV9: 360 | ABW9: 360 | ABX9: 360 | ABY9: 360 | ABZ9: 360 | ACA9: 360 | ACB9: 360 | ACC9: 360 | ACD9: 360 | ACE9: 360 | ACF9: 360 | ACG9: 360 | ACH9: 360 | ACI9: 360 | ACJ9: 360 | ACK9: 360 | ACL9: 360 | ACM9: 360 | ACN9: 360 | ACO9: 360 | ACP9: 360 | ACQ9: 360 | ACR9: 360 | ACS9: 360 | ACT9: 360 | ACU9: 360 | ACV9: 360 | ACW9: =ACV9+ACW8 -> 360 | ACX9: 360 | ACY9: 360 | ACZ9: 360 | ADA9: 360 | ADB9: 360 | ADC9: 360 | ADD9: 360 | ADE9: 360 | ADF9: 360 | ADG9: 360 | ADH9: 360 | ADI9: 360 | ADJ9: 360 | ADK9: 360 | ADL9: 360 | ADM9: 360 | ADN9: 360 | ADO9: 360 | ADP9: 360 | ADQ9: 360 | ADR9: 360 | ADS9: 360 | ADT9: 360 | ADU9: 360 | ADV9: 360 | ADW9: 360 | ADX9: 360 | ADY9: 360 | ADZ9: 360 | AEA9: 360 | AEB9: 360 | AEC9: 360 | AED9: 360 | AEE9: 360 | AEF9: 360 | AEG9: 360 | AEH9: 360 | AEI9: 360 | AEJ9: 360 | AEK9: 360 | AEL9: 360 | AEM9: 360 | AEN9: 360 | AEO9: 360 | AEP9: 360 | AEQ9: 360 | AER9: 360 | AES9: 360 | AET9: 360 | AEU9: 360 | AEV9: 360 | AEW9: 360 | AEX9: 360 | AEY9: 360 | AEZ9: 360 | AFA9: 360 | AFB9: 360 | AFC9: 360 | AFD9: 360 | AFE9: 360 | AFF9: 360 | AFG9: 360 | AFH9: 360 | AFI9: =AFH9+AFI8 -> 360 | AFJ9: 360 | AFK9: 360 | AFL9: 360 | AFM9: 360 | AFN9: 360 | AFO9: 360 | AFP9: 360 | AFQ9: 360 | AFR9: 360 | AFS9: 360 | AFT9: 360 | AFU9: 360 | AFV9: 360 | AFW9: 360 | AFX9: 360 | AFY9: 360 | AFZ9: 360 | AGA9: 360 | AGB9: 360 | AGC9: 360 | AGD9: 360 | AGE9: 360 | AGF9: 360 | AGG9: 360 | AGH9: 360 | AGI9: 360 | AGJ9: 360 | AGK9: 360
A11: Assumptions | O11: Amount | P11: Percent
B12: Timing Assumptions | I12: Initial Required Payment | K12: =F159 -> 41.18075262 | M12: Premium to Equity
C13: Start Date | E13: Date | F13: 2001-01-01 | I13: Overnight Cost | K13: =F32 -> 1000 | M13: Premium to Debt
C14: Months in Period for Construction Period | E14: Months | F14: 1 | I14: Level Payment with Inflation | K14: =K12/K13 -> 0.04118075262 | M14: Total Premium
C15: Months in Period for Operating Period | E15: Months | F15: =Summary!D3 -> 1
B17: Inflation Rate
C18: Inflation Rate | E18: % p.a. | F18: =Summary!D4 -> 0.025
C19: Degradation Rate | E19: % p.a. | F19: =Summary!F27 -> 0.005
C20: Net Inflation Rate | F20: =(1+F18)*(1-F19)-1 -> 0.019875
C21: Periodic Inflation Rate - Construction | E21: % p.p. | F21: =(1+F20)^(F14/12)-1 -> 0.001641351442
C22: Periodic Inflation Rate - Operation | E22: % p.p. | F22: =(1+F20)^(F15/12)-1 -> 0.001641351442
B24: Returns and Capital Structure
C25: Equity Return | E25: % p.a. | F25: =Summary!D5 -> 0.07
C26: Base Risk Free Rate | E26: % p.a. | F26: =Summary!D6 -> 0.01
C27: Credit Spread | E27: % p.a. | F27: =Summary!D7 -> 0.014
C28: Total Interest Rate | E28: % p.a. | F28: =F26+F27 -> 0.024
C29: Debt Percent | E29: % | F29: =Summary!D8 -> 0.85
B31: Construction
C32: Overnight Construction Cost | E32: Currency | F32: 1000
C33: Construction Months | E33: Months | F33: =Summary!F24 -> 6
C34: End of Construction Period | E34: Date | F34: =EDATE(F13,F33) -> 2001-07-01
C35: Mean for S-Curve (Multiplied by Construction Months) | E35: % | F35: 0.5
C36: Mean Month of Construction for S-Curve Analysis | E36: Month | F36: =F35*F33 -> 3
C37: Standard Deviation for S-Curve (Multiply by Mean) | E37: % | F37: 7
C38: Standard Deviation of S-Curve | E38: Months | F38: =F36/F37 -> 0.4285714286
B40: Operating Period
C41: Operating Years | E41: Years | F41: =Summary!F23 -> 30
C42: Operating Months | E42: Months | F42: =F41*12 -> 360
C43: Operating Periods | E43: Periods | F43: =F41*12/F15 -> 360
C44: COD | E44: Date | F44: =EDATE(F13,F33+F14) -> 2001-08-01
C45: Decomissioning | E45: Date | F45: =EDATE(F44,F42) -> 2031-08-01
B47: Replacement Capital Expenditures and Decomissioning
C48: Replacement Cost | E48: Currency | F48: =Summary!D26*'Solar Carrying Charge'!F32 -> 0
C49: Replacement Percent | E49: % | F49: =IF(F32,F48/F32) -> 0
C50: Replacement Year | E50: Year | F50: =Summary!F25 -> 0
C51: Replacement Period | E51: Month | F51: =F50*12 -> 0 | L51: =F58 -> 0.5
C52: Replacement Date | E52: Date | F52: =EDATE(F44,F51) -> 2001-08-01 | J52: Percent | K52: Pre-tax Cost | L52: After-tax | M52: WACC | N52: Debt Cost | O52: Risk Free | P52: Equity
I53: Debt | J53: =F29 -> 0.85 | K53: =F28 -> 0.024 | L53: =K53*(1-L51) -> 0.012 | M53: =L53*J53 -> 0.0102
C54: Decomissioning Cost | E54: Currency | F54: 0 | I54: Equity | J54: =1-J53 -> 0.15 | K54: =F25 -> 0.07 | L54: =K54 -> 0.07 | M54: =L54*J54 -> 0.0105
C55: Decommissioning Percent | E55: % | F55: =IF(F32,F54/F32) -> 0 | I55: Total | J55: =SUM(J53:J54) -> 1 | M55: =SUM(M53:M54) -> 0.0207 | O55: =F26 -> 0.01 | P55: =K54 -> 0.07
I56: Periodic WACC - Construction | M56: =(1+M55)^($F$14/12)-1 -> 0.001708847287 | N56: =(1+K53)^($F$14/12)-1 -> 0.001978331539 | O56: =(1+O55)^($F$14/12)-1 -> 0.0008295381143 | P56: =(1+P55)^($F$14/12)-1 -> 0.005654145387
B57: Taxes | I57: Periodic WACC - Operation | M57: =(1+M55)^($F$15/12)-1 -> 0.001708847287 | N57: =(1+K53)^($F$15/12)-1 -> 0.001978331539 | O57: =(1+O55)^($F$14/12)-1 -> 0.0008295381143 | P57: =(1+P55)^($F$15/12)-1 -> 0.005654145387
C58: Income Tax Rate | E58: % | F58: =G58/100 -> 0.5 | G58: 50 | I58: Real WACC - Construction | M58: =(1+M56)/(1+F21)-1 -> 6.738524199e-05
C59: Tax Depreciation Life - Base Plant | E59: Years | F59: =Summary!F23 -> 30 | I59: Real WACC - Operation | M59: =(1+M57)/(1+F22)-1 -> 6.738524199e-05
C60: Tax Depreciation Factor | E60: VDB | F60: =Summary!D10 -> 2
C61: Apply Depreciation | E61: Switch | F61: TRUE
C62: Year | E62: Year | I62: 0 | J62: 1 | K62: 2 | L62: 3 | M62: 4 | N62: 5 | O62: 6 | P62: 7 | Q62: 8 | R62: 9 | S62: 10 | T62: 11 | U62: 12 | V62: 13 | W62: 14 | X62: 15 | Y62: 16 | Z62: 17 | AA62: 18 | AB62: 19 | AC62: 20 | AD62: 21 | AE62: 22 | AF62: 23 | AG62: 24 | AH62: 25 | AI62: 26 | AJ62: 27 | AK62: 28 | AL62: 29 | AM62: 30 | AN62: 31 | AO62: 32 | AP62: 33 | AQ62: 34 | AR62: 35 | AS62: 36 | AT62: 37 | AU62: 38 | AV62: 39 | AW62: 40 | AX62: 41 | AY62: 42 | AZ62: 43 | BA62: 44 | BB62: 45 | BC62: 46 | BD62: 47 | BE62: 48 | BF62: 49 | BG62: 50 | BH62: 51
C63: Annual Depreciation Rate - Base Plant | E63: % p.a. | H63: =F61 -> TRUE | J63: =IFERROR(VDB(1,0,$F$59,I62,J62,$F$60),0)*$H$63 -> 0.06666666667 | K63: =IFERROR(VDB(1,0,$F$59,J62,K62,$F$60),0)*$H$63 -> 0.06222222222 | L63: 0.05807407407 | M63: 0.05420246914 | N63: 0.05058897119 | O63: 0.04721637311 | P63: 0.04406861491 | Q63: 0.04113070725 | R63: 0.0383886601 | S63: 0.03582941609 | T63: 0.03344078835 | U63: 0.03121140246 | V63: 0.0291306423 | W63: 0.02718859948 | X63: 0.02537602618 | Y63: 0.0236842911 | Z63: 0.0236842911 | AA63: 0.0236842911 | AB63: 0.0236842911 | AC63: 0.0236842911 | AD63: 0.0236842911 | AE63: 0.0236842911 | AF63: 0.0236842911 | AG63: 0.0236842911 | AH63: 0.0236842911 | AI63: 0.0236842911 | AJ63: 0.0236842911 | AK63: 0.0236842911 | AL63: 0.0236842911 | AM63: 0.0236842911 | AN63: 0 | AO63: 0 | AP63: 0 | AQ63: 0 | AR63: 0 | AS63: 0 | AT63: 0 | AU63: 0 | AV63: 0 | AW63: 0 | AX63: 0 | AY63: 0 | AZ63: 0 | BA63: 0 | BB63: 0 | BC63: 0 | BD63: 0 | BE63: 0 | BF63: 0 | BG63: 0 | BH63: 0
C64: Periodic Depreciation - Base Plant | E64: % p.p. | F64: ='Solar Carrying Charge'!F15 -> 1 | J64: =J63/12*$F$64 -> 0.005555555556 | K64: 0.005185185185 | L64: 0.004839506173 | M64: 0.004516872428 | N64: 0.004215747599 | O64: 0.003934697759 | P64: 0.003672384576 | Q64: 0.003427558937 | R64: 0.003199055008 | S64: 0.002985784674 | T64: 0.002786732363 | U64: 0.002600950205 | V64: 0.002427553525 | W64: 0.002265716623 | X64: 0.002114668848 | Y64: 0.001973690925 | Z64: 0.001973690925 | AA64: 0.001973690925 | AB64: 0.001973690925 | AC64: 0.001973690925 | AD64: 0.001973690925 | AE64: 0.001973690925 | AF64: 0.001973690925 | AG64: 0.001973690925 | AH64: 0.001973690925 | AI64: 0.001973690925 | AJ64: 0.001973690925 | AK64: 0.001973690925 | AL64: 0.001973690925 | AM64: 0.001973690925 | AN64: 0 | AO64: 0 | AP64: 0 | AQ64: 0 | AR64: 0 | AS64: 0 | AT64: 0 | AU64: 0 | AV64: 0 | AW64: 0 | AX64: 0 | AY64: 0 | AZ64: 0 | BA64: 0 | BB64: 0 | BC64: 0 | BD64: 0 | BE64: 0 | BF64: 0 | BG64: 0 | BH64: 0
C65: Replacement Remaining Life | E65: Years | F65: =F41-F50 -> 30
C66: Replacement Depreciation Life | E66: Years | F66: =MIN(F65,F59) -> 30
C67: Annual Depreciation Rate - Base Plant | E67: % p.a. | H67: =F61 -> TRUE | J67: =IFERROR(VDB(1,0,$F$66,I62,J62,$F$60),0)*$H$67 -> 0.06666666667 | K67: =IFERROR(VDB(1,0,$F$66,J62,K62,$F$60),0)*$H$67 -> 0.06222222222 | L67: 0.05807407407 | M67: 0.05420246914 | N67: 0.05058897119 | O67: 0.04721637311 | P67: 0.04406861491 | Q67: 0.04113070725 | R67: 0.0383886601 | S67: 0.03582941609 | T67: 0.03344078835 | U67: 0.03121140246 | V67: 0.0291306423 | W67: 0.02718859948 | X67: 0.02537602618 | Y67: 0.0236842911 | Z67: 0.0236842911 | AA67: 0.0236842911 | AB67: 0.0236842911 | AC67: 0.0236842911 | AD67: 0.0236842911 | AE67: 0.0236842911 | AF67: 0.0236842911 | AG67: 0.0236842911 | AH67: 0.0236842911 | AI67: 0.0236842911 | AJ67: 0.0236842911 | AK67: 0.0236842911 | AL67: 0.0236842911 | AM67: 0.0236842911 | AN67: 0 | AO67: 0 | AP67: 0 | AQ67: 0 | AR67: 0 | AS67: 0 | AT67: 0 | AU67: 0 | AV67: 0 | AW67: 0 | AX67: 0 | AY67: 0 | AZ67: 0 | BA67: 0 | BB67: 0 | BC67: 0 | BD67: 0 | BE67: 0 | BF67: 0 | BG67: 0 | BH67: 0
C68: Periodic Depreciation - Base Plant | E68: % p.p. | F68: ='Solar Carrying Charge'!F64 -> 1 | J68: =J67/12*$F$68 -> 0.005555555556 | K68: =K67/12*$F$68 -> 0.005185185185 | L68: 0.004839506173 | M68: 0.004516872428 | N68: 0.004215747599 | O68: 0.003934697759 | P68: 0.003672384576 | Q68: 0.003427558937 | R68: 0.003199055008 | S68: 0.002985784674 | T68: 0.002786732363 | U68: 0.002600950205 | V68: 0.002427553525 | W68: 0.002265716623 | X68: 0.002114668848 | Y68: 0.001973690925 | Z68: 0.001973690925 | AA68: 0.001973690925 | AB68: 0.001973690925 | AC68: 0.001973690925 | AD68: 0.001973690925 | AE68: 0.001973690925 | AF68: 0.001973690925 | AG68: 0.001973690925 | AH68: 0.001973690925 | AI68: 0.001973690925 | AJ68: 0.001973690925 | AK68: 0.001973690925 | AL68: 0.001973690925 | AM68: 0.001973690925 | AN68: 0 | AO68: 0 | AP68: 0 | AQ68: 0 | AR68: 0 | AS68: 0 | AT68: 0 | AU68: 0 | AV68: 0 | AW68: 0 | AX68: 0 | AY68: 0 | AZ68: 0 | BA68: 0 | BB68: 0 | BC68: 0 | BD68: 0 | BE68: 0 | BF68: 0 | BG68: 0 | BH68: 0
A70: Construction Analyisis
B71: Normal on Construction Period | E71: % | F71: ='Solar Carrying Charge'!F36 -> 3 | G71: ='Solar Carrying Charge'!F38 -> 0.4285714286 | I71: =IFERROR(_xlfn.NORM.DIST(I3,$F$71,$G$71,0)*I4,0) -> 1.737410703e-05 | J71: =IFERROR(_xlfn.NORM.DIST(J3,$F$71,$G$71,0)*J4,0) -> 0.06118440789 | K71: 0.9308653209 | L71: 0.06118440789 | M71: 1.737410703e-05 | N71: 2.131434762e-11 | O71: 0 | P71: 0 | Q71: 0 | R71: 0 | S71: 0 | T71: 0 | U71: 0 | V71: 0 | W71: 0 | X71: 0 | Y71: 0 | Z71: 0 | AA71: 0 | AB71: 0 | AC71: 0 | AD71: 0 | AE71: 0 | AF71: 0 | AG71: 0 | AH71: 0 | AI71: 0 | AJ71: 0 | AK71: 0 | AL71: 0 | AM71: 0 | AN71: 0 | AO71: 0 | AP71: 0 | AQ71: 0 | AR71: 0 | AS71: 0 | AT71: 0 | AU71: 0 | AV71: 0 | AW71: 0 | AX71: 0 | AY71: 0 | AZ71: 0 | BA71: 0 | BB71: 0 | BC71: 0 | BD71: 0 | BE71: 0 | BF71: 0 | BG71: 0 | BH71: 0 | BI71: 0 | BJ71: 0 | BK71: 0 | BL71: 0 | BM71: 0 | BN71: 0 | BO71: 0 | BP71: 0 | BQ71: 0 | BR71: 0 | BS71: 0 | BT71: 0 | BU71: 0 | BV71: =IFERROR(_xlfn.NORM.DIST(BV3,$F$71,$G$71,0)*BV4,0) -> 0 | BW71: 0 | BX71: 0 | BY71: 0 | BZ71: 0 | CA71: 0 | CB71: 0 | CC71: 0 | CD71: 0 | CE71: 0 | CF71: 0 | CG71: 0 | CH71: 0 | CI71: 0 | CJ71: 0 | CK71: 0 | CL71: 0 | CM71: 0 | CN71: 0 | CO71: 0 | CP71: 0 | CQ71: 0 | CR71: 0 | CS71: 0 | CT71: 0 | CU71: 0 | CV71: 0 | CW71: 0 | CX71: 0 | CY71: 0 | CZ71: 0 | DA71: 0 | DB71: 0 | DC71: 0 | DD71: 0 | DE71: 0 | DF71: 0 | DG71: 0 | DH71: 0 | DI71: 0 | DJ71: 0 | DK71: 0 | DL71: 0 | DM71: 0 | DN71: 0 | DO71: 0 | DP71: 0 | DQ71: 0 | DR71: 0 | DS71: 0 | DT71: 0 | DU71: 0 | DV71: 0 | DW71: 0 | DX71: 0 | DY71: 0 | DZ71: 0 | EA71: 0 | EB71: 0 | EC71: 0 | ED71: 0 | EE71: 0 | EF71: 0 | EG71: 0 | EH71: =IFERROR(_xlfn.NORM.DIST(EH3,$F$71,$G$71,0)*EH4,0) -> 0 | EI71: 0 | EJ71: 0 | EK71: 0 | EL71: 0 | EM71: 0 | EN71: 0 | EO71: 0 | EP71: 0 | EQ71: 0 | ER71: 0 | ES71: 0 | ET71: 0 | EU71: 0 | EV71: 0 | EW71: 0 | EX71: 0 | EY71: 0 | EZ71: 0 | FA71: 0 | FB71: 0 | FC71: 0 | FD71: 0 | FE71: 0 | FF71: 0 | FG71: 0 | FH71: 0 | FI71: 0 | FJ71: 0 | FK71: 0 | FL71: 0 | FM71: 0 | FN71: 0 | FO71: 0 | FP71: 0 | FQ71: 0 | FR71: 0 | FS71: 0 | FT71: 0 | FU71: 0 | FV71: 0 | FW71: 0 | FX71: 0 | FY71: 0 | FZ71: 0 | GA71: 0 | GB71: 0 | GC71: 0 | GD71: 0 | GE71: 0 | GF71: 0 | GG71: 0 | GH71: 0 | GI71: 0 | GJ71: 0 | GK71: 0 | GL71: 0 | GM71: 0 | GN71: 0 | GO71: 0 | GP71: 0 | GQ71: 0 | GR71: 0 | GS71: 0 | GT71: =IFERROR(_xlfn.NORM.DIST(GT3,$F$71,$G$71,0)*GT4,0) -> 0 | GU71: 0 | GV71: 0 | GW71: 0 | GX71: 0 | GY71: 0 | GZ71: 0 | HA71: 0 | HB71: 0 | HC71: 0 | HD71: 0 | HE71: 0 | HF71: 0 | HG71: 0 | HH71: 0 | HI71: 0 | HJ71: 0 | HK71: 0 | HL71: 0 | HM71: 0 | HN71: 0 | HO71: 0 | HP71: 0 | HQ71: 0 | HR71: 0 | HS71: 0 | HT71: 0 | HU71: 0 | HV71: 0 | HW71: 0 | HX71: 0 | HY71: 0 | HZ71: 0 | IA71: 0 | IB71: 0 | IC71: 0 | ID71: 0 | IE71: 0 | IF71: 0 | IG71: 0 | IH71: 0 | II71: 0 | IJ71: 0 | IK71: 0 | IL71: 0 | IM71: 0 | IN71: 0 | IO71: 0 | IP71: 0 | IQ71: 0 | IR71: 0 | IS71: 0 | IT71: 0 | IU71: 0 | IV71: 0 | IW71: 0 | IX71: 0 | IY71: 0 | IZ71: 0 | JA71: 0 | JB71: 0 | JC71: 0 | JD71: 0 | JE71: 0 | JF71: =IFERROR(_xlfn.NORM.DIST(JF3,$F$71,$G$71,0)*JF4,0) -> 0 | JG71: 0 | JH71: 0 | JI71: 0 | JJ71: 0 | JK71: 0 | JL71: 0 | JM71: 0 | JN71: 0 | JO71: 0 | JP71: 0 | JQ71: 0 | JR71: 0 | JS71: 0 | JT71: 0 | JU71: 0 | JV71: 0 | JW71: 0 | JX71: 0 | JY71: 0 | JZ71: 0 | KA71: 0 | KB71: 0 | KC71: 0 | KD71: 0 | KE71: 0 | KF71: 0 | KG71: 0 | KH71: 0 | KI71: 0 | KJ71: 0 | KK71: 0 | KL71: 0 | KM71: 0 | KN71: 0 | KO71: 0 | KP71: 0 | KQ71: 0 | KR71: 0 | KS71: 0 | KT71: 0 | KU71: 0 | KV71: 0 | KW71: 0 | KX71: 0 | KY71: 0 | KZ71: 0 | LA71: 0 | LB71: 0 | LC71: 0 | LD71: 0 | LE71: 0 | LF71: 0 | LG71: 0 | LH71: 0 | LI71: 0 | LJ71: 0 | LK71: 0 | LL71: 0 | LM71: 0 | LN71: 0 | LO71: 0 | LP71: 0 | LQ71: 0 | LR71: =IFERROR(_xlfn.NORM.DIST(LR3,$F$71,$G$71,0)*LR4,0) -> 0 | LS71: 0 | LT71: 0 | LU71: 0 | LV71: 0 | LW71: 0 | LX71: 0 | LY71: 0 | LZ71: 0 | MA71: 0 | MB71: 0 | MC71: 0 | MD71: 0 | ME71: 0 | MF71: 0 | MG71: 0 | MH71: 0 | MI71: 0 | MJ71: 0 | MK71: 0 | ML71: 0 | MM71: 0 | MN71: 0 | MO71: 0 | MP71: 0 | MQ71: 0 | MR71: 0 | MS71: 0 | MT71: 0 | MU71: 0 | MV71: 0 | MW71: 0 | MX71: 0 | MY71: 0 | MZ71: 0 | NA71: 0 | NB71: 0 | NC71: 0 | ND71: 0 | NE71: 0 | NF71: 0 | NG71: 0 | NH71: 0 | NI71: 0 | NJ71: 0 | NK71: 0 | NL71: 0 | NM71: 0 | NN71: 0 | NO71: 0 | NP71: 0 | NQ71: 0 | NR71: 0 | NS71: 0 | NT71: 0 | NU71: 0 | NV71: 0 | NW71: 0 | NX71: 0 | NY71: 0 | NZ71: 0 | OA71: 0 | OB71: 0 | OC71: 0 | OD71: =IFERROR(_xlfn.NORM.DIST(OD3,$F$71,$G$71,0)*OD4,0) -> 0 | OE71: 0 | OF71: 0 | OG71: 0 | OH71: 0 | OI71: 0 | OJ71: 0 | OK71: 0 | OL71: 0 | OM71: 0 | ON71: 0 | OO71: 0 | OP71: 0 | OQ71: 0 | OR71: 0 | OS71: 0 | OT71: 0 | OU71: 0 | OV71: 0 | OW71: 0 | OX71: 0 | OY71: 0 | OZ71: 0 | PA71: 0 | PB71: 0 | PC71: 0 | PD71: 0 | PE71: 0 | PF71: 0 | PG71: 0 | PH71: 0 | PI71: 0 | PJ71: 0 | PK71: 0 | PL71: 0 | PM71: 0 | PN71: 0 | PO71: 0 | PP71: 0 | PQ71: 0 | PR71: 0 | PS71: 0 | PT71: 0 | PU71: 0 | PV71: 0 | PW71: 0 | PX71: 0 | PY71: 0 | PZ71: 0 | QA71: 0 | QB71: 0 | QC71: 0 | QD71: 0 | QE71: 0 | QF71: 0 | QG71: 0 | QH71: 0 | QI71: 0 | QJ71: 0 | QK71: 0 | QL71: 0 | QM71: 0 | QN71: 0 | QO71: 0 | QP71: =IFERROR(_xlfn.NORM.DIST(QP3,$F$71,$G$71,0)*QP4,0) -> 0 | QQ71: 0 | QR71: 0 | QS71: 0 | QT71: 0 | QU71: 0 | QV71: 0 | QW71: 0 | QX71: 0 | QY71: 0 | QZ71: 0 | RA71: 0 | RB71: 0 | RC71: 0 | RD71: 0 | RE71: 0 | RF71: 0 | RG71: 0 | RH71: 0 | RI71: 0 | RJ71: 0 | RK71: 0 | RL71: 0 | RM71: 0 | RN71: 0 | RO71: 0 | RP71: 0 | RQ71: 0 | RR71: 0 | RS71: 0 | RT71: 0 | RU71: 0 | RV71: 0 | RW71: 0 | RX71: 0 | RY71: 0 | RZ71: 0 | SA71: 0 | SB71: 0 | SC71: 0 | SD71: 0 | SE71: 0 | SF71: 0 | SG71: 0 | SH71: 0 | SI71: 0 | SJ71: 0 | SK71: 0 | SL71: 0 | SM71: 0 | SN71: 0 | SO71: 0 | SP71: 0 | SQ71: 0 | SR71: 0 | SS71: 0 | ST71: 0 | SU71: 0 | SV71: 0 | SW71: 0 | SX71: 0 | SY71: 0 | SZ71: 0 | TA71: 0 | TB71: =IFERROR(_xlfn.NORM.DIST(TB3,$F$71,$G$71,0)*TB4,0) -> 0 | TC71: 0 | TD71: 0 | TE71: 0 | TF71: 0 | TG71: 0 | TH71: 0 | TI71: 0 | TJ71: 0 | TK71: 0 | TL71: 0 | TM71: 0 | TN71: 0 | TO71: 0 | TP71: 0 | TQ71: 0 | TR71: 0 | TS71: 0 | TT71: 0 | TU71: 0 | TV71: 0 | TW71: 0 | TX71: 0 | TY71: 0 | TZ71: 0 | UA71: 0 | UB71: 0 | UC71: 0 | UD71: 0 | UE71: 0 | UF71: 0 | UG71: 0 | UH71: 0 | UI71: 0 | UJ71: 0 | UK71: 0 | UL71: 0 | UM71: 0 | UN71: 0 | UO71: 0 | UP71: 0 | UQ71: 0 | UR71: 0 | US71: 0 | UT71: 0 | UU71: 0 | UV71: 0 | UW71: 0 | UX71: 0 | UY71: 0 | UZ71: 0 | VA71: 0 | VB71: 0 | VC71: 0 | VD71: 0 | VE71: 0 | VF71: 0 | VG71: 0 | VH71: 0 | VI71: 0 | VJ71: 0 | VK71: 0 | VL71: 0 | VM71: 0 | VN71: =IFERROR(_xlfn.NORM.DIST(VN3,$F$71,$G$71,0)*VN4,0) -> 0 | VO71: 0 | VP71: 0 | VQ71: 0 | VR71: 0 | VS71: 0 | VT71: 0 | VU71: 0 | VV71: 0 | VW71: 0 | VX71: 0 | VY71: 0 | VZ71: 0 | WA71: 0 | WB71: 0 | WC71: 0 | WD71: 0 | WE71: 0 | WF71: 0 | WG71: 0 | WH71: 0 | WI71: 0 | WJ71: 0 | WK71: 0 | WL71: 0 | WM71: 0 | WN71: 0 | WO71: 0 | WP71: 0 | WQ71: 0 | WR71: 0 | WS71: 0 | WT71: 0 | WU71: 0 | WV71: 0 | WW71: 0 | WX71: 0 | WY71: 0 | WZ71: 0 | XA71: 0 | XB71: 0 | XC71: 0 | XD71: 0 | XE71: 0 | XF71: 0 | XG71: 0 | XH71: 0 | XI71: 0 | XJ71: 0 | XK71: 0 | XL71: 0 | XM71: 0 | XN71: 0 | XO71: 0 | XP71: 0 | XQ71: 0 | XR71: 0 | XS71: 0 | XT71: 0 | XU71: 0 | XV71: 0 | XW71: 0 | XX71: 0 | XY71: 0 | XZ71: =IFERROR(_xlfn.NORM.DIST(XZ3,$F$71,$G$71,0)*XZ4,0) -> 0 | YA71: 0 | YB71: 0 | YC71: 0 | YD71: 0 | YE71: 0 | YF71: 0 | YG71: 0 | YH71: 0 | YI71: 0 | YJ71: 0 | YK71: 0 | YL71: 0 | YM71: 0 | YN71: 0 | YO71: 0 | YP71: 0 | YQ71: 0 | YR71: 0 | YS71: 0 | YT71: 0 | YU71: 0 | YV71: 0 | YW71: 0 | YX71: 0 | YY71: 0 | YZ71: 0 | ZA71: 0 | ZB71: 0 | ZC71: 0 | ZD71: 0 | ZE71: 0 | ZF71: 0 | ZG71: 0 | ZH71: 0 | ZI71: 0 | ZJ71: 0 | ZK71: 0 | ZL71: 0 | ZM71: 0 | ZN71: 0 | ZO71: 0 | ZP71: 0 | ZQ71: 0 | ZR71: 0 | ZS71: 0 | ZT71: 0 | ZU71: 0 | ZV71: 0 | ZW71: 0 | ZX71: 0 | ZY71: 0 | ZZ71: 0 | AAA71: 0 | AAB71: 0 | AAC71: 0 | AAD71: 0 | AAE71: 0 | AAF71: 0 | AAG71: 0 | AAH71: 0 | AAI71: 0 | AAJ71: 0 | AAK71: 0 | AAL71: =IFERROR(_xlfn.NORM.DIST(AAL3,$F$71,$G$71,0)*AAL4,0) -> 0 | AAM71: 0 | AAN71: 0 | AAO71: 0 | AAP71: 0 | AAQ71: 0 | AAR71: 0 | AAS71: 0 | AAT71: 0 | AAU71: 0 | AAV71: 0 | AAW71: 0 | AAX71: 0 | AAY71: 0 | AAZ71: 0 | ABA71: 0 | ABB71: 0 | ABC71: 0 | ABD71: 0 | ABE71: 0 | ABF71: 0 | ABG71: 0 | ABH71: 0 | ABI71: 0 | ABJ71: 0 | ABK71: 0 | ABL71: 0 | ABM71: 0 | ABN71: 0 | ABO71: 0 | ABP71: 0 | ABQ71: 0 | ABR71: 0 | ABS71: 0 | ABT71: 0 | ABU71: 0 | ABV71: 0 | ABW71: 0 | ABX71: 0 | ABY71: 0 | ABZ71: 0 | ACA71: 0 | ACB71: 0 | ACC71: 0 | ACD71: 0 | ACE71: 0 | ACF71: 0 | ACG71: 0 | ACH71: 0 | ACI71: 0 | ACJ71: 0 | ACK71: 0 | ACL71: 0 | ACM71: 0 | ACN71: 0 | ACO71: 0 | ACP71: 0 | ACQ71: 0 | ACR71: 0 | ACS71: 0 | ACT71: 0 | ACU71: 0 | ACV71: 0 | ACW71: 0 | ACX71: =IFERROR(_xlfn.NORM.DIST(ACX3,$F$71,$G$71,0)*ACX4,0) -> 0 | ACY71: 0 | ACZ71: 0 | ADA71: 0 | ADB71: 0 | ADC71: 0 | ADD71: 0 | ADE71: 0 | ADF71: 0 | ADG71: 0 | ADH71: 0 | ADI71: 0 | ADJ71: 0 | ADK71: 0 | ADL71: 0 | ADM71: 0 | ADN71: 0 | ADO71: 0 | ADP71: 0 | ADQ71: 0 | ADR71: 0 | ADS71: 0 | ADT71: 0 | ADU71: 0 | ADV71: 0 | ADW71: 0 | ADX71: 0 | ADY71: 0 | ADZ71: 0 | AEA71: 0 | AEB71: 0 | AEC71: 0 | AED71: 0 | AEE71: 0 | AEF71: 0 | AEG71: 0 | AEH71: 0 | AEI71: 0 | AEJ71: 0 | AEK71: 0 | AEL71: 0 | AEM71: 0 | AEN71: 0 | AEO71: 0 | AEP71: 0 | AEQ71: 0 | AER71: 0 | AES71: 0 | AET71: 0 | AEU71: 0 | AEV71: 0 | AEW71: 0 | AEX71: 0 | AEY71: 0 | AEZ71: 0 | AFA71: 0 | AFB71: 0 | AFC71: 0 | AFD71: 0 | AFE71: 0 | AFF71: 0 | AFG71: 0 | AFH71: 0 | AFI71: 0 | AFJ71: =IFERROR(_xlfn.NORM.DIST(AFJ3,$F$71,$G$71,0)*AFJ4,0) -> 0 | AFK71: 0 | AFL71: 0 | AFM71: 0 | AFN71: 0 | AFO71: 0 | AFP71: 0 | AFQ71: 0 | AFR71: 0 | AFS71: 0 | AFT71: 0 | AFU71: 0 | AFV71: 0 | AFW71: 0 | AFX71: 0 | AFY71: 0 | AFZ71: 0 | AGA71: 0 | AGB71: 0 | AGC71: 0 | AGD71: 0 | AGE71: 0 | AGF71: 0 | AGG71: 0 | AGH71: 0 | AGI71: 0 | AGJ71: 0 | AGK71: 0
B72: S-Curve from Normalised | E72: % | F72: =SUM(I71:KV71) -> 1.053268885 | I72: =I71/$F$72 -> 1.649541468e-05 | J72: 0.05809001743 | K72: 0.8837869743 | L72: 0.05809001743 | M72: 1.649541468e-05 | N72: 2.023637831e-11 | O72: 0 | P72: 0 | Q72: 0 | R72: 0 | S72: 0 | T72: 0 | U72: 0 | V72: 0 | W72: 0 | X72: 0 | Y72: 0 | Z72: 0 | AA72: 0 | AB72: 0 | AC72: 0 | AD72: 0 | AE72: 0 | AF72: 0 | AG72: 0 | AH72: 0 | AI72: 0 | AJ72: 0 | AK72: 0 | AL72: 0 | AM72: 0 | AN72: 0 | AO72: 0 | AP72: 0 | AQ72: 0 | AR72: 0 | AS72: 0 | AT72: 0 | AU72: 0 | AV72: 0 | AW72: 0 | AX72: 0 | AY72: 0 | AZ72: 0 | BA72: 0 | BB72: 0 | BC72: 0 | BD72: 0 | BE72: 0 | BF72: 0 | BG72: 0 | BH72: 0 | BI72: 0 | BJ72: 0 | BK72: 0 | BL72: 0 | BM72: 0 | BN72: 0 | BO72: 0 | BP72: 0 | BQ72: 0 | BR72: 0 | BS72: 0 | BT72: 0 | BU72: =BU71/$F$72 -> 0 | BV72: 0 | BW72: 0 | BX72: 0 | BY72: 0 | BZ72: 0 | CA72: 0 | CB72: 0 | CC72: 0 | CD72: 0 | CE72: 0 | CF72: 0 | CG72: 0 | CH72: 0 | CI72: 0 | CJ72: 0 | CK72: 0 | CL72: 0 | CM72: 0 | CN72: 0 | CO72: 0 | CP72: 0 | CQ72: 0 | CR72: 0 | CS72: 0 | CT72: 0 | CU72: 0 | CV72: 0 | CW72: 0 | CX72: 0 | CY72: 0 | CZ72: 0 | DA72: 0 | DB72: 0 | DC72: 0 | DD72: 0 | DE72: 0 | DF72: 0 | DG72: 0 | DH72: 0 | DI72: 0 | DJ72: 0 | DK72: 0 | DL72: 0 | DM72: 0 | DN72: 0 | DO72: 0 | DP72: 0 | DQ72: 0 | DR72: 0 | DS72: 0 | DT72: 0 | DU72: 0 | DV72: 0 | DW72: 0 | DX72: 0 | DY72: 0 | DZ72: 0 | EA72: 0 | EB72: 0 | EC72: 0 | ED72: 0 | EE72: 0 | EF72: 0 | EG72: =EG71/$F$72 -> 0 | EH72: 0 | EI72: 0 | EJ72: 0 | EK72: 0 | EL72: 0 | EM72: 0 | EN72: 0 | EO72: 0 | EP72: 0 | EQ72: 0 | ER72: 0 | ES72: 0 | ET72: 0 | EU72: 0 | EV72: 0 | EW72: 0 | EX72: 0 | EY72: 0 | EZ72: 0 | FA72: 0 | FB72: 0 | FC72: 0 | FD72: 0 | FE72: 0 | FF72: 0 | FG72: 0 | FH72: 0 | FI72: 0 | FJ72: 0 | FK72: 0 | FL72: 0 | FM72: 0 | FN72: 0 | FO72: 0 | FP72: 0 | FQ72: 0 | FR72: 0 | FS72: 0 | FT72: 0 | FU72: 0 | FV72: 0 | FW72: 0 | FX72: 0 | FY72: 0 | FZ72: 0 | GA72: 0 | GB72: 0 | GC72: 0 | GD72: 0 | GE72: 0 | GF72: 0 | GG72: 0 | GH72: 0 | GI72: 0 | GJ72: 0 | GK72: 0 | GL72: 0 | GM72: 0 | GN72: 0 | GO72: 0 | GP72: 0 | GQ72: 0 | GR72: 0 | GS72: =GS71/$F$72 -> 0 | GT72: 0 | GU72: 0 | GV72: 0 | GW72: 0 | GX72: 0 | GY72: 0 | GZ72: 0 | HA72: 0 | HB72: 0 | HC72: 0 | HD72: 0 | HE72: 0 | HF72: 0 | HG72: 0 | HH72: 0 | HI72: 0 | HJ72: 0 | HK72: 0 | HL72: 0 | HM72: 0 | HN72: 0 | HO72: 0 | HP72: 0 | HQ72: 0 | HR72: 0 | HS72: 0 | HT72: 0 | HU72: 0 | HV72: 0 | HW72: 0 | HX72: 0 | HY72: 0 | HZ72: 0 | IA72: 0 | IB72: 0 | IC72: 0 | ID72: 0 | IE72: 0 | IF72: 0 | IG72: 0 | IH72: 0 | II72: 0 | IJ72: 0 | IK72: 0 | IL72: 0 | IM72: 0 | IN72: 0 | IO72: 0 | IP72: 0 | IQ72: 0 | IR72: 0 | IS72: 0 | IT72: 0 | IU72: 0 | IV72: 0 | IW72: 0 | IX72: 0 | IY72: 0 | IZ72: 0 | JA72: 0 | JB72: 0 | JC72: 0 | JD72: 0 | JE72: =JE71/$F$72 -> 0 | JF72: 0 | JG72: 0 | JH72: 0 | JI72: 0 | JJ72: 0 | JK72: 0 | JL72: 0 | JM72: 0 | JN72: 0 | JO72: 0 | JP72: 0 | JQ72: 0 | JR72: 0 | JS72: 0 | JT72: 0 | JU72: 0 | JV72: 0 | JW72: 0 | JX72: 0 | JY72: 0 | JZ72: 0 | KA72: 0 | KB72: 0 | KC72: 0 | KD72: 0 | KE72: 0 | KF72: 0 | KG72: 0 | KH72: 0 | KI72: 0 | KJ72: 0 | KK72: 0 | KL72: 0 | KM72: 0 | KN72: 0 | KO72: 0 | KP72: 0 | KQ72: 0 | KR72: 0 | KS72: 0 | KT72: 0 | KU72: 0 | KV72: 0 | KW72: 0 | KX72: 0 | KY72: 0 | KZ72: 0 | LA72: 0 | LB72: 0 | LC72: 0 | LD72: 0 | LE72: 0 | LF72: 0 | LG72: 0 | LH72: 0 | LI72: 0 | LJ72: 0 | LK72: 0 | LL72: 0 | LM72: 0 | LN72: 0 | LO72: 0 | LP72: 0 | LQ72: =LQ71/$F$72 -> 0 | LR72: 0 | LS72: 0 | LT72: 0 | LU72: 0 | LV72: 0 | LW72: 0 | LX72: 0 | LY72: 0 | LZ72: 0 | MA72: 0 | MB72: 0 | MC72: 0 | MD72: 0 | ME72: 0 | MF72: 0 | MG72: 0 | MH72: 0 | MI72: 0 | MJ72: 0 | MK72: 0 | ML72: 0 | MM72: 0 | MN72: 0 | MO72: 0 | MP72: 0 | MQ72: 0 | MR72: 0 | MS72: 0 | MT72: 0 | MU72: 0 | MV72: 0 | MW72: 0 | MX72: 0 | MY72: 0 | MZ72: 0 | NA72: 0 | NB72: 0 | NC72: 0 | ND72: 0 | NE72: 0 | NF72: 0 | NG72: 0 | NH72: 0 | NI72: 0 | NJ72: 0 | NK72: 0 | NL72: 0 | NM72: 0 | NN72: 0 | NO72: 0 | NP72: 0 | NQ72: 0 | NR72: 0 | NS72: 0 | NT72: 0 | NU72: 0 | NV72: 0 | NW72: 0 | NX72: 0 | NY72: 0 | NZ72: 0 | OA72: 0 | OB72: 0 | OC72: =OC71/$F$72 -> 0 | OD72: 0 | OE72: 0 | OF72: 0 | OG72: 0 | OH72: 0 | OI72: 0 | OJ72: 0 | OK72: 0 | OL72: 0 | OM72: 0 | ON72: 0 | OO72: 0 | OP72: 0 | OQ72: 0 | OR72: 0 | OS72: 0 | OT72: 0 | OU72: 0 | OV72: 0 | OW72: 0 | OX72: 0 | OY72: 0 | OZ72: 0 | PA72: 0 | PB72: 0 | PC72: 0 | PD72: 0 | PE72: 0 | PF72: 0 | PG72: 0 | PH72: 0 | PI72: 0 | PJ72: 0 | PK72: 0 | PL72: 0 | PM72: 0 | PN72: 0 | PO72: 0 | PP72: 0 | PQ72: 0 | PR72: 0 | PS72: 0 | PT72: 0 | PU72: 0 | PV72: 0 | PW72: 0 | PX72: 0 | PY72: 0 | PZ72: 0 | QA72: 0 | QB72: 0 | QC72: 0 | QD72: 0 | QE72: 0 | QF72: 0 | QG72: 0 | QH72: 0 | QI72: 0 | QJ72: 0 | QK72: 0 | QL72: 0 | QM72: 0 | QN72: 0 | QO72: =QO71/$F$72 -> 0 | QP72: 0 | QQ72: 0 | QR72: 0 | QS72: 0 | QT72: 0 | QU72: 0 | QV72: 0 | QW72: 0 | QX72: 0 | QY72: 0 | QZ72: 0 | RA72: 0 | RB72: 0 | RC72: 0 | RD72: 0 | RE72: 0 | RF72: 0 | RG72: 0 | RH72: 0 | RI72: 0 | RJ72: 0 | RK72: 0 | RL72: 0 | RM72: 0 | RN72: 0 | RO72: 0 | RP72: 0 | RQ72: 0 | RR72: 0 | RS72: 0 | RT72: 0 | RU72: 0 | RV72: 0 | RW72: 0 | RX72: 0 | RY72: 0 | RZ72: 0 | SA72: 0 | SB72: 0 | SC72: 0 | SD72: 0 | SE72: 0 | SF72: 0 | SG72: 0 | SH72: 0 | SI72: 0 | SJ72: 0 | SK72: 0 | SL72: 0 | SM72: 0 | SN72: 0 | SO72: 0 | SP72: 0 | SQ72: 0 | SR72: 0 | SS72: 0 | ST72: 0 | SU72: 0 | SV72: 0 | SW72: 0 | SX72: 0 | SY72: 0 | SZ72: 0 | TA72: =TA71/$F$72 -> 0 | TB72: 0 | TC72: 0 | TD72: 0 | TE72: 0 | TF72: 0 | TG72: 0 | TH72: 0 | TI72: 0 | TJ72: 0 | TK72: 0 | TL72: 0 | TM72: 0 | TN72: 0 | TO72: 0 | TP72: 0 | TQ72: 0 | TR72: 0 | TS72: 0 | TT72: 0 | TU72: 0 | TV72: 0 | TW72: 0 | TX72: 0 | TY72: 0 | TZ72: 0 | UA72: 0 | UB72: 0 | UC72: 0 | UD72: 0 | UE72: 0 | UF72: 0 | UG72: 0 | UH72: 0 | UI72: 0 | UJ72: 0 | UK72: 0 | UL72: 0 | UM72: 0 | UN72: 0 | UO72: 0 | UP72: 0 | UQ72: 0 | UR72: 0 | US72: 0 | UT72: 0 | UU72: 0 | UV72: 0 | UW72: 0 | UX72: 0 | UY72: 0 | UZ72: 0 | VA72: 0 | VB72: 0 | VC72: 0 | VD72: 0 | VE72: 0 | VF72: 0 | VG72: 0 | VH72: 0 | VI72: 0 | VJ72: 0 | VK72: 0 | VL72: 0 | VM72: =VM71/$F$72 -> 0 | VN72: 0 | VO72: 0 | VP72: 0 | VQ72: 0 | VR72: 0 | VS72: 0 | VT72: 0 | VU72: 0 | VV72: 0 | VW72: 0 | VX72: 0 | VY72: 0 | VZ72: 0 | WA72: 0 | WB72: 0 | WC72: 0 | WD72: 0 | WE72: 0 | WF72: 0 | WG72: 0 | WH72: 0 | WI72: 0 | WJ72: 0 | WK72: 0 | WL72: 0 | WM72: 0 | WN72: 0 | WO72: 0 | WP72: 0 | WQ72: 0 | WR72: 0 | WS72: 0 | WT72: 0 | WU72: 0 | WV72: 0 | WW72: 0 | WX72: 0 | WY72: 0 | WZ72: 0 | XA72: 0 | XB72: 0 | XC72: 0 | XD72: 0 | XE72: 0 | XF72: 0 | XG72: 0 | XH72: 0 | XI72: 0 | XJ72: 0 | XK72: 0 | XL72: 0 | XM72: 0 | XN72: 0 | XO72: 0 | XP72: 0 | XQ72: 0 | XR72: 0 | XS72: 0 | XT72: 0 | XU72: 0 | XV72: 0 | XW72: 0 | XX72: 0 | XY72: =XY71/$F$72 -> 0 | XZ72: 0 | YA72: 0 | YB72: 0 | YC72: 0 | YD72: 0 | YE72: 0 | YF72: 0 | YG72: 0 | YH72: 0 | YI72: 0 | YJ72: 0 | YK72: 0 | YL72: 0 | YM72: 0 | YN72: 0 | YO72: 0 | YP72: 0 | YQ72: 0 | YR72: 0 | YS72: 0 | YT72: 0 | YU72: 0 | YV72: 0 | YW72: 0 | YX72: 0 | YY72: 0 | YZ72: 0 | ZA72: 0 | ZB72: 0 | ZC72: 0 | ZD72: 0 | ZE72: 0 | ZF72: 0 | ZG72: 0 | ZH72: 0 | ZI72: 0 | ZJ72: 0 | ZK72: 0 | ZL72: 0 | ZM72: 0 | ZN72: 0 | ZO72: 0 | ZP72: 0 | ZQ72: 0 | ZR72: 0 | ZS72: 0 | ZT72: 0 | ZU72: 0 | ZV72: 0 | ZW72: 0 | ZX72: 0 | ZY72: 0 | ZZ72: 0 | AAA72: 0 | AAB72: 0 | AAC72: 0 | AAD72: 0 | AAE72: 0 | AAF72: 0 | AAG72: 0 | AAH72: 0 | AAI72: 0 | AAJ72: 0 | AAK72: =AAK71/$F$72 -> 0 | AAL72: 0 | AAM72: 0 | AAN72: 0 | AAO72: 0 | AAP72: 0 | AAQ72: 0 | AAR72: 0 | AAS72: 0 | AAT72: 0 | AAU72: 0 | AAV72: 0 | AAW72: 0 | AAX72: 0 | AAY72: 0 | AAZ72: 0 | ABA72: 0 | ABB72: 0 | ABC72: 0 | ABD72: 0 | ABE72: 0 | ABF72: 0 | ABG72: 0 | ABH72: 0 | ABI72: 0 | ABJ72: 0 | ABK72: 0 | ABL72: 0 | ABM72: 0 | ABN72: 0 | ABO72: 0 | ABP72: 0 | ABQ72: 0 | ABR72: 0 | ABS72: 0 | ABT72: 0 | ABU72: 0 | ABV72: 0 | ABW72: 0 | ABX72: 0 | ABY72: 0 | ABZ72: 0 | ACA72: 0 | ACB72: 0 | ACC72: 0 | ACD72: 0 | ACE72: 0 | ACF72: 0 | ACG72: 0 | ACH72: 0 | ACI72: 0 | ACJ72: 0 | ACK72: 0 | ACL72: 0 | ACM72: 0 | ACN72: 0 | ACO72: 0 | ACP72: 0 | ACQ72: 0 | ACR72: 0 | ACS72: 0 | ACT72: 0 | ACU72: 0 | ACV72: 0 | ACW72: =ACW71/$F$72 -> 0 | ACX72: 0 | ACY72: 0 | ACZ72: 0 | ADA72: 0 | ADB72: 0 | ADC72: 0 | ADD72: 0 | ADE72: 0 | ADF72: 0 | ADG72: 0 | ADH72: 0 | ADI72: 0 | ADJ72: 0 | ADK72: 0 | ADL72: 0 | ADM72: 0 | ADN72: 0 | ADO72: 0 | ADP72: 0 | ADQ72: 0 | ADR72: 0 | ADS72: 0 | ADT72: 0 | ADU72: 0 | ADV72: 0 | ADW72: 0 | ADX72: 0 | ADY72: 0 | ADZ72: 0 | AEA72: 0 | AEB72: 0 | AEC72: 0 | AED72: 0 | AEE72: 0 | AEF72: 0 | AEG72: 0 | AEH72: 0 | AEI72: 0 | AEJ72: 0 | AEK72: 0 | AEL72: 0 | AEM72: 0 | AEN72: 0 | AEO72: 0 | AEP72: 0 | AEQ72: 0 | AER72: 0 | AES72: 0 | AET72: 0 | AEU72: 0 | AEV72: 0 | AEW72: 0 | AEX72: 0 | AEY72: 0 | AEZ72: 0 | AFA72: 0 | AFB72: 0 | AFC72: 0 | AFD72: 0 | AFE72: 0 | AFF72: 0 | AFG72: 0 | AFH72: 0 | AFI72: =AFI71/$F$72 -> 0 | AFJ72: 0 | AFK72: 0 | AFL72: 0 | AFM72: 0 | AFN72: 0 | AFO72: 0 | AFP72: 0 | AFQ72: 0 | AFR72: 0 | AFS72: 0 | AFT72: 0 | AFU72: 0 | AFV72: 0 | AFW72: 0 | AFX72: 0 | AFY72: 0 | AFZ72: 0 | AGA72: 0 | AGB72: 0 | AGC72: 0 | AGD72: 0 | AGE72: 0 | AGF72: 0 | AGG72: 0 | AGH72: 0 | AGI72: 0 | AGJ72: 0 | AGK72: 0
B74: Inflation Rate | E74: % | F74: ='Solar Carrying Charge'!F21 -> 0.001641351442 | G74: ='Solar Carrying Charge'!F22 -> 0.001641351442 | I74: =IF(I4,$F$74,$G$74) -> 0.001641351442 | J74: 0.001641351442 | K74: 0.001641351442 | L74: 0.001641351442 | M74: 0.001641351442 | N74: 0.001641351442 | O74: 0.001641351442 | P74: 0.001641351442 | Q74: 0.001641351442 | R74: 0.001641351442 | S74: 0.001641351442 | T74: 0.001641351442 | U74: 0.001641351442 | V74: 0.001641351442 | W74: 0.001641351442 | X74: 0.001641351442 | Y74: 0.001641351442 | Z74: 0.001641351442 | AA74: 0.001641351442 | AB74: 0.001641351442 | AC74: 0.001641351442 | AD74: 0.001641351442 | AE74: 0.001641351442 | AF74: 0.001641351442 | AG74: 0.001641351442 | AH74: 0.001641351442 | AI74: 0.001641351442 | AJ74: 0.001641351442 | AK74: 0.001641351442 | AL74: 0.001641351442 | AM74: 0.001641351442 | AN74: 0.001641351442 | AO74: 0.001641351442 | AP74: 0.001641351442 | AQ74: 0.001641351442 | AR74: 0.001641351442 | AS74: 0.001641351442 | AT74: 0.001641351442 | AU74: 0.001641351442 | AV74: 0.001641351442 | AW74: 0.001641351442 | AX74: 0.001641351442 | AY74: 0.001641351442 | AZ74: 0.001641351442 | BA74: 0.001641351442 | BB74: 0.001641351442 | BC74: 0.001641351442 | BD74: 0.001641351442 | BE74: 0.001641351442 | BF74: 0.001641351442 | BG74: 0.001641351442 | BH74: 0.001641351442 | BI74: 0.001641351442 | BJ74: 0.001641351442 | BK74: 0.001641351442 | BL74: 0.001641351442 | BM74: 0.001641351442 | BN74: 0.001641351442 | BO74: 0.001641351442 | BP74: 0.001641351442 | BQ74: 0.001641351442 | BR74: 0.001641351442 | BS74: 0.001641351442 | BT74: 0.001641351442 | BU74: =IF(BU4,$F$74,$G$74) -> 0.001641351442 | BV74: 0.001641351442 | BW74: 0.001641351442 | BX74: 0.001641351442 | BY74: 0.001641351442 | BZ74: 0.001641351442 | CA74: 0.001641351442 | CB74: 0.001641351442 | CC74: 0.001641351442 | CD74: 0.001641351442 | CE74: 0.001641351442 | CF74: 0.001641351442 | CG74: 0.001641351442 | CH74: 0.001641351442 | CI74: 0.001641351442 | CJ74: 0.001641351442 | CK74: 0.001641351442 | CL74: 0.001641351442 | CM74: 0.001641351442 | CN74: 0.001641351442 | CO74: 0.001641351442 | CP74: 0.001641351442 | CQ74: 0.001641351442 | CR74: 0.001641351442 | CS74: 0.001641351442 | CT74: 0.001641351442 | CU74: 0.001641351442 | CV74: 0.001641351442 | CW74: 0.001641351442 | CX74: 0.001641351442 | CY74: 0.001641351442 | CZ74: 0.001641351442 | DA74: 0.001641351442 | DB74: 0.001641351442 | DC74: 0.001641351442 | DD74: 0.001641351442 | DE74: 0.001641351442 | DF74: 0.001641351442 | DG74: 0.001641351442 | DH74: 0.001641351442 | DI74: 0.001641351442 | DJ74: 0.001641351442 | DK74: 0.001641351442 | DL74: 0.001641351442 | DM74: 0.001641351442 | DN74: 0.001641351442 | DO74: 0.001641351442 | DP74: 0.001641351442 | DQ74: 0.001641351442 | DR74: 0.001641351442 | DS74: 0.001641351442 | DT74: 0.001641351442 | DU74: 0.001641351442 | DV74: 0.001641351442 | DW74: 0.001641351442 | DX74: 0.001641351442 | DY74: 0.001641351442 | DZ74: 0.001641351442 | EA74: 0.001641351442 | EB74: 0.001641351442 | EC74: 0.001641351442 | ED74: 0.001641351442 | EE74: 0.001641351442 | EF74: 0.001641351442 | EG74: =IF(EG4,$F$74,$G$74) -> 0.001641351442 | EH74: 0.001641351442 | EI74: 0.001641351442 | EJ74: 0.001641351442 | EK74: 0.001641351442 | EL74: 0.001641351442 | EM74: 0.001641351442 | EN74: 0.001641351442 | EO74: 0.001641351442 | EP74: 0.001641351442 | EQ74: 0.001641351442 | ER74: 0.001641351442 | ES74: 0.001641351442 | ET74: 0.001641351442 | EU74: 0.001641351442 | EV74: 0.001641351442 | EW74: 0.001641351442 | EX74: 0.001641351442 | EY74: 0.001641351442 | EZ74: 0.001641351442 | FA74: 0.001641351442 | FB74: 0.001641351442 | FC74: 0.001641351442 | FD74: 0.001641351442 | FE74: 0.001641351442 | FF74: 0.001641351442 | FG74: 0.001641351442 | FH74: 0.001641351442 | FI74: 0.001641351442 | FJ74: 0.001641351442 | FK74: 0.001641351442 | FL74: 0.001641351442 | FM74: 0.001641351442 | FN74: 0.001641351442 | FO74: 0.001641351442 | FP74: 0.001641351442 | FQ74: 0.001641351442 | FR74: 0.001641351442 | FS74: 0.001641351442 | FT74: 0.001641351442 | FU74: 0.001641351442 | FV74: 0.001641351442 | FW74: 0.001641351442 | FX74: 0.001641351442 | FY74: 0.001641351442 | FZ74: 0.001641351442 | GA74: 0.001641351442 | GB74: 0.001641351442 | GC74: 0.001641351442 | GD74: 0.001641351442 | GE74: 0.001641351442 | GF74: 0.001641351442 | GG74: 0.001641351442 | GH74: 0.001641351442 | GI74: 0.001641351442 | GJ74: 0.001641351442 | GK74: 0.001641351442 | GL74: 0.001641351442 | GM74: 0.001641351442 | GN74: 0.001641351442 | GO74: 0.001641351442 | GP74: 0.001641351442 | GQ74: 0.001641351442 | GR74: 0.001641351442 | GS74: =IF(GS4,$F$74,$G$74) -> 0.001641351442 | GT74: 0.001641351442 | GU74: 0.001641351442 | GV74: 0.001641351442 | GW74: 0.001641351442 | GX74: 0.001641351442 | GY74: 0.001641351442 | GZ74: 0.001641351442 | HA74: 0.001641351442 | HB74: 0.001641351442 | HC74: 0.001641351442 | HD74: 0.001641351442 | HE74: 0.001641351442 | HF74: 0.001641351442 | HG74: 0.001641351442 | HH74: 0.001641351442 | HI74: 0.001641351442 | HJ74: 0.001641351442 | HK74: 0.001641351442 | HL74: 0.001641351442 | HM74: 0.001641351442 | HN74: 0.001641351442 | HO74: 0.001641351442 | HP74: 0.001641351442 | HQ74: 0.001641351442 | HR74: 0.001641351442 | HS74: 0.001641351442 | HT74: 0.001641351442 | HU74: 0.001641351442 | HV74: 0.001641351442 | HW74: 0.001641351442 | HX74: 0.001641351442 | HY74: 0.001641351442 | HZ74: 0.001641351442 | IA74: 0.001641351442 | IB74: 0.001641351442 | IC74: 0.001641351442 | ID74: 0.001641351442 | IE74: 0.001641351442 | IF74: 0.001641351442 | IG74: 0.001641351442 | IH74: 0.001641351442 | II74: 0.001641351442 | IJ74: 0.001641351442 | IK74: 0.001641351442 | IL74: 0.001641351442 | IM74: 0.001641351442 | IN74: 0.001641351442 | IO74: 0.001641351442 | IP74: 0.001641351442 | IQ74: 0.001641351442 | IR74: 0.001641351442 | IS74: 0.001641351442 | IT74: 0.001641351442 | IU74: 0.001641351442 | IV74: 0.001641351442 | IW74: 0.001641351442 | IX74: 0.001641351442 | IY74: 0.001641351442 | IZ74: 0.001641351442 | JA74: 0.001641351442 | JB74: 0.001641351442 | JC74: 0.001641351442 | JD74: 0.001641351442 | JE74: =IF(JE4,$F$74,$G$74) -> 0.001641351442 | JF74: 0.001641351442 | JG74: 0.001641351442 | JH74: 0.001641351442 | JI74: 0.001641351442 | JJ74: 0.001641351442 | JK74: 0.001641351442 | JL74: 0.001641351442 | JM74: 0.001641351442 | JN74: 0.001641351442 | JO74: 0.001641351442 | JP74: 0.001641351442 | JQ74: 0.001641351442 | JR74: 0.001641351442 | JS74: 0.001641351442 | JT74: 0.001641351442 | JU74: 0.001641351442 | JV74: 0.001641351442 | JW74: 0.001641351442 | JX74: 0.001641351442 | JY74: 0.001641351442 | JZ74: 0.001641351442 | KA74: 0.001641351442 | KB74: 0.001641351442 | KC74: 0.001641351442 | KD74: 0.001641351442 | KE74: 0.001641351442 | KF74: 0.001641351442 | KG74: 0.001641351442 | KH74: 0.001641351442 | KI74: 0.001641351442 | KJ74: 0.001641351442 | KK74: 0.001641351442 | KL74: 0.001641351442 | KM74: 0.001641351442 | KN74: 0.001641351442 | KO74: 0.001641351442 | KP74: 0.001641351442 | KQ74: 0.001641351442 | KR74: 0.001641351442 | KS74: 0.001641351442 | KT74: 0.001641351442 | KU74: 0.001641351442 | KV74: 0.001641351442 | KW74: 0.001641351442 | KX74: 0.001641351442 | KY74: 0.001641351442 | KZ74: 0.001641351442 | LA74: 0.001641351442 | LB74: 0.001641351442 | LC74: 0.001641351442 | LD74: 0.001641351442 | LE74: 0.001641351442 | LF74: 0.001641351442 | LG74: 0.001641351442 | LH74: 0.001641351442 | LI74: 0.001641351442 | LJ74: 0.001641351442 | LK74: 0.001641351442 | LL74: 0.001641351442 | LM74: 0.001641351442 | LN74: 0.001641351442 | LO74: 0.001641351442 | LP74: 0.001641351442 | LQ74: =IF(LQ4,$F$74,$G$74) -> 0.001641351442 | LR74: 0.001641351442 | LS74: 0.001641351442 | LT74: 0.001641351442 | LU74: 0.001641351442 | LV74: 0.001641351442 | LW74: 0.001641351442 | LX74: 0.001641351442 | LY74: 0.001641351442 | LZ74: 0.001641351442 | MA74: 0.001641351442 | MB74: 0.001641351442 | MC74: 0.001641351442 | MD74: 0.001641351442 | ME74: 0.001641351442 | MF74: 0.001641351442 | MG74: 0.001641351442 | MH74: 0.001641351442 | MI74: 0.001641351442 | MJ74: 0.001641351442 | MK74: 0.001641351442 | ML74: 0.001641351442 | MM74: 0.001641351442 | MN74: 0.001641351442 | MO74: 0.001641351442 | MP74: 0.001641351442 | MQ74: 0.001641351442 | MR74: 0.001641351442 | MS74: 0.001641351442 | MT74: 0.001641351442 | MU74: 0.001641351442 | MV74: 0.001641351442 | MW74: 0.001641351442 | MX74: 0.001641351442 | MY74: 0.001641351442 | MZ74: 0.001641351442 | NA74: 0.001641351442 | NB74: 0.001641351442 | NC74: 0.001641351442 | ND74: 0.001641351442 | NE74: 0.001641351442 | NF74: 0.001641351442 | NG74: 0.001641351442 | NH74: 0.001641351442 | NI74: 0.001641351442 | NJ74: 0.001641351442 | NK74: 0.001641351442 | NL74: 0.001641351442 | NM74: 0.001641351442 | NN74: 0.001641351442 | NO74: 0.001641351442 | NP74: 0.001641351442 | NQ74: 0.001641351442 | NR74: 0.001641351442 | NS74: 0.001641351442 | NT74: 0.001641351442 | NU74: 0.001641351442 | NV74: 0.001641351442 | NW74: 0.001641351442 | NX74: 0.001641351442 | NY74: 0.001641351442 | NZ74: 0.001641351442 | OA74: 0.001641351442 | OB74: 0.001641351442 | OC74: =IF(OC4,$F$74,$G$74) -> 0.001641351442 | OD74: 0.001641351442 | OE74: 0.001641351442 | OF74: 0.001641351442 | OG74: 0.001641351442 | OH74: 0.001641351442 | OI74: 0.001641351442 | OJ74: 0.001641351442 | OK74: 0.001641351442 | OL74: 0.001641351442 | OM74: 0.001641351442 | ON74: 0.001641351442 | OO74: 0.001641351442 | OP74: 0.001641351442 | OQ74: 0.001641351442 | OR74: 0.001641351442 | OS74: 0.001641351442 | OT74: 0.001641351442 | OU74: 0.001641351442 | OV74: 0.001641351442 | OW74: 0.001641351442 | OX74: 0.001641351442 | OY74: 0.001641351442 | OZ74: 0.001641351442 | PA74: 0.001641351442 | PB74: 0.001641351442 | PC74: 0.001641351442 | PD74: 0.001641351442 | PE74: 0.001641351442 | PF74: 0.001641351442 | PG74: 0.001641351442 | PH74: 0.001641351442 | PI74: 0.001641351442 | PJ74: 0.001641351442 | PK74: 0.001641351442 | PL74: 0.001641351442 | PM74: 0.001641351442 | PN74: 0.001641351442 | PO74: 0.001641351442 | PP74: 0.001641351442 | PQ74: 0.001641351442 | PR74: 0.001641351442 | PS74: 0.001641351442 | PT74: 0.001641351442 | PU74: 0.001641351442 | PV74: 0.001641351442 | PW74: 0.001641351442 | PX74: 0.001641351442 | PY74: 0.001641351442 | PZ74: 0.001641351442 | QA74: 0.001641351442 | QB74: 0.001641351442 | QC74: 0.001641351442 | QD74: 0.001641351442 | QE74: 0.001641351442 | QF74: 0.001641351442 | QG74: 0.001641351442 | QH74: 0.001641351442 | QI74: 0.001641351442 | QJ74: 0.001641351442 | QK74: 0.001641351442 | QL74: 0.001641351442 | QM74: 0.001641351442 | QN74: 0.001641351442 | QO74: =IF(QO4,$F$74,$G$74) -> 0.001641351442 | QP74: 0.001641351442 | QQ74: 0.001641351442 | QR74: 0.001641351442 | QS74: 0.001641351442 | QT74: 0.001641351442 | QU74: 0.001641351442 | QV74: 0.001641351442 | QW74: 0.001641351442 | QX74: 0.001641351442 | QY74: 0.001641351442 | QZ74: 0.001641351442 | RA74: 0.001641351442 | RB74: 0.001641351442 | RC74: 0.001641351442 | RD74: 0.001641351442 | RE74: 0.001641351442 | RF74: 0.001641351442 | RG74: 0.001641351442 | RH74: 0.001641351442 | RI74: 0.001641351442 | RJ74: 0.001641351442 | RK74: 0.001641351442 | RL74: 0.001641351442 | RM74: 0.001641351442 | RN74: 0.001641351442 | RO74: 0.001641351442 | RP74: 0.001641351442 | RQ74: 0.001641351442 | RR74: 0.001641351442 | RS74: 0.001641351442 | RT74: 0.001641351442 | RU74: 0.001641351442 | RV74: 0.001641351442 | RW74: 0.001641351442 | RX74: 0.001641351442 | RY74: 0.001641351442 | RZ74: 0.001641351442 | SA74: 0.001641351442 | SB74: 0.001641351442 | SC74: 0.001641351442 | SD74: 0.001641351442 | SE74: 0.001641351442 | SF74: 0.001641351442 | SG74: 0.001641351442 | SH74: 0.001641351442 | SI74: 0.001641351442 | SJ74: 0.001641351442 | SK74: 0.001641351442 | SL74: 0.001641351442 | SM74: 0.001641351442 | SN74: 0.001641351442 | SO74: 0.001641351442 | SP74: 0.001641351442 | SQ74: 0.001641351442 | SR74: 0.001641351442 | SS74: 0.001641351442 | ST74: 0.001641351442 | SU74: 0.001641351442 | SV74: 0.001641351442 | SW74: 0.001641351442 | SX74: 0.001641351442 | SY74: 0.001641351442 | SZ74: 0.001641351442 | TA74: =IF(TA4,$F$74,$G$74) -> 0.001641351442 | TB74: 0.001641351442 | TC74: 0.001641351442 | TD74: 0.001641351442 | TE74: 0.001641351442 | TF74: 0.001641351442 | TG74: 0.001641351442 | TH74: 0.001641351442 | TI74: 0.001641351442 | TJ74: 0.001641351442 | TK74: 0.001641351442 | TL74: 0.001641351442 | TM74: 0.001641351442 | TN74: 0.001641351442 | TO74: 0.001641351442 | TP74: 0.001641351442 | TQ74: 0.001641351442 | TR74: 0.001641351442 | TS74: 0.001641351442 | TT74: 0.001641351442 | TU74: 0.001641351442 | TV74: 0.001641351442 | TW74: 0.001641351442 | TX74: 0.001641351442 | TY74: 0.001641351442 | TZ74: 0.001641351442 | UA74: 0.001641351442 | UB74: 0.001641351442 | UC74: 0.001641351442 | UD74: 0.001641351442 | UE74: 0.001641351442 | UF74: 0.001641351442 | UG74: 0.001641351442 | UH74: 0.001641351442 | UI74: 0.001641351442 | UJ74: 0.001641351442 | UK74: 0.001641351442 | UL74: 0.001641351442 | UM74: 0.001641351442 | UN74: 0.001641351442 | UO74: 0.001641351442 | UP74: 0.001641351442 | UQ74: 0.001641351442 | UR74: 0.001641351442 | US74: 0.001641351442 | UT74: 0.001641351442 | UU74: 0.001641351442 | UV74: 0.001641351442 | UW74: 0.001641351442 | UX74: 0.001641351442 | UY74: 0.001641351442 | UZ74: 0.001641351442 | VA74: 0.001641351442 | VB74: 0.001641351442 | VC74: 0.001641351442 | VD74: 0.001641351442 | VE74: 0.001641351442 | VF74: 0.001641351442 | VG74: 0.001641351442 | VH74: 0.001641351442 | VI74: 0.001641351442 | VJ74: 0.001641351442 | VK74: 0.001641351442 | VL74: 0.001641351442 | VM74: =IF(VM4,$F$74,$G$74) -> 0.001641351442 | VN74: 0.001641351442 | VO74: 0.001641351442 | VP74: 0.001641351442 | VQ74: 0.001641351442 | VR74: 0.001641351442 | VS74: 0.001641351442 | VT74: 0.001641351442 | VU74: 0.001641351442 | VV74: 0.001641351442 | VW74: 0.001641351442 | VX74: 0.001641351442 | VY74: 0.001641351442 | VZ74: 0.001641351442 | WA74: 0.001641351442 | WB74: 0.001641351442 | WC74: 0.001641351442 | WD74: 0.001641351442 | WE74: 0.001641351442 | WF74: 0.001641351442 | WG74: 0.001641351442 | WH74: 0.001641351442 | WI74: 0.001641351442 | WJ74: 0.001641351442 | WK74: 0.001641351442 | WL74: 0.001641351442 | WM74: 0.001641351442 | WN74: 0.001641351442 | WO74: 0.001641351442 | WP74: 0.001641351442 | WQ74: 0.001641351442 | WR74: 0.001641351442 | WS74: 0.001641351442 | WT74: 0.001641351442 | WU74: 0.001641351442 | WV74: 0.001641351442 | WW74: 0.001641351442 | WX74: 0.001641351442 | WY74: 0.001641351442 | WZ74: 0.001641351442 | XA74: 0.001641351442 | XB74: 0.001641351442 | XC74: 0.001641351442 | XD74: 0.001641351442 | XE74: 0.001641351442 | XF74: 0.001641351442 | XG74: 0.001641351442 | XH74: 0.001641351442 | XI74: 0.001641351442 | XJ74: 0.001641351442 | XK74: 0.001641351442 | XL74: 0.001641351442 | XM74: 0.001641351442 | XN74: 0.001641351442 | XO74: 0.001641351442 | XP74: 0.001641351442 | XQ74: 0.001641351442 | XR74: 0.001641351442 | XS74: 0.001641351442 | XT74: 0.001641351442 | XU74: 0.001641351442 | XV74: 0.001641351442 | XW74: 0.001641351442 | XX74: 0.001641351442 | XY74: =IF(XY4,$F$74,$G$74) -> 0.001641351442 | XZ74: 0.001641351442 | YA74: 0.001641351442 | YB74: 0.001641351442 | YC74: 0.001641351442 | YD74: 0.001641351442 | YE74: 0.001641351442 | YF74: 0.001641351442 | YG74: 0.001641351442 | YH74: 0.001641351442 | YI74: 0.001641351442 | YJ74: 0.001641351442 | YK74: 0.001641351442 | YL74: 0.001641351442 | YM74: 0.001641351442 | YN74: 0.001641351442 | YO74: 0.001641351442 | YP74: 0.001641351442 | YQ74: 0.001641351442 | YR74: 0.001641351442 | YS74: 0.001641351442 | YT74: 0.001641351442 | YU74: 0.001641351442 | YV74: 0.001641351442 | YW74: 0.001641351442 | YX74: 0.001641351442 | YY74: 0.001641351442 | YZ74: 0.001641351442 | ZA74: 0.001641351442 | ZB74: 0.001641351442 | ZC74: 0.001641351442 | ZD74: 0.001641351442 | ZE74: 0.001641351442 | ZF74: 0.001641351442 | ZG74: 0.001641351442 | ZH74: 0.001641351442 | ZI74: 0.001641351442 | ZJ74: 0.001641351442 | ZK74: 0.001641351442 | ZL74: 0.001641351442 | ZM74: 0.001641351442 | ZN74: 0.001641351442 | ZO74: 0.001641351442 | ZP74: 0.001641351442 | ZQ74: 0.001641351442 | ZR74: 0.001641351442 | ZS74: 0.001641351442 | ZT74: 0.001641351442 | ZU74: 0.001641351442 | ZV74: 0.001641351442 | ZW74: 0.001641351442 | ZX74: 0.001641351442 | ZY74: 0.001641351442 | ZZ74: 0.001641351442 | AAA74: 0.001641351442 | AAB74: 0.001641351442 | AAC74: 0.001641351442 | AAD74: 0.001641351442 | AAE74: 0.001641351442 | AAF74: 0.001641351442 | AAG74: 0.001641351442 | AAH74: 0.001641351442 | AAI74: 0.001641351442 | AAJ74: 0.001641351442 | AAK74: =IF(AAK4,$F$74,$G$74) -> 0.001641351442 | AAL74: 0.001641351442 | AAM74: 0.001641351442 | AAN74: 0.001641351442 | AAO74: 0.001641351442 | AAP74: 0.001641351442 | AAQ74: 0.001641351442 | AAR74: 0.001641351442 | AAS74: 0.001641351442 | AAT74: 0.001641351442 | AAU74: 0.001641351442 | AAV74: 0.001641351442 | AAW74: 0.001641351442 | AAX74: 0.001641351442 | AAY74: 0.001641351442 | AAZ74: 0.001641351442 | ABA74: 0.001641351442 | ABB74: 0.001641351442 | ABC74: 0.001641351442 | ABD74: 0.001641351442 | ABE74: 0.001641351442 | ABF74: 0.001641351442 | ABG74: 0.001641351442 | ABH74: 0.001641351442 | ABI74: 0.001641351442 | ABJ74: 0.001641351442 | ABK74: 0.001641351442 | ABL74: 0.001641351442 | ABM74: 0.001641351442 | ABN74: 0.001641351442 | ABO74: 0.001641351442 | ABP74: 0.001641351442 | ABQ74: 0.001641351442 | ABR74: 0.001641351442 | ABS74: 0.001641351442 | ABT74: 0.001641351442 | ABU74: 0.001641351442 | ABV74: 0.001641351442 | ABW74: 0.001641351442 | ABX74: 0.001641351442 | ABY74: 0.001641351442 | ABZ74: 0.001641351442 | ACA74: 0.001641351442 | ACB74: 0.001641351442 | ACC74: 0.001641351442 | ACD74: 0.001641351442 | ACE74: 0.001641351442 | ACF74: 0.001641351442 | ACG74: 0.001641351442 | ACH74: 0.001641351442 | ACI74: 0.001641351442 | ACJ74: 0.001641351442 | ACK74: 0.001641351442 | ACL74: 0.001641351442 | ACM74: 0.001641351442 | ACN74: 0.001641351442 | ACO74: 0.001641351442 | ACP74: 0.001641351442 | ACQ74: 0.001641351442 | ACR74: 0.001641351442 | ACS74: 0.001641351442 | ACT74: 0.001641351442 | ACU74: 0.001641351442 | ACV74: 0.001641351442 | ACW74: =IF(ACW4,$F$74,$G$74) -> 0.001641351442 | ACX74: 0.001641351442 | ACY74: 0.001641351442 | ACZ74: 0.001641351442 | ADA74: 0.001641351442 | ADB74: 0.001641351442 | ADC74: 0.001641351442 | ADD74: 0.001641351442 | ADE74: 0.001641351442 | ADF74: 0.001641351442 | ADG74: 0.001641351442 | ADH74: 0.001641351442 | ADI74: 0.001641351442 | ADJ74: 0.001641351442 | ADK74: 0.001641351442 | ADL74: 0.001641351442 | ADM74: 0.001641351442 | ADN74: 0.001641351442 | ADO74: 0.001641351442 | ADP74: 0.001641351442 | ADQ74: 0.001641351442 | ADR74: 0.001641351442 | ADS74: 0.001641351442 | ADT74: 0.001641351442 | ADU74: 0.001641351442 | ADV74: 0.001641351442 | ADW74: 0.001641351442 | ADX74: 0.001641351442 | ADY74: 0.001641351442 | ADZ74: 0.001641351442 | AEA74: 0.001641351442 | AEB74: 0.001641351442 | AEC74: 0.001641351442 | AED74: 0.001641351442 | AEE74: 0.001641351442 | AEF74: 0.001641351442 | AEG74: 0.001641351442 | AEH74: 0.001641351442 | AEI74: 0.001641351442 | AEJ74: 0.001641351442 | AEK74: 0.001641351442 | AEL74: 0.001641351442 | AEM74: 0.001641351442 | AEN74: 0.001641351442 | AEO74: 0.001641351442 | AEP74: 0.001641351442 | AEQ74: 0.001641351442 | AER74: 0.001641351442 | AES74: 0.001641351442 | AET74: 0.001641351442 | AEU74: 0.001641351442 | AEV74: 0.001641351442 | AEW74: 0.001641351442 | AEX74: 0.001641351442 | AEY74: 0.001641351442 | AEZ74: 0.001641351442 | AFA74: 0.001641351442 | AFB74: 0.001641351442 | AFC74: 0.001641351442 | AFD74: 0.001641351442 | AFE74: 0.001641351442 | AFF74: 0.001641351442 | AFG74: 0.001641351442 | AFH74: 0.001641351442 | AFI74: =IF(AFI4,$F$74,$G$74) -> 0.001641351442 | AFJ74: 0.001641351442 | AFK74: 0.001641351442 | AFL74: 0.001641351442 | AFM74: 0.001641351442 | AFN74: 0.001641351442 | AFO74: 0.001641351442 | AFP74: 0.001641351442 | AFQ74: 0.001641351442 | AFR74: 0.001641351442 | AFS74: 0.001641351442 | AFT74: 0.001641351442 | AFU74: 0.001641351442 | AFV74: 0.001641351442 | AFW74: 0.001641351442 | AFX74: 0.001641351442 | AFY74: 0.001641351442 | AFZ74: 0.001641351442 | AGA74: 0.001641351442 | AGB74: 0.001641351442 | AGC74: 0.001641351442 | AGD74: 0.001641351442 | AGE74: 0.001641351442 | AGF74: 0.001641351442 | AGG74: 0.001641351442 | AGH74: 0.001641351442 | AGI74: 0.001641351442 | AGJ74: 0.001641351442 | AGK74: 0.001641351442
B75: Combined Inflation Index | E75: Index | H75: 1 | I75: =H75*(1+I74) -> 1.001641351 | J75: =I75*(1+J74) -> 1.003285397 | K75: 1.004932141 | L75: 1.006581588 | M75: 1.008233742 | N75: 1.009888608 | O75: 1.01154619 | P75: 1.013206493 | Q75: 1.014869521 | R75: 1.016535278 | S75: 1.01820377 | T75: 1.019875 | U75: 1.021548973 | V75: 1.023225694 | W75: 1.024905167 | X75: 1.026587397 | Y75: 1.028272387 | Z75: 1.029960144 | AA75: 1.03165067 | AB75: 1.033343972 | AC75: 1.035040052 | AD75: 1.036738917 | AE75: 1.03844057 | AF75: 1.040145016 | AG75: 1.041852259 | AH75: 1.043562305 | AI75: 1.045275157 | AJ75: 1.046990821 | AK75: 1.048709301 | AL75: 1.050430602 | AM75: 1.052154727 | AN75: 1.053881683 | AO75: 1.055611473 | AP75: 1.057344103 | AQ75: 1.059079576 | AR75: 1.060817898 | AS75: 1.062559073 | AT75: 1.064303106 | AU75: 1.066050001 | AV75: 1.067799764 | AW75: 1.069552398 | AX75: 1.07130791 | AY75: 1.073066303 | AZ75: 1.074827582 | BA75: 1.076591751 | BB75: 1.078358817 | BC75: 1.080128783 | BD75: 1.081901654 | BE75: 1.083677434 | BF75: 1.08545613 | BG75: 1.087237745 | BH75: 1.089022284 | BI75: 1.090809752 | BJ75: 1.092600155 | BK75: 1.094393495 | BL75: 1.09618978 | BM75: 1.097989012 | BN75: 1.099791198 | BO75: 1.101596342 | BP75: 1.103404449 | BQ75: 1.105215523 | BR75: 1.10702957 | BS75: 1.108846595 | BT75: 1.110666602 | BU75: 1.112489596 | BV75: =BU75*(1+BV74) -> 1.114315583 | BW75: 1.116144566 | BX75: 1.117976552 | BY75: 1.119811544 | BZ75: 1.121649548 | CA75: 1.123490569 | CB75: 1.125334612 | CC75: 1.127181682 | CD75: 1.129031783 | CE75: 1.130884921 | CF75: 1.132741101 | CG75: 1.134600327 | CH75: 1.136462605 | CI75: 1.138327939 | CJ75: 1.140196336 | CK75: 1.142067798 | CL75: 1.143942333 | CM75: 1.145819945 | CN75: 1.147700638 | CO75: 1.149584418 | CP75: 1.15147129 | CQ75: 1.153361259 | CR75: 1.15525433 | CS75: 1.157150508 | CT75: 1.159049799 | CU75: 1.160952207 | CV75: 1.162857738 | CW75: 1.164766396 | CX75: 1.166678187 | CY75: 1.168593116 | CZ75: 1.170511188 | DA75: 1.172432408 | DB75: 1.174356782 | DC75: 1.176284314 | DD75: 1.17821501 | DE75: 1.180148875 | DF75: 1.182085914 | DG75: 1.184026132 | DH75: 1.185969535 | DI75: 1.187916128 | DJ75: 1.189865916 | DK75: 1.191818904 | DL75: 1.193775098 | DM75: 1.195734502 | DN75: 1.197697123 | DO75: 1.199662965 | DP75: 1.201632033 | DQ75: 1.203604334 | DR75: 1.205579871 | DS75: 1.207558652 | DT75: 1.20954068 | DU75: 1.211525961 | DV75: 1.213514501 | DW75: 1.215506305 | DX75: 1.217501378 | DY75: 1.219499725 | DZ75: 1.221501353 | EA75: 1.223506266 | EB75: 1.22551447 | EC75: 1.22752597 | ED75: 1.229540771 | EE75: 1.23155888 | EF75: 1.233580301 | EG75: 1.23560504 | EH75: =EG75*(1+EH74) -> 1.237633102 | EI75: 1.239664493 | EJ75: 1.241699218 | EK75: 1.243737283 | EL75: 1.245778693 | EM75: 1.247823453 | EN75: 1.24987157 | EO75: 1.251923048 | EP75: 1.253977894 | EQ75: 1.256036113 | ER75: 1.258097709 | ES75: 1.26016269 | ET75: 1.26223106 | EU75: 1.264302824 | EV75: 1.26637799 | EW75: 1.268456561 | EX75: 1.270538544 | EY75: 1.272623944 | EZ75: 1.274712767 | FA75: 1.276805019 | FB75: 1.278900705 | FC75: 1.28099983 | FD75: 1.283102401 | FE75: 1.285208423 | FF75: 1.287317902 | FG75: 1.289430843 | FH75: 1.291547252 | FI75: 1.293667135 | FJ75: 1.295790498 | FK75: 1.297917345 | FL75: 1.300047684 | FM75: 1.302181519 | FN75: 1.304318856 | FO75: 1.306459702 | FP75: 1.308604061 | FQ75: 1.310751941 | FR75: 1.312903345 | FS75: 1.315058281 | FT75: 1.317216754 | FU75: 1.319378769 | FV75: 1.321544334 | FW75: 1.323713452 | FX75: 1.325886131 | FY75: 1.328062377 | FZ75: 1.330242194 | GA75: 1.332425589 | GB75: 1.334612567 | GC75: 1.336803135 | GD75: 1.338997299 | GE75: 1.341195064 | GF75: 1.343396437 | GG75: 1.345601423 | GH75: 1.347810027 | GI75: 1.350022257 | GJ75: 1.352238118 | GK75: 1.354457616 | GL75: 1.356680757 | GM75: 1.358907547 | GN75: 1.361137992 | GO75: 1.363372098 | GP75: 1.365609871 | GQ75: 1.367851316 | GR75: 1.370096441 | GS75: 1.372345251 | GT75: =GS75*(1+GT74) -> 1.374597752 | GU75: 1.37685395 | GV75: 1.379113851 | GW75: 1.381377461 | GX75: 1.383644787 | GY75: 1.385915835 | GZ75: 1.38819061 | HA75: 1.390469118 | HB75: 1.392751367 | HC75: 1.395037361 | HD75: 1.397327108 | HE75: 1.399620613 | HF75: 1.401917882 | HG75: 1.404218922 | HH75: 1.406523739 | HI75: 1.408832338 | HJ75: 1.411144727 | HK75: 1.413460912 | HL75: 1.415780898 | HM75: 1.418104692 | HN75: 1.4204323 | HO75: 1.422763729 | HP75: 1.425098984 | HQ75: 1.427438072 | HR75: 1.429781 | HS75: 1.432127773 | HT75: 1.434478398 | HU75: 1.436832881 | HV75: 1.439191229 | HW75: 1.441553447 | HX75: 1.443919543 | HY75: 1.446289523 | HZ75: 1.448663392 | IA75: 1.451041158 | IB75: 1.453422826 | IC75: 1.455808404 | ID75: 1.458197897 | IE75: 1.460591312 | IF75: 1.462988656 | IG75: 1.465389935 | IH75: 1.467795155 | II75: 1.470204322 | IJ75: 1.472617444 | IK75: 1.475034527 | IL75: 1.477455577 | IM75: 1.479880601 | IN75: 1.482309605 | IO75: 1.484742596 | IP75: 1.48717958 | IQ75: 1.489620565 | IR75: 1.492065556 | IS75: 1.49451456 | IT75: 1.496967583 | IU75: 1.499424633 | IV75: 1.501885716 | IW75: 1.504350838 | IX75: 1.506820007 | IY75: 1.509293228 | IZ75: 1.511770508 | JA75: 1.514251855 | JB75: 1.516737275 | JC75: 1.519226774 | JD75: 1.521720359 | JE75: 1.524218036 | JF75: =JE75*(1+JF74) -> 1.526719814 | JG75: 1.529225698 | JH75: 1.531735695 | JI75: 1.534249811 | JJ75: 1.536768054 | JK75: 1.539290431 | JL75: 1.541816947 | JM75: 1.544347611 | JN75: 1.546882428 | JO75: 1.549421406 | JP75: 1.551964551 | JQ75: 1.55451187 | JR75: 1.55706337 | JS75: 1.559619058 | JT75: 1.562178941 | JU75: 1.564743026 | JV75: 1.567311319 | JW75: 1.569883828 | JX75: 1.572460559 | JY75: 1.57504152 | JZ75: 1.577626716 | KA75: 1.580216156 | KB75: 1.582809846 | KC75: 1.585407793 | KD75: 1.588010005 | KE75: 1.590616487 | KF75: 1.593227248 | KG75: 1.595842294 | KH75: 1.598461632 | KI75: 1.601085269 | KJ75: 1.603713213 | KK75: 1.60634547 | KL75: 1.608982047 | KM75: 1.611622952 | KN75: 1.614268192 | KO75: 1.616917773 | KP75: 1.619571704 | KQ75: 1.62222999 | KR75: 1.624892639 | KS75: 1.627559659 | KT75: 1.630231057 | KU75: 1.632906839 | KV75: 1.635587013 | KW75: 1.638271586 | KX75: 1.640960565 | KY75: 1.643653958 | KZ75: 1.646351772 | LA75: 1.649054014 | LB75: 1.651760691 | LC75: 1.654471811 | LD75: 1.657187381 | LE75: 1.659907408 | LF75: 1.662631899 | LG75: 1.665360862 | LH75: 1.668094305 | LI75: 1.670832234 | LJ75: 1.673574657 | LK75: 1.676321581 | LL75: 1.679073014 | LM75: 1.681828963 | LN75: 1.684589435 | LO75: 1.687354438 | LP75: 1.69012398 | LQ75: 1.692898067 | LR75: =LQ75*(1+LR74) -> 1.695676708 | LS75: 1.698459909 | LT75: 1.701247679 | LU75: 1.704040024 | LV75: 1.706836953 | LW75: 1.709638472 | LX75: 1.71244459 | LY75: 1.715255313 | LZ75: 1.71807065 | MA75: 1.720890608 | MB75: 1.723715194 | MC75: 1.726544416 | MD75: 1.729378283 | ME75: 1.7322168 | MF75: 1.735059977 | MG75: 1.73790782 | MH75: 1.740760337 | MI75: 1.743617537 | MJ75: 1.746479426 | MK75: 1.749346013 | ML75: 1.752217304 | MM75: 1.755093309 | MN75: 1.757974033 | MO75: 1.760859487 | MP75: 1.763749676 | MQ75: 1.766644609 | MR75: 1.769544294 | MS75: 1.772448738 | MT75: 1.775357949 | MU75: 1.778271935 | MV75: 1.781190705 | MW75: 1.784114265 | MX75: 1.787042623 | MY75: 1.789975788 | MZ75: 1.792913767 | NA75: 1.795856569 | NB75: 1.798804201 | NC75: 1.801756671 | ND75: 1.804713987 | NE75: 1.807676156 | NF75: 1.810643188 | NG75: 1.81361509 | NH75: 1.81659187 | NI75: 1.819573536 | NJ75: 1.822560095 | NK75: 1.825551557 | NL75: 1.828547928 | NM75: 1.831549218 | NN75: 1.834555434 | NO75: 1.837566584 | NP75: 1.840582677 | NQ75: 1.84360372 | NR75: 1.846629722 | NS75: 1.84966069 | NT75: 1.852696633 | NU75: 1.85573756 | NV75: 1.858783477 | NW75: 1.861834394 | NX75: 1.864890319 | NY75: 1.867951259 | NZ75: 1.871017223 | OA75: 1.87408822 | OB75: 1.877164258 | OC75: 1.880245344 | OD75: =OC75*(1+OD74) -> 1.883331487 | OE75: 1.886422696 | OF75: 1.889518979 | OG75: 1.892620344 | OH75: 1.895726799 | OI75: 1.898838353 | OJ75: 1.901955014 | OK75: 1.90507679 | OL75: 1.908203691 | OM75: 1.911335724 | ON75: 1.914472897 | OO75: 1.91761522 | OP75: 1.920762701 | OQ75: 1.923915347 | OR75: 1.927073169 | OS75: 1.930236173 | OT75: 1.933404369 | OU75: 1.936577765 | OV75: 1.93975637 | OW75: 1.942940191 | OX75: 1.946129239 | OY75: 1.949323521 | OZ75: 1.952523046 | PA75: 1.955727823 | PB75: 1.958937859 | PC75: 1.962153165 | PD75: 1.965373748 | PE75: 1.968599617 | PF75: 1.971830781 | PG75: 1.975067248 | PH75: 1.978309027 | PI75: 1.981556128 | PJ75: 1.984808558 | PK75: 1.988066326 | PL75: 1.991329442 | PM75: 1.994597913 | PN75: 1.997871749 | PO75: 2.001150959 | PP75: 2.004435551 | PQ75: 2.007725534 | PR75: 2.011020917 | PS75: 2.014321709 | PT75: 2.017627919 | PU75: 2.020939556 | PV75: 2.024256628 | PW75: 2.027579144 | PX75: 2.030907114 | PY75: 2.034240547 | PZ75: 2.03757945 | QA75: 2.040923834 | QB75: 2.044273708 | QC75: 2.047629079 | QD75: 2.050989958 | QE75: 2.054356353 | QF75: 2.057728274 | QG75: 2.061105729 | QH75: 2.064488728 | QI75: 2.06787728 | QJ75: 2.071271393 | QK75: 2.074671078 | QL75: 2.078076342 | QM75: 2.081487196 | QN75: 2.084903648 | QO75: 2.088325707 | QP75: =QO75*(1+QP74) -> 2.091753384 | QQ75: 2.095186686 | QR75: 2.098625624 | QS75: 2.102070206 | QT75: 2.105520442 | QU75: 2.108976341 | QV75: 2.112437912 | QW75: 2.115905165 | QX75: 2.119378109 | QY75: 2.122856754 | QZ75: 2.126341108 | RA75: 2.129831181 | RB75: 2.133326982 | RC75: 2.136828521 | RD75: 2.140335808 | RE75: 2.143848851 | RF75: 2.147367661 | RG75: 2.150892246 | RH75: 2.154422616 | RI75: 2.15795878 | RJ75: 2.161500749 | RK75: 2.165048531 | RL75: 2.168602137 | RM75: 2.172161575 | RN75: 2.175726856 | RO75: 2.179297988 | RP75: 2.182874982 | RQ75: 2.186457847 | RR75: 2.190046593 | RS75: 2.193641229 | RT75: 2.197241765 | RU75: 2.200848211 | RV75: 2.204460577 | RW75: 2.208078871 | RX75: 2.211703104 | RY75: 2.215333287 | RZ75: 2.218969427 | SA75: 2.222611536 | SB75: 2.226259622 | SC75: 2.229913697 | SD75: 2.233573769 | SE75: 2.237239848 | SF75: 2.240911945 | SG75: 2.244590069 | SH75: 2.24827423 | SI75: 2.251964439 | SJ75: 2.255660704 | SK75: 2.259363036 | SL75: 2.263071444 | SM75: 2.26678594 | SN75: 2.270506532 | SO75: 2.274233232 | SP75: 2.277966048 | SQ75: 2.28170499 | SR75: 2.28545007 | SS75: 2.289201297 | ST75: 2.292958681 | SU75: 2.296722232 | SV75: 2.30049196 | SW75: 2.304267876 | SX75: 2.308049989 | SY75: 2.311838311 | SZ75: 2.31563285 | TA75: 2.319433617 | TB75: =TA75*(1+TB74) -> 2.323240623 | TC75: 2.327053877 | TD75: 2.33087339 | TE75: 2.334699173 | TF75: 2.338531235 | TG75: 2.342369586 | TH75: 2.346214238 | TI75: 2.3500652 | TJ75: 2.353922483 | TK75: 2.357786097 | TL75: 2.361656053 | TM75: 2.36553236 | TN75: 2.36941503 | TO75: 2.373304073 | TP75: 2.377199499 | TQ75: 2.381101319 | TR75: 2.385009543 | TS75: 2.388924182 | TT75: 2.392845246 | TU75: 2.396772746 | TV75: 2.400706692 | TW75: 2.404647096 | TX75: 2.408593967 | TY75: 2.412547316 | TZ75: 2.416507154 | UA75: 2.420473491 | UB75: 2.424446339 | UC75: 2.428425707 | UD75: 2.432411608 | UE75: 2.43640405 | UF75: 2.440403045 | UG75: 2.444408604 | UH75: 2.448420738 | UI75: 2.452439457 | UJ75: 2.456464772 | UK75: 2.460496694 | UL75: 2.464535234 | UM75: 2.468580402 | UN75: 2.47263221 | UO75: 2.476690668 | UP75: 2.480755788 | UQ75: 2.48482758 | UR75: 2.488906056 | US75: 2.492991225 | UT75: 2.4970831 | UU75: 2.501181691 | UV75: 2.505287009 | UW75: 2.509399066 | UX75: 2.513517871 | UY75: 2.517643437 | UZ75: 2.521775775 | VA75: 2.525914895 | VB75: 2.53006081 | VC75: 2.534213528 | VD75: 2.538373064 | VE75: 2.542539426 | VF75: 2.546712627 | VG75: 2.550892677 | VH75: 2.555079588 | VI75: 2.559273372 | VJ75: 2.563474039 | VK75: 2.567681601 | VL75: 2.571896069 | VM75: 2.576117454 | VN75: =VM75*(1+VN74) -> 2.580345768 | VO75: 2.584581022 | VP75: 2.588823228 | VQ75: 2.593072397 | VR75: 2.59732854 | VS75: 2.601591669 | VT75: 2.605861795 | VU75: 2.61013893 | VV75: 2.614423086 | VW75: 2.618714273 | VX75: 2.623012503 | VY75: 2.627317788 | VZ75: 2.63163014 | WA75: 2.63594957 | WB75: 2.64027609 | WC75: 2.644609711 | WD75: 2.648950445 | WE75: 2.653298303 | WF75: 2.657653298 | WG75: 2.662015441 | WH75: 2.666384744 | WI75: 2.670761219 | WJ75: 2.675144877 | WK75: 2.679535729 | WL75: 2.683933789 | WM75: 2.688339068 | WN75: 2.692751577 | WO75: 2.697171329 | WP75: 2.701598335 | WQ75: 2.706032607 | WR75: 2.710474158 | WS75: 2.714922998 | WT75: 2.719379141 | WU75: 2.723842598 | WV75: 2.728313381 | WW75: 2.732791502 | WX75: 2.737276973 | WY75: 2.741769807 | WZ75: 2.746270015 | XA75: 2.750777609 | XB75: 2.755292602 | XC75: 2.759815005 | XD75: 2.764344832 | XE75: 2.768882093 | XF75: 2.773426802 | XG75: 2.77797897 | XH75: 2.782538609 | XI75: 2.787105733 | XJ75: 2.791680353 | XK75: 2.796262482 | XL75: 2.800852131 | XM75: 2.805449314 | XN75: 2.810054042 | XO75: 2.814666328 | XP75: 2.819286185 | XQ75: 2.823913625 | XR75: 2.828548659 | XS75: 2.833191302 | XT75: 2.837841564 | XU75: 2.84249946 | XV75: 2.847165 | XW75: 2.851838199 | XX75: 2.856519067 | XY75: 2.861207619 | XZ75: =XY75*(1+XZ74) -> 2.865903866 | YA75: 2.870607822 | YB75: 2.875319498 | YC75: 2.880038908 | YD75: 2.884766064 | YE75: 2.889500979 | YF75: 2.894243665 | YG75: 2.898994136 | YH75: 2.903752405 | YI75: 2.908518483 | YJ75: 2.913292384 | YK75: 2.91807412 | YL75: 2.922863706 | YM75: 2.927661152 | YN75: 2.932466473 | YO75: 2.937279681 | YP75: 2.942100789 | YQ75: 2.946929811 | YR75: 2.951766758 | YS75: 2.956611645 | YT75: 2.961464484 | YU75: 2.966325288 | YV75: 2.97119407 | YW75: 2.976070844 | YX75: 2.980955622 | YY75: 2.985848418 | YZ75: 2.990749244 | ZA75: 2.995658115 | ZB75: 3.000575043 | ZC75: 3.005500041 | ZD75: 3.010433123 | ZE75: 3.015374301 | ZF75: 3.02032359 | ZG75: 3.025281003 | ZH75: 3.030246552 | ZI75: 3.035220252 | ZJ75: 3.040202115 | ZK75: 3.045192155 | ZL75: 3.050190385 | ZM75: 3.05519682 | ZN75: 3.060211472 | ZO75: 3.065234354 | ZP75: 3.070265481 | ZQ75: 3.075304866 | ZR75: 3.080352522 | ZS75: 3.085408463 | ZT75: 3.090472702 | ZU75: 3.095545254 | ZV75: 3.100626132 | ZW75: 3.105715349 | ZX75: 3.110812919 | ZY75: 3.115918857 | ZZ75: 3.121033175 | AAA75: 3.126155887 | AAB75: 3.131287007 | AAC75: 3.13642655 | AAD75: 3.141574528 | AAE75: 3.146730956 | AAF75: 3.151895847 | AAG75: 3.157069216 | AAH75: 3.162251076 | AAI75: 3.167441442 | AAJ75: 3.172640326 | AAK75: 3.177847744 | AAL75: =AAK75*(1+AAL74) -> 3.183063709 | AAM75: 3.188288235 | AAN75: 3.193521337 | AAO75: 3.198763027 | AAP75: 3.204013322 | AAQ75: 3.209272234 | AAR75: 3.214539777 | AAS75: 3.219815967 | AAT75: 3.225100816 | AAU75: 3.23039434 | AAV75: 3.235696553 | AAW75: 3.241007468 | AAX75: 3.2463271 | AAY75: 3.251655464 | AAZ75: 3.256992573 | ABA75: 3.262338443 | ABB75: 3.267693086 | ABC75: 3.273056519 | ABD75: 3.278428755 | ABE75: 3.283809809 | ABF75: 3.289199695 | ABG75: 3.294598428 | ABH75: 3.300006022 | ABI75: 3.305422491 | ABJ75: 3.310847851 | ABK75: 3.316282116 | ABL75: 3.321725301 | ABM75: 3.327177419 | ABN75: 3.332638487 | ABO75: 3.338108518 | ABP75: 3.343587527 | ABQ75: 3.349075529 | ABR75: 3.354572539 | ABS75: 3.360078571 | ABT75: 3.365593641 | ABU75: 3.371117763 | ABV75: 3.376650952 | ABW75: 3.382193223 | ABX75: 3.387744591 | ABY75: 3.39330507 | ABZ75: 3.398874677 | ACA75: 3.404453424 | ACB75: 3.410041329 | ACC75: 3.415638405 | ACD75: 3.421244668 | ACE75: 3.426860133 | ACF75: 3.432484815 | ACG75: 3.438118729 | ACH75: 3.44376189 | ACI75: 3.449414313 | ACJ75: 3.455076015 | ACK75: 3.460747009 | ACL75: 3.466427311 | ACM75: 3.472116936 | ACN75: 3.4778159 | ACO75: 3.483524218 | ACP75: 3.489241906 | ACQ75: 3.494968978 | ACR75: 3.500705451 | ACS75: 3.506451338 | ACT75: 3.512206657 | ACU75: 3.517971423 | ACV75: 3.52374565 | ACW75: 3.529529355 | ACX75: =ACW75*(1+ACX74) -> 3.535322553 | ACY75: 3.54112526 | ACZ75: 3.546937491 | ADA75: 3.552759262 | ADB75: 3.558590589 | ADC75: 3.564431487 | ADD75: 3.570281971 | ADE75: 3.576142059 | ADF75: 3.582011765 | ADG75: 3.587891105 | ADH75: 3.593780095 | ADI75: 3.599678751 | ADJ75: 3.605587089 | ADK75: 3.611505125 | ADL75: 3.617432874 | ADM75: 3.623370353 | ADN75: 3.629317577 | ADO75: 3.635274562 | ADP75: 3.641241326 | ADQ75: 3.647217882 | ADR75: 3.653204249 | ADS75: 3.659200441 | ADT75: 3.665206475 | ADU75: 3.671222367 | ADV75: 3.677248133 | ADW75: 3.683283789 | ADX75: 3.689329352 | ADY75: 3.695384838 | ADZ75: 3.701450264 | AEA75: 3.707525644 | AEB75: 3.713610997 | AEC75: 3.719706338 | AED75: 3.725811683 | AEE75: 3.731927049 | AEF75: 3.738052453 | AEG75: 3.744187911 | AEH75: 3.750333439 | AEI75: 3.756489054 | AEJ75: 3.762654773 | AEK75: 3.768830612 | AEL75: 3.775016588 | AEM75: 3.781212717 | AEN75: 3.787419015 | AEO75: 3.793635501 | AEP75: 3.79986219 | AEQ75: 3.8060991 | AER75: 3.812346246 | AES75: 3.818603646 | AET75: 3.824871316 | AEU75: 3.831149274 | AEV75: 3.837437537 | AEW75: 3.84373612 | AEX75: 3.850045042 | AEY75: 3.856364319 | AEZ75: 3.862693968 | AFA75: 3.869034007 | AFB75: 3.875384451 | AFC75: 3.881745319 | AFD75: 3.888116627 | AFE75: 3.894498393 | AFF75: 3.900890634 | AFG75: 3.907293366 | AFH75: 3.913706608 | AFI75: 3.920130376 | AFJ75: =AFI75*(1+AFJ74) -> 3.926564688 | AFK75: 3.93300956 | AFL75: 3.939465011 | AFM75: 3.945931058 | AFN75: 3.952407717 | AFO75: 3.958895007 | AFP75: 3.965392945 | AFQ75: 3.971901549 | AFR75: 3.978420835 | AFS75: 3.984950822 | AFT75: 3.991491527 | AFU75: 3.998042967 | AFV75: 4.004605161 | AFW75: 4.011178125 | AFX75: 4.017761878 | AFY75: 4.024356437 | AFZ75: 4.030961821 | AGA75: 4.037578046 | AGB75: 4.04420513 | AGC75: 4.050843092 | AGD75: 4.057491949 | AGE75: 4.06415172 | AGF75: 4.070822421 | AGG75: 4.077504071 | AGH75: 4.084196688 | AGI75: 4.09090029 | AGJ75: 4.097614895 | AGK75: 4.104340522
B76: Inflation Index from COD | E76: Index
B78: Initial Construction without Inflation and Return | E78: Currency | F78: ='Solar Carrying Charge'!F32 -> 1000 | I78: =$F$78*I72 -> 0.01649541468 | J78: 58.09001743 | K78: 883.7869743 | L78: 58.09001743 | M78: 0.01649541468 | N78: 2.023637831e-08 | O78: 0 | P78: 0 | Q78: 0 | R78: 0 | S78: 0 | T78: 0 | U78: 0 | V78: 0 | W78: 0 | X78: 0 | Y78: 0 | Z78: 0 | AA78: 0 | AB78: 0 | AC78: 0 | AD78: 0 | AE78: 0 | AF78: 0 | AG78: 0 | AH78: 0 | AI78: 0 | AJ78: 0 | AK78: 0 | AL78: 0 | AM78: 0 | AN78: 0 | AO78: 0 | AP78: 0 | AQ78: 0 | AR78: 0 | AS78: 0 | AT78: 0 | AU78: 0 | AV78: 0 | AW78: 0 | AX78: 0 | AY78: 0 | AZ78: 0 | BA78: 0 | BB78: 0 | BC78: 0 | BD78: 0 | BE78: 0 | BF78: 0 | BG78: 0 | BH78: 0 | BI78: 0 | BJ78: 0 | BK78: 0 | BL78: 0 | BM78: 0 | BN78: 0 | BO78: 0 | BP78: 0 | BQ78: 0 | BR78: 0 | BS78: 0 | BT78: 0 | BU78: =$F$78*BU72 -> 0 | BV78: 0 | BW78: 0 | BX78: 0 | BY78: 0 | BZ78: 0 | CA78: 0 | CB78: 0 | CC78: 0 | CD78: 0 | CE78: 0 | CF78: 0 | CG78: 0 | CH78: 0 | CI78: 0 | CJ78: 0 | CK78: 0 | CL78: 0 | CM78: 0 | CN78: 0 | CO78: 0 | CP78: 0 | CQ78: 0 | CR78: 0 | CS78: 0 | CT78: 0 | CU78: 0 | CV78: 0 | CW78: 0 | CX78: 0 | CY78: 0 | CZ78: 0 | DA78: 0 | DB78: 0 | DC78: 0 | DD78: 0 | DE78: 0 | DF78: 0 | DG78: 0 | DH78: 0 | DI78: 0 | DJ78: 0 | DK78: 0 | DL78: 0 | DM78: 0 | DN78: 0 | DO78: 0 | DP78: 0 | DQ78: 0 | DR78: 0 | DS78: 0 | DT78: 0 | DU78: 0 | DV78: 0 | DW78: 0 | DX78: 0 | DY78: 0 | DZ78: 0 | EA78: 0 | EB78: 0 | EC78: 0 | ED78: 0 | EE78: 0 | EF78: 0 | EG78: =$F$78*EG72 -> 0 | EH78: 0 | EI78: 0 | EJ78: 0 | EK78: 0 | EL78: 0 | EM78: 0 | EN78: 0 | EO78: 0 | EP78: 0 | EQ78: 0 | ER78: 0 | ES78: 0 | ET78: 0 | EU78: 0 | EV78: 0 | EW78: 0 | EX78: 0 | EY78: 0 | EZ78: 0 | FA78: 0 | FB78: 0 | FC78: 0 | FD78: 0 | FE78: 0 | FF78: 0 | FG78: 0 | FH78: 0 | FI78: 0 | FJ78: 0 | FK78: 0 | FL78: 0 | FM78: 0 | FN78: 0 | FO78: 0 | FP78: 0 | FQ78: 0 | FR78: 0 | FS78: 0 | FT78: 0 | FU78: 0 | FV78: 0 | FW78: 0 | FX78: 0 | FY78: 0 | FZ78: 0 | GA78: 0 | GB78: 0 | GC78: 0 | GD78: 0 | GE78: 0 | GF78: 0 | GG78: 0 | GH78: 0 | GI78: 0 | GJ78: 0 | GK78: 0 | GL78: 0 | GM78: 0 | GN78: 0 | GO78: 0 | GP78: 0 | GQ78: 0 | GR78: 0 | GS78: =$F$78*GS72 -> 0 | GT78: 0 | GU78: 0 | GV78: 0 | GW78: 0 | GX78: 0 | GY78: 0 | GZ78: 0 | HA78: 0 | HB78: 0 | HC78: 0 | HD78: 0 | HE78: 0 | HF78: 0 | HG78: 0 | HH78: 0 | HI78: 0 | HJ78: 0 | HK78: 0 | HL78: 0 | HM78: 0 | HN78: 0 | HO78: 0 | HP78: 0 | HQ78: 0 | HR78: 0 | HS78: 0 | HT78: 0 | HU78: 0 | HV78: 0 | HW78: 0 | HX78: 0 | HY78: 0 | HZ78: 0 | IA78: 0 | IB78: 0 | IC78: 0 | ID78: 0 | IE78: 0 | IF78: 0 | IG78: 0 | IH78: 0 | II78: 0 | IJ78: 0 | IK78: 0 | IL78: 0 | IM78: 0 | IN78: 0 | IO78: 0 | IP78: 0 | IQ78: 0 | IR78: 0 | IS78: 0 | IT78: 0 | IU78: 0 | IV78: 0 | IW78: 0 | IX78: 0 | IY78: 0 | IZ78: 0 | JA78: 0 | JB78: 0 | JC78: 0 | JD78: 0 | JE78: =$F$78*JE72 -> 0 | JF78: 0 | JG78: 0 | JH78: 0 | JI78: 0 | JJ78: 0 | JK78: 0 | JL78: 0 | JM78: 0 | JN78: 0 | JO78: 0 | JP78: 0 | JQ78: 0 | JR78: 0 | JS78: 0 | JT78: 0 | JU78: 0 | JV78: 0 | JW78: 0 | JX78: 0 | JY78: 0 | JZ78: 0 | KA78: 0 | KB78: 0 | KC78: 0 | KD78: 0 | KE78: 0 | KF78: 0 | KG78: 0 | KH78: 0 | KI78: 0 | KJ78: 0 | KK78: 0 | KL78: 0 | KM78: 0 | KN78: 0 | KO78: 0 | KP78: 0 | KQ78: 0 | KR78: 0 | KS78: 0 | KT78: 0 | KU78: 0 | KV78: 0 | KW78: 0 | KX78: 0 | KY78: 0 | KZ78: 0 | LA78: 0 | LB78: 0 | LC78: 0 | LD78: 0 | LE78: 0 | LF78: 0 | LG78: 0 | LH78: 0 | LI78: 0 | LJ78: 0 | LK78: 0 | LL78: 0 | LM78: 0 | LN78: 0 | LO78: 0 | LP78: 0 | LQ78: =$F$78*LQ72 -> 0 | LR78: 0 | LS78: 0 | LT78: 0 | LU78: 0 | LV78: 0 | LW78: 0 | LX78: 0 | LY78: 0 | LZ78: 0 | MA78: 0 | MB78: 0 | MC78: 0 | MD78: 0 | ME78: 0 | MF78: 0 | MG78: 0 | MH78: 0 | MI78: 0 | MJ78: 0 | MK78: 0 | ML78: 0 | MM78: 0 | MN78: 0 | MO78: 0 | MP78: 0 | MQ78: 0 | MR78: 0 | MS78: 0 | MT78: 0 | MU78: 0 | MV78: 0 | MW78: 0 | MX78: 0 | MY78: 0 | MZ78: 0 | NA78: 0 | NB78: 0 | NC78: 0 | ND78: 0 | NE78: 0 | NF78: 0 | NG78: 0 | NH78: 0 | NI78: 0 | NJ78: 0 | NK78: 0 | NL78: 0 | NM78: 0 | NN78: 0 | NO78: 0 | NP78: 0 | NQ78: 0 | NR78: 0 | NS78: 0 | NT78: 0 | NU78: 0 | NV78: 0 | NW78: 0 | NX78: 0 | NY78: 0 | NZ78: 0 | OA78: 0 | OB78: 0 | OC78: =$F$78*OC72 -> 0 | OD78: 0 | OE78: 0 | OF78: 0 | OG78: 0 | OH78: 0 | OI78: 0 | OJ78: 0 | OK78: 0 | OL78: 0 | OM78: 0 | ON78: 0 | OO78: 0 | OP78: 0 | OQ78: 0 | OR78: 0 | OS78: 0 | OT78: 0 | OU78: 0 | OV78: 0 | OW78: 0 | OX78: 0 | OY78: 0 | OZ78: 0 | PA78: 0 | PB78: 0 | PC78: 0 | PD78: 0 | PE78: 0 | PF78: 0 | PG78: 0 | PH78: 0 | PI78: 0 | PJ78: 0 | PK78: 0 | PL78: 0 | PM78: 0 | PN78: 0 | PO78: 0 | PP78: 0 | PQ78: 0 | PR78: 0 | PS78: 0 | PT78: 0 | PU78: 0 | PV78: 0 | PW78: 0 | PX78: 0 | PY78: 0 | PZ78: 0 | QA78: 0 | QB78: 0 | QC78: 0 | QD78: 0 | QE78: 0 | QF78: 0 | QG78: 0 | QH78: 0 | QI78: 0 | QJ78: 0 | QK78: 0 | QL78: 0 | QM78: 0 | QN78: 0 | QO78: =$F$78*QO72 -> 0 | QP78: 0 | QQ78: 0 | QR78: 0 | QS78: 0 | QT78: 0 | QU78: 0 | QV78: 0 | QW78: 0 | QX78: 0 | QY78: 0 | QZ78: 0 | RA78: 0 | RB78: 0 | RC78: 0 | RD78: 0 | RE78: 0 | RF78: 0 | RG78: 0 | RH78: 0 | RI78: 0 | RJ78: 0 | RK78: 0 | RL78: 0 | RM78: 0 | RN78: 0 | RO78: 0 | RP78: 0 | RQ78: 0 | RR78: 0 | RS78: 0 | RT78: 0 | RU78: 0 | RV78: 0 | RW78: 0 | RX78: 0 | RY78: 0 | RZ78: 0 | SA78: 0 | SB78: 0 | SC78: 0 | SD78: 0 | SE78: 0 | SF78: 0 | SG78: 0 | SH78: 0 | SI78: 0 | SJ78: 0 | SK78: 0 | SL78: 0 | SM78: 0 | SN78: 0 | SO78: 0 | SP78: 0 | SQ78: 0 | SR78: 0 | SS78: 0 | ST78: 0 | SU78: 0 | SV78: 0 | SW78: 0 | SX78: 0 | SY78: 0 | SZ78: 0 | TA78: =$F$78*TA72 -> 0 | TB78: 0 | TC78: 0 | TD78: 0 | TE78: 0 | TF78: 0 | TG78: 0 | TH78: 0 | TI78: 0 | TJ78: 0 | TK78: 0 | TL78: 0 | TM78: 0 | TN78: 0 | TO78: 0 | TP78: 0 | TQ78: 0 | TR78: 0 | TS78: 0 | TT78: 0 | TU78: 0 | TV78: 0 | TW78: 0 | TX78: 0 | TY78: 0 | TZ78: 0 | UA78: 0 | UB78: 0 | UC78: 0 | UD78: 0 | UE78: 0 | UF78: 0 | UG78: 0 | UH78: 0 | UI78: 0 | UJ78: 0 | UK78: 0 | UL78: 0 | UM78: 0 | UN78: 0 | UO78: 0 | UP78: 0 | UQ78: 0 | UR78: 0 | US78: 0 | UT78: 0 | UU78: 0 | UV78: 0 | UW78: 0 | UX78: 0 | UY78: 0 | UZ78: 0 | VA78: 0 | VB78: 0 | VC78: 0 | VD78: 0 | VE78: 0 | VF78: 0 | VG78: 0 | VH78: 0 | VI78: 0 | VJ78: 0 | VK78: 0 | VL78: 0 | VM78: =$F$78*VM72 -> 0 | VN78: 0 | VO78: 0 | VP78: 0 | VQ78: 0 | VR78: 0 | VS78: 0 | VT78: 0 | VU78: 0 | VV78: 0 | VW78: 0 | VX78: 0 | VY78: 0 | VZ78: 0 | WA78: 0 | WB78: 0 | WC78: 0 | WD78: 0 | WE78: 0 | WF78: 0 | WG78: 0 | WH78: 0 | WI78: 0 | WJ78: 0 | WK78: 0 | WL78: 0 | WM78: 0 | WN78: 0 | WO78: 0 | WP78: 0 | WQ78: 0 | WR78: 0 | WS78: 0 | WT78: 0 | WU78: 0 | WV78: 0 | WW78: 0 | WX78: 0 | WY78: 0 | WZ78: 0 | XA78: 0 | XB78: 0 | XC78: 0 | XD78: 0 | XE78: 0 | XF78: 0 | XG78: 0 | XH78: 0 | XI78: 0 | XJ78: 0 | XK78: 0 | XL78: 0 | XM78: 0 | XN78: 0 | XO78: 0 | XP78: 0 | XQ78: 0 | XR78: 0 | XS78: 0 | XT78: 0 | XU78: 0 | XV78: 0 | XW78: 0 | XX78: 0 | XY78: =$F$78*XY72 -> 0 | XZ78: 0 | YA78: 0 | YB78: 0 | YC78: 0 | YD78: 0 | YE78: 0 | YF78: 0 | YG78: 0 | YH78: 0 | YI78: 0 | YJ78: 0 | YK78: 0 | YL78: 0 | YM78: 0 | YN78: 0 | YO78: 0 | YP78: 0 | YQ78: 0 | YR78: 0 | YS78: 0 | YT78: 0 | YU78: 0 | YV78: 0 | YW78: 0 | YX78: 0 | YY78: 0 | YZ78: 0 | ZA78: 0 | ZB78: 0 | ZC78: 0 | ZD78: 0 | ZE78: 0 | ZF78: 0 | ZG78: 0 | ZH78: 0 | ZI78: 0 | ZJ78: 0 | ZK78: 0 | ZL78: 0 | ZM78: 0 | ZN78: 0 | ZO78: 0 | ZP78: 0 | ZQ78: 0 | ZR78: 0 | ZS78: 0 | ZT78: 0 | ZU78: 0 | ZV78: 0 | ZW78: 0 | ZX78: 0 | ZY78: 0 | ZZ78: 0 | AAA78: 0 | AAB78: 0 | AAC78: 0 | AAD78: 0 | AAE78: 0 | AAF78: 0 | AAG78: 0 | AAH78: 0 | AAI78: 0 | AAJ78: 0 | AAK78: =$F$78*AAK72 -> 0 | AAL78: 0 | AAM78: 0 | AAN78: 0 | AAO78: 0 | AAP78: 0 | AAQ78: 0 | AAR78: 0 | AAS78: 0 | AAT78: 0 | AAU78: 0 | AAV78: 0 | AAW78: 0 | AAX78: 0 | AAY78: 0 | AAZ78: 0 | ABA78: 0 | ABB78: 0 | ABC78: 0 | ABD78: 0 | ABE78: 0 | ABF78: 0 | ABG78: 0 | ABH78: 0 | ABI78: 0 | ABJ78: 0 | ABK78: 0 | ABL78: 0 | ABM78: 0 | ABN78: 0 | ABO78: 0 | ABP78: 0 | ABQ78: 0 | ABR78: 0 | ABS78: 0 | ABT78: 0 | ABU78: 0 | ABV78: 0 | ABW78: 0 | ABX78: 0 | ABY78: 0 | ABZ78: 0 | ACA78: 0 | ACB78: 0 | ACC78: 0 | ACD78: 0 | ACE78: 0 | ACF78: 0 | ACG78: 0 | ACH78: 0 | ACI78: 0 | ACJ78: 0 | ACK78: 0 | ACL78: 0 | ACM78: 0 | ACN78: 0 | ACO78: 0 | ACP78: 0 | ACQ78: 0 | ACR78: 0 | ACS78: 0 | ACT78: 0 | ACU78: 0 | ACV78: 0 | ACW78: =$F$78*ACW72 -> 0 | ACX78: 0 | ACY78: 0 | ACZ78: 0 | ADA78: 0 | ADB78: 0 | ADC78: 0 | ADD78: 0 | ADE78: 0 | ADF78: 0 | ADG78: 0 | ADH78: 0 | ADI78: 0 | ADJ78: 0 | ADK78: 0 | ADL78: 0 | ADM78: 0 | ADN78: 0 | ADO78: 0 | ADP78: 0 | ADQ78: 0 | ADR78: 0 | ADS78: 0 | ADT78: 0 | ADU78: 0 | ADV78: 0 | ADW78: 0 | ADX78: 0 | ADY78: 0 | ADZ78: 0 | AEA78: 0 | AEB78: 0 | AEC78: 0 | AED78: 0 | AEE78: 0 | AEF78: 0 | AEG78: 0 | AEH78: 0 | AEI78: 0 | AEJ78: 0 | AEK78: 0 | AEL78: 0 | AEM78: 0 | AEN78: 0 | AEO78: 0 | AEP78: 0 | AEQ78: 0 | AER78: 0 | AES78: 0 | AET78: 0 | AEU78: 0 | AEV78: 0 | AEW78: 0 | AEX78: 0 | AEY78: 0 | AEZ78: 0 | AFA78: 0 | AFB78: 0 | AFC78: 0 | AFD78: 0 | AFE78: 0 | AFF78: 0 | AFG78: 0 | AFH78: 0 | AFI78: =$F$78*AFI72 -> 0 | AFJ78: 0 | AFK78: 0 | AFL78: 0 | AFM78: 0 | AFN78: 0 | AFO78: 0 | AFP78: 0 | AFQ78: 0 | AFR78: 0 | AFS78: 0 | AFT78: 0 | AFU78: 0 | AFV78: 0 | AFW78: 0 | AFX78: 0 | AFY78: 0 | AFZ78: 0 | AGA78: 0 | AGB78: 0 | AGC78: 0 | AGD78: 0 | AGE78: 0 | AGF78: 0 | AGG78: 0 | AGH78: 0 | AGI78: 0 | AGJ78: 0 | AGK78: 0
B79: Construction with Inflation - Conversion of Overnight Cost | I79: =I78*I75 -> 0.01652248946 | J79: 58.28086619 | K79: 888.1459361 | L79: 58.47234197 | M79: 0.01663123367 | N79: 2.043648792e-08 | O79: 0 | P79: 0 | Q79: 0 | R79: 0 | S79: 0 | T79: 0 | U79: 0 | V79: 0 | W79: 0 | X79: 0 | Y79: 0 | Z79: 0 | AA79: 0 | AB79: 0 | AC79: 0 | AD79: 0 | AE79: 0 | AF79: 0 | AG79: 0 | AH79: 0 | AI79: 0 | AJ79: 0 | AK79: 0 | AL79: 0 | AM79: 0 | AN79: 0 | AO79: 0 | AP79: 0 | AQ79: 0 | AR79: 0 | AS79: 0 | AT79: 0 | AU79: 0 | AV79: 0 | AW79: 0 | AX79: 0 | AY79: 0 | AZ79: 0 | BA79: 0 | BB79: 0 | BC79: 0 | BD79: 0 | BE79: 0 | BF79: 0 | BG79: 0 | BH79: 0 | BI79: 0 | BJ79: 0 | BK79: 0 | BL79: 0 | BM79: 0 | BN79: 0 | BO79: 0 | BP79: 0 | BQ79: 0 | BR79: 0 | BS79: 0 | BT79: 0 | BU79: =BU78*BU75 -> 0 | BV79: 0 | BW79: 0 | BX79: 0 | BY79: 0 | BZ79: 0 | CA79: 0 | CB79: 0 | CC79: 0 | CD79: 0 | CE79: 0 | CF79: 0 | CG79: 0 | CH79: 0 | CI79: 0 | CJ79: 0 | CK79: 0 | CL79: 0 | CM79: 0 | CN79: 0 | CO79: 0 | CP79: 0 | CQ79: 0 | CR79: 0 | CS79: 0 | CT79: 0 | CU79: 0 | CV79: 0 | CW79: 0 | CX79: 0 | CY79: 0 | CZ79: 0 | DA79: 0 | DB79: 0 | DC79: 0 | DD79: 0 | DE79: 0 | DF79: 0 | DG79: 0 | DH79: 0 | DI79: 0 | DJ79: 0 | DK79: 0 | DL79: 0 | DM79: 0 | DN79: 0 | DO79: 0 | DP79: 0 | DQ79: 0 | DR79: 0 | DS79: 0 | DT79: 0 | DU79: 0 | DV79: 0 | DW79: 0 | DX79: 0 | DY79: 0 | DZ79: 0 | EA79: 0 | EB79: 0 | EC79: 0 | ED79: 0 | EE79: 0 | EF79: 0 | EG79: =EG78*EG75 -> 0 | EH79: 0 | EI79: 0 | EJ79: 0 | EK79: 0 | EL79: 0 | EM79: 0 | EN79: 0 | EO79: 0 | EP79: 0 | EQ79: 0 | ER79: 0 | ES79: 0 | ET79: 0 | EU79: 0 | EV79: 0 | EW79: 0 | EX79: 0 | EY79: 0 | EZ79: 0 | FA79: 0 | FB79: 0 | FC79: 0 | FD79: 0 | FE79: 0 | FF79: 0 | FG79: 0 | FH79: 0 | FI79: 0 | FJ79: 0 | FK79: 0 | FL79: 0 | FM79: 0 | FN79: 0 | FO79: 0 | FP79: 0 | FQ79: 0 | FR79: 0 | FS79: 0 | FT79: 0 | FU79: 0 | FV79: 0 | FW79: 0 | FX79: 0 | FY79: 0 | FZ79: 0 | GA79: 0 | GB79: 0 | GC79: 0 | GD79: 0 | GE79: 0 | GF79: 0 | GG79: 0 | GH79: 0 | GI79: 0 | GJ79: 0 | GK79: 0 | GL79: 0 | GM79: 0 | GN79: 0 | GO79: 0 | GP79: 0 | GQ79: 0 | GR79: 0 | GS79: =GS78*GS75 -> 0 | GT79: 0 | GU79: 0 | GV79: 0 | GW79: 0 | GX79: 0 | GY79: 0 | GZ79: 0 | HA79: 0 | HB79: 0 | HC79: 0 | HD79: 0 | HE79: 0 | HF79: 0 | HG79: 0 | HH79: 0 | HI79: 0 | HJ79: 0 | HK79: 0 | HL79: 0 | HM79: 0 | HN79: 0 | HO79: 0 | HP79: 0 | HQ79: 0 | HR79: 0 | HS79: 0 | HT79: 0 | HU79: 0 | HV79: 0 | HW79: 0 | HX79: 0 | HY79: 0 | HZ79: 0 | IA79: 0 | IB79: 0 | IC79: 0 | ID79: 0 | IE79: 0 | IF79: 0 | IG79: 0 | IH79: 0 | II79: 0 | IJ79: 0 | IK79: 0 | IL79: 0 | IM79: 0 | IN79: 0 | IO79: 0 | IP79: 0 | IQ79: 0 | IR79: 0 | IS79: 0 | IT79: 0 | IU79: 0 | IV79: 0 | IW79: 0 | IX79: 0 | IY79: 0 | IZ79: 0 | JA79: 0 | JB79: 0 | JC79: 0 | JD79: 0 | JE79: =JE78*JE75 -> 0 | JF79: 0 | JG79: 0 | JH79: 0 | JI79: 0 | JJ79: 0 | JK79: 0 | JL79: 0 | JM79: 0 | JN79: 0 | JO79: 0 | JP79: 0 | JQ79: 0 | JR79: 0 | JS79: 0 | JT79: 0 | JU79: 0 | JV79: 0 | JW79: 0 | JX79: 0 | JY79: 0 | JZ79: 0 | KA79: 0 | KB79: 0 | KC79: 0 | KD79: 0 | KE79: 0 | KF79: 0 | KG79: 0 | KH79: 0 | KI79: 0 | KJ79: 0 | KK79: 0 | KL79: 0 | KM79: 0 | KN79: 0 | KO79: 0 | KP79: 0 | KQ79: 0 | KR79: 0 | KS79: 0 | KT79: 0 | KU79: 0 | KV79: 0 | KW79: 0 | KX79: 0 | KY79: 0 | KZ79: 0 | LA79: 0 | LB79: 0 | LC79: 0 | LD79: 0 | LE79: 0 | LF79: 0 | LG79: 0 | LH79: 0 | LI79: 0 | LJ79: 0 | LK79: 0 | LL79: 0 | LM79: 0 | LN79: 0 | LO79: 0 | LP79: 0 | LQ79: =LQ78*LQ75 -> 0 | LR79: 0 | LS79: 0 | LT79: 0 | LU79: 0 | LV79: 0 | LW79: 0 | LX79: 0 | LY79: 0 | LZ79: 0 | MA79: 0 | MB79: 0 | MC79: 0 | MD79: 0 | ME79: 0 | MF79: 0 | MG79: 0 | MH79: 0 | MI79: 0 | MJ79: 0 | MK79: 0 | ML79: 0 | MM79: 0 | MN79: 0 | MO79: 0 | MP79: 0 | MQ79: 0 | MR79: 0 | MS79: 0 | MT79: 0 | MU79: 0 | MV79: 0 | MW79: 0 | MX79: 0 | MY79: 0 | MZ79: 0 | NA79: 0 | NB79: 0 | NC79: 0 | ND79: 0 | NE79: 0 | NF79: 0 | NG79: 0 | NH79: 0 | NI79: 0 | NJ79: 0 | NK79: 0 | NL79: 0 | NM79: 0 | NN79: 0 | NO79: 0 | NP79: 0 | NQ79: 0 | NR79: 0 | NS79: 0 | NT79: 0 | NU79: 0 | NV79: 0 | NW79: 0 | NX79: 0 | NY79: 0 | NZ79: 0 | OA79: 0 | OB79: 0 | OC79: =OC78*OC75 -> 0 | OD79: 0 | OE79: 0 | OF79: 0 | OG79: 0 | OH79: 0 | OI79: 0 | OJ79: 0 | OK79: 0 | OL79: 0 | OM79: 0 | ON79: 0 | OO79: 0 | OP79: 0 | OQ79: 0 | OR79: 0 | OS79: 0 | OT79: 0 | OU79: 0 | OV79: 0 | OW79: 0 | OX79: 0 | OY79: 0 | OZ79: 0 | PA79: 0 | PB79: 0 | PC79: 0 | PD79: 0 | PE79: 0 | PF79: 0 | PG79: 0 | PH79: 0 | PI79: 0 | PJ79: 0 | PK79: 0 | PL79: 0 | PM79: 0 | PN79: 0 | PO79: 0 | PP79: 0 | PQ79: 0 | PR79: 0 | PS79: 0 | PT79: 0 | PU79: 0 | PV79: 0 | PW79: 0 | PX79: 0 | PY79: 0 | PZ79: 0 | QA79: 0 | QB79: 0 | QC79: 0 | QD79: 0 | QE79: 0 | QF79: 0 | QG79: 0 | QH79: 0 | QI79: 0 | QJ79: 0 | QK79: 0 | QL79: 0 | QM79: 0 | QN79: 0 | QO79: =QO78*QO75 -> 0 | QP79: 0 | QQ79: 0 | QR79: 0 | QS79: 0 | QT79: 0 | QU79: 0 | QV79: 0 | QW79: 0 | QX79: 0 | QY79: 0 | QZ79: 0 | RA79: 0 | RB79: 0 | RC79: 0 | RD79: 0 | RE79: 0 | RF79: 0 | RG79: 0 | RH79: 0 | RI79: 0 | RJ79: 0 | RK79: 0 | RL79: 0 | RM79: 0 | RN79: 0 | RO79: 0 | RP79: 0 | RQ79: 0 | RR79: 0 | RS79: 0 | RT79: 0 | RU79: 0 | RV79: 0 | RW79: 0 | RX79: 0 | RY79: 0 | RZ79: 0 | SA79: 0 | SB79: 0 | SC79: 0 | SD79: 0 | SE79: 0 | SF79: 0 | SG79: 0 | SH79: 0 | SI79: 0 | SJ79: 0 | SK79: 0 | SL79: 0 | SM79: 0 | SN79: 0 | SO79: 0 | SP79: 0 | SQ79: 0 | SR79: 0 | SS79: 0 | ST79: 0 | SU79: 0 | SV79: 0 | SW79: 0 | SX79: 0 | SY79: 0 | SZ79: 0 | TA79: =TA78*TA75 -> 0 | TB79: 0 | TC79: 0 | TD79: 0 | TE79: 0 | TF79: 0 | TG79: 0 | TH79: 0 | TI79: 0 | TJ79: 0 | TK79: 0 | TL79: 0 | TM79: 0 | TN79: 0 | TO79: 0 | TP79: 0 | TQ79: 0 | TR79: 0 | TS79: 0 | TT79: 0 | TU79: 0 | TV79: 0 | TW79: 0 | TX79: 0 | TY79: 0 | TZ79: 0 | UA79: 0 | UB79: 0 | UC79: 0 | UD79: 0 | UE79: 0 | UF79: 0 | UG79: 0 | UH79: 0 | UI79: 0 | UJ79: 0 | UK79: 0 | UL79: 0 | UM79: 0 | UN79: 0 | UO79: 0 | UP79: 0 | UQ79: 0 | UR79: 0 | US79: 0 | UT79: 0 | UU79: 0 | UV79: 0 | UW79: 0 | UX79: 0 | UY79: 0 | UZ79: 0 | VA79: 0 | VB79: 0 | VC79: 0 | VD79: 0 | VE79: 0 | VF79: 0 | VG79: 0 | VH79: 0 | VI79: 0 | VJ79: 0 | VK79: 0 | VL79: 0 | VM79: =VM78*VM75 -> 0 | VN79: 0 | VO79: 0 | VP79: 0 | VQ79: 0 | VR79: 0 | VS79: 0 | VT79: 0 | VU79: 0 | VV79: 0 | VW79: 0 | VX79: 0 | VY79: 0 | VZ79: 0 | WA79: 0 | WB79: 0 | WC79: 0 | WD79: 0 | WE79: 0 | WF79: 0 | WG79: 0 | WH79: 0 | WI79: 0 | WJ79: 0 | WK79: 0 | WL79: 0 | WM79: 0 | WN79: 0 | WO79: 0 | WP79: 0 | WQ79: 0 | WR79: 0 | WS79: 0 | WT79: 0 | WU79: 0 | WV79: 0 | WW79: 0 | WX79: 0 | WY79: 0 | WZ79: 0 | XA79: 0 | XB79: 0 | XC79: 0 | XD79: 0 | XE79: 0 | XF79: 0 | XG79: 0 | XH79: 0 | XI79: 0 | XJ79: 0 | XK79: 0 | XL79: 0 | XM79: 0 | XN79: 0 | XO79: 0 | XP79: 0 | XQ79: 0 | XR79: 0 | XS79: 0 | XT79: 0 | XU79: 0 | XV79: 0 | XW79: 0 | XX79: 0 | XY79: =XY78*XY75 -> 0 | XZ79: 0 | YA79: 0 | YB79: 0 | YC79: 0 | YD79: 0 | YE79: 0 | YF79: 0 | YG79: 0 | YH79: 0 | YI79: 0 | YJ79: 0 | YK79: 0 | YL79: 0 | YM79: 0 | YN79: 0 | YO79: 0 | YP79: 0 | YQ79: 0 | YR79: 0 | YS79: 0 | YT79: 0 | YU79: 0 | YV79: 0 | YW79: 0 | YX79: 0 | YY79: 0 | YZ79: 0 | ZA79: 0 | ZB79: 0 | ZC79: 0 | ZD79: 0 | ZE79: 0 | ZF79: 0 | ZG79: 0 | ZH79: 0 | ZI79: 0 | ZJ79: 0 | ZK79: 0 | ZL79: 0 | ZM79: 0 | ZN79: 0 | ZO79: 0 | ZP79: 0 | ZQ79: 0 | ZR79: 0 | ZS79: 0 | ZT79: 0 | ZU79: 0 | ZV79: 0 | ZW79: 0 | ZX79: 0 | ZY79: 0 | ZZ79: 0 | AAA79: 0 | AAB79: 0 | AAC79: 0 | AAD79: 0 | AAE79: 0 | AAF79: 0 | AAG79: 0 | AAH79: 0 | AAI79: 0 | AAJ79: 0 | AAK79: =AAK78*AAK75 -> 0 | AAL79: 0 | AAM79: 0 | AAN79: 0 | AAO79: 0 | AAP79: 0 | AAQ79: 0 | AAR79: 0 | AAS79: 0 | AAT79: 0 | AAU79: 0 | AAV79: 0 | AAW79: 0 | AAX79: 0 | AAY79: 0 | AAZ79: 0 | ABA79: 0 | ABB79: 0 | ABC79: 0 | ABD79: 0 | ABE79: 0 | ABF79: 0 | ABG79: 0 | ABH79: 0 | ABI79: 0 | ABJ79: 0 | ABK79: 0 | ABL79: 0 | ABM79: 0 | ABN79: 0 | ABO79: 0 | ABP79: 0 | ABQ79: 0 | ABR79: 0 | ABS79: 0 | ABT79: 0 | ABU79: 0 | ABV79: 0 | ABW79: 0 | ABX79: 0 | ABY79: 0 | ABZ79: 0 | ACA79: 0 | ACB79: 0 | ACC79: 0 | ACD79: 0 | ACE79: 0 | ACF79: 0 | ACG79: 0 | ACH79: 0 | ACI79: 0 | ACJ79: 0 | ACK79: 0 | ACL79: 0 | ACM79: 0 | ACN79: 0 | ACO79: 0 | ACP79: 0 | ACQ79: 0 | ACR79: 0 | ACS79: 0 | ACT79: 0 | ACU79: 0 | ACV79: 0 | ACW79: =ACW78*ACW75 -> 0 | ACX79: 0 | ACY79: 0 | ACZ79: 0 | ADA79: 0 | ADB79: 0 | ADC79: 0 | ADD79: 0 | ADE79: 0 | ADF79: 0 | ADG79: 0 | ADH79: 0 | ADI79: 0 | ADJ79: 0 | ADK79: 0 | ADL79: 0 | ADM79: 0 | ADN79: 0 | ADO79: 0 | ADP79: 0 | ADQ79: 0 | ADR79: 0 | ADS79: 0 | ADT79: 0 | ADU79: 0 | ADV79: 0 | ADW79: 0 | ADX79: 0 | ADY79: 0 | ADZ79: 0 | AEA79: 0 | AEB79: 0 | AEC79: 0 | AED79: 0 | AEE79: 0 | AEF79: 0 | AEG79: 0 | AEH79: 0 | AEI79: 0 | AEJ79: 0 | AEK79: 0 | AEL79: 0 | AEM79: 0 | AEN79: 0 | AEO79: 0 | AEP79: 0 | AEQ79: 0 | AER79: 0 | AES79: 0 | AET79: 0 | AEU79: 0 | AEV79: 0 | AEW79: 0 | AEX79: 0 | AEY79: 0 | AEZ79: 0 | AFA79: 0 | AFB79: 0 | AFC79: 0 | AFD79: 0 | AFE79: 0 | AFF79: 0 | AFG79: 0 | AFH79: 0 | AFI79: =AFI78*AFI75 -> 0 | AFJ79: 0 | AFK79: 0 | AFL79: 0 | AFM79: 0 | AFN79: 0 | AFO79: 0 | AFP79: 0 | AFQ79: 0 | AFR79: 0 | AFS79: 0 | AFT79: 0 | AFU79: 0 | AFV79: 0 | AFW79: 0 | AFX79: 0 | AFY79: 0 | AFZ79: 0 | AGA79: 0 | AGB79: 0 | AGC79: 0 | AGD79: 0 | AGE79: 0 | AGF79: 0 | AGG79: 0 | AGH79: 0 | AGI79: 0 | AGJ79: 0 | AGK79: 0
B80: Final Period of Construction | E80: Switch | F80: =EDATE(E6,E4) -> 2001-07-01 | I80: =$F$80=I6 -> FALSE | J80: FALSE | K80: FALSE | L80: FALSE | M80: FALSE | N80: TRUE | O80: FALSE | P80: FALSE | Q80: FALSE | R80: FALSE | S80: FALSE | T80: FALSE | U80: FALSE | V80: FALSE | W80: FALSE | X80: FALSE | Y80: FALSE | Z80: FALSE | AA80: FALSE | AB80: FALSE | AC80: FALSE | AD80: FALSE | AE80: FALSE | AF80: FALSE | AG80: FALSE | AH80: FALSE | AI80: FALSE | AJ80: FALSE | AK80: FALSE | AL80: FALSE | AM80: FALSE | AN80: FALSE | AO80: FALSE | AP80: FALSE | AQ80: FALSE | AR80: FALSE | AS80: FALSE | AT80: FALSE | AU80: FALSE | AV80: FALSE | AW80: FALSE | AX80: FALSE | AY80: FALSE | AZ80: FALSE | BA80: FALSE | BB80: FALSE | BC80: FALSE | BD80: FALSE | BE80: FALSE | BF80: FALSE | BG80: FALSE | BH80: FALSE | BI80: FALSE | BJ80: FALSE | BK80: FALSE | BL80: FALSE | BM80: FALSE | BN80: FALSE | BO80: FALSE | BP80: FALSE | BQ80: FALSE | BR80: FALSE | BS80: FALSE | BT80: FALSE | BU80: =$F$80=BU6 -> FALSE | BV80: FALSE | BW80: FALSE | BX80: FALSE | BY80: FALSE | BZ80: FALSE | CA80: FALSE | CB80: FALSE | CC80: FALSE | CD80: FALSE | CE80: FALSE | CF80: FALSE | CG80: FALSE | CH80: FALSE | CI80: FALSE | CJ80: FALSE | CK80: FALSE | CL80: FALSE | CM80: FALSE | CN80: FALSE | CO80: FALSE | CP80: FALSE | CQ80: FALSE | CR80: FALSE | CS80: FALSE | CT80: FALSE | CU80: FALSE | CV80: FALSE | CW80: FALSE | CX80: FALSE | CY80: FALSE | CZ80: FALSE | DA80: FALSE | DB80: FALSE | DC80: FALSE | DD80: FALSE | DE80: FALSE | DF80: FALSE | DG80: FALSE | DH80: FALSE | DI80: FALSE | DJ80: FALSE | DK80: FALSE | DL80: FALSE | DM80: FALSE | DN80: FALSE | DO80: FALSE | DP80: FALSE | DQ80: FALSE | DR80: FALSE | DS80: FALSE | DT80: FALSE | DU80: FALSE | DV80: FALSE | DW80: FALSE | DX80: FALSE | DY80: FALSE | DZ80: FALSE | EA80: FALSE | EB80: FALSE | EC80: FALSE | ED80: FALSE | EE80: FALSE | EF80: FALSE | EG80: =$F$80=EG6 -> FALSE | EH80: FALSE | EI80: FALSE | EJ80: FALSE | EK80: FALSE | EL80: FALSE | EM80: FALSE | EN80: FALSE | EO80: FALSE | EP80: FALSE | EQ80: FALSE | ER80: FALSE | ES80: FALSE | ET80: FALSE | EU80: FALSE | EV80: FALSE | EW80: FALSE | EX80: FALSE | EY80: FALSE | EZ80: FALSE | FA80: FALSE | FB80: FALSE | FC80: FALSE | FD80: FALSE | FE80: FALSE | FF80: FALSE | FG80: FALSE | FH80: FALSE | FI80: FALSE | FJ80: FALSE | FK80: FALSE | FL80: FALSE | FM80: FALSE | FN80: FALSE | FO80: FALSE | FP80: FALSE | FQ80: FALSE | FR80: FALSE | FS80: FALSE | FT80: FALSE | FU80: FALSE | FV80: FALSE | FW80: FALSE | FX80: FALSE | FY80: FALSE | FZ80: FALSE | GA80: FALSE | GB80: FALSE | GC80: FALSE | GD80: FALSE | GE80: FALSE | GF80: FALSE | GG80: FALSE | GH80: FALSE | GI80: FALSE | GJ80: FALSE | GK80: FALSE | GL80: FALSE | GM80: FALSE | GN80: FALSE | GO80: FALSE | GP80: FALSE | GQ80: FALSE | GR80: FALSE | GS80: =$F$80=GS6 -> FALSE | GT80: FALSE | GU80: FALSE | GV80: FALSE | GW80: FALSE | GX80: FALSE | GY80: FALSE | GZ80: FALSE | HA80: FALSE | HB80: FALSE | HC80: FALSE | HD80: FALSE | HE80: FALSE | HF80: FALSE | HG80: FALSE | HH80: FALSE | HI80: FALSE | HJ80: FALSE | HK80: FALSE | HL80: FALSE | HM80: FALSE | HN80: FALSE | HO80: FALSE | HP80: FALSE | HQ80: FALSE | HR80: FALSE | HS80: FALSE | HT80: FALSE | HU80: FALSE | HV80: FALSE | HW80: FALSE | HX80: FALSE | HY80: FALSE | HZ80: FALSE | IA80: FALSE | IB80: FALSE | IC80: FALSE | ID80: FALSE | IE80: FALSE | IF80: FALSE | IG80: FALSE | IH80: FALSE | II80: FALSE | IJ80: FALSE | IK80: FALSE | IL80: FALSE | IM80: FALSE | IN80: FALSE | IO80: FALSE | IP80: FALSE | IQ80: FALSE | IR80: FALSE | IS80: FALSE | IT80: FALSE | IU80: FALSE | IV80: FALSE | IW80: FALSE | IX80: FALSE | IY80: FALSE | IZ80: FALSE | JA80: FALSE | JB80: FALSE | JC80: FALSE | JD80: FALSE | JE80: =$F$80=JE6 -> FALSE | JF80: FALSE | JG80: FALSE | JH80: FALSE | JI80: FALSE | JJ80: FALSE | JK80: FALSE | JL80: FALSE | JM80: FALSE | JN80: FALSE | JO80: FALSE | JP80: FALSE | JQ80: FALSE | JR80: FALSE | JS80: FALSE | JT80: FALSE | JU80: FALSE | JV80: FALSE | JW80: FALSE | JX80: FALSE | JY80: FALSE | JZ80: FALSE | KA80: FALSE | KB80: FALSE | KC80: FALSE | KD80: FALSE | KE80: FALSE | KF80: FALSE | KG80: FALSE | KH80: FALSE | KI80: FALSE | KJ80: FALSE | KK80: FALSE | KL80: FALSE | KM80: FALSE | KN80: FALSE | KO80: FALSE | KP80: FALSE | KQ80: FALSE | KR80: FALSE | KS80: FALSE | KT80: FALSE | KU80: FALSE | KV80: FALSE | KW80: FALSE | KX80: FALSE | KY80: FALSE | KZ80: FALSE | LA80: FALSE | LB80: FALSE | LC80: FALSE | LD80: FALSE | LE80: FALSE | LF80: FALSE | LG80: FALSE | LH80: FALSE | LI80: FALSE | LJ80: FALSE | LK80: FALSE | LL80: FALSE | LM80: FALSE | LN80: FALSE | LO80: FALSE | LP80: FALSE | LQ80: =$F$80=LQ6 -> FALSE | LR80: FALSE | LS80: FALSE | LT80: FALSE | LU80: FALSE | LV80: FALSE | LW80: FALSE | LX80: FALSE | LY80: FALSE | LZ80: FALSE | MA80: FALSE | MB80: FALSE | MC80: FALSE | MD80: FALSE | ME80: FALSE | MF80: FALSE | MG80: FALSE | MH80: FALSE | MI80: FALSE | MJ80: FALSE | MK80: FALSE | ML80: FALSE | MM80: FALSE | MN80: FALSE | MO80: FALSE | MP80: FALSE | MQ80: FALSE | MR80: FALSE | MS80: FALSE | MT80: FALSE | MU80: FALSE | MV80: FALSE | MW80: FALSE | MX80: FALSE | MY80: FALSE | MZ80: FALSE | NA80: FALSE | NB80: FALSE | NC80: FALSE | ND80: FALSE | NE80: FALSE | NF80: FALSE | NG80: FALSE | NH80: FALSE | NI80: FALSE | NJ80: FALSE | NK80: FALSE | NL80: FALSE | NM80: FALSE | NN80: FALSE | NO80: FALSE | NP80: FALSE | NQ80: FALSE | NR80: FALSE | NS80: FALSE | NT80: FALSE | NU80: FALSE | NV80: FALSE | NW80: FALSE | NX80: FALSE | NY80: FALSE | NZ80: FALSE | OA80: FALSE | OB80: FALSE | OC80: =$F$80=OC6 -> FALSE | OD80: FALSE | OE80: FALSE | OF80: FALSE | OG80: FALSE | OH80: FALSE | OI80: FALSE | OJ80: FALSE | OK80: FALSE | OL80: FALSE | OM80: FALSE | ON80: FALSE | OO80: FALSE | OP80: FALSE | OQ80: FALSE | OR80: FALSE | OS80: FALSE | OT80: FALSE | OU80: FALSE | OV80: FALSE | OW80: FALSE | OX80: FALSE | OY80: FALSE | OZ80: FALSE | PA80: FALSE | PB80: FALSE | PC80: FALSE | PD80: FALSE | PE80: FALSE | PF80: FALSE | PG80: FALSE | PH80: FALSE | PI80: FALSE | PJ80: FALSE | PK80: FALSE | PL80: FALSE | PM80: FALSE | PN80: FALSE | PO80: FALSE | PP80: FALSE | PQ80: FALSE | PR80: FALSE | PS80: FALSE | PT80: FALSE | PU80: FALSE | PV80: FALSE | PW80: FALSE | PX80: FALSE | PY80: FALSE | PZ80: FALSE | QA80: FALSE | QB80: FALSE | QC80: FALSE | QD80: FALSE | QE80: FALSE | QF80: FALSE | QG80: FALSE | QH80: FALSE | QI80: FALSE | QJ80: FALSE | QK80: FALSE | QL80: FALSE | QM80: FALSE | QN80: FALSE | QO80: =$F$80=QO6 -> FALSE | QP80: FALSE | QQ80: FALSE | QR80: FALSE | QS80: FALSE | QT80: FALSE | QU80: FALSE | QV80: FALSE | QW80: FALSE | QX80: FALSE | QY80: FALSE | QZ80: FALSE | RA80: FALSE | RB80: FALSE | RC80: FALSE | RD80: FALSE | RE80: FALSE | RF80: FALSE | RG80: FALSE | RH80: FALSE | RI80: FALSE | RJ80: FALSE | RK80: FALSE | RL80: FALSE | RM80: FALSE | RN80: FALSE | RO80: FALSE | RP80: FALSE | RQ80: FALSE | RR80: FALSE | RS80: FALSE | RT80: FALSE | RU80: FALSE | RV80: FALSE | RW80: FALSE | RX80: FALSE | RY80: FALSE | RZ80: FALSE | SA80: FALSE | SB80: FALSE | SC80: FALSE | SD80: FALSE | SE80: FALSE | SF80: FALSE | SG80: FALSE | SH80: FALSE | SI80: FALSE | SJ80: FALSE | SK80: FALSE | SL80: FALSE | SM80: FALSE | SN80: FALSE | SO80: FALSE | SP80: FALSE | SQ80: FALSE | SR80: FALSE | SS80: FALSE | ST80: FALSE | SU80: FALSE | SV80: FALSE | SW80: FALSE | SX80: FALSE | SY80: FALSE | SZ80: FALSE | TA80: =$F$80=TA6 -> FALSE | TB80: FALSE | TC80: FALSE | TD80: FALSE | TE80: FALSE | TF80: FALSE | TG80: FALSE | TH80: FALSE | TI80: FALSE | TJ80: FALSE | TK80: FALSE | TL80: FALSE | TM80: FALSE | TN80: FALSE | TO80: FALSE | TP80: FALSE | TQ80: FALSE | TR80: FALSE | TS80: FALSE | TT80: FALSE | TU80: FALSE | TV80: FALSE | TW80: FALSE | TX80: FALSE | TY80: FALSE | TZ80: FALSE | UA80: FALSE | UB80: FALSE | UC80: FALSE | UD80: FALSE | UE80: FALSE | UF80: FALSE | UG80: FALSE | UH80: FALSE | UI80: FALSE | UJ80: FALSE | UK80: FALSE | UL80: FALSE | UM80: FALSE | UN80: FALSE | UO80: FALSE | UP80: FALSE | UQ80: FALSE | UR80: FALSE | US80: FALSE | UT80: FALSE | UU80: FALSE | UV80: FALSE | UW80: FALSE | UX80: FALSE | UY80: FALSE | UZ80: FALSE | VA80: FALSE | VB80: FALSE | VC80: FALSE | VD80: FALSE | VE80: FALSE | VF80: FALSE | VG80: FALSE | VH80: FALSE | VI80: FALSE | VJ80: FALSE | VK80: FALSE | VL80: FALSE | VM80: =$F$80=VM6 -> FALSE | VN80: FALSE | VO80: FALSE | VP80: FALSE | VQ80: FALSE | VR80: FALSE | VS80: FALSE | VT80: FALSE | VU80: FALSE | VV80: FALSE | VW80: FALSE | VX80: FALSE | VY80: FALSE | VZ80: FALSE | WA80: FALSE | WB80: FALSE | WC80: FALSE | WD80: FALSE | WE80: FALSE | WF80: FALSE | WG80: FALSE | WH80: FALSE | WI80: FALSE | WJ80: FALSE | WK80: FALSE | WL80: FALSE | WM80: FALSE | WN80: FALSE | WO80: FALSE | WP80: FALSE | WQ80: FALSE | WR80: FALSE | WS80: FALSE | WT80: FALSE | WU80: FALSE | WV80: FALSE | WW80: FALSE | WX80: FALSE | WY80: FALSE | WZ80: FALSE | XA80: FALSE | XB80: FALSE | XC80: FALSE | XD80: FALSE | XE80: FALSE | XF80: FALSE | XG80: FALSE | XH80: FALSE | XI80: FALSE | XJ80: FALSE | XK80: FALSE | XL80: FALSE | XM80: FALSE | XN80: FALSE | XO80: FALSE | XP80: FALSE | XQ80: FALSE | XR80: FALSE | XS80: FALSE | XT80: FALSE | XU80: FALSE | XV80: FALSE | XW80: FALSE | XX80: FALSE | XY80: =$F$80=XY6 -> FALSE | XZ80: FALSE | YA80: FALSE | YB80: FALSE | YC80: FALSE | YD80: FALSE | YE80: FALSE | YF80: FALSE | YG80: FALSE | YH80: FALSE | YI80: FALSE | YJ80: FALSE | YK80: FALSE | YL80: FALSE | YM80: FALSE | YN80: FALSE | YO80: FALSE | YP80: FALSE | YQ80: FALSE | YR80: FALSE | YS80: FALSE | YT80: FALSE | YU80: FALSE | YV80: FALSE | YW80: FALSE | YX80: FALSE | YY80: FALSE | YZ80: FALSE | ZA80: FALSE | ZB80: FALSE | ZC80: FALSE | ZD80: FALSE | ZE80: FALSE | ZF80: FALSE | ZG80: FALSE | ZH80: FALSE | ZI80: FALSE | ZJ80: FALSE | ZK80: FALSE | ZL80: FALSE | ZM80: FALSE | ZN80: FALSE | ZO80: FALSE | ZP80: FALSE | ZQ80: FALSE | ZR80: FALSE | ZS80: FALSE | ZT80: FALSE | ZU80: FALSE | ZV80: FALSE | ZW80: FALSE | ZX80: FALSE | ZY80: FALSE | ZZ80: FALSE | AAA80: FALSE | AAB80: FALSE | AAC80: FALSE | AAD80: FALSE | AAE80: FALSE | AAF80: FALSE | AAG80: FALSE | AAH80: FALSE | AAI80: FALSE | AAJ80: FALSE | AAK80: =$F$80=AAK6 -> FALSE | AAL80: FALSE | AAM80: FALSE | AAN80: FALSE | AAO80: FALSE | AAP80: FALSE | AAQ80: FALSE | AAR80: FALSE | AAS80: FALSE | AAT80: FALSE | AAU80: FALSE | AAV80: FALSE | AAW80: FALSE | AAX80: FALSE | AAY80: FALSE | AAZ80: FALSE | ABA80: FALSE | ABB80: FALSE | ABC80: FALSE | ABD80: FALSE | ABE80: FALSE | ABF80: FALSE | ABG80: FALSE | ABH80: FALSE | ABI80: FALSE | ABJ80: FALSE | ABK80: FALSE | ABL80: FALSE | ABM80: FALSE | ABN80: FALSE | ABO80: FALSE | ABP80: FALSE | ABQ80: FALSE | ABR80: FALSE | ABS80: FALSE | ABT80: FALSE | ABU80: FALSE | ABV80: FALSE | ABW80: FALSE | ABX80: FALSE | ABY80: FALSE | ABZ80: FALSE | ACA80: FALSE | ACB80: FALSE | ACC80: FALSE | ACD80: FALSE | ACE80: FALSE | ACF80: FALSE | ACG80: FALSE | ACH80: FALSE | ACI80: FALSE | ACJ80: FALSE | ACK80: FALSE | ACL80: FALSE | ACM80: FALSE | ACN80: FALSE | ACO80: FALSE | ACP80: FALSE | ACQ80: FALSE | ACR80: FALSE | ACS80: FALSE | ACT80: FALSE | ACU80: FALSE | ACV80: FALSE | ACW80: =$F$80=ACW6 -> FALSE | ACX80: FALSE | ACY80: FALSE | ACZ80: FALSE | ADA80: FALSE | ADB80: FALSE | ADC80: FALSE | ADD80: FALSE | ADE80: FALSE | ADF80: FALSE | ADG80: FALSE | ADH80: FALSE | ADI80: FALSE | ADJ80: FALSE | ADK80: FALSE | ADL80: FALSE | ADM80: FALSE | ADN80: FALSE | ADO80: FALSE | ADP80: FALSE | ADQ80: FALSE | ADR80: FALSE | ADS80: FALSE | ADT80: FALSE | ADU80: FALSE | ADV80: FALSE | ADW80: FALSE | ADX80: FALSE | ADY80: FALSE | ADZ80: FALSE | AEA80: FALSE | AEB80: FALSE | AEC80: FALSE | AED80: FALSE | AEE80: FALSE | AEF80: FALSE | AEG80: FALSE | AEH80: FALSE | AEI80: FALSE | AEJ80: FALSE | AEK80: FALSE | AEL80: FALSE | AEM80: FALSE | AEN80: FALSE | AEO80: FALSE | AEP80: FALSE | AEQ80: FALSE | AER80: FALSE | AES80: FALSE | AET80: FALSE | AEU80: FALSE | AEV80: FALSE | AEW80: FALSE | AEX80: FALSE | AEY80: FALSE | AEZ80: FALSE | AFA80: FALSE | AFB80: FALSE | AFC80: FALSE | AFD80: FALSE | AFE80: FALSE | AFF80: FALSE | AFG80: FALSE | AFH80: FALSE | AFI80: =$F$80=AFI6 -> FALSE | AFJ80: FALSE | AFK80: FALSE | AFL80: FALSE | AFM80: FALSE | AFN80: FALSE | AFO80: FALSE | AFP80: FALSE | AFQ80: FALSE | AFR80: FALSE | AFS80: FALSE | AFT80: FALSE | AFU80: FALSE | AFV80: FALSE | AFW80: FALSE | AFX80: FALSE | AFY80: FALSE | AFZ80: FALSE | AGA80: FALSE | AGB80: FALSE | AGC80: FALSE | AGD80: FALSE | AGE80: FALSE | AGF80: FALSE | AGG80: FALSE | AGH80: FALSE | AGI80: FALSE | AGJ80: FALSE | AGK80: FALSE
B82: Construction Work Balance Including Equity and Debt Return
C83: Open Balance | E83: Currency | I83: =H87 -> 0 | J83: 0.01652248946 | K83: 58.29741692 | L83: 946.5429744 | M83: 1006.632814 | N83: 1008.369627 | O83: 0 | P83: 0 | Q83: 0 | R83: 0 | S83: 0 | T83: 0 | U83: 0 | V83: 0 | W83: 0 | X83: 0 | Y83: 0 | Z83: 0 | AA83: 0 | AB83: 0 | AC83: 0 | AD83: 0 | AE83: 0 | AF83: 0 | AG83: 0 | AH83: 0 | AI83: 0 | AJ83: 0 | AK83: 0 | AL83: 0 | AM83: 0 | AN83: 0 | AO83: 0 | AP83: 0 | AQ83: 0 | AR83: 0 | AS83: 0 | AT83: 0 | AU83: 0 | AV83: 0 | AW83: 0 | AX83: 0 | AY83: 0 | AZ83: 0 | BA83: 0 | BB83: 0 | BC83: 0 | BD83: 0 | BE83: 0 | BF83: 0 | BG83: 0 | BH83: 0 | BI83: 0 | BJ83: 0 | BK83: 0 | BL83: 0 | BM83: 0 | BN83: 0 | BO83: 0 | BP83: 0 | BQ83: 0 | BR83: 0 | BS83: 0 | BT83: 0 | BU83: =BT87 -> 0 | BV83: 0 | BW83: 0 | BX83: 0 | BY83: 0 | BZ83: 0 | CA83: 0 | CB83: 0 | CC83: 0 | CD83: 0 | CE83: 0 | CF83: 0 | CG83: 0 | CH83: 0 | CI83: 0 | CJ83: 0 | CK83: 0 | CL83: 0 | CM83: 0 | CN83: 0 | CO83: 0 | CP83: 0 | CQ83: 0 | CR83: 0 | CS83: 0 | CT83: 0 | CU83: 0 | CV83: 0 | CW83: 0 | CX83: 0 | CY83: 0 | CZ83: 0 | DA83: 0 | DB83: 0 | DC83: 0 | DD83: 0 | DE83: 0 | DF83: 0 | DG83: 0 | DH83: 0 | DI83: 0 | DJ83: 0 | DK83: 0 | DL83: 0 | DM83: 0 | DN83: 0 | DO83: 0 | DP83: 0 | DQ83: 0 | DR83: 0 | DS83: 0 | DT83: 0 | DU83: 0 | DV83: 0 | DW83: 0 | DX83: 0 | DY83: 0 | DZ83: 0 | EA83: 0 | EB83: 0 | EC83: 0 | ED83: 0 | EE83: 0 | EF83: 0 | EG83: =EF87 -> 0 | EH83: 0 | EI83: 0 | EJ83: 0 | EK83: 0 | EL83: 0 | EM83: 0 | EN83: 0 | EO83: 0 | EP83: 0 | EQ83: 0 | ER83: 0 | ES83: 0 | ET83: 0 | EU83: 0 | EV83: 0 | EW83: 0 | EX83: 0 | EY83: 0 | EZ83: 0 | FA83: 0 | FB83: 0 | FC83: 0 | FD83: 0 | FE83: 0 | FF83: 0 | FG83: 0 | FH83: 0 | FI83: 0 | FJ83: 0 | FK83: 0 | FL83: 0 | FM83: 0 | FN83: 0 | FO83: 0 | FP83: 0 | FQ83: 0 | FR83: 0 | FS83: 0 | FT83: 0 | FU83: 0 | FV83: 0 | FW83: 0 | FX83: 0 | FY83: 0 | FZ83: 0 | GA83: 0 | GB83: 0 | GC83: 0 | GD83: 0 | GE83: 0 | GF83: 0 | GG83: 0 | GH83: 0 | GI83: 0 | GJ83: 0 | GK83: 0 | GL83: 0 | GM83: 0 | GN83: 0 | GO83: 0 | GP83: 0 | GQ83: 0 | GR83: 0 | GS83: =GR87 -> 0 | GT83: 0 | GU83: 0 | GV83: 0 | GW83: 0 | GX83: 0 | GY83: 0 | GZ83: 0 | HA83: 0 | HB83: 0 | HC83: 0 | HD83: 0 | HE83: 0 | HF83: 0 | HG83: 0 | HH83: 0 | HI83: 0 | HJ83: 0 | HK83: 0 | HL83: 0 | HM83: 0 | HN83: 0 | HO83: 0 | HP83: 0 | HQ83: 0 | HR83: 0 | HS83: 0 | HT83: 0 | HU83: 0 | HV83: 0 | HW83: 0 | HX83: 0 | HY83: 0 | HZ83: 0 | IA83: 0 | IB83: 0 | IC83: 0 | ID83: 0 | IE83: 0 | IF83: 0 | IG83: 0 | IH83: 0 | II83: 0 | IJ83: 0 | IK83: 0 | IL83: 0 | IM83: 0 | IN83: 0 | IO83: 0 | IP83: 0 | IQ83: 0 | IR83: 0 | IS83: 0 | IT83: 0 | IU83: 0 | IV83: 0 | IW83: 0 | IX83: 0 | IY83: 0 | IZ83: 0 | JA83: 0 | JB83: 0 | JC83: 0 | JD83: 0 | JE83: =JD87 -> 0 | JF83: 0 | JG83: 0 | JH83: 0 | JI83: 0 | JJ83: 0 | JK83: 0 | JL83: 0 | JM83: 0 | JN83: 0 | JO83: 0 | JP83: 0 | JQ83: 0 | JR83: 0 | JS83: 0 | JT83: 0 | JU83: 0 | JV83: 0 | JW83: 0 | JX83: 0 | JY83: 0 | JZ83: 0 | KA83: 0 | KB83: 0 | KC83: 0 | KD83: 0 | KE83: 0 | KF83: 0 | KG83: 0 | KH83: 0 | KI83: 0 | KJ83: 0 | KK83: 0 | KL83: 0 | KM83: 0 | KN83: 0 | KO83: 0 | KP83: 0 | KQ83: 0 | KR83: 0 | KS83: 0 | KT83: 0 | KU83: 0 | KV83: 0 | KW83: 0 | KX83: 0 | KY83: 0 | KZ83: 0 | LA83: 0 | LB83: 0 | LC83: 0 | LD83: 0 | LE83: 0 | LF83: 0 | LG83: 0 | LH83: 0 | LI83: 0 | LJ83: 0 | LK83: 0 | LL83: 0 | LM83: 0 | LN83: 0 | LO83: 0 | LP83: 0 | LQ83: =LP87 -> 0 | LR83: 0 | LS83: 0 | LT83: 0 | LU83: 0 | LV83: 0 | LW83: 0 | LX83: 0 | LY83: 0 | LZ83: 0 | MA83: 0 | MB83: 0 | MC83: 0 | MD83: 0 | ME83: 0 | MF83: 0 | MG83: 0 | MH83: 0 | MI83: 0 | MJ83: 0 | MK83: 0 | ML83: 0 | MM83: 0 | MN83: 0 | MO83: 0 | MP83: 0 | MQ83: 0 | MR83: 0 | MS83: 0 | MT83: 0 | MU83: 0 | MV83: 0 | MW83: 0 | MX83: 0 | MY83: 0 | MZ83: 0 | NA83: 0 | NB83: 0 | NC83: 0 | ND83: 0 | NE83: 0 | NF83: 0 | NG83: 0 | NH83: 0 | NI83: 0 | NJ83: 0 | NK83: 0 | NL83: 0 | NM83: 0 | NN83: 0 | NO83: 0 | NP83: 0 | NQ83: 0 | NR83: 0 | NS83: 0 | NT83: 0 | NU83: 0 | NV83: 0 | NW83: 0 | NX83: 0 | NY83: 0 | NZ83: 0 | OA83: 0 | OB83: 0 | OC83: =OB87 -> 0 | OD83: 0 | OE83: 0 | OF83: 0 | OG83: 0 | OH83: 0 | OI83: 0 | OJ83: 0 | OK83: 0 | OL83: 0 | OM83: 0 | ON83: 0 | OO83: 0 | OP83: 0 | OQ83: 0 | OR83: 0 | OS83: 0 | OT83: 0 | OU83: 0 | OV83: 0 | OW83: 0 | OX83: 0 | OY83: 0 | OZ83: 0 | PA83: 0 | PB83: 0 | PC83: 0 | PD83: 0 | PE83: 0 | PF83: 0 | PG83: 0 | PH83: 0 | PI83: 0 | PJ83: 0 | PK83: 0 | PL83: 0 | PM83: 0 | PN83: 0 | PO83: 0 | PP83: 0 | PQ83: 0 | PR83: 0 | PS83: 0 | PT83: 0 | PU83: 0 | PV83: 0 | PW83: 0 | PX83: 0 | PY83: 0 | PZ83: 0 | QA83: 0 | QB83: 0 | QC83: 0 | QD83: 0 | QE83: 0 | QF83: 0 | QG83: 0 | QH83: 0 | QI83: 0 | QJ83: 0 | QK83: 0 | QL83: 0 | QM83: 0 | QN83: 0 | QO83: =QN87 -> 0 | QP83: 0 | QQ83: 0 | QR83: 0 | QS83: 0 | QT83: 0 | QU83: 0 | QV83: 0 | QW83: 0 | QX83: 0 | QY83: 0 | QZ83: 0 | RA83: 0 | RB83: 0 | RC83: 0 | RD83: 0 | RE83: 0 | RF83: 0 | RG83: 0 | RH83: 0 | RI83: 0 | RJ83: 0 | RK83: 0 | RL83: 0 | RM83: 0 | RN83: 0 | RO83: 0 | RP83: 0 | RQ83: 0 | RR83: 0 | RS83: 0 | RT83: 0 | RU83: 0 | RV83: 0 | RW83: 0 | RX83: 0 | RY83: 0 | RZ83: 0 | SA83: 0 | SB83: 0 | SC83: 0 | SD83: 0 | SE83: 0 | SF83: 0 | SG83: 0 | SH83: 0 | SI83: 0 | SJ83: 0 | SK83: 0 | SL83: 0 | SM83: 0 | SN83: 0 | SO83: 0 | SP83: 0 | SQ83: 0 | SR83: 0 | SS83: 0 | ST83: 0 | SU83: 0 | SV83: 0 | SW83: 0 | SX83: 0 | SY83: 0 | SZ83: 0 | TA83: =SZ87 -> 0 | TB83: 0 | TC83: 0 | TD83: 0 | TE83: 0 | TF83: 0 | TG83: 0 | TH83: 0 | TI83: 0 | TJ83: 0 | TK83: 0 | TL83: 0 | TM83: 0 | TN83: 0 | TO83: 0 | TP83: 0 | TQ83: 0 | TR83: 0 | TS83: 0 | TT83: 0 | TU83: 0 | TV83: 0 | TW83: 0 | TX83: 0 | TY83: 0 | TZ83: 0 | UA83: 0 | UB83: 0 | UC83: 0 | UD83: 0 | UE83: 0 | UF83: 0 | UG83: 0 | UH83: 0 | UI83: 0 | UJ83: 0 | UK83: 0 | UL83: 0 | UM83: 0 | UN83: 0 | UO83: 0 | UP83: 0 | UQ83: 0 | UR83: 0 | US83: =UR87 -> 0 | UT83: =US87 -> 0 | UU83: =UT87 -> 0 | UV83: =UU87 -> 0 | UW83: 0 | UX83: 0 | UY83: 0 | UZ83: 0 | VA83: 0 | VB83: 0 | VC83: 0 | VD83: 0 | VE83: 0 | VF83: 0 | VG83: 0 | VH83: 0 | VI83: 0 | VJ83: 0 | VK83: 0 | VL83: 0 | VM83: 0 | VN83: 0 | VO83: 0 | VP83: 0 | VQ83: 0 | VR83: 0 | VS83: 0 | VT83: 0 | VU83: 0 | VV83: 0 | VW83: 0 | VX83: 0 | VY83: 0 | VZ83: 0 | WA83: 0 | WB83: 0 | WC83: 0 | WD83: 0 | WE83: 0 | WF83: 0 | WG83: 0 | WH83: 0 | WI83: 0 | WJ83: 0 | WK83: 0 | WL83: 0 | WM83: 0 | WN83: 0 | WO83: 0 | WP83: 0 | WQ83: 0 | WR83: 0 | WS83: 0 | WT83: 0 | WU83: 0 | WV83: 0 | WW83: 0 | WX83: 0 | WY83: 0 | WZ83: 0 | XA83: 0 | XB83: 0 | XC83: 0 | XD83: 0 | XE83: 0 | XF83: 0 | XG83: 0 | XH83: =XG87 -> 0 | XI83: 0 | XJ83: 0 | XK83: 0 | XL83: 0 | XM83: 0 | XN83: 0 | XO83: 0 | XP83: 0 | XQ83: 0 | XR83: 0 | XS83: 0 | XT83: 0 | XU83: 0 | XV83: 0 | XW83: 0 | XX83: 0 | XY83: 0 | XZ83: 0 | YA83: 0 | YB83: 0 | YC83: 0 | YD83: 0 | YE83: 0 | YF83: 0 | YG83: 0 | YH83: 0 | YI83: 0 | YJ83: 0 | YK83: 0 | YL83: 0 | YM83: 0 | YN83: 0 | YO83: 0 | YP83: 0 | YQ83: 0 | YR83: 0 | YS83: 0 | YT83: 0 | YU83: 0 | YV83: 0 | YW83: 0 | YX83: 0 | YY83: 0 | YZ83: 0 | ZA83: 0 | ZB83: 0 | ZC83: 0 | ZD83: 0 | ZE83: 0 | ZF83: 0 | ZG83: 0 | ZH83: 0 | ZI83: 0 | ZJ83: 0 | ZK83: 0 | ZL83: 0 | ZM83: 0 | ZN83: 0 | ZO83: 0 | ZP83: 0 | ZQ83: 0 | ZR83: 0 | ZS83: 0 | ZT83: =ZS87 -> 0 | ZU83: =ZT87 -> 0 | ZV83: =ZU87 -> 0 | ZW83: =ZV87 -> 0 | ZX83: =ZW87 -> 0 | ZY83: 0 | ZZ83: 0 | AAA83: 0 | AAB83: 0 | AAC83: 0 | AAD83: 0 | AAE83: 0 | AAF83: 0 | AAG83: 0 | AAH83: 0 | AAI83: 0 | AAJ83: 0 | AAK83: 0 | AAL83: 0 | AAM83: 0 | AAN83: 0 | AAO83: 0 | AAP83: 0 | AAQ83: 0 | AAR83: 0 | AAS83: 0 | AAT83: 0 | AAU83: 0 | AAV83: 0 | AAW83: 0 | AAX83: 0 | AAY83: 0 | AAZ83: 0 | ABA83: 0 | ABB83: 0 | ABC83: 0 | ABD83: 0 | ABE83: 0 | ABF83: 0 | ABG83: 0 | ABH83: 0 | ABI83: 0 | ABJ83: 0 | ABK83: 0 | ABL83: 0 | ABM83: 0 | ABN83: 0 | ABO83: 0 | ABP83: 0 | ABQ83: 0 | ABR83: 0 | ABS83: 0 | ABT83: 0 | ABU83: 0 | ABV83: 0 | ABW83: 0 | ABX83: 0 | ABY83: 0 | ABZ83: 0 | ACA83: 0 | ACB83: 0 | ACC83: 0 | ACD83: 0 | ACE83: 0 | ACF83: 0 | ACG83: 0 | ACH83: 0 | ACI83: 0 | ACJ83: =ACI87 -> 0 | ACK83: 0 | ACL83: 0 | ACM83: 0 | ACN83: 0 | ACO83: 0 | ACP83: 0 | ACQ83: 0 | ACR83: 0 | ACS83: 0 | ACT83: 0 | ACU83: 0 | ACV83: 0 | ACW83: 0 | ACX83: 0 | ACY83: 0 | ACZ83: 0 | ADA83: 0 | ADB83: 0 | ADC83: 0 | ADD83: 0 | ADE83: 0 | ADF83: 0 | ADG83: 0 | ADH83: 0 | ADI83: 0 | ADJ83: 0 | ADK83: 0 | ADL83: 0 | ADM83: 0 | ADN83: 0 | ADO83: 0 | ADP83: 0 | ADQ83: 0 | ADR83: 0 | ADS83: 0 | ADT83: 0 | ADU83: 0 | ADV83: 0 | ADW83: 0 | ADX83: 0 | ADY83: 0 | ADZ83: 0 | AEA83: 0 | AEB83: 0 | AEC83: 0 | AED83: 0 | AEE83: 0 | AEF83: 0 | AEG83: 0 | AEH83: 0 | AEI83: 0 | AEJ83: 0 | AEK83: 0 | AEL83: 0 | AEM83: 0 | AEN83: 0 | AEO83: 0 | AEP83: 0 | AEQ83: 0 | AER83: 0 | AES83: 0 | AET83: 0 | AEU83: 0 | AEV83: =AEU87 -> 0 | AEW83: 0 | AEX83: 0 | AEY83: 0 | AEZ83: 0 | AFA83: 0 | AFB83: 0 | AFC83: 0 | AFD83: 0 | AFE83: 0 | AFF83: 0 | AFG83: 0 | AFH83: 0 | AFI83: 0 | AFJ83: 0 | AFK83: 0 | AFL83: 0 | AFM83: 0 | AFN83: 0 | AFO83: 0 | AFP83: 0 | AFQ83: 0 | AFR83: 0 | AFS83: 0 | AFT83: 0 | AFU83: 0 | AFV83: 0 | AFW83: 0 | AFX83: 0 | AFY83: 0 | AFZ83: 0 | AGA83: 0 | AGB83: 0 | AGC83: 0 | AGD83: 0 | AGE83: 0 | AGF83: 0 | AGG83: 0 | AGH83: 0 | AGI83: 0 | AGJ83: 0 | AGK83: 0
C84: Add: Accrued Return (Annual and Periodic AT WACC) | E84: Currency | F84: ='Solar Carrying Charge'!M56 -> 0.001708847287 | I84: =I83*$F$84 -> 0 | J84: =J83*$F$84 -> 2.823441129e-05 | K84: 0.09962138275 | L84: 1.617497394 | M84: 1.720181753 | N84: 1.723149701 | O84: 0 | P84: 0 | Q84: 0 | R84: 0 | S84: 0 | T84: 0 | U84: 0 | V84: 0 | W84: 0 | X84: 0 | Y84: 0 | Z84: 0 | AA84: 0 | AB84: 0 | AC84: 0 | AD84: 0 | AE84: 0 | AF84: 0 | AG84: 0 | AH84: 0 | AI84: 0 | AJ84: 0 | AK84: 0 | AL84: 0 | AM84: 0 | AN84: 0 | AO84: 0 | AP84: 0 | AQ84: 0 | AR84: 0 | AS84: 0 | AT84: 0 | AU84: 0 | AV84: 0 | AW84: 0 | AX84: 0 | AY84: 0 | AZ84: 0 | BA84: 0 | BB84: 0 | BC84: 0 | BD84: 0 | BE84: 0 | BF84: 0 | BG84: 0 | BH84: 0 | BI84: 0 | BJ84: 0 | BK84: 0 | BL84: 0 | BM84: 0 | BN84: 0 | BO84: 0 | BP84: 0 | BQ84: 0 | BR84: 0 | BS84: 0 | BT84: 0 | BU84: 0 | BV84: =BV83*$F$84 -> 0 | BW84: 0 | BX84: 0 | BY84: 0 | BZ84: 0 | CA84: 0 | CB84: 0 | CC84: 0 | CD84: 0 | CE84: 0 | CF84: 0 | CG84: 0 | CH84: 0 | CI84: 0 | CJ84: 0 | CK84: 0 | CL84: 0 | CM84: 0 | CN84: 0 | CO84: 0 | CP84: 0 | CQ84: 0 | CR84: 0 | CS84: 0 | CT84: 0 | CU84: 0 | CV84: 0 | CW84: 0 | CX84: 0 | CY84: 0 | CZ84: 0 | DA84: 0 | DB84: 0 | DC84: 0 | DD84: 0 | DE84: 0 | DF84: 0 | DG84: 0 | DH84: 0 | DI84: 0 | DJ84: 0 | DK84: 0 | DL84: 0 | DM84: 0 | DN84: 0 | DO84: 0 | DP84: 0 | DQ84: 0 | DR84: 0 | DS84: 0 | DT84: 0 | DU84: 0 | DV84: 0 | DW84: 0 | DX84: 0 | DY84: 0 | DZ84: 0 | EA84: 0 | EB84: 0 | EC84: 0 | ED84: 0 | EE84: 0 | EF84: 0 | EG84: 0 | EH84: =EH83*$F$84 -> 0 | EI84: 0 | EJ84: 0 | EK84: 0 | EL84: 0 | EM84: 0 | EN84: 0 | EO84: 0 | EP84: 0 | EQ84: 0 | ER84: 0 | ES84: 0 | ET84: 0 | EU84: 0 | EV84: 0 | EW84: 0 | EX84: 0 | EY84: 0 | EZ84: 0 | FA84: 0 | FB84: 0 | FC84: 0 | FD84: 0 | FE84: 0 | FF84: 0 | FG84: 0 | FH84: 0 | FI84: 0 | FJ84: 0 | FK84: 0 | FL84: 0 | FM84: 0 | FN84: 0 | FO84: 0 | FP84: 0 | FQ84: 0 | FR84: 0 | FS84: 0 | FT84: 0 | FU84: 0 | FV84: 0 | FW84: 0 | FX84: 0 | FY84: 0 | FZ84: 0 | GA84: 0 | GB84: 0 | GC84: 0 | GD84: 0 | GE84: 0 | GF84: 0 | GG84: 0 | GH84: 0 | GI84: 0 | GJ84: 0 | GK84: 0 | GL84: 0 | GM84: 0 | GN84: 0 | GO84: 0 | GP84: 0 | GQ84: 0 | GR84: 0 | GS84: 0 | GT84: =GT83*$F$84 -> 0 | GU84: 0 | GV84: 0 | GW84: 0 | GX84: 0 | GY84: 0 | GZ84: 0 | HA84: 0 | HB84: 0 | HC84: 0 | HD84: 0 | HE84: 0 | HF84: 0 | HG84: 0 | HH84: 0 | HI84: 0 | HJ84: 0 | HK84: 0 | HL84: 0 | HM84: 0 | HN84: 0 | HO84: 0 | HP84: 0 | HQ84: 0 | HR84: 0 | HS84: 0 | HT84: 0 | HU84: 0 | HV84: 0 | HW84: 0 | HX84: 0 | HY84: 0 | HZ84: 0 | IA84: 0 | IB84: 0 | IC84: 0 | ID84: 0 | IE84: 0 | IF84: 0 | IG84: 0 | IH84: 0 | II84: 0 | IJ84: 0 | IK84: 0 | IL84: 0 | IM84: 0 | IN84: 0 | IO84: 0 | IP84: 0 | IQ84: 0 | IR84: 0 | IS84: 0 | IT84: 0 | IU84: 0 | IV84: 0 | IW84: 0 | IX84: 0 | IY84: 0 | IZ84: 0 | JA84: 0 | JB84: 0 | JC84: 0 | JD84: 0 | JE84: 0 | JF84: =JF83*$F$84 -> 0 | JG84: 0 | JH84: 0 | JI84: 0 | JJ84: 0 | JK84: 0 | JL84: 0 | JM84: 0 | JN84: 0 | JO84: 0 | JP84: 0 | JQ84: 0 | JR84: 0 | JS84: 0 | JT84: 0 | JU84: 0 | JV84: 0 | JW84: 0 | JX84: 0 | JY84: 0 | JZ84: 0 | KA84: 0 | KB84: 0 | KC84: 0 | KD84: 0 | KE84: 0 | KF84: 0 | KG84: 0 | KH84: 0 | KI84: 0 | KJ84: 0 | KK84: 0 | KL84: 0 | KM84: 0 | KN84: 0 | KO84: 0 | KP84: 0 | KQ84: 0 | KR84: 0 | KS84: 0 | KT84: 0 | KU84: 0 | KV84: 0 | KW84: 0 | KX84: 0 | KY84: 0 | KZ84: 0 | LA84: 0 | LB84: 0 | LC84: 0 | LD84: 0 | LE84: 0 | LF84: 0 | LG84: 0 | LH84: 0 | LI84: 0 | LJ84: 0 | LK84: 0 | LL84: 0 | LM84: 0 | LN84: 0 | LO84: 0 | LP84: 0 | LQ84: 0 | LR84: =LR83*$F$84 -> 0 | LS84: 0 | LT84: 0 | LU84: 0 | LV84: 0 | LW84: 0 | LX84: 0 | LY84: 0 | LZ84: 0 | MA84: 0 | MB84: 0 | MC84: 0 | MD84: 0 | ME84: 0 | MF84: 0 | MG84: 0 | MH84: 0 | MI84: 0 | MJ84: 0 | MK84: 0 | ML84: 0 | MM84: 0 | MN84: 0 | MO84: 0 | MP84: 0 | MQ84: 0 | MR84: 0 | MS84: 0 | MT84: 0 | MU84: 0 | MV84: 0 | MW84: 0 | MX84: 0 | MY84: 0 | MZ84: 0 | NA84: 0 | NB84: 0 | NC84: 0 | ND84: 0 | NE84: 0 | NF84: 0 | NG84: 0 | NH84: 0 | NI84: 0 | NJ84: 0 | NK84: 0 | NL84: 0 | NM84: 0 | NN84: 0 | NO84: 0 | NP84: 0 | NQ84: 0 | NR84: 0 | NS84: 0 | NT84: 0 | NU84: 0 | NV84: 0 | NW84: 0 | NX84: 0 | NY84: 0 | NZ84: 0 | OA84: 0 | OB84: 0 | OC84: 0 | OD84: =OD83*$F$84 -> 0 | OE84: 0 | OF84: 0 | OG84: 0 | OH84: 0 | OI84: 0 | OJ84: 0 | OK84: 0 | OL84: 0 | OM84: 0 | ON84: 0 | OO84: 0 | OP84: 0 | OQ84: 0 | OR84: 0 | OS84: 0 | OT84: 0 | OU84: 0 | OV84: 0 | OW84: 0 | OX84: 0 | OY84: 0 | OZ84: 0 | PA84: 0 | PB84: 0 | PC84: 0 | PD84: 0 | PE84: 0 | PF84: 0 | PG84: 0 | PH84: 0 | PI84: 0 | PJ84: 0 | PK84: 0 | PL84: 0 | PM84: 0 | PN84: 0 | PO84: 0 | PP84: 0 | PQ84: 0 | PR84: 0 | PS84: 0 | PT84: 0 | PU84: 0 | PV84: 0 | PW84: 0 | PX84: 0 | PY84: 0 | PZ84: 0 | QA84: 0 | QB84: 0 | QC84: 0 | QD84: 0 | QE84: 0 | QF84: 0 | QG84: 0 | QH84: 0 | QI84: 0 | QJ84: 0 | QK84: 0 | QL84: 0 | QM84: 0 | QN84: 0 | QO84: 0 | QP84: =QP83*$F$84 -> 0 | QQ84: 0 | QR84: 0 | QS84: 0 | QT84: 0 | QU84: 0 | QV84: 0 | QW84: 0 | QX84: 0 | QY84: 0 | QZ84: 0 | RA84: 0 | RB84: 0 | RC84: 0 | RD84: 0 | RE84: 0 | RF84: 0 | RG84: 0 | RH84: 0 | RI84: 0 | RJ84: 0 | RK84: 0 | RL84: 0 | RM84: 0 | RN84: 0 | RO84: 0 | RP84: 0 | RQ84: 0 | RR84: 0 | RS84: 0 | RT84: 0 | RU84: 0 | RV84: 0 | RW84: 0 | RX84: 0 | RY84: 0 | RZ84: 0 | SA84: 0 | SB84: 0 | SC84: 0 | SD84: 0 | SE84: 0 | SF84: 0 | SG84: 0 | SH84: 0 | SI84: 0 | SJ84: 0 | SK84: 0 | SL84: 0 | SM84: 0 | SN84: 0 | SO84: 0 | SP84: 0 | SQ84: 0 | SR84: 0 | SS84: 0 | ST84: 0 | SU84: 0 | SV84: 0 | SW84: 0 | SX84: 0 | SY84: 0 | SZ84: 0 | TA84: 0 | TB84: =TB83*$F$84 -> 0 | TC84: 0 | TD84: 0 | TE84: 0 | TF84: 0 | TG84: 0 | TH84: 0 | TI84: 0 | TJ84: 0 | TK84: 0 | TL84: 0 | TM84: 0 | TN84: 0 | TO84: 0 | TP84: 0 | TQ84: 0 | TR84: 0 | TS84: 0 | TT84: 0 | TU84: 0 | TV84: 0 | TW84: 0 | TX84: 0 | TY84: 0 | TZ84: 0 | UA84: 0 | UB84: 0 | UC84: 0 | UD84: 0 | UE84: 0 | UF84: 0 | UG84: 0 | UH84: 0 | UI84: 0 | UJ84: 0 | UK84: 0 | UL84: 0 | UM84: 0 | UN84: 0 | UO84: 0 | UP84: 0 | UQ84: 0 | UR84: 0 | US84: 0 | UT84: 0 | UU84: 0 | UV84: 0 | UW84: 0 | UX84: 0 | UY84: 0 | UZ84: 0 | VA84: 0 | VB84: 0 | VC84: 0 | VD84: 0 | VE84: 0 | VF84: 0 | VG84: 0 | VH84: 0 | VI84: 0 | VJ84: 0 | VK84: 0 | VL84: 0 | VM84: 0 | VN84: =VN83*$F$84 -> 0 | VO84: 0 | VP84: 0 | VQ84: 0 | VR84: 0 | VS84: 0 | VT84: 0 | VU84: 0 | VV84: 0 | VW84: 0 | VX84: 0 | VY84: 0 | VZ84: 0 | WA84: 0 | WB84: 0 | WC84: 0 | WD84: 0 | WE84: 0 | WF84: 0 | WG84: 0 | WH84: 0 | WI84: 0 | WJ84: 0 | WK84: 0 | WL84: 0 | WM84: 0 | WN84: 0 | WO84: 0 | WP84: 0 | WQ84: 0 | WR84: 0 | WS84: 0 | WT84: 0 | WU84: 0 | WV84: 0 | WW84: 0 | WX84: 0 | WY84: 0 | WZ84: 0 | XA84: 0 | XB84: 0 | XC84: 0 | XD84: 0 | XE84: 0 | XF84: 0 | XG84: 0 | XH84: 0 | XI84: 0 | XJ84: 0 | XK84: 0 | XL84: 0 | XM84: 0 | XN84: 0 | XO84: 0 | XP84: 0 | XQ84: 0 | XR84: 0 | XS84: 0 | XT84: 0 | XU84: 0 | XV84: 0 | XW84: 0 | XX84: 0 | XY84: 0 | XZ84: =XZ83*$F$84 -> 0 | YA84: 0 | YB84: 0 | YC84: 0 | YD84: 0 | YE84: 0 | YF84: 0 | YG84: 0 | YH84: 0 | YI84: 0 | YJ84: 0 | YK84: 0 | YL84: 0 | YM84: 0 | YN84: 0 | YO84: 0 | YP84: 0 | YQ84: 0 | YR84: 0 | YS84: 0 | YT84: 0 | YU84: 0 | YV84: 0 | YW84: 0 | YX84: 0 | YY84: 0 | YZ84: 0 | ZA84: 0 | ZB84: 0 | ZC84: 0 | ZD84: 0 | ZE84: 0 | ZF84: 0 | ZG84: 0 | ZH84: 0 | ZI84: 0 | ZJ84: 0 | ZK84: 0 | ZL84: 0 | ZM84: 0 | ZN84: 0 | ZO84: 0 | ZP84: 0 | ZQ84: 0 | ZR84: 0 | ZS84: 0 | ZT84: 0 | ZU84: 0 | ZV84: 0 | ZW84: 0 | ZX84: 0 | ZY84: 0 | ZZ84: 0 | AAA84: 0 | AAB84: 0 | AAC84: 0 | AAD84: 0 | AAE84: 0 | AAF84: 0 | AAG84: 0 | AAH84: 0 | AAI84: 0 | AAJ84: 0 | AAK84: 0 | AAL84: =AAL83*$F$84 -> 0 | AAM84: 0 | AAN84: 0 | AAO84: 0 | AAP84: 0 | AAQ84: 0 | AAR84: 0 | AAS84: 0 | AAT84: 0 | AAU84: 0 | AAV84: 0 | AAW84: 0 | AAX84: 0 | AAY84: 0 | AAZ84: 0 | ABA84: 0 | ABB84: 0 | ABC84: 0 | ABD84: 0 | ABE84: 0 | ABF84: 0 | ABG84: 0 | ABH84: 0 | ABI84: 0 | ABJ84: 0 | ABK84: 0 | ABL84: 0 | ABM84: 0 | ABN84: 0 | ABO84: 0 | ABP84: 0 | ABQ84: 0 | ABR84: 0 | ABS84: 0 | ABT84: 0 | ABU84: 0 | ABV84: 0 | ABW84: 0 | ABX84: 0 | ABY84: 0 | ABZ84: 0 | ACA84: 0 | ACB84: 0 | ACC84: 0 | ACD84: 0 | ACE84: 0 | ACF84: 0 | ACG84: 0 | ACH84: 0 | ACI84: 0 | ACJ84: 0 | ACK84: 0 | ACL84: 0 | ACM84: 0 | ACN84: 0 | ACO84: 0 | ACP84: 0 | ACQ84: 0 | ACR84: 0 | ACS84: 0 | ACT84: 0 | ACU84: 0 | ACV84: 0 | ACW84: 0 | ACX84: =ACX83*$F$84 -> 0 | ACY84: 0 | ACZ84: 0 | ADA84: 0 | ADB84: 0 | ADC84: 0 | ADD84: 0 | ADE84: 0 | ADF84: 0 | ADG84: 0 | ADH84: 0 | ADI84: 0 | ADJ84: 0 | ADK84: 0 | ADL84: 0 | ADM84: 0 | ADN84: 0 | ADO84: 0 | ADP84: 0 | ADQ84: 0 | ADR84: 0 | ADS84: 0 | ADT84: 0 | ADU84: 0 | ADV84: 0 | ADW84: 0 | ADX84: 0 | ADY84: 0 | ADZ84: 0 | AEA84: 0 | AEB84: 0 | AEC84: 0 | AED84: 0 | AEE84: 0 | AEF84: 0 | AEG84: 0 | AEH84: 0 | AEI84: 0 | AEJ84: 0 | AEK84: 0 | AEL84: 0 | AEM84: 0 | AEN84: 0 | AEO84: 0 | AEP84: 0 | AEQ84: 0 | AER84: 0 | AES84: 0 | AET84: 0 | AEU84: 0 | AEV84: 0 | AEW84: 0 | AEX84: 0 | AEY84: 0 | AEZ84: 0 | AFA84: 0 | AFB84: 0 | AFC84: 0 | AFD84: 0 | AFE84: 0 | AFF84: 0 | AFG84: 0 | AFH84: 0 | AFI84: 0 | AFJ84: =AFJ83*$F$84 -> 0 | AFK84: 0 | AFL84: 0 | AFM84: 0 | AFN84: 0 | AFO84: 0 | AFP84: 0 | AFQ84: 0 | AFR84: 0 | AFS84: 0 | AFT84: 0 | AFU84: 0 | AFV84: 0 | AFW84: 0 | AFX84: 0 | AFY84: 0 | AFZ84: 0 | AGA84: 0 | AGB84: 0 | AGC84: 0 | AGD84: 0 | AGE84: 0 | AGF84: 0 | AGG84: 0 | AGH84: 0 | AGI84: 0 | AGJ84: 0 | AGK84: 0
C85: Add: Construction with Inflation from Above | E85: Currency | I85: =I79 -> 0.01652248946 | J85: =J79 -> 58.28086619 | K85: 888.1459361 | L85: 58.47234197 | M85: 0.01663123367 | N85: 2.043648792e-08 | O85: 0 | P85: 0 | Q85: 0 | R85: 0 | S85: 0 | T85: 0 | U85: 0 | V85: 0 | W85: 0 | X85: 0 | Y85: 0 | Z85: 0 | AA85: 0 | AB85: 0 | AC85: 0 | AD85: 0 | AE85: 0 | AF85: 0 | AG85: 0 | AH85: 0 | AI85: 0 | AJ85: 0 | AK85: 0 | AL85: 0 | AM85: 0 | AN85: 0 | AO85: 0 | AP85: 0 | AQ85: 0 | AR85: 0 | AS85: 0 | AT85: 0 | AU85: 0 | AV85: 0 | AW85: 0 | AX85: 0 | AY85: 0 | AZ85: 0 | BA85: 0 | BB85: 0 | BC85: 0 | BD85: 0 | BE85: 0 | BF85: 0 | BG85: 0 | BH85: 0 | BI85: 0 | BJ85: 0 | BK85: 0 | BL85: 0 | BM85: 0 | BN85: 0 | BO85: 0 | BP85: 0 | BQ85: 0 | BR85: 0 | BS85: 0 | BT85: 0 | BU85: 0 | BV85: =BV79 -> 0 | BW85: 0 | BX85: 0 | BY85: 0 | BZ85: 0 | CA85: 0 | CB85: 0 | CC85: 0 | CD85: 0 | CE85: 0 | CF85: 0 | CG85: 0 | CH85: 0 | CI85: 0 | CJ85: 0 | CK85: 0 | CL85: 0 | CM85: 0 | CN85: 0 | CO85: 0 | CP85: 0 | CQ85: 0 | CR85: 0 | CS85: 0 | CT85: 0 | CU85: 0 | CV85: 0 | CW85: 0 | CX85: 0 | CY85: 0 | CZ85: 0 | DA85: 0 | DB85: 0 | DC85: 0 | DD85: 0 | DE85: 0 | DF85: 0 | DG85: 0 | DH85: 0 | DI85: 0 | DJ85: 0 | DK85: 0 | DL85: 0 | DM85: 0 | DN85: 0 | DO85: 0 | DP85: 0 | DQ85: 0 | DR85: 0 | DS85: 0 | DT85: 0 | DU85: 0 | DV85: 0 | DW85: 0 | DX85: 0 | DY85: 0 | DZ85: 0 | EA85: 0 | EB85: 0 | EC85: 0 | ED85: 0 | EE85: 0 | EF85: 0 | EG85: 0 | EH85: =EH79 -> 0 | EI85: 0 | EJ85: 0 | EK85: 0 | EL85: 0 | EM85: 0 | EN85: 0 | EO85: 0 | EP85: 0 | EQ85: 0 | ER85: 0 | ES85: 0 | ET85: 0 | EU85: 0 | EV85: 0 | EW85: 0 | EX85: 0 | EY85: 0 | EZ85: 0 | FA85: 0 | FB85: 0 | FC85: 0 | FD85: 0 | FE85: 0 | FF85: 0 | FG85: 0 | FH85: 0 | FI85: 0 | FJ85: 0 | FK85: 0 | FL85: 0 | FM85: 0 | FN85: 0 | FO85: 0 | FP85: 0 | FQ85: 0 | FR85: 0 | FS85: 0 | FT85: 0 | FU85: 0 | FV85: 0 | FW85: 0 | FX85: 0 | FY85: 0 | FZ85: 0 | GA85: 0 | GB85: 0 | GC85: 0 | GD85: 0 | GE85: 0 | GF85: 0 | GG85: 0 | GH85: 0 | GI85: 0 | GJ85: 0 | GK85: 0 | GL85: 0 | GM85: 0 | GN85: 0 | GO85: 0 | GP85: 0 | GQ85: 0 | GR85: 0 | GS85: 0 | GT85: =GT79 -> 0 | GU85: 0 | GV85: 0 | GW85: 0 | GX85: 0 | GY85: 0 | GZ85: 0 | HA85: 0 | HB85: 0 | HC85: 0 | HD85: 0 | HE85: 0 | HF85: 0 | HG85: 0 | HH85: 0 | HI85: 0 | HJ85: 0 | HK85: 0 | HL85: 0 | HM85: 0 | HN85: 0 | HO85: 0 | HP85: 0 | HQ85: 0 | HR85: 0 | HS85: 0 | HT85: 0 | HU85: 0 | HV85: 0 | HW85: 0 | HX85: 0 | HY85: 0 | HZ85: 0 | IA85: 0 | IB85: 0 | IC85: 0 | ID85: 0 | IE85: 0 | IF85: 0 | IG85: 0 | IH85: 0 | II85: 0 | IJ85: 0 | IK85: 0 | IL85: 0 | IM85: 0 | IN85: 0 | IO85: 0 | IP85: 0 | IQ85: 0 | IR85: 0 | IS85: 0 | IT85: 0 | IU85: 0 | IV85: 0 | IW85: 0 | IX85: 0 | IY85: 0 | IZ85: 0 | JA85: 0 | JB85: 0 | JC85: 0 | JD85: 0 | JE85: 0 | JF85: =JF79 -> 0 | JG85: 0 | JH85: 0 | JI85: 0 | JJ85: 0 | JK85: 0 | JL85: 0 | JM85: 0 | JN85: 0 | JO85: 0 | JP85: 0 | JQ85: 0 | JR85: 0 | JS85: 0 | JT85: 0 | JU85: 0 | JV85: 0 | JW85: 0 | JX85: 0 | JY85: 0 | JZ85: 0 | KA85: 0 | KB85: 0 | KC85: 0 | KD85: 0 | KE85: 0 | KF85: 0 | KG85: 0 | KH85: 0 | KI85: 0 | KJ85: 0 | KK85: 0 | KL85: 0 | KM85: 0 | KN85: 0 | KO85: 0 | KP85: 0 | KQ85: 0 | KR85: 0 | KS85: 0 | KT85: 0 | KU85: 0 | KV85: 0 | KW85: 0 | KX85: 0 | KY85: 0 | KZ85: 0 | LA85: 0 | LB85: 0 | LC85: 0 | LD85: 0 | LE85: 0 | LF85: 0 | LG85: 0 | LH85: 0 | LI85: 0 | LJ85: 0 | LK85: 0 | LL85: 0 | LM85: 0 | LN85: 0 | LO85: 0 | LP85: 0 | LQ85: 0 | LR85: =LR79 -> 0 | LS85: 0 | LT85: 0 | LU85: 0 | LV85: 0 | LW85: 0 | LX85: 0 | LY85: 0 | LZ85: 0 | MA85: 0 | MB85: 0 | MC85: 0 | MD85: 0 | ME85: 0 | MF85: 0 | MG85: 0 | MH85: 0 | MI85: 0 | MJ85: 0 | MK85: 0 | ML85: 0 | MM85: 0 | MN85: 0 | MO85: 0 | MP85: 0 | MQ85: 0 | MR85: 0 | MS85: 0 | MT85: 0 | MU85: 0 | MV85: 0 | MW85: 0 | MX85: 0 | MY85: 0 | MZ85: 0 | NA85: 0 | NB85: 0 | NC85: 0 | ND85: 0 | NE85: 0 | NF85: 0 | NG85: 0 | NH85: 0 | NI85: 0 | NJ85: 0 | NK85: 0 | NL85: 0 | NM85: 0 | NN85: 0 | NO85: 0 | NP85: 0 | NQ85: 0 | NR85: 0 | NS85: 0 | NT85: 0 | NU85: 0 | NV85: 0 | NW85: 0 | NX85: 0 | NY85: 0 | NZ85: 0 | OA85: 0 | OB85: 0 | OC85: 0 | OD85: =OD79 -> 0 | OE85: 0 | OF85: 0 | OG85: 0 | OH85: 0 | OI85: 0 | OJ85: 0 | OK85: 0 | OL85: 0 | OM85: 0 | ON85: 0 | OO85: 0 | OP85: 0 | OQ85: 0 | OR85: 0 | OS85: 0 | OT85: 0 | OU85: 0 | OV85: 0 | OW85: 0 | OX85: 0 | OY85: 0 | OZ85: 0 | PA85: 0 | PB85: 0 | PC85: 0 | PD85: 0 | PE85: 0 | PF85: 0 | PG85: 0 | PH85: 0 | PI85: 0 | PJ85: 0 | PK85: 0 | PL85: 0 | PM85: 0 | PN85: 0 | PO85: 0 | PP85: 0 | PQ85: 0 | PR85: 0 | PS85: 0 | PT85: 0 | PU85: 0 | PV85: 0 | PW85: 0 | PX85: 0 | PY85: 0 | PZ85: 0 | QA85: 0 | QB85: 0 | QC85: 0 | QD85: 0 | QE85: 0 | QF85: 0 | QG85: 0 | QH85: 0 | QI85: 0 | QJ85: 0 | QK85: 0 | QL85: 0 | QM85: 0 | QN85: 0 | QO85: 0 | QP85: =QP79 -> 0 | QQ85: 0 | QR85: 0 | QS85: 0 | QT85: 0 | QU85: 0 | QV85: 0 | QW85: 0 | QX85: 0 | QY85: 0 | QZ85: 0 | RA85: 0 | RB85: 0 | RC85: 0 | RD85: 0 | RE85: 0 | RF85: 0 | RG85: 0 | RH85: 0 | RI85: 0 | RJ85: 0 | RK85: 0 | RL85: 0 | RM85: 0 | RN85: 0 | RO85: 0 | RP85: 0 | RQ85: 0 | RR85: 0 | RS85: 0 | RT85: 0 | RU85: 0 | RV85: 0 | RW85: 0 | RX85: 0 | RY85: 0 | RZ85: 0 | SA85: 0 | SB85: 0 | SC85: 0 | SD85: 0 | SE85: 0 | SF85: 0 | SG85: 0 | SH85: 0 | SI85: 0 | SJ85: 0 | SK85: 0 | SL85: 0 | SM85: 0 | SN85: 0 | SO85: 0 | SP85: 0 | SQ85: 0 | SR85: 0 | SS85: 0 | ST85: 0 | SU85: 0 | SV85: 0 | SW85: 0 | SX85: 0 | SY85: 0 | SZ85: 0 | TA85: 0 | TB85: =TB79 -> 0 | TC85: 0 | TD85: 0 | TE85: 0 | TF85: 0 | TG85: 0 | TH85: 0 | TI85: 0 | TJ85: 0 | TK85: 0 | TL85: 0 | TM85: 0 | TN85: 0 | TO85: 0 | TP85: 0 | TQ85: 0 | TR85: 0 | TS85: 0 | TT85: 0 | TU85: 0 | TV85: 0 | TW85: 0 | TX85: 0 | TY85: 0 | TZ85: 0 | UA85: 0 | UB85: 0 | UC85: 0 | UD85: 0 | UE85: 0 | UF85: 0 | UG85: 0 | UH85: 0 | UI85: 0 | UJ85: 0 | UK85: 0 | UL85: 0 | UM85: 0 | UN85: 0 | UO85: 0 | UP85: 0 | UQ85: 0 | UR85: 0 | US85: 0 | UT85: 0 | UU85: 0 | UV85: 0 | UW85: 0 | UX85: 0 | UY85: 0 | UZ85: 0 | VA85: 0 | VB85: 0 | VC85: 0 | VD85: 0 | VE85: 0 | VF85: 0 | VG85: 0 | VH85: 0 | VI85: 0 | VJ85: 0 | VK85: 0 | VL85: 0 | VM85: 0 | VN85: =VN79 -> 0 | VO85: 0 | VP85: 0 | VQ85: 0 | VR85: 0 | VS85: 0 | VT85: 0 | VU85: 0 | VV85: 0 | VW85: 0 | VX85: 0 | VY85: 0 | VZ85: 0 | WA85: 0 | WB85: 0 | WC85: 0 | WD85: 0 | WE85: 0 | WF85: 0 | WG85: 0 | WH85: 0 | WI85: 0 | WJ85: 0 | WK85: 0 | WL85: 0 | WM85: 0 | WN85: 0 | WO85: 0 | WP85: 0 | WQ85: 0 | WR85: 0 | WS85: 0 | WT85: 0 | WU85: 0 | WV85: 0 | WW85: 0 | WX85: 0 | WY85: 0 | WZ85: 0 | XA85: 0 | XB85: 0 | XC85: 0 | XD85: 0 | XE85: 0 | XF85: 0 | XG85: 0 | XH85: 0 | XI85: 0 | XJ85: 0 | XK85: 0 | XL85: 0 | XM85: 0 | XN85: 0 | XO85: 0 | XP85: 0 | XQ85: 0 | XR85: 0 | XS85: 0 | XT85: 0 | XU85: 0 | XV85: 0 | XW85: 0 | XX85: 0 | XY85: 0 | XZ85: =XZ79 -> 0 | YA85: 0 | YB85: 0 | YC85: 0 | YD85: 0 | YE85: 0 | YF85: 0 | YG85: 0 | YH85: 0 | YI85: 0 | YJ85: 0 | YK85: 0 | YL85: 0 | YM85: 0 | YN85: 0 | YO85: 0 | YP85: 0 | YQ85: 0 | YR85: 0 | YS85: 0 | YT85: 0 | YU85: 0 | YV85: 0 | YW85: 0 | YX85: 0 | YY85: 0 | YZ85: 0 | ZA85: 0 | ZB85: 0 | ZC85: 0 | ZD85: 0 | ZE85: 0 | ZF85: 0 | ZG85: 0 | ZH85: 0 | ZI85: 0 | ZJ85: 0 | ZK85: 0 | ZL85: 0 | ZM85: 0 | ZN85: 0 | ZO85: 0 | ZP85: 0 | ZQ85: 0 | ZR85: 0 | ZS85: 0 | ZT85: 0 | ZU85: 0 | ZV85: 0 | ZW85: 0 | ZX85: 0 | ZY85: 0 | ZZ85: 0 | AAA85: 0 | AAB85: 0 | AAC85: 0 | AAD85: 0 | AAE85: 0 | AAF85: 0 | AAG85: 0 | AAH85: 0 | AAI85: 0 | AAJ85: 0 | AAK85: 0 | AAL85: =AAL79 -> 0 | AAM85: 0 | AAN85: 0 | AAO85: 0 | AAP85: 0 | AAQ85: 0 | AAR85: 0 | AAS85: 0 | AAT85: 0 | AAU85: 0 | AAV85: 0 | AAW85: 0 | AAX85: 0 | AAY85: 0 | AAZ85: 0 | ABA85: 0 | ABB85: 0 | ABC85: 0 | ABD85: 0 | ABE85: 0 | ABF85: 0 | ABG85: 0 | ABH85: 0 | ABI85: 0 | ABJ85: 0 | ABK85: 0 | ABL85: 0 | ABM85: 0 | ABN85: 0 | ABO85: 0 | ABP85: 0 | ABQ85: 0 | ABR85: 0 | ABS85: 0 | ABT85: 0 | ABU85: 0 | ABV85: 0 | ABW85: 0 | ABX85: 0 | ABY85: 0 | ABZ85: 0 | ACA85: 0 | ACB85: 0 | ACC85: 0 | ACD85: 0 | ACE85: 0 | ACF85: 0 | ACG85: 0 | ACH85: 0 | ACI85: 0 | ACJ85: 0 | ACK85: 0 | ACL85: 0 | ACM85: 0 | ACN85: 0 | ACO85: 0 | ACP85: 0 | ACQ85: 0 | ACR85: 0 | ACS85: 0 | ACT85: 0 | ACU85: 0 | ACV85: 0 | ACW85: 0 | ACX85: =ACX79 -> 0 | ACY85: 0 | ACZ85: 0 | ADA85: 0 | ADB85: 0 | ADC85: 0 | ADD85: 0 | ADE85: 0 | ADF85: 0 | ADG85: 0 | ADH85: 0 | ADI85: 0 | ADJ85: 0 | ADK85: 0 | ADL85: 0 | ADM85: 0 | ADN85: 0 | ADO85: 0 | ADP85: 0 | ADQ85: 0 | ADR85: 0 | ADS85: 0 | ADT85: 0 | ADU85: 0 | ADV85: 0 | ADW85: 0 | ADX85: 0 | ADY85: 0 | ADZ85: 0 | AEA85: 0 | AEB85: 0 | AEC85: 0 | AED85: 0 | AEE85: 0 | AEF85: 0 | AEG85: 0 | AEH85: 0 | AEI85: 0 | AEJ85: 0 | AEK85: 0 | AEL85: 0 | AEM85: 0 | AEN85: 0 | AEO85: 0 | AEP85: 0 | AEQ85: 0 | AER85: 0 | AES85: 0 | AET85: 0 | AEU85: 0 | AEV85: 0 | AEW85: 0 | AEX85: 0 | AEY85: 0 | AEZ85: 0 | AFA85: 0 | AFB85: 0 | AFC85: 0 | AFD85: 0 | AFE85: 0 | AFF85: 0 | AFG85: 0 | AFH85: 0 | AFI85: 0 | AFJ85: =AFJ79 -> 0 | AFK85: 0 | AFL85: 0 | AFM85: 0 | AFN85: 0 | AFO85: 0 | AFP85: 0 | AFQ85: 0 | AFR85: 0 | AFS85: 0 | AFT85: 0 | AFU85: 0 | AFV85: 0 | AFW85: 0 | AFX85: 0 | AFY85: 0 | AFZ85: 0 | AGA85: 0 | AGB85: 0 | AGC85: 0 | AGD85: 0 | AGE85: 0 | AGF85: 0 | AGG85: 0 | AGH85: 0 | AGI85: 0 | AGJ85: 0 | AGK85: 0
C86: Less: Transferred to Plant (last month of Construction) | E86: Currency | I86: =(I83+I85+I84)*I80 -> 0 | J86: 0 | K86: 0 | L86: 0 | M86: 0 | N86: 1010.092777 | O86: 0 | P86: 0 | Q86: 0 | R86: 0 | S86: 0 | T86: 0 | U86: 0 | V86: 0 | W86: 0 | X86: 0 | Y86: 0 | Z86: 0 | AA86: 0 | AB86: 0 | AC86: 0 | AD86: 0 | AE86: 0 | AF86: 0 | AG86: 0 | AH86: 0 | AI86: 0 | AJ86: 0 | AK86: 0 | AL86: 0 | AM86: 0 | AN86: 0 | AO86: 0 | AP86: 0 | AQ86: 0 | AR86: 0 | AS86: 0 | AT86: 0 | AU86: 0 | AV86: 0 | AW86: 0 | AX86: 0 | AY86: 0 | AZ86: 0 | BA86: 0 | BB86: 0 | BC86: 0 | BD86: 0 | BE86: 0 | BF86: 0 | BG86: 0 | BH86: 0 | BI86: 0 | BJ86: 0 | BK86: 0 | BL86: 0 | BM86: 0 | BN86: 0 | BO86: 0 | BP86: 0 | BQ86: 0 | BR86: 0 | BS86: 0 | BT86: 0 | BU86: =(BU83+BU85+BU84)*BU80 -> 0 | BV86: 0 | BW86: 0 | BX86: 0 | BY86: 0 | BZ86: 0 | CA86: 0 | CB86: 0 | CC86: 0 | CD86: 0 | CE86: 0 | CF86: 0 | CG86: 0 | CH86: 0 | CI86: 0 | CJ86: 0 | CK86: 0 | CL86: 0 | CM86: 0 | CN86: 0 | CO86: 0 | CP86: 0 | CQ86: 0 | CR86: 0 | CS86: 0 | CT86: 0 | CU86: 0 | CV86: 0 | CW86: 0 | CX86: 0 | CY86: 0 | CZ86: 0 | DA86: 0 | DB86: 0 | DC86: 0 | DD86: 0 | DE86: 0 | DF86: 0 | DG86: 0 | DH86: 0 | DI86: 0 | DJ86: 0 | DK86: 0 | DL86: 0 | DM86: 0 | DN86: 0 | DO86: 0 | DP86: 0 | DQ86: 0 | DR86: 0 | DS86: 0 | DT86: 0 | DU86: 0 | DV86: 0 | DW86: 0 | DX86: 0 | DY86: 0 | DZ86: 0 | EA86: 0 | EB86: 0 | EC86: 0 | ED86: 0 | EE86: 0 | EF86: 0 | EG86: =(EG83+EG85+EG84)*EG80 -> 0 | EH86: 0 | EI86: 0 | EJ86: 0 | EK86: 0 | EL86: 0 | EM86: 0 | EN86: 0 | EO86: 0 | EP86: 0 | EQ86: 0 | ER86: 0 | ES86: 0 | ET86: 0 | EU86: 0 | EV86: 0 | EW86: 0 | EX86: 0 | EY86: 0 | EZ86: 0 | FA86: 0 | FB86: 0 | FC86: 0 | FD86: 0 | FE86: 0 | FF86: 0 | FG86: 0 | FH86: 0 | FI86: 0 | FJ86: 0 | FK86: 0 | FL86: 0 | FM86: 0 | FN86: 0 | FO86: 0 | FP86: 0 | FQ86: 0 | FR86: 0 | FS86: 0 | FT86: 0 | FU86: 0 | FV86: 0 | FW86: 0 | FX86: 0 | FY86: 0 | FZ86: 0 | GA86: 0 | GB86: 0 | GC86: 0 | GD86: 0 | GE86: 0 | GF86: 0 | GG86: 0 | GH86: 0 | GI86: 0 | GJ86: 0 | GK86: 0 | GL86: 0 | GM86: 0 | GN86: 0 | GO86: 0 | GP86: 0 | GQ86: 0 | GR86: 0 | GS86: =(GS83+GS85+GS84)*GS80 -> 0 | GT86: 0 | GU86: 0 | GV86: 0 | GW86: 0 | GX86: 0 | GY86: 0 | GZ86: 0 | HA86: 0 | HB86: 0 | HC86: 0 | HD86: 0 | HE86: 0 | HF86: 0 | HG86: 0 | HH86: 0 | HI86: 0 | HJ86: 0 | HK86: 0 | HL86: 0 | HM86: 0 | HN86: 0 | HO86: 0 | HP86: 0 | HQ86: 0 | HR86: 0 | HS86: 0 | HT86: 0 | HU86: 0 | HV86: 0 | HW86: 0 | HX86: 0 | HY86: 0 | HZ86: 0 | IA86: 0 | IB86: 0 | IC86: 0 | ID86: 0 | IE86: 0 | IF86: 0 | IG86: 0 | IH86: 0 | II86: 0 | IJ86: 0 | IK86: 0 | IL86: 0 | IM86: 0 | IN86: 0 | IO86: 0 | IP86: 0 | IQ86: 0 | IR86: 0 | IS86: 0 | IT86: 0 | IU86: 0 | IV86: 0 | IW86: 0 | IX86: 0 | IY86: 0 | IZ86: 0 | JA86: 0 | JB86: 0 | JC86: 0 | JD86: 0 | JE86: =(JE83+JE85+JE84)*JE80 -> 0 | JF86: 0 | JG86: 0 | JH86: 0 | JI86: 0 | JJ86: 0 | JK86: 0 | JL86: 0 | JM86: 0 | JN86: 0 | JO86: 0 | JP86: 0 | JQ86: 0 | JR86: 0 | JS86: 0 | JT86: 0 | JU86: 0 | JV86: 0 | JW86: 0 | JX86: 0 | JY86: 0 | JZ86: 0 | KA86: 0 | KB86: 0 | KC86: 0 | KD86: 0 | KE86: 0 | KF86: 0 | KG86: 0 | KH86: 0 | KI86: 0 | KJ86: 0 | KK86: 0 | KL86: 0 | KM86: 0 | KN86: 0 | KO86: 0 | KP86: 0 | KQ86: 0 | KR86: 0 | KS86: 0 | KT86: 0 | KU86: 0 | KV86: 0 | KW86: 0 | KX86: 0 | KY86: 0 | KZ86: 0 | LA86: 0 | LB86: 0 | LC86: 0 | LD86: 0 | LE86: 0 | LF86: 0 | LG86: 0 | LH86: 0 | LI86: 0 | LJ86: 0 | LK86: 0 | LL86: 0 | LM86: 0 | LN86: 0 | LO86: 0 | LP86: 0 | LQ86: =(LQ83+LQ85+LQ84)*LQ80 -> 0 | LR86: 0 | LS86: 0 | LT86: 0 | LU86: 0 | LV86: 0 | LW86: 0 | LX86: 0 | LY86: 0 | LZ86: 0 | MA86: 0 | MB86: 0 | MC86: 0 | MD86: 0 | ME86: 0 | MF86: 0 | MG86: 0 | MH86: 0 | MI86: 0 | MJ86: 0 | MK86: 0 | ML86: 0 | MM86: 0 | MN86: 0 | MO86: 0 | MP86: 0 | MQ86: 0 | MR86: 0 | MS86: 0 | MT86: 0 | MU86: 0 | MV86: 0 | MW86: 0 | MX86: 0 | MY86: 0 | MZ86: 0 | NA86: 0 | NB86: 0 | NC86: 0 | ND86: 0 | NE86: 0 | NF86: 0 | NG86: 0 | NH86: 0 | NI86: 0 | NJ86: 0 | NK86: 0 | NL86: 0 | NM86: 0 | NN86: 0 | NO86: 0 | NP86: 0 | NQ86: 0 | NR86: 0 | NS86: 0 | NT86: 0 | NU86: 0 | NV86: 0 | NW86: 0 | NX86: 0 | NY86: 0 | NZ86: 0 | OA86: 0 | OB86: 0 | OC86: =(OC83+OC85+OC84)*OC80 -> 0 | OD86: 0 | OE86: 0 | OF86: 0 | OG86: 0 | OH86: 0 | OI86: 0 | OJ86: 0 | OK86: 0 | OL86: 0 | OM86: 0 | ON86: 0 | OO86: 0 | OP86: 0 | OQ86: 0 | OR86: 0 | OS86: 0 | OT86: 0 | OU86: 0 | OV86: 0 | OW86: 0 | OX86: 0 | OY86: 0 | OZ86: 0 | PA86: 0 | PB86: 0 | PC86: 0 | PD86: 0 | PE86: 0 | PF86: 0 | PG86: 0 | PH86: 0 | PI86: 0 | PJ86: 0 | PK86: 0 | PL86: 0 | PM86: 0 | PN86: 0 | PO86: 0 | PP86: 0 | PQ86: 0 | PR86: 0 | PS86: 0 | PT86: 0 | PU86: 0 | PV86: 0 | PW86: 0 | PX86: 0 | PY86: 0 | PZ86: 0 | QA86: 0 | QB86: 0 | QC86: 0 | QD86: 0 | QE86: 0 | QF86: 0 | QG86: 0 | QH86: 0 | QI86: 0 | QJ86: 0 | QK86: 0 | QL86: 0 | QM86: 0 | QN86: 0 | QO86: =(QO83+QO85+QO84)*QO80 -> 0 | QP86: 0 | QQ86: 0 | QR86: 0 | QS86: 0 | QT86: 0 | QU86: 0 | QV86: 0 | QW86: 0 | QX86: 0 | QY86: 0 | QZ86: 0 | RA86: 0 | RB86: 0 | RC86: 0 | RD86: 0 | RE86: 0 | RF86: 0 | RG86: 0 | RH86: 0 | RI86: 0 | RJ86: 0 | RK86: 0 | RL86: 0 | RM86: 0 | RN86: 0 | RO86: 0 | RP86: 0 | RQ86: 0 | RR86: 0 | RS86: 0 | RT86: 0 | RU86: 0 | RV86: 0 | RW86: 0 | RX86: 0 | RY86: 0 | RZ86: 0 | SA86: 0 | SB86: 0 | SC86: 0 | SD86: 0 | SE86: 0 | SF86: 0 | SG86: 0 | SH86: 0 | SI86: 0 | SJ86: 0 | SK86: 0 | SL86: 0 | SM86: 0 | SN86: 0 | SO86: 0 | SP86: 0 | SQ86: 0 | SR86: 0 | SS86: 0 | ST86: 0 | SU86: 0 | SV86: 0 | SW86: 0 | SX86: 0 | SY86: 0 | SZ86: 0 | TA86: =(TA83+TA85+TA84)*TA80 -> 0 | TB86: 0 | TC86: 0 | TD86: 0 | TE86: 0 | TF86: 0 | TG86: 0 | TH86: 0 | TI86: 0 | TJ86: 0 | TK86: 0 | TL86: 0 | TM86: 0 | TN86: 0 | TO86: 0 | TP86: 0 | TQ86: 0 | TR86: 0 | TS86: 0 | TT86: 0 | TU86: 0 | TV86: 0 | TW86: 0 | TX86: 0 | TY86: 0 | TZ86: 0 | UA86: 0 | UB86: 0 | UC86: 0 | UD86: 0 | UE86: 0 | UF86: 0 | UG86: 0 | UH86: 0 | UI86: 0 | UJ86: 0 | UK86: 0 | UL86: 0 | UM86: 0 | UN86: 0 | UO86: 0 | UP86: 0 | UQ86: 0 | UR86: 0 | US86: 0 | UT86: 0 | UU86: 0 | UV86: 0 | UW86: 0 | UX86: 0 | UY86: 0 | UZ86: 0 | VA86: 0 | VB86: 0 | VC86: 0 | VD86: 0 | VE86: 0 | VF86: 0 | VG86: 0 | VH86: 0 | VI86: 0 | VJ86: 0 | VK86: 0 | VL86: 0 | VM86: =(VM83+VM85+VM84)*VM80 -> 0 | VN86: 0 | VO86: 0 | VP86: 0 | VQ86: 0 | VR86: 0 | VS86: 0 | VT86: 0 | VU86: 0 | VV86: 0 | VW86: 0 | VX86: 0 | VY86: 0 | VZ86: 0 | WA86: 0 | WB86: 0 | WC86: 0 | WD86: 0 | WE86: 0 | WF86: 0 | WG86: 0 | WH86: 0 | WI86: 0 | WJ86: 0 | WK86: 0 | WL86: 0 | WM86: 0 | WN86: 0 | WO86: 0 | WP86: 0 | WQ86: 0 | WR86: 0 | WS86: 0 | WT86: 0 | WU86: 0 | WV86: 0 | WW86: 0 | WX86: 0 | WY86: 0 | WZ86: 0 | XA86: 0 | XB86: 0 | XC86: 0 | XD86: 0 | XE86: 0 | XF86: 0 | XG86: 0 | XH86: 0 | XI86: 0 | XJ86: 0 | XK86: 0 | XL86: 0 | XM86: 0 | XN86: 0 | XO86: 0 | XP86: 0 | XQ86: 0 | XR86: 0 | XS86: 0 | XT86: 0 | XU86: 0 | XV86: 0 | XW86: 0 | XX86: 0 | XY86: =(XY83+XY85+XY84)*XY80 -> 0 | XZ86: 0 | YA86: 0 | YB86: 0 | YC86: 0 | YD86: 0 | YE86: 0 | YF86: 0 | YG86: 0 | YH86: 0 | YI86: 0 | YJ86: 0 | YK86: 0 | YL86: 0 | YM86: 0 | YN86: 0 | YO86: 0 | YP86: 0 | YQ86: 0 | YR86: 0 | YS86: 0 | YT86: 0 | YU86: 0 | YV86: 0 | YW86: 0 | YX86: 0 | YY86: 0 | YZ86: 0 | ZA86: 0 | ZB86: 0 | ZC86: 0 | ZD86: 0 | ZE86: 0 | ZF86: 0 | ZG86: 0 | ZH86: 0 | ZI86: 0 | ZJ86: 0 | ZK86: 0 | ZL86: 0 | ZM86: 0 | ZN86: 0 | ZO86: 0 | ZP86: 0 | ZQ86: 0 | ZR86: 0 | ZS86: 0 | ZT86: 0 | ZU86: 0 | ZV86: 0 | ZW86: 0 | ZX86: 0 | ZY86: 0 | ZZ86: 0 | AAA86: 0 | AAB86: 0 | AAC86: 0 | AAD86: 0 | AAE86: 0 | AAF86: 0 | AAG86: 0 | AAH86: 0 | AAI86: 0 | AAJ86: 0 | AAK86: =(AAK83+AAK85+AAK84)*AAK80 -> 0 | AAL86: 0 | AAM86: 0 | AAN86: 0 | AAO86: 0 | AAP86: 0 | AAQ86: 0 | AAR86: 0 | AAS86: 0 | AAT86: 0 | AAU86: 0 | AAV86: 0 | AAW86: 0 | AAX86: 0 | AAY86: 0 | AAZ86: 0 | ABA86: 0 | ABB86: 0 | ABC86: 0 | ABD86: 0 | ABE86: 0 | ABF86: 0 | ABG86: 0 | ABH86: 0 | ABI86: 0 | ABJ86: 0 | ABK86: 0 | ABL86: 0 | ABM86: 0 | ABN86: 0 | ABO86: 0 | ABP86: 0 | ABQ86: 0 | ABR86: 0 | ABS86: 0 | ABT86: 0 | ABU86: 0 | ABV86: 0 | ABW86: 0 | ABX86: 0 | ABY86: 0 | ABZ86: 0 | ACA86: 0 | ACB86: 0 | ACC86: 0 | ACD86: 0 | ACE86: 0 | ACF86: 0 | ACG86: 0 | ACH86: 0 | ACI86: 0 | ACJ86: 0 | ACK86: 0 | ACL86: 0 | ACM86: 0 | ACN86: 0 | ACO86: 0 | ACP86: 0 | ACQ86: 0 | ACR86: 0 | ACS86: 0 | ACT86: 0 | ACU86: 0 | ACV86: 0 | ACW86: =(ACW83+ACW85+ACW84)*ACW80 -> 0 | ACX86: 0 | ACY86: 0 | ACZ86: 0 | ADA86: 0 | ADB86: 0 | ADC86: 0 | ADD86: 0 | ADE86: 0 | ADF86: 0 | ADG86: 0 | ADH86: 0 | ADI86: 0 | ADJ86: 0 | ADK86: 0 | ADL86: 0 | ADM86: 0 | ADN86: 0 | ADO86: 0 | ADP86: 0 | ADQ86: 0 | ADR86: 0 | ADS86: 0 | ADT86: 0 | ADU86: 0 | ADV86: 0 | ADW86: 0 | ADX86: 0 | ADY86: 0 | ADZ86: 0 | AEA86: 0 | AEB86: 0 | AEC86: 0 | AED86: 0 | AEE86: 0 | AEF86: 0 | AEG86: 0 | AEH86: 0 | AEI86: 0 | AEJ86: 0 | AEK86: 0 | AEL86: 0 | AEM86: 0 | AEN86: 0 | AEO86: 0 | AEP86: 0 | AEQ86: 0 | AER86: 0 | AES86: 0 | AET86: 0 | AEU86: 0 | AEV86: 0 | AEW86: 0 | AEX86: 0 | AEY86: 0 | AEZ86: 0 | AFA86: 0 | AFB86: 0 | AFC86: 0 | AFD86: 0 | AFE86: 0 | AFF86: 0 | AFG86: 0 | AFH86: 0 | AFI86: =(AFI83+AFI85+AFI84)*AFI80 -> 0 | AFJ86: 0 | AFK86: 0 | AFL86: 0 | AFM86: 0 | AFN86: 0 | AFO86: 0 | AFP86: 0 | AFQ86: 0 | AFR86: 0 | AFS86: 0 | AFT86: 0 | AFU86: 0 | AFV86: 0 | AFW86: 0 | AFX86: 0 | AFY86: 0 | AFZ86: 0 | AGA86: 0 | AGB86: 0 | AGC86: 0 | AGD86: 0 | AGE86: 0 | AGF86: 0 | AGG86: 0 | AGH86: 0 | AGI86: 0 | AGJ86: 0 | AGK86: 0
C87: Closing Balance | E87: Currency | I87: =I83+I85+I84-I86 -> 0.01652248946 | J87: 58.29741692 | K87: 946.5429744 | L87: 1006.632814 | M87: 1008.369627 | N87: 0 | O87: 0 | P87: 0 | Q87: 0 | R87: 0 | S87: 0 | T87: 0 | U87: 0 | V87: 0 | W87: 0 | X87: 0 | Y87: 0 | Z87: 0 | AA87: 0 | AB87: 0 | AC87: 0 | AD87: 0 | AE87: 0 | AF87: 0 | AG87: 0 | AH87: 0 | AI87: 0 | AJ87: 0 | AK87: 0 | AL87: 0 | AM87: 0 | AN87: 0 | AO87: 0 | AP87: 0 | AQ87: 0 | AR87: 0 | AS87: 0 | AT87: 0 | AU87: 0 | AV87: 0 | AW87: 0 | AX87: 0 | AY87: 0 | AZ87: 0 | BA87: 0 | BB87: 0 | BC87: 0 | BD87: 0 | BE87: 0 | BF87: 0 | BG87: 0 | BH87: 0 | BI87: 0 | BJ87: 0 | BK87: 0 | BL87: 0 | BM87: 0 | BN87: 0 | BO87: 0 | BP87: 0 | BQ87: 0 | BR87: 0 | BS87: 0 | BT87: 0 | BU87: =BU83+BU85+BU84-BU86 -> 0 | BV87: 0 | BW87: 0 | BX87: 0 | BY87: 0 | BZ87: 0 | CA87: 0 | CB87: 0 | CC87: 0 | CD87: 0 | CE87: 0 | CF87: 0 | CG87: 0 | CH87: 0 | CI87: 0 | CJ87: 0 | CK87: 0 | CL87: 0 | CM87: 0 | CN87: 0 | CO87: 0 | CP87: 0 | CQ87: 0 | CR87: 0 | CS87: 0 | CT87: 0 | CU87: 0 | CV87: 0 | CW87: 0 | CX87: 0 | CY87: 0 | CZ87: 0 | DA87: 0 | DB87: 0 | DC87: 0 | DD87: 0 | DE87: 0 | DF87: 0 | DG87: 0 | DH87: 0 | DI87: 0 | DJ87: 0 | DK87: 0 | DL87: 0 | DM87: 0 | DN87: 0 | DO87: 0 | DP87: 0 | DQ87: 0 | DR87: 0 | DS87: 0 | DT87: 0 | DU87: 0 | DV87: 0 | DW87: 0 | DX87: 0 | DY87: 0 | DZ87: 0 | EA87: 0 | EB87: 0 | EC87: 0 | ED87: 0 | EE87: 0 | EF87: 0 | EG87: =EG83+EG85+EG84-EG86 -> 0 | EH87: 0 | EI87: 0 | EJ87: 0 | EK87: 0 | EL87: 0 | EM87: 0 | EN87: 0 | EO87: 0 | EP87: 0 | EQ87: 0 | ER87: 0 | ES87: 0 | ET87: 0 | EU87: 0 | EV87: 0 | EW87: 0 | EX87: 0 | EY87: 0 | EZ87: 0 | FA87: 0 | FB87: 0 | FC87: 0 | FD87: 0 | FE87: 0 | FF87: 0 | FG87: 0 | FH87: 0 | FI87: 0 | FJ87: 0 | FK87: 0 | FL87: 0 | FM87: 0 | FN87: 0 | FO87: 0 | FP87: 0 | FQ87: 0 | FR87: 0 | FS87: 0 | FT87: 0 | FU87: 0 | FV87: 0 | FW87: 0 | FX87: 0 | FY87: 0 | FZ87: 0 | GA87: 0 | GB87: 0 | GC87: 0 | GD87: 0 | GE87: 0 | GF87: 0 | GG87: 0 | GH87: 0 | GI87: 0 | GJ87: 0 | GK87: 0 | GL87: 0 | GM87: 0 | GN87: 0 | GO87: 0 | GP87: 0 | GQ87: 0 | GR87: 0 | GS87: =GS83+GS85+GS84-GS86 -> 0 | GT87: 0 | GU87: 0 | GV87: 0 | GW87: 0 | GX87: 0 | GY87: 0 | GZ87: 0 | HA87: 0 | HB87: 0 | HC87: 0 | HD87: 0 | HE87: 0 | HF87: 0 | HG87: 0 | HH87: 0 | HI87: 0 | HJ87: 0 | HK87: 0 | HL87: 0 | HM87: 0 | HN87: 0 | HO87: 0 | HP87: 0 | HQ87: 0 | HR87: 0 | HS87: 0 | HT87: 0 | HU87: 0 | HV87: 0 | HW87: 0 | HX87: 0 | HY87: 0 | HZ87: 0 | IA87: 0 | IB87: 0 | IC87: 0 | ID87: 0 | IE87: 0 | IF87: 0 | IG87: 0 | IH87: 0 | II87: 0 | IJ87: 0 | IK87: 0 | IL87: 0 | IM87: 0 | IN87: 0 | IO87: 0 | IP87: 0 | IQ87: 0 | IR87: 0 | IS87: 0 | IT87: 0 | IU87: 0 | IV87: 0 | IW87: 0 | IX87: 0 | IY87: 0 | IZ87: 0 | JA87: 0 | JB87: 0 | JC87: 0 | JD87: 0 | JE87: =JE83+JE85+JE84-JE86 -> 0 | JF87: 0 | JG87: 0 | JH87: 0 | JI87: 0 | JJ87: 0 | JK87: 0 | JL87: 0 | JM87: 0 | JN87: 0 | JO87: 0 | JP87: 0 | JQ87: 0 | JR87: 0 | JS87: 0 | JT87: 0 | JU87: 0 | JV87: 0 | JW87: 0 | JX87: 0 | JY87: 0 | JZ87: 0 | KA87: 0 | KB87: 0 | KC87: 0 | KD87: 0 | KE87: 0 | KF87: 0 | KG87: 0 | KH87: 0 | KI87: 0 | KJ87: 0 | KK87: 0 | KL87: 0 | KM87: 0 | KN87: 0 | KO87: 0 | KP87: 0 | KQ87: 0 | KR87: 0 | KS87: 0 | KT87: 0 | KU87: 0 | KV87: 0 | KW87: 0 | KX87: 0 | KY87: 0 | KZ87: 0 | LA87: 0 | LB87: 0 | LC87: 0 | LD87: 0 | LE87: 0 | LF87: 0 | LG87: 0 | LH87: 0 | LI87: 0 | LJ87: 0 | LK87: 0 | LL87: 0 | LM87: 0 | LN87: 0 | LO87: 0 | LP87: 0 | LQ87: =LQ83+LQ85+LQ84-LQ86 -> 0 | LR87: 0 | LS87: 0 | LT87: 0 | LU87: 0 | LV87: 0 | LW87: 0 | LX87: 0 | LY87: 0 | LZ87: 0 | MA87: 0 | MB87: 0 | MC87: 0 | MD87: 0 | ME87: 0 | MF87: 0 | MG87: 0 | MH87: 0 | MI87: 0 | MJ87: 0 | MK87: 0 | ML87: 0 | MM87: 0 | MN87: 0 | MO87: 0 | MP87: 0 | MQ87: 0 | MR87: 0 | MS87: 0 | MT87: 0 | MU87: 0 | MV87: 0 | MW87: 0 | MX87: 0 | MY87: 0 | MZ87: 0 | NA87: 0 | NB87: 0 | NC87: 0 | ND87: 0 | NE87: 0 | NF87: 0 | NG87: 0 | NH87: 0 | NI87: 0 | NJ87: 0 | NK87: 0 | NL87: 0 | NM87: 0 | NN87: 0 | NO87: 0 | NP87: 0 | NQ87: 0 | NR87: 0 | NS87: 0 | NT87: 0 | NU87: 0 | NV87: 0 | NW87: 0 | NX87: 0 | NY87: 0 | NZ87: 0 | OA87: 0 | OB87: 0 | OC87: =OC83+OC85+OC84-OC86 -> 0 | OD87: 0 | OE87: 0 | OF87: 0 | OG87: 0 | OH87: 0 | OI87: 0 | OJ87: 0 | OK87: 0 | OL87: 0 | OM87: 0 | ON87: 0 | OO87: 0 | OP87: 0 | OQ87: 0 | OR87: 0 | OS87: 0 | OT87: 0 | OU87: 0 | OV87: 0 | OW87: 0 | OX87: 0 | OY87: 0 | OZ87: 0 | PA87: 0 | PB87: 0 | PC87: 0 | PD87: 0 | PE87: 0 | PF87: 0 | PG87: 0 | PH87: 0 | PI87: 0 | PJ87: 0 | PK87: 0 | PL87: 0 | PM87: 0 | PN87: 0 | PO87: 0 | PP87: 0 | PQ87: 0 | PR87: 0 | PS87: 0 | PT87: 0 | PU87: 0 | PV87: 0 | PW87: 0 | PX87: 0 | PY87: 0 | PZ87: 0 | QA87: 0 | QB87: 0 | QC87: 0 | QD87: 0 | QE87: 0 | QF87: 0 | QG87: 0 | QH87: 0 | QI87: 0 | QJ87: 0 | QK87: 0 | QL87: 0 | QM87: 0 | QN87: 0 | QO87: =QO83+QO85+QO84-QO86 -> 0 | QP87: 0 | QQ87: 0 | QR87: 0 | QS87: 0 | QT87: 0 | QU87: 0 | QV87: 0 | QW87: 0 | QX87: 0 | QY87: 0 | QZ87: 0 | RA87: 0 | RB87: 0 | RC87: 0 | RD87: 0 | RE87: 0 | RF87: 0 | RG87: 0 | RH87: 0 | RI87: 0 | RJ87: 0 | RK87: 0 | RL87: 0 | RM87: 0 | RN87: 0 | RO87: 0 | RP87: 0 | RQ87: 0 | RR87: 0 | RS87: 0 | RT87: 0 | RU87: 0 | RV87: 0 | RW87: 0 | RX87: 0 | RY87: 0 | RZ87: 0 | SA87: 0 | SB87: 0 | SC87: 0 | SD87: 0 | SE87: 0 | SF87: 0 | SG87: 0 | SH87: 0 | SI87: 0 | SJ87: 0 | SK87: 0 | SL87: 0 | SM87: 0 | SN87: 0 | SO87: 0 | SP87: 0 | SQ87: 0 | SR87: 0 | SS87: 0 | ST87: 0 | SU87: 0 | SV87: 0 | SW87: 0 | SX87: 0 | SY87: 0 | SZ87: 0 | TA87: =TA83+TA85+TA84-TA86 -> 0 | TB87: 0 | TC87: 0 | TD87: 0 | TE87: 0 | TF87: 0 | TG87: 0 | TH87: 0 | TI87: 0 | TJ87: 0 | TK87: 0 | TL87: 0 | TM87: 0 | TN87: 0 | TO87: 0 | TP87: 0 | TQ87: 0 | TR87: 0 | TS87: 0 | TT87: 0 | TU87: 0 | TV87: 0 | TW87: 0 | TX87: 0 | TY87: 0 | TZ87: 0 | UA87: 0 | UB87: 0 | UC87: 0 | UD87: 0 | UE87: 0 | UF87: 0 | UG87: 0 | UH87: 0 | UI87: 0 | UJ87: 0 | UK87: 0 | UL87: 0 | UM87: 0 | UN87: 0 | UO87: 0 | UP87: 0 | UQ87: 0 | UR87: 0 | US87: 0 | UT87: 0 | UU87: 0 | UV87: 0 | UW87: 0 | UX87: 0 | UY87: 0 | UZ87: 0 | VA87: 0 | VB87: 0 | VC87: 0 | VD87: 0 | VE87: 0 | VF87: 0 | VG87: 0 | VH87: 0 | VI87: 0 | VJ87: 0 | VK87: 0 | VL87: 0 | VM87: =VM83+VM85+VM84-VM86 -> 0 | VN87: 0 | VO87: 0 | VP87: 0 | VQ87: 0 | VR87: 0 | VS87: 0 | VT87: 0 | VU87: 0 | VV87: 0 | VW87: 0 | VX87: 0 | VY87: 0 | VZ87: 0 | WA87: 0 | WB87: 0 | WC87: 0 | WD87: 0 | WE87: 0 | WF87: 0 | WG87: 0 | WH87: 0 | WI87: 0 | WJ87: 0 | WK87: 0 | WL87: 0 | WM87: 0 | WN87: 0 | WO87: 0 | WP87: 0 | WQ87: 0 | WR87: 0 | WS87: 0 | WT87: 0 | WU87: 0 | WV87: 0 | WW87: 0 | WX87: 0 | WY87: 0 | WZ87: 0 | XA87: 0 | XB87: 0 | XC87: 0 | XD87: 0 | XE87: 0 | XF87: 0 | XG87: 0 | XH87: 0 | XI87: 0 | XJ87: 0 | XK87: 0 | XL87: 0 | XM87: 0 | XN87: 0 | XO87: 0 | XP87: 0 | XQ87: 0 | XR87: 0 | XS87: 0 | XT87: 0 | XU87: 0 | XV87: 0 | XW87: 0 | XX87: 0 | XY87: =XY83+XY85+XY84-XY86 -> 0 | XZ87: 0 | YA87: 0 | YB87: 0 | YC87: 0 | YD87: 0 | YE87: 0 | YF87: 0 | YG87: 0 | YH87: 0 | YI87: 0 | YJ87: 0 | YK87: 0 | YL87: 0 | YM87: 0 | YN87: 0 | YO87: 0 | YP87: 0 | YQ87: 0 | YR87: 0 | YS87: 0 | YT87: 0 | YU87: 0 | YV87: 0 | YW87: 0 | YX87: 0 | YY87: 0 | YZ87: 0 | ZA87: 0 | ZB87: 0 | ZC87: 0 | ZD87: 0 | ZE87: 0 | ZF87: 0 | ZG87: 0 | ZH87: 0 | ZI87: 0 | ZJ87: 0 | ZK87: 0 | ZL87: 0 | ZM87: 0 | ZN87: 0 | ZO87: 0 | ZP87: 0 | ZQ87: 0 | ZR87: 0 | ZS87: 0 | ZT87: 0 | ZU87: 0 | ZV87: 0 | ZW87: 0 | ZX87: 0 | ZY87: 0 | ZZ87: 0 | AAA87: 0 | AAB87: 0 | AAC87: 0 | AAD87: 0 | AAE87: 0 | AAF87: 0 | AAG87: 0 | AAH87: 0 | AAI87: 0 | AAJ87: 0 | AAK87: =AAK83+AAK85+AAK84-AAK86 -> 0 | AAL87: 0 | AAM87: 0 | AAN87: 0 | AAO87: 0 | AAP87: 0 | AAQ87: 0 | AAR87: 0 | AAS87: 0 | AAT87: 0 | AAU87: 0 | AAV87: 0 | AAW87: 0 | AAX87: 0 | AAY87: 0 | AAZ87: 0 | ABA87: 0 | ABB87: 0 | ABC87: 0 | ABD87: 0 | ABE87: 0 | ABF87: 0 | ABG87: 0 | ABH87: 0 | ABI87: 0 | ABJ87: 0 | ABK87: 0 | ABL87: 0 | ABM87: 0 | ABN87: 0 | ABO87: 0 | ABP87: 0 | ABQ87: 0 | ABR87: 0 | ABS87: 0 | ABT87: 0 | ABU87: 0 | ABV87: 0 | ABW87: 0 | ABX87: 0 | ABY87: 0 | ABZ87: 0 | ACA87: 0 | ACB87: 0 | ACC87: 0 | ACD87: 0 | ACE87: 0 | ACF87: 0 | ACG87: 0 | ACH87: 0 | ACI87: 0 | ACJ87: 0 | ACK87: 0 | ACL87: 0 | ACM87: 0 | ACN87: 0 | ACO87: 0 | ACP87: 0 | ACQ87: 0 | ACR87: 0 | ACS87: 0 | ACT87: 0 | ACU87: 0 | ACV87: 0 | ACW87: =ACW83+ACW85+ACW84-ACW86 -> 0 | ACX87: 0 | ACY87: 0 | ACZ87: 0 | ADA87: 0 | ADB87: 0 | ADC87: 0 | ADD87: 0 | ADE87: 0 | ADF87: 0 | ADG87: 0 | ADH87: 0 | ADI87: 0 | ADJ87: 0 | ADK87: 0 | ADL87: 0 | ADM87: 0 | ADN87: 0 | ADO87: 0 | ADP87: 0 | ADQ87: 0 | ADR87: 0 | ADS87: 0 | ADT87: 0 | ADU87: 0 | ADV87: 0 | ADW87: 0 | ADX87: 0 | ADY87: 0 | ADZ87: 0 | AEA87: 0 | AEB87: 0 | AEC87: 0 | AED87: 0 | AEE87: 0 | AEF87: 0 | AEG87: 0 | AEH87: 0 | AEI87: 0 | AEJ87: 0 | AEK87: 0 | AEL87: 0 | AEM87: 0 | AEN87: 0 | AEO87: 0 | AEP87: 0 | AEQ87: 0 | AER87: 0 | AES87: 0 | AET87: 0 | AEU87: 0 | AEV87: 0 | AEW87: 0 | AEX87: 0 | AEY87: 0 | AEZ87: 0 | AFA87: 0 | AFB87: 0 | AFC87: 0 | AFD87: 0 | AFE87: 0 | AFF87: 0 | AFG87: 0 | AFH87: 0 | AFI87: =AFI83+AFI85+AFI84-AFI86 -> 0 | AFJ87: 0 | AFK87: 0 | AFL87: 0 | AFM87: 0 | AFN87: 0 | AFO87: 0 | AFP87: 0 | AFQ87: 0 | AFR87: 0 | AFS87: 0 | AFT87: 0 | AFU87: 0 | AFV87: 0 | AFW87: 0 | AFX87: 0 | AFY87: 0 | AFZ87: 0 | AGA87: 0 | AGB87: 0 | AGC87: 0 | AGD87: 0 | AGE87: 0 | AGF87: 0 | AGG87: 0 | AGH87: 0 | AGI87: 0 | AGJ87: 0 | AGK87: 0
B89: Total Nominal Cost | E89: Currency | F89: =SUM(86:86) -> 1010.092777
B90: PV of Construction Nominal Construction | E90: Currency | F90: =XNPV(G90,I86:AGK86,I7:AGK7) -> 1001.454842 | G90: ='Solar Carrying Charge'!M55 -> 0.0207
A92: Replacement and Decommissioning
B93: Replacement Period (Date/Check) | E93: Switch | F93: ='Solar Carrying Charge'!F52 -> 2001-08-01 | G93: =COUNTIF(I93:AGK93,TRUE) -> 1 | I93: =$F$93=I6 -> FALSE | J93: FALSE | K93: FALSE | L93: FALSE | M93: FALSE | N93: FALSE | O93: TRUE | P93: FALSE | Q93: FALSE | R93: FALSE | S93: FALSE | T93: FALSE | U93: FALSE | V93: FALSE | W93: FALSE | X93: FALSE | Y93: FALSE | Z93: FALSE | AA93: FALSE | AB93: FALSE | AC93: FALSE | AD93: FALSE | AE93: FALSE | AF93: FALSE | AG93: FALSE | AH93: FALSE | AI93: FALSE | AJ93: FALSE | AK93: FALSE | AL93: FALSE | AM93: FALSE | AN93: FALSE | AO93: FALSE | AP93: FALSE | AQ93: FALSE | AR93: FALSE | AS93: FALSE | AT93: FALSE | AU93: FALSE | AV93: FALSE | AW93: FALSE | AX93: FALSE | AY93: FALSE | AZ93: FALSE | BA93: FALSE | BB93: FALSE | BC93: FALSE | BD93: FALSE | BE93: FALSE | BF93: FALSE | BG93: FALSE | BH93: FALSE | BI93: FALSE | BJ93: FALSE | BK93: FALSE | BL93: FALSE | BM93: FALSE | BN93: FALSE | BO93: FALSE | BP93: FALSE | BQ93: FALSE | BR93: FALSE | BS93: FALSE | BT93: FALSE | BU93: =$F$93=BU6 -> FALSE | BV93: FALSE | BW93: FALSE | BX93: FALSE | BY93: FALSE | BZ93: FALSE | CA93: FALSE | CB93: FALSE | CC93: FALSE | CD93: FALSE | CE93: FALSE | CF93: FALSE | CG93: FALSE | CH93: FALSE | CI93: FALSE | CJ93: FALSE | CK93: FALSE | CL93: FALSE | CM93: FALSE | CN93: FALSE | CO93: FALSE | CP93: FALSE | CQ93: FALSE | CR93: FALSE | CS93: FALSE | CT93: FALSE | CU93: FALSE | CV93: FALSE | CW93: FALSE | CX93: FALSE | CY93: FALSE | CZ93: FALSE | DA93: FALSE | DB93: FALSE | DC93: FALSE | DD93: FALSE | DE93: FALSE | DF93: FALSE | DG93: FALSE | DH93: FALSE | DI93: FALSE | DJ93: FALSE | DK93: FALSE | DL93: FALSE | DM93: FALSE | DN93: FALSE | DO93: FALSE | DP93: FALSE | DQ93: FALSE | DR93: FALSE | DS93: FALSE | DT93: FALSE | DU93: FALSE | DV93: FALSE | DW93: FALSE | DX93: FALSE | DY93: FALSE | DZ93: FALSE | EA93: FALSE | EB93: FALSE | EC93: FALSE | ED93: FALSE | EE93: FALSE | EF93: FALSE | EG93: =$F$93=EG6 -> FALSE | EH93: FALSE | EI93: FALSE | EJ93: FALSE | EK93: FALSE | EL93: FALSE | EM93: FALSE | EN93: FALSE | EO93: FALSE | EP93: FALSE | EQ93: FALSE | ER93: FALSE | ES93: FALSE | ET93: FALSE | EU93: FALSE | EV93: FALSE | EW93: FALSE | EX93: FALSE | EY93: FALSE | EZ93: FALSE | FA93: FALSE | FB93: FALSE | FC93: FALSE | FD93: FALSE | FE93: FALSE | FF93: FALSE | FG93: FALSE | FH93: FALSE | FI93: FALSE | FJ93: FALSE | FK93: FALSE | FL93: FALSE | FM93: FALSE | FN93: FALSE | FO93: FALSE | FP93: FALSE | FQ93: FALSE | FR93: FALSE | FS93: FALSE | FT93: FALSE | FU93: FALSE | FV93: FALSE | FW93: FALSE | FX93: FALSE | FY93: FALSE | FZ93: FALSE | GA93: FALSE | GB93: FALSE | GC93: FALSE | GD93: FALSE | GE93: FALSE | GF93: FALSE | GG93: FALSE | GH93: FALSE | GI93: FALSE | GJ93: FALSE | GK93: FALSE | GL93: FALSE | GM93: FALSE | GN93: FALSE | GO93: FALSE | GP93: FALSE | GQ93: FALSE | GR93: FALSE | GS93: =$F$93=GS6 -> FALSE | GT93: FALSE | GU93: FALSE | GV93: FALSE | GW93: FALSE | GX93: FALSE | GY93: FALSE | GZ93: FALSE | HA93: FALSE | HB93: FALSE | HC93: FALSE | HD93: FALSE | HE93: FALSE | HF93: FALSE | HG93: FALSE | HH93: FALSE | HI93: FALSE | HJ93: FALSE | HK93: FALSE | HL93: FALSE | HM93: FALSE | HN93: FALSE | HO93: FALSE | HP93: FALSE | HQ93: FALSE | HR93: FALSE | HS93: FALSE | HT93: FALSE | HU93: FALSE | HV93: FALSE | HW93: FALSE | HX93: FALSE | HY93: FALSE | HZ93: FALSE | IA93: FALSE | IB93: FALSE | IC93: FALSE | ID93: FALSE | IE93: FALSE | IF93: FALSE | IG93: FALSE | IH93: FALSE | II93: FALSE | IJ93: FALSE | IK93: FALSE | IL93: FALSE | IM93: FALSE | IN93: FALSE | IO93: FALSE | IP93: FALSE | IQ93: FALSE | IR93: FALSE | IS93: FALSE | IT93: FALSE | IU93: FALSE | IV93: FALSE | IW93: FALSE | IX93: FALSE | IY93: FALSE | IZ93: FALSE | JA93: FALSE | JB93: FALSE | JC93: FALSE | JD93: FALSE | JE93: =$F$93=JE6 -> FALSE | JF93: FALSE | JG93: FALSE | JH93: FALSE | JI93: FALSE | JJ93: FALSE | JK93: FALSE | JL93: FALSE | JM93: FALSE | JN93: FALSE | JO93: FALSE | JP93: FALSE | JQ93: FALSE | JR93: FALSE | JS93: FALSE | JT93: FALSE | JU93: FALSE | JV93: FALSE | JW93: FALSE | JX93: FALSE | JY93: FALSE | JZ93: FALSE | KA93: FALSE | KB93: FALSE | KC93: FALSE | KD93: FALSE | KE93: FALSE | KF93: FALSE | KG93: FALSE | KH93: FALSE | KI93: FALSE | KJ93: FALSE | KK93: FALSE | KL93: FALSE | KM93: FALSE | KN93: FALSE | KO93: FALSE | KP93: FALSE | KQ93: FALSE | KR93: FALSE | KS93: FALSE | KT93: FALSE | KU93: FALSE | KV93: FALSE | KW93: FALSE | KX93: FALSE | KY93: FALSE | KZ93: FALSE | LA93: FALSE | LB93: FALSE | LC93: FALSE | LD93: FALSE | LE93: FALSE | LF93: FALSE | LG93: FALSE | LH93: FALSE | LI93: FALSE | LJ93: FALSE | LK93: FALSE | LL93: FALSE | LM93: FALSE | LN93: FALSE | LO93: FALSE | LP93: FALSE | LQ93: =$F$93=LQ6 -> FALSE | LR93: FALSE | LS93: FALSE | LT93: FALSE | LU93: FALSE | LV93: FALSE | LW93: FALSE | LX93: FALSE | LY93: FALSE | LZ93: FALSE | MA93: FALSE | MB93: FALSE | MC93: FALSE | MD93: FALSE | ME93: FALSE | MF93: FALSE | MG93: FALSE | MH93: FALSE | MI93: FALSE | MJ93: FALSE | MK93: FALSE | ML93: FALSE | MM93: FALSE | MN93: FALSE | MO93: FALSE | MP93: FALSE | MQ93: FALSE | MR93: FALSE | MS93: FALSE | MT93: FALSE | MU93: FALSE | MV93: FALSE | MW93: FALSE | MX93: FALSE | MY93: FALSE | MZ93: FALSE | NA93: FALSE | NB93: FALSE | NC93: FALSE | ND93: FALSE | NE93: FALSE | NF93: FALSE | NG93: FALSE | NH93: FALSE | NI93: FALSE | NJ93: FALSE | NK93: FALSE | NL93: FALSE | NM93: FALSE | NN93: FALSE | NO93: FALSE | NP93: FALSE | NQ93: FALSE | NR93: FALSE | NS93: FALSE | NT93: FALSE | NU93: FALSE | NV93: FALSE | NW93: FALSE | NX93: FALSE | NY93: FALSE | NZ93: FALSE | OA93: FALSE | OB93: FALSE | OC93: =$F$93=OC6 -> FALSE | OD93: FALSE | OE93: FALSE | OF93: FALSE | OG93: FALSE | OH93: FALSE | OI93: FALSE | OJ93: FALSE | OK93: FALSE | OL93: FALSE | OM93: FALSE | ON93: FALSE | OO93: FALSE | OP93: FALSE | OQ93: FALSE | OR93: FALSE | OS93: FALSE | OT93: FALSE | OU93: FALSE | OV93: FALSE | OW93: FALSE | OX93: FALSE | OY93: FALSE | OZ93: FALSE | PA93: FALSE | PB93: FALSE | PC93: FALSE | PD93: FALSE | PE93: FALSE | PF93: FALSE | PG93: FALSE | PH93: FALSE | PI93: FALSE | PJ93: FALSE | PK93: FALSE | PL93: FALSE | PM93: FALSE | PN93: FALSE | PO93: FALSE | PP93: FALSE | PQ93: FALSE | PR93: FALSE | PS93: FALSE | PT93: FALSE | PU93: FALSE | PV93: FALSE | PW93: FALSE | PX93: FALSE | PY93: FALSE | PZ93: FALSE | QA93: FALSE | QB93: FALSE | QC93: FALSE | QD93: FALSE | QE93: FALSE | QF93: FALSE | QG93: FALSE | QH93: FALSE | QI93: FALSE | QJ93: FALSE | QK93: FALSE | QL93: FALSE | QM93: FALSE | QN93: FALSE | QO93: =$F$93=QO6 -> FALSE | QP93: FALSE | QQ93: FALSE | QR93: FALSE | QS93: FALSE | QT93: FALSE | QU93: FALSE | QV93: FALSE | QW93: FALSE | QX93: FALSE | QY93: FALSE | QZ93: FALSE | RA93: FALSE | RB93: FALSE | RC93: FALSE | RD93: FALSE | RE93: FALSE | RF93: FALSE | RG93: FALSE | RH93: FALSE | RI93: FALSE | RJ93: FALSE | RK93: FALSE | RL93: FALSE | RM93: FALSE | RN93: FALSE | RO93: FALSE | RP93: FALSE | RQ93: FALSE | RR93: FALSE | RS93: FALSE | RT93: FALSE | RU93: FALSE | RV93: FALSE | RW93: FALSE | RX93: FALSE | RY93: FALSE | RZ93: FALSE | SA93: FALSE | SB93: FALSE | SC93: FALSE | SD93: FALSE | SE93: FALSE | SF93: FALSE | SG93: FALSE | SH93: FALSE | SI93: FALSE | SJ93: FALSE | SK93: FALSE | SL93: FALSE | SM93: FALSE | SN93: FALSE | SO93: FALSE | SP93: FALSE | SQ93: FALSE | SR93: FALSE | SS93: FALSE | ST93: FALSE | SU93: FALSE | SV93: FALSE | SW93: FALSE | SX93: FALSE | SY93: FALSE | SZ93: FALSE | TA93: =$F$93=TA6 -> FALSE | TB93: FALSE | TC93: FALSE | TD93: FALSE | TE93: FALSE | TF93: FALSE | TG93: FALSE | TH93: FALSE | TI93: FALSE | TJ93: FALSE | TK93: FALSE | TL93: FALSE | TM93: FALSE | TN93: FALSE | TO93: FALSE | TP93: FALSE | TQ93: FALSE | TR93: FALSE | TS93: FALSE | TT93: FALSE | TU93: FALSE | TV93: FALSE | TW93: FALSE | TX93: FALSE | TY93: FALSE | TZ93: FALSE | UA93: FALSE | UB93: FALSE | UC93: FALSE | UD93: FALSE | UE93: FALSE | UF93: FALSE | UG93: FALSE | UH93: FALSE | UI93: FALSE | UJ93: FALSE | UK93: FALSE | UL93: FALSE | UM93: FALSE | UN93: FALSE | UO93: FALSE | UP93: FALSE | UQ93: FALSE | UR93: FALSE | US93: FALSE | UT93: FALSE | UU93: FALSE | UV93: FALSE | UW93: FALSE | UX93: FALSE | UY93: FALSE | UZ93: FALSE | VA93: FALSE | VB93: FALSE | VC93: FALSE | VD93: FALSE | VE93: FALSE | VF93: FALSE | VG93: FALSE | VH93: FALSE | VI93: FALSE | VJ93: FALSE | VK93: FALSE | VL93: FALSE | VM93: =$F$93=VM6 -> FALSE | VN93: FALSE | VO93: FALSE | VP93: FALSE | VQ93: FALSE | VR93: FALSE | VS93: FALSE | VT93: FALSE | VU93: FALSE | VV93: FALSE | VW93: FALSE | VX93: FALSE | VY93: FALSE | VZ93: FALSE | WA93: FALSE | WB93: FALSE | WC93: FALSE | WD93: FALSE | WE93: FALSE | WF93: FALSE | WG93: FALSE | WH93: FALSE | WI93: FALSE | WJ93: FALSE | WK93: FALSE | WL93: FALSE | WM93: FALSE | WN93: FALSE | WO93: FALSE | WP93: FALSE | WQ93: FALSE | WR93: FALSE | WS93: FALSE | WT93: FALSE | WU93: FALSE | WV93: FALSE | WW93: FALSE | WX93: FALSE | WY93: FALSE | WZ93: FALSE | XA93: FALSE | XB93: FALSE | XC93: FALSE | XD93: FALSE | XE93: FALSE | XF93: FALSE | XG93: FALSE | XH93: FALSE | XI93: FALSE | XJ93: FALSE | XK93: FALSE | XL93: FALSE | XM93: FALSE | XN93: FALSE | XO93: FALSE | XP93: FALSE | XQ93: FALSE | XR93: FALSE | XS93: FALSE | XT93: FALSE | XU93: FALSE | XV93: FALSE | XW93: FALSE | XX93: FALSE | XY93: =$F$93=XY6 -> FALSE | XZ93: FALSE | YA93: FALSE | YB93: FALSE | YC93: FALSE | YD93: FALSE | YE93: FALSE | YF93: FALSE | YG93: FALSE | YH93: FALSE | YI93: FALSE | YJ93: FALSE | YK93: FALSE | YL93: FALSE | YM93: FALSE | YN93: FALSE | YO93: FALSE | YP93: FALSE | YQ93: FALSE | YR93: FALSE | YS93: FALSE | YT93: FALSE | YU93: FALSE | YV93: FALSE | YW93: FALSE | YX93: FALSE | YY93: FALSE | YZ93: FALSE | ZA93: FALSE | ZB93: FALSE | ZC93: FALSE | ZD93: FALSE | ZE93: FALSE | ZF93: FALSE | ZG93: FALSE | ZH93: FALSE | ZI93: FALSE | ZJ93: FALSE | ZK93: FALSE | ZL93: FALSE | ZM93: FALSE | ZN93: FALSE | ZO93: FALSE | ZP93: FALSE | ZQ93: FALSE | ZR93: FALSE | ZS93: FALSE | ZT93: FALSE | ZU93: FALSE | ZV93: FALSE | ZW93: FALSE | ZX93: FALSE | ZY93: FALSE | ZZ93: FALSE | AAA93: FALSE | AAB93: FALSE | AAC93: FALSE | AAD93: FALSE | AAE93: FALSE | AAF93: FALSE | AAG93: FALSE | AAH93: FALSE | AAI93: FALSE | AAJ93: FALSE | AAK93: =$F$93=AAK6 -> FALSE | AAL93: FALSE | AAM93: FALSE | AAN93: FALSE | AAO93: FALSE | AAP93: FALSE | AAQ93: FALSE | AAR93: FALSE | AAS93: FALSE | AAT93: FALSE | AAU93: FALSE | AAV93: FALSE | AAW93: FALSE | AAX93: FALSE | AAY93: FALSE | AAZ93: FALSE | ABA93: FALSE | ABB93: FALSE | ABC93: FALSE | ABD93: FALSE | ABE93: FALSE | ABF93: FALSE | ABG93: FALSE | ABH93: FALSE | ABI93: FALSE | ABJ93: FALSE | ABK93: FALSE | ABL93: FALSE | ABM93: FALSE | ABN93: FALSE | ABO93: FALSE | ABP93: FALSE | ABQ93: FALSE | ABR93: FALSE | ABS93: FALSE | ABT93: FALSE | ABU93: FALSE | ABV93: FALSE | ABW93: FALSE | ABX93: FALSE | ABY93: FALSE | ABZ93: FALSE | ACA93: FALSE | ACB93: FALSE | ACC93: FALSE | ACD93: FALSE | ACE93: FALSE | ACF93: FALSE | ACG93: FALSE | ACH93: FALSE | ACI93: FALSE | ACJ93: FALSE | ACK93: FALSE | ACL93: FALSE | ACM93: FALSE | ACN93: FALSE | ACO93: FALSE | ACP93: FALSE | ACQ93: FALSE | ACR93: FALSE | ACS93: FALSE | ACT93: FALSE | ACU93: FALSE | ACV93: FALSE | ACW93: =$F$93=ACW6 -> FALSE | ACX93: FALSE | ACY93: FALSE | ACZ93: FALSE | ADA93: FALSE | ADB93: FALSE | ADC93: FALSE | ADD93: FALSE | ADE93: FALSE | ADF93: FALSE | ADG93: FALSE | ADH93: FALSE | ADI93: FALSE | ADJ93: FALSE | ADK93: FALSE | ADL93: FALSE | ADM93: FALSE | ADN93: FALSE | ADO93: FALSE | ADP93: FALSE | ADQ93: FALSE | ADR93: FALSE | ADS93: FALSE | ADT93: FALSE | ADU93: FALSE | ADV93: FALSE | ADW93: FALSE | ADX93: FALSE | ADY93: FALSE | ADZ93: FALSE | AEA93: FALSE | AEB93: FALSE | AEC93: FALSE | AED93: FALSE | AEE93: FALSE | AEF93: FALSE | AEG93: FALSE | AEH93: FALSE | AEI93: FALSE | AEJ93: FALSE | AEK93: FALSE | AEL93: FALSE | AEM93: FALSE | AEN93: FALSE | AEO93: FALSE | AEP93: FALSE | AEQ93: FALSE | AER93: FALSE | AES93: FALSE | AET93: FALSE | AEU93: FALSE | AEV93: FALSE | AEW93: FALSE | AEX93: FALSE | AEY93: FALSE | AEZ93: FALSE | AFA93: FALSE | AFB93: FALSE | AFC93: FALSE | AFD93: FALSE | AFE93: FALSE | AFF93: FALSE | AFG93: FALSE | AFH93: FALSE | AFI93: =$F$93=AFI6 -> FALSE | AFJ93: FALSE | AFK93: FALSE | AFL93: FALSE | AFM93: FALSE | AFN93: FALSE | AFO93: FALSE | AFP93: FALSE | AFQ93: FALSE | AFR93: FALSE | AFS93: FALSE | AFT93: FALSE | AFU93: FALSE | AFV93: FALSE | AFW93: FALSE | AFX93: FALSE | AFY93: FALSE | AFZ93: FALSE | AGA93: FALSE | AGB93: FALSE | AGC93: FALSE | AGD93: FALSE | AGE93: FALSE | AGF93: FALSE | AGG93: FALSE | AGH93: FALSE | AGI93: FALSE | AGJ93: FALSE | AGK93: FALSE
B94: Replacement without Inflation | E94: Currency | F94: ='Solar Carrying Charge'!F48 -> 0 | I94: =I93*$F$94 -> 0 | J94: =J93*$F$94 -> 0 | K94: 0 | L94: 0 | M94: 0 | N94: 0 | O94: 0 | P94: 0 | Q94: 0 | R94: 0 | S94: 0 | T94: 0 | U94: 0 | V94: 0 | W94: 0 | X94: 0 | Y94: 0 | Z94: 0 | AA94: 0 | AB94: 0 | AC94: 0 | AD94: 0 | AE94: 0 | AF94: 0 | AG94: 0 | AH94: 0 | AI94: 0 | AJ94: 0 | AK94: 0 | AL94: 0 | AM94: 0 | AN94: 0 | AO94: 0 | AP94: 0 | AQ94: 0 | AR94: 0 | AS94: 0 | AT94: 0 | AU94: 0 | AV94: 0 | AW94: 0 | AX94: 0 | AY94: 0 | AZ94: 0 | BA94: 0 | BB94: 0 | BC94: 0 | BD94: 0 | BE94: 0 | BF94: 0 | BG94: 0 | BH94: 0 | BI94: 0 | BJ94: 0 | BK94: 0 | BL94: 0 | BM94: 0 | BN94: 0 | BO94: 0 | BP94: 0 | BQ94: 0 | BR94: 0 | BS94: 0 | BT94: 0 | BU94: 0 | BV94: =BV93*$F$94 -> 0 | BW94: 0 | BX94: 0 | BY94: 0 | BZ94: 0 | CA94: 0 | CB94: 0 | CC94: 0 | CD94: 0 | CE94: 0 | CF94: 0 | CG94: 0 | CH94: 0 | CI94: 0 | CJ94: 0 | CK94: 0 | CL94: 0 | CM94: 0 | CN94: 0 | CO94: 0 | CP94: 0 | CQ94: 0 | CR94: 0 | CS94: 0 | CT94: 0 | CU94: 0 | CV94: 0 | CW94: 0 | CX94: 0 | CY94: 0 | CZ94: 0 | DA94: 0 | DB94: 0 | DC94: 0 | DD94: 0 | DE94: 0 | DF94: 0 | DG94: 0 | DH94: 0 | DI94: 0 | DJ94: 0 | DK94: 0 | DL94: 0 | DM94: 0 | DN94: 0 | DO94: 0 | DP94: 0 | DQ94: 0 | DR94: 0 | DS94: 0 | DT94: 0 | DU94: 0 | DV94: 0 | DW94: 0 | DX94: 0 | DY94: 0 | DZ94: 0 | EA94: 0 | EB94: 0 | EC94: 0 | ED94: 0 | EE94: 0 | EF94: 0 | EG94: 0 | EH94: =EH93*$F$94 -> 0 | EI94: 0 | EJ94: 0 | EK94: 0 | EL94: 0 | EM94: 0 | EN94: 0 | EO94: 0 | EP94: 0 | EQ94: 0 | ER94: 0 | ES94: 0 | ET94: 0 | EU94: 0 | EV94: 0 | EW94: 0 | EX94: 0 | EY94: 0 | EZ94: 0 | FA94: 0 | FB94: 0 | FC94: 0 | FD94: 0 | FE94: 0 | FF94: 0 | FG94: 0 | FH94: 0 | FI94: 0 | FJ94: 0 | FK94: 0 | FL94: 0 | FM94: 0 | FN94: 0 | FO94: 0 | FP94: 0 | FQ94: 0 | FR94: 0 | FS94: 0 | FT94: 0 | FU94: 0 | FV94: 0 | FW94: 0 | FX94: 0 | FY94: 0 | FZ94: 0 | GA94: 0 | GB94: 0 | GC94: 0 | GD94: 0 | GE94: 0 | GF94: 0 | GG94: 0 | GH94: 0 | GI94: 0 | GJ94: 0 | GK94: 0 | GL94: 0 | GM94: 0 | GN94: 0 | GO94: 0 | GP94: 0 | GQ94: 0 | GR94: 0 | GS94: 0 | GT94: =GT93*$F$94 -> 0 | GU94: 0 | GV94: 0 | GW94: 0 | GX94: 0 | GY94: 0 | GZ94: 0 | HA94: 0 | HB94: 0 | HC94: 0 | HD94: 0 | HE94: 0 | HF94: 0 | HG94: 0 | HH94: 0 | HI94: 0 | HJ94: 0 | HK94: 0 | HL94: 0 | HM94: 0 | HN94: 0 | HO94: 0 | HP94: 0 | HQ94: 0 | HR94: 0 | HS94: 0 | HT94: 0 | HU94: 0 | HV94: 0 | HW94: 0 | HX94: 0 | HY94: 0 | HZ94: 0 | IA94: 0 | IB94: 0 | IC94: 0 | ID94: 0 | IE94: 0 | IF94: 0 | IG94: 0 | IH94: 0 | II94: 0 | IJ94: 0 | IK94: 0 | IL94: 0 | IM94: 0 | IN94: 0 | IO94: 0 | IP94: 0 | IQ94: 0 | IR94: 0 | IS94: 0 | IT94: 0 | IU94: 0 | IV94: 0 | IW94: 0 | IX94: 0 | IY94: 0 | IZ94: 0 | JA94: 0 | JB94: 0 | JC94: 0 | JD94: 0 | JE94: 0 | JF94: =JF93*$F$94 -> 0 | JG94: 0 | JH94: 0 | JI94: 0 | JJ94: 0 | JK94: 0 | JL94: 0 | JM94: 0 | JN94: 0 | JO94: 0 | JP94: 0 | JQ94: 0 | JR94: 0 | JS94: 0 | JT94: 0 | JU94: 0 | JV94: 0 | JW94: 0 | JX94: 0 | JY94: 0 | JZ94: 0 | KA94: 0 | KB94: 0 | KC94: 0 | KD94: 0 | KE94: 0 | KF94: 0 | KG94: 0 | KH94: 0 | KI94: 0 | KJ94: 0 | KK94: 0 | KL94: 0 | KM94: 0 | KN94: 0 | KO94: 0 | KP94: 0 | KQ94: 0 | KR94: 0 | KS94: 0 | KT94: 0 | KU94: 0 | KV94: 0 | KW94: 0 | KX94: 0 | KY94: 0 | KZ94: 0 | LA94: 0 | LB94: 0 | LC94: 0 | LD94: 0 | LE94: 0 | LF94: 0 | LG94: 0 | LH94: 0 | LI94: 0 | LJ94: 0 | LK94: 0 | LL94: 0 | LM94: 0 | LN94: 0 | LO94: 0 | LP94: 0 | LQ94: 0 | LR94: =LR93*$F$94 -> 0 | LS94: 0 | LT94: 0 | LU94: 0 | LV94: 0 | LW94: 0 | LX94: 0 | LY94: 0 | LZ94: 0 | MA94: 0 | MB94: 0 | MC94: 0 | MD94: 0 | ME94: 0 | MF94: 0 | MG94: 0 | MH94: 0 | MI94: 0 | MJ94: 0 | MK94: 0 | ML94: 0 | MM94: 0 | MN94: 0 | MO94: 0 | MP94: 0 | MQ94: 0 | MR94: 0 | MS94: 0 | MT94: 0 | MU94: 0 | MV94: 0 | MW94: 0 | MX94: 0 | MY94: 0 | MZ94: 0 | NA94: 0 | NB94: 0 | NC94: 0 | ND94: 0 | NE94: 0 | NF94: 0 | NG94: 0 | NH94: 0 | NI94: 0 | NJ94: 0 | NK94: 0 | NL94: 0 | NM94: 0 | NN94: 0 | NO94: 0 | NP94: 0 | NQ94: 0 | NR94: 0 | NS94: 0 | NT94: 0 | NU94: 0 | NV94: 0 | NW94: 0 | NX94: 0 | NY94: 0 | NZ94: 0 | OA94: 0 | OB94: 0 | OC94: 0 | OD94: =OD93*$F$94 -> 0 | OE94: 0 | OF94: 0 | OG94: 0 | OH94: 0 | OI94: 0 | OJ94: 0 | OK94: 0 | OL94: 0 | OM94: 0 | ON94: 0 | OO94: 0 | OP94: 0 | OQ94: 0 | OR94: 0 | OS94: 0 | OT94: 0 | OU94: 0 | OV94: 0 | OW94: 0 | OX94: 0 | OY94: 0 | OZ94: 0 | PA94: 0 | PB94: 0 | PC94: 0 | PD94: 0 | PE94: 0 | PF94: 0 | PG94: 0 | PH94: 0 | PI94: 0 | PJ94: 0 | PK94: 0 | PL94: 0 | PM94: 0 | PN94: 0 | PO94: 0 | PP94: 0 | PQ94: 0 | PR94: 0 | PS94: 0 | PT94: 0 | PU94: 0 | PV94: 0 | PW94: 0 | PX94: 0 | PY94: 0 | PZ94: 0 | QA94: 0 | QB94: 0 | QC94: 0 | QD94: 0 | QE94: 0 | QF94: 0 | QG94: 0 | QH94: 0 | QI94: 0 | QJ94: 0 | QK94: 0 | QL94: 0 | QM94: 0 | QN94: 0 | QO94: 0 | QP94: =QP93*$F$94 -> 0 | QQ94: 0 | QR94: 0 | QS94: 0 | QT94: 0 | QU94: 0 | QV94: 0 | QW94: 0 | QX94: 0 | QY94: 0 | QZ94: 0 | RA94: 0 | RB94: 0 | RC94: 0 | RD94: 0 | RE94: 0 | RF94: 0 | RG94: 0 | RH94: 0 | RI94: 0 | RJ94: 0 | RK94: 0 | RL94: 0 | RM94: 0 | RN94: 0 | RO94: 0 | RP94: 0 | RQ94: 0 | RR94: 0 | RS94: 0 | RT94: 0 | RU94: 0 | RV94: 0 | RW94: 0 | RX94: 0 | RY94: 0 | RZ94: 0 | SA94: 0 | SB94: 0 | SC94: 0 | SD94: 0 | SE94: 0 | SF94: 0 | SG94: 0 | SH94: 0 | SI94: 0 | SJ94: 0 | SK94: 0 | SL94: 0 | SM94: 0 | SN94: 0 | SO94: 0 | SP94: 0 | SQ94: 0 | SR94: 0 | SS94: 0 | ST94: 0 | SU94: 0 | SV94: 0 | SW94: 0 | SX94: 0 | SY94: 0 | SZ94: 0 | TA94: 0 | TB94: =TB93*$F$94 -> 0 | TC94: 0 | TD94: 0 | TE94: 0 | TF94: 0 | TG94: 0 | TH94: 0 | TI94: 0 | TJ94: 0 | TK94: 0 | TL94: 0 | TM94: 0 | TN94: 0 | TO94: 0 | TP94: 0 | TQ94: 0 | TR94: 0 | TS94: 0 | TT94: 0 | TU94: 0 | TV94: 0 | TW94: 0 | TX94: 0 | TY94: 0 | TZ94: 0 | UA94: 0 | UB94: 0 | UC94: 0 | UD94: 0 | UE94: 0 | UF94: 0 | UG94: 0 | UH94: 0 | UI94: 0 | UJ94: 0 | UK94: 0 | UL94: 0 | UM94: 0 | UN94: 0 | UO94: 0 | UP94: 0 | UQ94: 0 | UR94: 0 | US94: 0 | UT94: 0 | UU94: 0 | UV94: 0 | UW94: 0 | UX94: 0 | UY94: 0 | UZ94: 0 | VA94: 0 | VB94: 0 | VC94: 0 | VD94: 0 | VE94: 0 | VF94: 0 | VG94: 0 | VH94: 0 | VI94: 0 | VJ94: 0 | VK94: 0 | VL94: 0 | VM94: 0 | VN94: =VN93*$F$94 -> 0 | VO94: 0 | VP94: 0 | VQ94: 0 | VR94: 0 | VS94: 0 | VT94: 0 | VU94: 0 | VV94: 0 | VW94: 0 | VX94: 0 | VY94: 0 | VZ94: 0 | WA94: 0 | WB94: 0 | WC94: 0 | WD94: 0 | WE94: 0 | WF94: 0 | WG94: 0 | WH94: 0 | WI94: 0 | WJ94: 0 | WK94: 0 | WL94: 0 | WM94: 0 | WN94: 0 | WO94: 0 | WP94: 0 | WQ94: 0 | WR94: 0 | WS94: 0 | WT94: 0 | WU94: 0 | WV94: 0 | WW94: 0 | WX94: 0 | WY94: 0 | WZ94: 0 | XA94: 0 | XB94: 0 | XC94: 0 | XD94: 0 | XE94: 0 | XF94: 0 | XG94: 0 | XH94: 0 | XI94: 0 | XJ94: 0 | XK94: 0 | XL94: 0 | XM94: 0 | XN94: 0 | XO94: 0 | XP94: 0 | XQ94: 0 | XR94: 0 | XS94: 0 | XT94: 0 | XU94: 0 | XV94: 0 | XW94: 0 | XX94: 0 | XY94: 0 | XZ94: =XZ93*$F$94 -> 0 | YA94: 0 | YB94: 0 | YC94: 0 | YD94: 0 | YE94: 0 | YF94: 0 | YG94: 0 | YH94: 0 | YI94: 0 | YJ94: 0 | YK94: 0 | YL94: 0 | YM94: 0 | YN94: 0 | YO94: 0 | YP94: 0 | YQ94: 0 | YR94: 0 | YS94: 0 | YT94: 0 | YU94: 0 | YV94: 0 | YW94: 0 | YX94: 0 | YY94: 0 | YZ94: 0 | ZA94: 0 | ZB94: 0 | ZC94: 0 | ZD94: 0 | ZE94: 0 | ZF94: 0 | ZG94: 0 | ZH94: 0 | ZI94: 0 | ZJ94: 0 | ZK94: 0 | ZL94: 0 | ZM94: 0 | ZN94: 0 | ZO94: 0 | ZP94: 0 | ZQ94: 0 | ZR94: 0 | ZS94: 0 | ZT94: 0 | ZU94: 0 | ZV94: 0 | ZW94: 0 | ZX94: 0 | ZY94: 0 | ZZ94: 0 | AAA94: 0 | AAB94: 0 | AAC94: 0 | AAD94: 0 | AAE94: 0 | AAF94: 0 | AAG94: 0 | AAH94: 0 | AAI94: 0 | AAJ94: 0 | AAK94: 0 | AAL94: =AAL93*$F$94 -> 0 | AAM94: 0 | AAN94: 0 | AAO94: 0 | AAP94: 0 | AAQ94: 0 | AAR94: 0 | AAS94: 0 | AAT94: 0 | AAU94: 0 | AAV94: 0 | AAW94: 0 | AAX94: 0 | AAY94: 0 | AAZ94: 0 | ABA94: 0 | ABB94: 0 | ABC94: 0 | ABD94: 0 | ABE94: 0 | ABF94: 0 | ABG94: 0 | ABH94: 0 | ABI94: 0 | ABJ94: 0 | ABK94: 0 | ABL94: 0 | ABM94: 0 | ABN94: 0 | ABO94: 0 | ABP94: 0 | ABQ94: 0 | ABR94: 0 | ABS94: 0 | ABT94: 0 | ABU94: 0 | ABV94: 0 | ABW94: 0 | ABX94: 0 | ABY94: 0 | ABZ94: 0 | ACA94: 0 | ACB94: 0 | ACC94: 0 | ACD94: 0 | ACE94: 0 | ACF94: 0 | ACG94: 0 | ACH94: 0 | ACI94: 0 | ACJ94: 0 | ACK94: 0 | ACL94: 0 | ACM94: 0 | ACN94: 0 | ACO94: 0 | ACP94: 0 | ACQ94: 0 | ACR94: 0 | ACS94: 0 | ACT94: 0 | ACU94: 0 | ACV94: 0 | ACW94: 0 | ACX94: =ACX93*$F$94 -> 0 | ACY94: 0 | ACZ94: 0 | ADA94: 0 | ADB94: 0 | ADC94: 0 | ADD94: 0 | ADE94: 0 | ADF94: 0 | ADG94: 0 | ADH94: 0 | ADI94: 0 | ADJ94: 0 | ADK94: 0 | ADL94: 0 | ADM94: 0 | ADN94: 0 | ADO94: 0 | ADP94: 0 | ADQ94: 0 | ADR94: 0 | ADS94: 0 | ADT94: 0 | ADU94: 0 | ADV94: 0 | ADW94: 0 | ADX94: 0 | ADY94: 0 | ADZ94: 0 | AEA94: 0 | AEB94: 0 | AEC94: 0 | AED94: 0 | AEE94: 0 | AEF94: 0 | AEG94: 0 | AEH94: 0 | AEI94: 0 | AEJ94: 0 | AEK94: 0 | AEL94: 0 | AEM94: 0 | AEN94: 0 | AEO94: 0 | AEP94: 0 | AEQ94: 0 | AER94: 0 | AES94: 0 | AET94: 0 | AEU94: 0 | AEV94: 0 | AEW94: 0 | AEX94: 0 | AEY94: 0 | AEZ94: 0 | AFA94: 0 | AFB94: 0 | AFC94: 0 | AFD94: 0 | AFE94: 0 | AFF94: 0 | AFG94: 0 | AFH94: 0 | AFI94: 0 | AFJ94: =AFJ93*$F$94 -> 0 | AFK94: 0 | AFL94: 0 | AFM94: 0 | AFN94: 0 | AFO94: 0 | AFP94: 0 | AFQ94: 0 | AFR94: 0 | AFS94: 0 | AFT94: 0 | AFU94: 0 | AFV94: 0 | AFW94: 0 | AFX94: 0 | AFY94: 0 | AFZ94: 0 | AGA94: 0 | AGB94: 0 | AGC94: 0 | AGD94: 0 | AGE94: 0 | AGF94: 0 | AGG94: 0 | AGH94: 0 | AGI94: 0 | AGJ94: 0 | AGK94: 0
B95: Replacement with Inflation | E95: Currency | F95: =SUM(I95:AGK95) -> 0 | I95: =I94*I75 -> 0 | J95: =J94*J75 -> 0 | K95: 0 | L95: 0 | M95: 0 | N95: 0 | O95: 0 | P95: 0 | Q95: 0 | R95: 0 | S95: 0 | T95: 0 | U95: 0 | V95: 0 | W95: 0 | X95: 0 | Y95: 0 | Z95: 0 | AA95: 0 | AB95: 0 | AC95: 0 | AD95: 0 | AE95: 0 | AF95: 0 | AG95: 0 | AH95: 0 | AI95: 0 | AJ95: 0 | AK95: 0 | AL95: 0 | AM95: 0 | AN95: 0 | AO95: 0 | AP95: 0 | AQ95: 0 | AR95: 0 | AS95: 0 | AT95: 0 | AU95: 0 | AV95: 0 | AW95: 0 | AX95: 0 | AY95: 0 | AZ95: 0 | BA95: 0 | BB95: 0 | BC95: 0 | BD95: 0 | BE95: 0 | BF95: 0 | BG95: 0 | BH95: 0 | BI95: 0 | BJ95: 0 | BK95: 0 | BL95: 0 | BM95: 0 | BN95: 0 | BO95: 0 | BP95: 0 | BQ95: 0 | BR95: 0 | BS95: 0 | BT95: 0 | BU95: 0 | BV95: =BV94*BV75 -> 0 | BW95: 0 | BX95: 0 | BY95: 0 | BZ95: 0 | CA95: 0 | CB95: 0 | CC95: 0 | CD95: 0 | CE95: 0 | CF95: 0 | CG95: 0 | CH95: 0 | CI95: 0 | CJ95: 0 | CK95: 0 | CL95: 0 | CM95: 0 | CN95: 0 | CO95: 0 | CP95: 0 | CQ95: 0 | CR95: 0 | CS95: 0 | CT95: 0 | CU95: 0 | CV95: 0 | CW95: 0 | CX95: 0 | CY95: 0 | CZ95: 0 | DA95: 0 | DB95: 0 | DC95: 0 | DD95: 0 | DE95: 0 | DF95: 0 | DG95: 0 | DH95: 0 | DI95: 0 | DJ95: 0 | DK95: 0 | DL95: 0 | DM95: 0 | DN95: 0 | DO95: 0 | DP95: 0 | DQ95: 0 | DR95: 0 | DS95: 0 | DT95: 0 | DU95: 0 | DV95: 0 | DW95: 0 | DX95: 0 | DY95: 0 | DZ95: 0 | EA95: 0 | EB95: 0 | EC95: 0 | ED95: 0 | EE95: 0 | EF95: 0 | EG95: 0 | EH95: =EH94*EH75 -> 0 | EI95: 0 | EJ95: 0 | EK95: 0 | EL95: 0 | EM95: 0 | EN95: 0 | EO95: 0 | EP95: 0 | EQ95: 0 | ER95: 0 | ES95: 0 | ET95: 0 | EU95: 0 | EV95: 0 | EW95: 0 | EX95: 0 | EY95: 0 | EZ95: 0 | FA95: 0 | FB95: 0 | FC95: 0 | FD95: 0 | FE95: 0 | FF95: 0 | FG95: 0 | FH95: 0 | FI95: 0 | FJ95: 0 | FK95: 0 | FL95: 0 | FM95: 0 | FN95: 0 | FO95: 0 | FP95: 0 | FQ95: 0 | FR95: 0 | FS95: 0 | FT95: 0 | FU95: 0 | FV95: 0 | FW95: 0 | FX95: 0 | FY95: 0 | FZ95: 0 | GA95: 0 | GB95: 0 | GC95: 0 | GD95: 0 | GE95: 0 | GF95: 0 | GG95: 0 | GH95: 0 | GI95: 0 | GJ95: 0 | GK95: 0 | GL95: 0 | GM95: 0 | GN95: 0 | GO95: 0 | GP95: 0 | GQ95: 0 | GR95: 0 | GS95: 0 | GT95: =GT94*GT75 -> 0 | GU95: 0 | GV95: 0 | GW95: 0 | GX95: 0 | GY95: 0 | GZ95: 0 | HA95: 0 | HB95: 0 | HC95: 0 | HD95: 0 | HE95: 0 | HF95: 0 | HG95: 0 | HH95: 0 | HI95: 0 | HJ95: 0 | HK95: 0 | HL95: 0 | HM95: 0 | HN95: 0 | HO95: 0 | HP95: 0 | HQ95: 0 | HR95: 0 | HS95: 0 | HT95: 0 | HU95: 0 | HV95: 0 | HW95: 0 | HX95: 0 | HY95: 0 | HZ95: 0 | IA95: 0 | IB95: 0 | IC95: 0 | ID95: 0 | IE95: 0 | IF95: 0 | IG95: 0 | IH95: 0 | II95: 0 | IJ95: 0 | IK95: 0 | IL95: 0 | IM95: 0 | IN95: 0 | IO95: 0 | IP95: 0 | IQ95: 0 | IR95: 0 | IS95: 0 | IT95: 0 | IU95: 0 | IV95: 0 | IW95: 0 | IX95: 0 | IY95: 0 | IZ95: 0 | JA95: 0 | JB95: 0 | JC95: 0 | JD95: 0 | JE95: 0 | JF95: =JF94*JF75 -> 0 | JG95: 0 | JH95: 0 | JI95: 0 | JJ95: 0 | JK95: 0 | JL95: 0 | JM95: 0 | JN95: 0 | JO95: 0 | JP95: 0 | JQ95: 0 | JR95: 0 | JS95: 0 | JT95: 0 | JU95: 0 | JV95: 0 | JW95: 0 | JX95: 0 | JY95: 0 | JZ95: 0 | KA95: 0 | KB95: 0 | KC95: 0 | KD95: 0 | KE95: 0 | KF95: 0 | KG95: 0 | KH95: 0 | KI95: 0 | KJ95: 0 | KK95: 0 | KL95: 0 | KM95: 0 | KN95: 0 | KO95: 0 | KP95: 0 | KQ95: 0 | KR95: 0 | KS95: 0 | KT95: 0 | KU95: 0 | KV95: 0 | KW95: 0 | KX95: 0 | KY95: 0 | KZ95: 0 | LA95: 0 | LB95: 0 | LC95: 0 | LD95: 0 | LE95: 0 | LF95: 0 | LG95: 0 | LH95: 0 | LI95: 0 | LJ95: 0 | LK95: 0 | LL95: 0 | LM95: 0 | LN95: 0 | LO95: 0 | LP95: 0 | LQ95: 0 | LR95: =LR94*LR75 -> 0 | LS95: 0 | LT95: 0 | LU95: 0 | LV95: 0 | LW95: 0 | LX95: 0 | LY95: 0 | LZ95: 0 | MA95: 0 | MB95: 0 | MC95: 0 | MD95: 0 | ME95: 0 | MF95: 0 | MG95: 0 | MH95: 0 | MI95: 0 | MJ95: 0 | MK95: 0 | ML95: 0 | MM95: 0 | MN95: 0 | MO95: 0 | MP95: 0 | MQ95: 0 | MR95: 0 | MS95: 0 | MT95: 0 | MU95: 0 | MV95: 0 | MW95: 0 | MX95: 0 | MY95: 0 | MZ95: 0 | NA95: 0 | NB95: 0 | NC95: 0 | ND95: 0 | NE95: 0 | NF95: 0 | NG95: 0 | NH95: 0 | NI95: 0 | NJ95: 0 | NK95: 0 | NL95: 0 | NM95: 0 | NN95: 0 | NO95: 0 | NP95: 0 | NQ95: 0 | NR95: 0 | NS95: 0 | NT95: 0 | NU95: 0 | NV95: 0 | NW95: 0 | NX95: 0 | NY95: 0 | NZ95: 0 | OA95: 0 | OB95: 0 | OC95: 0 | OD95: =OD94*OD75 -> 0 | OE95: 0 | OF95: 0 | OG95: 0 | OH95: 0 | OI95: 0 | OJ95: 0 | OK95: 0 | OL95: 0 | OM95: 0 | ON95: 0 | OO95: 0 | OP95: 0 | OQ95: 0 | OR95: 0 | OS95: 0 | OT95: 0 | OU95: 0 | OV95: 0 | OW95: 0 | OX95: 0 | OY95: 0 | OZ95: 0 | PA95: 0 | PB95: 0 | PC95: 0 | PD95: 0 | PE95: 0 | PF95: 0 | PG95: 0 | PH95: 0 | PI95: 0 | PJ95: 0 | PK95: 0 | PL95: 0 | PM95: 0 | PN95: 0 | PO95: 0 | PP95: 0 | PQ95: 0 | PR95: 0 | PS95: 0 | PT95: 0 | PU95: 0 | PV95: 0 | PW95: 0 | PX95: 0 | PY95: 0 | PZ95: 0 | QA95: 0 | QB95: 0 | QC95: 0 | QD95: 0 | QE95: 0 | QF95: 0 | QG95: 0 | QH95: 0 | QI95: 0 | QJ95: 0 | QK95: 0 | QL95: 0 | QM95: 0 | QN95: 0 | QO95: 0 | QP95: =QP94*QP75 -> 0 | QQ95: 0 | QR95: 0 | QS95: 0 | QT95: 0 | QU95: 0 | QV95: 0 | QW95: 0 | QX95: 0 | QY95: 0 | QZ95: 0 | RA95: 0 | RB95: 0 | RC95: 0 | RD95: 0 | RE95: 0 | RF95: 0 | RG95: 0 | RH95: 0 | RI95: 0 | RJ95: 0 | RK95: 0 | RL95: 0 | RM95: 0 | RN95: 0 | RO95: 0 | RP95: 0 | RQ95: 0 | RR95: 0 | RS95: 0 | RT95: 0 | RU95: 0 | RV95: 0 | RW95: 0 | RX95: 0 | RY95: 0 | RZ95: 0 | SA95: 0 | SB95: 0 | SC95: 0 | SD95: 0 | SE95: 0 | SF95: 0 | SG95: 0 | SH95: 0 | SI95: 0 | SJ95: 0 | SK95: 0 | SL95: 0 | SM95: 0 | SN95: 0 | SO95: 0 | SP95: 0 | SQ95: 0 | SR95: 0 | SS95: 0 | ST95: 0 | SU95: 0 | SV95: 0 | SW95: 0 | SX95: 0 | SY95: 0 | SZ95: 0 | TA95: 0 | TB95: =TB94*TB75 -> 0 | TC95: 0 | TD95: 0 | TE95: 0 | TF95: 0 | TG95: 0 | TH95: 0 | TI95: 0 | TJ95: 0 | TK95: 0 | TL95: 0 | TM95: 0 | TN95: 0 | TO95: 0 | TP95: 0 | TQ95: 0 | TR95: 0 | TS95: 0 | TT95: 0 | TU95: 0 | TV95: 0 | TW95: 0 | TX95: 0 | TY95: 0 | TZ95: 0 | UA95: 0 | UB95: 0 | UC95: 0 | UD95: 0 | UE95: 0 | UF95: 0 | UG95: 0 | UH95: 0 | UI95: 0 | UJ95: 0 | UK95: 0 | UL95: 0 | UM95: 0 | UN95: 0 | UO95: 0 | UP95: 0 | UQ95: 0 | UR95: 0 | US95: 0 | UT95: 0 | UU95: 0 | UV95: 0 | UW95: 0 | UX95: 0 | UY95: 0 | UZ95: 0 | VA95: 0 | VB95: 0 | VC95: 0 | VD95: 0 | VE95: 0 | VF95: 0 | VG95: 0 | VH95: 0 | VI95: 0 | VJ95: 0 | VK95: 0 | VL95: 0 | VM95: 0 | VN95: =VN94*VN75 -> 0 | VO95: 0 | VP95: 0 | VQ95: 0 | VR95: 0 | VS95: 0 | VT95: 0 | VU95: 0 | VV95: 0 | VW95: 0 | VX95: 0 | VY95: 0 | VZ95: 0 | WA95: 0 | WB95: 0 | WC95: 0 | WD95: 0 | WE95: 0 | WF95: 0 | WG95: 0 | WH95: 0 | WI95: 0 | WJ95: 0 | WK95: 0 | WL95: 0 | WM95: 0 | WN95: 0 | WO95: 0 | WP95: 0 | WQ95: 0 | WR95: 0 | WS95: 0 | WT95: 0 | WU95: 0 | WV95: 0 | WW95: 0 | WX95: 0 | WY95: 0 | WZ95: 0 | XA95: 0 | XB95: 0 | XC95: 0 | XD95: 0 | XE95: 0 | XF95: 0 | XG95: 0 | XH95: 0 | XI95: 0 | XJ95: 0 | XK95: 0 | XL95: 0 | XM95: 0 | XN95: 0 | XO95: 0 | XP95: 0 | XQ95: 0 | XR95: 0 | XS95: 0 | XT95: 0 | XU95: 0 | XV95: 0 | XW95: 0 | XX95: 0 | XY95: 0 | XZ95: =XZ94*XZ75 -> 0 | YA95: 0 | YB95: 0 | YC95: 0 | YD95: 0 | YE95: 0 | YF95: 0 | YG95: 0 | YH95: 0 | YI95: 0 | YJ95: 0 | YK95: 0 | YL95: 0 | YM95: 0 | YN95: 0 | YO95: 0 | YP95: 0 | YQ95: 0 | YR95: 0 | YS95: 0 | YT95: 0 | YU95: 0 | YV95: 0 | YW95: 0 | YX95: 0 | YY95: 0 | YZ95: 0 | ZA95: 0 | ZB95: 0 | ZC95: 0 | ZD95: 0 | ZE95: 0 | ZF95: 0 | ZG95: 0 | ZH95: 0 | ZI95: 0 | ZJ95: 0 | ZK95: 0 | ZL95: 0 | ZM95: 0 | ZN95: 0 | ZO95: 0 | ZP95: 0 | ZQ95: 0 | ZR95: 0 | ZS95: 0 | ZT95: 0 | ZU95: 0 | ZV95: 0 | ZW95: 0 | ZX95: 0 | ZY95: 0 | ZZ95: 0 | AAA95: 0 | AAB95: 0 | AAC95: 0 | AAD95: 0 | AAE95: 0 | AAF95: 0 | AAG95: 0 | AAH95: 0 | AAI95: 0 | AAJ95: 0 | AAK95: 0 | AAL95: =AAL94*AAL75 -> 0 | AAM95: 0 | AAN95: 0 | AAO95: 0 | AAP95: 0 | AAQ95: 0 | AAR95: 0 | AAS95: 0 | AAT95: 0 | AAU95: 0 | AAV95: 0 | AAW95: 0 | AAX95: 0 | AAY95: 0 | AAZ95: 0 | ABA95: 0 | ABB95: 0 | ABC95: 0 | ABD95: 0 | ABE95: 0 | ABF95: 0 | ABG95: 0 | ABH95: 0 | ABI95: 0 | ABJ95: 0 | ABK95: 0 | ABL95: 0 | ABM95: 0 | ABN95: 0 | ABO95: 0 | ABP95: 0 | ABQ95: 0 | ABR95: 0 | ABS95: 0 | ABT95: 0 | ABU95: 0 | ABV95: 0 | ABW95: 0 | ABX95: 0 | ABY95: 0 | ABZ95: 0 | ACA95: 0 | ACB95: 0 | ACC95: 0 | ACD95: 0 | ACE95: 0 | ACF95: 0 | ACG95: 0 | ACH95: 0 | ACI95: 0 | ACJ95: 0 | ACK95: 0 | ACL95: 0 | ACM95: 0 | ACN95: 0 | ACO95: 0 | ACP95: 0 | ACQ95: 0 | ACR95: 0 | ACS95: 0 | ACT95: 0 | ACU95: 0 | ACV95: 0 | ACW95: 0 | ACX95: =ACX94*ACX75 -> 0 | ACY95: 0 | ACZ95: 0 | ADA95: 0 | ADB95: 0 | ADC95: 0 | ADD95: 0 | ADE95: 0 | ADF95: 0 | ADG95: 0 | ADH95: 0 | ADI95: 0 | ADJ95: 0 | ADK95: 0 | ADL95: 0 | ADM95: 0 | ADN95: 0 | ADO95: 0 | ADP95: 0 | ADQ95: 0 | ADR95: 0 | ADS95: 0 | ADT95: 0 | ADU95: 0 | ADV95: 0 | ADW95: 0 | ADX95: 0 | ADY95: 0 | ADZ95: 0 | AEA95: 0 | AEB95: 0 | AEC95: 0 | AED95: 0 | AEE95: 0 | AEF95: 0 | AEG95: 0 | AEH95: 0 | AEI95: 0 | AEJ95: 0 | AEK95: 0 | AEL95: 0 | AEM95: 0 | AEN95: 0 | AEO95: 0 | AEP95: 0 | AEQ95: 0 | AER95: 0 | AES95: 0 | AET95: 0 | AEU95: 0 | AEV95: 0 | AEW95: 0 | AEX95: 0 | AEY95: 0 | AEZ95: 0 | AFA95: 0 | AFB95: 0 | AFC95: 0 | AFD95: 0 | AFE95: 0 | AFF95: 0 | AFG95: 0 | AFH95: 0 | AFI95: 0 | AFJ95: =AFJ94*AFJ75 -> 0 | AFK95: 0 | AFL95: 0 | AFM95: 0 | AFN95: 0 | AFO95: 0 | AFP95: 0 | AFQ95: 0 | AFR95: 0 | AFS95: 0 | AFT95: 0 | AFU95: 0 | AFV95: 0 | AFW95: 0 | AFX95: 0 | AFY95: 0 | AFZ95: 0 | AGA95: 0 | AGB95: 0 | AGC95: 0 | AGD95: 0 | AGE95: 0 | AGF95: 0 | AGG95: 0 | AGH95: 0 | AGI95: 0 | AGJ95: 0 | AGK95: 0
B96: Decomissioning Date | E96: Switch | F96: =EDATE(F45,-F5) -> 2031-07-01 | I96: =$F$96=I6 -> FALSE | J96: FALSE | K96: FALSE | L96: FALSE | M96: FALSE | N96: FALSE | O96: FALSE | P96: FALSE | Q96: FALSE | R96: FALSE | S96: FALSE | T96: FALSE | U96: FALSE | V96: FALSE | W96: FALSE | X96: FALSE | Y96: FALSE | Z96: FALSE | AA96: FALSE | AB96: FALSE | AC96: FALSE | AD96: FALSE | AE96: FALSE | AF96: FALSE | AG96: FALSE | AH96: FALSE | AI96: FALSE | AJ96: FALSE | AK96: FALSE | AL96: FALSE | AM96: FALSE | AN96: FALSE | AO96: FALSE | AP96: FALSE | AQ96: FALSE | AR96: FALSE | AS96: FALSE | AT96: FALSE | AU96: FALSE | AV96: FALSE | AW96: FALSE | AX96: FALSE | AY96: FALSE | AZ96: FALSE | BA96: FALSE | BB96: FALSE | BC96: FALSE | BD96: FALSE | BE96: FALSE | BF96: FALSE | BG96: FALSE | BH96: FALSE | BI96: FALSE | BJ96: FALSE | BK96: FALSE | BL96: FALSE | BM96: FALSE | BN96: FALSE | BO96: FALSE | BP96: FALSE | BQ96: FALSE | BR96: FALSE | BS96: FALSE | BT96: FALSE | BU96: =$F$96=BU6 -> FALSE | BV96: FALSE | BW96: FALSE | BX96: FALSE | BY96: FALSE | BZ96: FALSE | CA96: FALSE | CB96: FALSE | CC96: FALSE | CD96: FALSE | CE96: FALSE | CF96: FALSE | CG96: FALSE | CH96: FALSE | CI96: FALSE | CJ96: FALSE | CK96: FALSE | CL96: FALSE | CM96: FALSE | CN96: FALSE | CO96: FALSE | CP96: FALSE | CQ96: FALSE | CR96: FALSE | CS96: FALSE | CT96: FALSE | CU96: FALSE | CV96: FALSE | CW96: FALSE | CX96: FALSE | CY96: FALSE | CZ96: FALSE | DA96: FALSE | DB96: FALSE | DC96: FALSE | DD96: FALSE | DE96: FALSE | DF96: FALSE | DG96: FALSE | DH96: FALSE | DI96: FALSE | DJ96: FALSE | DK96: FALSE | DL96: FALSE | DM96: FALSE | DN96: FALSE | DO96: FALSE | DP96: FALSE | DQ96: FALSE | DR96: FALSE | DS96: FALSE | DT96: FALSE | DU96: FALSE | DV96: FALSE | DW96: FALSE | DX96: FALSE | DY96: FALSE | DZ96: FALSE | EA96: FALSE | EB96: FALSE | EC96: FALSE | ED96: FALSE | EE96: FALSE | EF96: FALSE | EG96: =$F$96=EG6 -> FALSE | EH96: FALSE | EI96: FALSE | EJ96: FALSE | EK96: FALSE | EL96: FALSE | EM96: FALSE | EN96: FALSE | EO96: FALSE | EP96: FALSE | EQ96: FALSE | ER96: FALSE | ES96: FALSE | ET96: FALSE | EU96: FALSE | EV96: FALSE | EW96: FALSE | EX96: FALSE | EY96: FALSE | EZ96: FALSE | FA96: FALSE | FB96: FALSE | FC96: FALSE | FD96: FALSE | FE96: FALSE | FF96: FALSE | FG96: FALSE | FH96: FALSE | FI96: FALSE | FJ96: FALSE | FK96: FALSE | FL96: FALSE | FM96: FALSE | FN96: FALSE | FO96: FALSE | FP96: FALSE | FQ96: FALSE | FR96: FALSE | FS96: FALSE | FT96: FALSE | FU96: FALSE | FV96: FALSE | FW96: FALSE | FX96: FALSE | FY96: FALSE | FZ96: FALSE | GA96: FALSE | GB96: FALSE | GC96: FALSE | GD96: FALSE | GE96: FALSE | GF96: FALSE | GG96: FALSE | GH96: FALSE | GI96: FALSE | GJ96: FALSE | GK96: FALSE | GL96: FALSE | GM96: FALSE | GN96: FALSE | GO96: FALSE | GP96: FALSE | GQ96: FALSE | GR96: FALSE | GS96: =$F$96=GS6 -> FALSE | GT96: FALSE | GU96: FALSE | GV96: FALSE | GW96: FALSE | GX96: FALSE | GY96: FALSE | GZ96: FALSE | HA96: FALSE | HB96: FALSE | HC96: FALSE | HD96: FALSE | HE96: FALSE | HF96: FALSE | HG96: FALSE | HH96: FALSE | HI96: FALSE | HJ96: FALSE | HK96: FALSE | HL96: FALSE | HM96: FALSE | HN96: FALSE | HO96: FALSE | HP96: FALSE | HQ96: FALSE | HR96: FALSE | HS96: FALSE | HT96: FALSE | HU96: FALSE | HV96: FALSE | HW96: FALSE | HX96: FALSE | HY96: FALSE | HZ96: FALSE | IA96: FALSE | IB96: FALSE | IC96: FALSE | ID96: FALSE | IE96: FALSE | IF96: FALSE | IG96: FALSE | IH96: FALSE | II96: FALSE | IJ96: FALSE | IK96: FALSE | IL96: FALSE | IM96: FALSE | IN96: FALSE | IO96: FALSE | IP96: FALSE | IQ96: FALSE | IR96: FALSE | IS96: FALSE | IT96: FALSE | IU96: FALSE | IV96: FALSE | IW96: FALSE | IX96: FALSE | IY96: FALSE | IZ96: FALSE | JA96: FALSE | JB96: FALSE | JC96: FALSE | JD96: FALSE | JE96: =$F$96=JE6 -> FALSE | JF96: FALSE | JG96: FALSE | JH96: FALSE | JI96: FALSE | JJ96: FALSE | JK96: FALSE | JL96: FALSE | JM96: FALSE | JN96: FALSE | JO96: FALSE | JP96: FALSE | JQ96: FALSE | JR96: FALSE | JS96: FALSE | JT96: FALSE | JU96: FALSE | JV96: FALSE | JW96: FALSE | JX96: FALSE | JY96: FALSE | JZ96: FALSE | KA96: FALSE | KB96: FALSE | KC96: FALSE | KD96: FALSE | KE96: FALSE | KF96: FALSE | KG96: FALSE | KH96: FALSE | KI96: FALSE | KJ96: FALSE | KK96: FALSE | KL96: FALSE | KM96: FALSE | KN96: FALSE | KO96: FALSE | KP96: FALSE | KQ96: FALSE | KR96: FALSE | KS96: FALSE | KT96: FALSE | KU96: FALSE | KV96: FALSE | KW96: FALSE | KX96: FALSE | KY96: FALSE | KZ96: FALSE | LA96: FALSE | LB96: FALSE | LC96: FALSE | LD96: FALSE | LE96: FALSE | LF96: FALSE | LG96: FALSE | LH96: FALSE | LI96: FALSE | LJ96: FALSE | LK96: FALSE | LL96: FALSE | LM96: FALSE | LN96: FALSE | LO96: FALSE | LP96: FALSE | LQ96: =$F$96=LQ6 -> FALSE | LR96: FALSE | LS96: FALSE | LT96: FALSE | LU96: FALSE | LV96: FALSE | LW96: FALSE | LX96: FALSE | LY96: FALSE | LZ96: FALSE | MA96: FALSE | MB96: FALSE | MC96: FALSE | MD96: FALSE | ME96: FALSE | MF96: FALSE | MG96: FALSE | MH96: FALSE | MI96: FALSE | MJ96: FALSE | MK96: FALSE | ML96: FALSE | MM96: FALSE | MN96: FALSE | MO96: FALSE | MP96: FALSE | MQ96: FALSE | MR96: FALSE | MS96: FALSE | MT96: FALSE | MU96: FALSE | MV96: FALSE | MW96: FALSE | MX96: FALSE | MY96: FALSE | MZ96: FALSE | NA96: FALSE | NB96: FALSE | NC96: FALSE | ND96: FALSE | NE96: FALSE | NF96: FALSE | NG96: FALSE | NH96: FALSE | NI96: FALSE | NJ96: TRUE | NK96: FALSE | NL96: FALSE | NM96: FALSE | NN96: FALSE | NO96: FALSE | NP96: FALSE | NQ96: FALSE | NR96: FALSE | NS96: FALSE | NT96: FALSE | NU96: FALSE | NV96: FALSE | NW96: FALSE | NX96: FALSE | NY96: FALSE | NZ96: FALSE | OA96: FALSE | OB96: FALSE | OC96: =$F$96=OC6 -> FALSE | OD96: FALSE | OE96: FALSE | OF96: FALSE | OG96: FALSE | OH96: FALSE | OI96: FALSE | OJ96: FALSE | OK96: FALSE | OL96: FALSE | OM96: FALSE | ON96: FALSE | OO96: FALSE | OP96: FALSE | OQ96: FALSE | OR96: FALSE | OS96: FALSE | OT96: FALSE | OU96: FALSE | OV96: FALSE | OW96: FALSE | OX96: FALSE | OY96: FALSE | OZ96: FALSE | PA96: FALSE | PB96: FALSE | PC96: FALSE | PD96: FALSE | PE96: FALSE | PF96: FALSE | PG96: FALSE | PH96: FALSE | PI96: FALSE | PJ96: FALSE | PK96: FALSE | PL96: FALSE | PM96: FALSE | PN96: FALSE | PO96: FALSE | PP96: FALSE | PQ96: FALSE | PR96: FALSE | PS96: FALSE | PT96: FALSE | PU96: FALSE | PV96: FALSE | PW96: FALSE | PX96: FALSE | PY96: FALSE | PZ96: FALSE | QA96: FALSE | QB96: FALSE | QC96: FALSE | QD96: FALSE | QE96: FALSE | QF96: FALSE | QG96: FALSE | QH96: FALSE | QI96: FALSE | QJ96: FALSE | QK96: FALSE | QL96: FALSE | QM96: FALSE | QN96: FALSE | QO96: =$F$96=QO6 -> FALSE | QP96: FALSE | QQ96: FALSE | QR96: FALSE | QS96: FALSE | QT96: FALSE | QU96: FALSE | QV96: FALSE | QW96: FALSE | QX96: FALSE | QY96: FALSE | QZ96: FALSE | RA96: FALSE | RB96: FALSE | RC96: FALSE | RD96: FALSE | RE96: FALSE | RF96: FALSE | RG96: FALSE | RH96: FALSE | RI96: FALSE | RJ96: FALSE | RK96: FALSE | RL96: FALSE | RM96: FALSE | RN96: FALSE | RO96: FALSE | RP96: FALSE | RQ96: FALSE | RR96: FALSE | RS96: FALSE | RT96: FALSE | RU96: FALSE | RV96: FALSE | RW96: FALSE | RX96: FALSE | RY96: FALSE | RZ96: FALSE | SA96: FALSE | SB96: FALSE | SC96: FALSE | SD96: FALSE | SE96: FALSE | SF96: FALSE | SG96: FALSE | SH96: FALSE | SI96: FALSE | SJ96: FALSE | SK96: FALSE | SL96: FALSE | SM96: FALSE | SN96: FALSE | SO96: FALSE | SP96: FALSE | SQ96: FALSE | SR96: FALSE | SS96: FALSE | ST96: FALSE | SU96: FALSE | SV96: FALSE | SW96: FALSE | SX96: FALSE | SY96: FALSE | SZ96: FALSE | TA96: =$F$96=TA6 -> FALSE | TB96: FALSE | TC96: FALSE | TD96: FALSE | TE96: FALSE | TF96: FALSE | TG96: FALSE | TH96: FALSE | TI96: FALSE | TJ96: FALSE | TK96: FALSE | TL96: FALSE | TM96: FALSE | TN96: FALSE | TO96: FALSE | TP96: FALSE | TQ96: FALSE | TR96: FALSE | TS96: FALSE | TT96: FALSE | TU96: FALSE | TV96: FALSE | TW96: FALSE | TX96: FALSE | TY96: FALSE | TZ96: FALSE | UA96: FALSE | UB96: FALSE | UC96: FALSE | UD96: FALSE | UE96: FALSE | UF96: FALSE | UG96: FALSE | UH96: FALSE | UI96: FALSE | UJ96: FALSE | UK96: FALSE | UL96: FALSE | UM96: FALSE | UN96: FALSE | UO96: FALSE | UP96: FALSE | UQ96: FALSE | UR96: FALSE | US96: FALSE | UT96: FALSE | UU96: FALSE | UV96: FALSE | UW96: FALSE | UX96: FALSE | UY96: FALSE | UZ96: FALSE | VA96: FALSE | VB96: FALSE | VC96: FALSE | VD96: FALSE | VE96: FALSE | VF96: FALSE | VG96: FALSE | VH96: FALSE | VI96: FALSE | VJ96: FALSE | VK96: FALSE | VL96: FALSE | VM96: =$F$96=VM6 -> FALSE | VN96: FALSE | VO96: FALSE | VP96: FALSE | VQ96: FALSE | VR96: FALSE | VS96: FALSE | VT96: FALSE | VU96: FALSE | VV96: FALSE | VW96: FALSE | VX96: FALSE | VY96: FALSE | VZ96: FALSE | WA96: FALSE | WB96: FALSE | WC96: FALSE | WD96: FALSE | WE96: FALSE | WF96: FALSE | WG96: FALSE | WH96: FALSE | WI96: FALSE | WJ96: FALSE | WK96: FALSE | WL96: FALSE | WM96: FALSE | WN96: FALSE | WO96: FALSE | WP96: FALSE | WQ96: FALSE | WR96: FALSE | WS96: FALSE | WT96: FALSE | WU96: FALSE | WV96: FALSE | WW96: FALSE | WX96: FALSE | WY96: FALSE | WZ96: FALSE | XA96: FALSE | XB96: FALSE | XC96: FALSE | XD96: FALSE | XE96: FALSE | XF96: FALSE | XG96: FALSE | XH96: FALSE | XI96: FALSE | XJ96: FALSE | XK96: FALSE | XL96: FALSE | XM96: FALSE | XN96: FALSE | XO96: FALSE | XP96: FALSE | XQ96: FALSE | XR96: FALSE | XS96: FALSE | XT96: FALSE | XU96: FALSE | XV96: FALSE | XW96: FALSE | XX96: FALSE | XY96: =$F$96=XY6 -> FALSE | XZ96: FALSE | YA96: FALSE | YB96: FALSE | YC96: FALSE | YD96: FALSE | YE96: FALSE | YF96: FALSE | YG96: FALSE | YH96: FALSE | YI96: FALSE | YJ96: FALSE | YK96: FALSE | YL96: FALSE | YM96: FALSE | YN96: FALSE | YO96: FALSE | YP96: FALSE | YQ96: FALSE | YR96: FALSE | YS96: FALSE | YT96: FALSE | YU96: FALSE | YV96: FALSE | YW96: FALSE | YX96: FALSE | YY96: FALSE | YZ96: FALSE | ZA96: FALSE | ZB96: FALSE | ZC96: FALSE | ZD96: FALSE | ZE96: FALSE | ZF96: FALSE | ZG96: FALSE | ZH96: FALSE | ZI96: FALSE | ZJ96: FALSE | ZK96: FALSE | ZL96: FALSE | ZM96: FALSE | ZN96: FALSE | ZO96: FALSE | ZP96: FALSE | ZQ96: FALSE | ZR96: FALSE | ZS96: FALSE | ZT96: FALSE | ZU96: FALSE | ZV96: FALSE | ZW96: FALSE | ZX96: FALSE | ZY96: FALSE | ZZ96: FALSE | AAA96: FALSE | AAB96: FALSE | AAC96: FALSE | AAD96: FALSE | AAE96: FALSE | AAF96: FALSE | AAG96: FALSE | AAH96: FALSE | AAI96: FALSE | AAJ96: FALSE | AAK96: =$F$96=AAK6 -> FALSE | AAL96: FALSE | AAM96: FALSE | AAN96: FALSE | AAO96: FALSE | AAP96: FALSE | AAQ96: FALSE | AAR96: FALSE | AAS96: FALSE | AAT96: FALSE | AAU96: FALSE | AAV96: FALSE | AAW96: FALSE | AAX96: FALSE | AAY96: FALSE | AAZ96: FALSE | ABA96: FALSE | ABB96: FALSE | ABC96: FALSE | ABD96: FALSE | ABE96: FALSE | ABF96: FALSE | ABG96: FALSE | ABH96: FALSE | ABI96: FALSE | ABJ96: FALSE | ABK96: FALSE | ABL96: FALSE | ABM96: FALSE | ABN96: FALSE | ABO96: FALSE | ABP96: FALSE | ABQ96: FALSE | ABR96: FALSE | ABS96: FALSE | ABT96: FALSE | ABU96: FALSE | ABV96: FALSE | ABW96: FALSE | ABX96: FALSE | ABY96: FALSE | ABZ96: FALSE | ACA96: FALSE | ACB96: FALSE | ACC96: FALSE | ACD96: FALSE | ACE96: FALSE | ACF96: FALSE | ACG96: FALSE | ACH96: FALSE | ACI96: FALSE | ACJ96: FALSE | ACK96: FALSE | ACL96: FALSE | ACM96: FALSE | ACN96: FALSE | ACO96: FALSE | ACP96: FALSE | ACQ96: FALSE | ACR96: FALSE | ACS96: FALSE | ACT96: FALSE | ACU96: FALSE | ACV96: FALSE | ACW96: =$F$96=ACW6 -> FALSE | ACX96: FALSE | ACY96: FALSE | ACZ96: FALSE | ADA96: FALSE | ADB96: FALSE | ADC96: FALSE | ADD96: FALSE | ADE96: FALSE | ADF96: FALSE | ADG96: FALSE | ADH96: FALSE | ADI96: FALSE | ADJ96: FALSE | ADK96: FALSE | ADL96: FALSE | ADM96: FALSE | ADN96: FALSE | ADO96: FALSE | ADP96: FALSE | ADQ96: FALSE | ADR96: FALSE | ADS96: FALSE | ADT96: FALSE | ADU96: FALSE | ADV96: FALSE | ADW96: FALSE | ADX96: FALSE | ADY96: FALSE | ADZ96: FALSE | AEA96: FALSE | AEB96: FALSE | AEC96: FALSE | AED96: FALSE | AEE96: FALSE | AEF96: FALSE | AEG96: FALSE | AEH96: FALSE | AEI96: FALSE | AEJ96: FALSE | AEK96: FALSE | AEL96: FALSE | AEM96: FALSE | AEN96: FALSE | AEO96: FALSE | AEP96: FALSE | AEQ96: FALSE | AER96: FALSE | AES96: FALSE | AET96: FALSE | AEU96: FALSE | AEV96: FALSE | AEW96: FALSE | AEX96: FALSE | AEY96: FALSE | AEZ96: FALSE | AFA96: FALSE | AFB96: FALSE | AFC96: FALSE | AFD96: FALSE | AFE96: FALSE | AFF96: FALSE | AFG96: FALSE | AFH96: FALSE | AFI96: =$F$96=AFI6 -> FALSE | AFJ96: FALSE | AFK96: FALSE | AFL96: FALSE | AFM96: FALSE | AFN96: FALSE | AFO96: FALSE | AFP96: FALSE | AFQ96: FALSE | AFR96: FALSE | AFS96: FALSE | AFT96: FALSE | AFU96: FALSE | AFV96: FALSE | AFW96: FALSE | AFX96: FALSE | AFY96: FALSE | AFZ96: FALSE | AGA96: FALSE | AGB96: FALSE | AGC96: FALSE | AGD96: FALSE | AGE96: FALSE | AGF96: FALSE | AGG96: FALSE | AGH96: FALSE | AGI96: FALSE | AGJ96: FALSE | AGK96: FALSE
